Workbook

Sheet 使用方法
A1: このエクセルシートの使用方法
A4: 1. | B4: 全体的な情報の入力
B5: 会社情報シートに必要な情報を入力します
A10: 2. | B10: 年末調整計算、源泉徴収票・給与支払報告書作成
B11: 源泉徴収票シートに、給料・扶養控除申告書・保険料控除申告書などの情報を入力します。
B12: － | C12: 年末調整時の要調整額の計算
B13: － | C13: 源泉徴収票・給与支払報告書の作成
B14: ができます。
G16: ※未成年・外国人・死亡退職・災害者、未払給与の内書には未対応です。
A20: 3. | B20: 退職者の源泉徴収票・特別徴収票作成
B21: 退職所得シートに、退職金を支払った人の情報を入力します。
B22: 「退職所得の源泉徴収票・特別徴収票」を作成できます。
G24: ※入社日・退社日と勤続年数が一致しないもの等イレギュラーなものには未対応です。
A28: 4. | B28: 報酬・料金の支払調書作成
B29: 報酬支払先情報入力シート、報酬支払情報シートに報酬・料金（≒外注費）についての情報を入力します。
B30: 「報酬・料金の支払調書」を作成できます。
G32: ※未払報酬の内書には未対応です。
A36: 5. | B36: 不動産の支払調書作成
B37: 不動産支払先情報入力シート、不動産支払情報シートに不動産賃借料と仲介手数料についての情報を入力します。
B38: 「不動産の使用料等の支払調書」を作成できます。
G40: ※未払報酬の内書には未対応です。
A44: 6. | B44: 法定調書合計表の作成
B45: ２～５で入力した情報から法定調書合計表を作成します。
A51: 注意事項
A53: 7. | B53: マイナンバーについて
B54: 従業員交付用の源泉徴収票や、支払先交付用の支払調書にはマイナンバー関連の情報を表示させないようにしています。
B55: 税務署提出用を誤って従業員に交付しないようご注意ください。
B57: また、このエクセルシートに入力したマイナンバーの漏洩を防ぐため、
B58: 読み込みパスワードを設定することを強くおすすめします。
A61: 8. | B61: 免責事項
B62: このシートを使って生じたいかなる損害も補償できません。
B63: あくまで、自己責任でお使いください。

Sheet 会社情報
A1: 説明表示の設定
A2: 各種書類作成時の説明表示 | C2: 表示する
A5: 会社情報
A7: 作成年度 | C7: 2021 | D7: 年
A8: 支払者 | B8: 住所 | C8: 東京都千代田区１－２－３
B9: 氏名又は名称 | C9: ABC商事株式会社
B10: 氏名又は名称（フリガナ） | C10: エービーシーショウジカブシキガイシャ
B11: 電話番号 | C11: 03-1234-5678 | D11: ※市外局番から、半角文字・ハイフン区切りで入力してください
B12: 個人番号または法人番号 | C12: 1234567890122
A15: 源泉徴収票に出力する情報
A16: ※源泉徴収票を作成しない場合には、下記の入力は不要です
A17: 支払種別 | C17: 給料・賞与
A20: 法定調書合計表に出力する情報
A21: ※法定調書を作成しない場合には、下記の入力は不要です
B23: 管轄税務署 | C23: 麹町 | D23: 税務署
B24: 署番号 | C24: 01101
B25: 整理番号 | C25: 12345678
B26: 事業種目 | C26: コンサルティング業
B27: 代表者氏名 | C27: 神田隆文
B28: 代表者氏名フリガナ | C28: カンダタカフミ
B29: 作成担当者氏名 | C29: 吉野未来
B30: 作成担当者氏名フリガナ | C30: ヨシノミライ
B31: 提出日 | C31: 2021-01-31

Sheet 源泉徴収票
B1: =IF($A1="","",INDEX(B$8:B$999,MATCH($A1,$A$8:$A$999,0),1)&"") ->  | C1: =IF($A1="","",INDEX(C$8:C$999,MATCH($A1,$A$8:$A$999,0),1)&"") ->  | D1: =IF($A1="","",INDEX(D$8:D$999,MATCH($A1,$A$8:$A$999,0),1)&"") ->  | E1: =IF($A1="","",INDEX(E$8:E$999,MATCH($A1,$A$8:$A$999,0),1)&"") ->  | F1: =IF($A1="",0,INDEX(F$8:F$999,MATCH($A1,$A$8:$A$999,0),1)) -> 00:00:00 | G1: =IF($A1="",0,INDEX(G$8:G$999,MATCH($A1,$A$8:$A$999,0),1)) -> 00:00:00 | H1: =IF($A1="","",INDEX(H$8:H$999,MATCH($A1,$A$8:$A$999,0),1)&"") ->  | O1: =IF($A1="",0,INDEX(O$8:O$999,MATCH($A1,$A$8:$A$999,0),1)) -> 0 | P1: 0 | Q1: 0 | R1: 0 | S1: 0 | T1: 0 | U1: 0 | V1: 0 | W1: 0 | X1: =IF($A1="","",INDEX(X$8:X$999,MATCH($A1,$A$8:$A$999,0),1)&"") ->  | Y1: =IF($A1="","",INDEX(Y$8:Y$999,MATCH($A1,$A$8:$A$999,0),1)&"") ->  | Z1: =IF($A1="",0,INDEX(Z$8:Z$999,MATCH($A1,$A$8:$A$999,0),1)) -> 00:00:00 | AA1: =IF($A1="","",INDEX(AA$8:AA$999,MATCH($A1,$A$8:$A$999,0),1)&"") ->  | AB1: =IF($A1="",0,INDEX(AB$8:AB$999,MATCH($A1,$A$8:$A$999,0),1)) -> 00:00:00 | AC1: =IF($A1="","",INDEX(AC$8:AC$999,MATCH($A1,$A$8:$A$999,0),1)&"") ->  | AD1: =IF($A1="","",INDEX(AD$8:AD$999,MATCH($A1,$A$8:$A$999,0),1)&"") ->  | AE1: =IF($A1="","",INDEX(AE$8:AE$999,MATCH($A1,$A$8:$A$999,0),1)&"") ->  | AF1: =IF($A1="","",INDEX(AF$8:AF$999,MATCH($A1,$A$8:$A$999,0),1)&"") ->  | AG1: =IF($A1="","",INDEX(AG$8:AG$999,MATCH($A1,$A$8:$A$999,0),1)&"") ->  | AH1: =IF($A1="",0,INDEX(AH$8:AH$999,MATCH($A1,$A$8:$A$999,0),1)) -> 00:00:00 | AI1: =IF($A1="",0,INDEX(AI$8:AI$999,MATCH($A1,$A$8:$A$999,0),1)) -> 0 | AJ1: =IF($A1="","",INDEX(AJ$8:AJ$999,MATCH($A1,$A$8:$A$999,0),1)&"") ->  | AK1: =IF($A1="","",INDEX(AK$8:AK$999,MATCH($A1,$A$8:$A$999,0),1)&"") ->  | AL1: =IF($A1="","",INDEX(AL$8:AL$999,MATCH($A1,$A$8:$A$999,0),1)&"") ->  | AM1: =IF($A1="","",INDEX(AM$8:AM$999,MATCH($A1,$A$8:$A$999,0),1)&"") ->  | AN1: =IF($A1="",0,INDEX(AN$8:AN$999,MATCH($A1,$A$8:$A$999,0),1)) -> 00:00:00 | AO1: =IF($A1="","",INDEX(AO$8:AO$999,MATCH($A1,$A$8:$A$999,0),1)&"") ->  | AP1: =IF($A1="","",INDEX(AP$8:AP$999,MATCH($A1,$A$8:$A$999,0),1)&"") ->  | AQ1: =IF($A1="","",INDEX(AQ$8:AQ$999,MATCH($A1,$A$8:$A$999,0),1)&"") ->  | AR1: =IF($A1="","",INDEX(AR$8:AR$999,MATCH($A1,$A$8:$A$999,0),1)&"") ->  | AS1: =IF($A1="","",INDEX(AS$8:AS$999,MATCH($A1,$A$8:$A$999,0),1)&"") ->  | AT1: =IF($A1="",0,INDEX(AT$8:AT$999,MATCH($A1,$A$8:$A$999,0),1)) -> 00:00:00 | AU1: =IF($A1="","",INDEX(AU$8:AU$999,MATCH($A1,$A$8:$A$999,0),1)&"") ->  | AV1: =IF($A1="","",INDEX(AV$8:AV$999,MATCH($A1,$A$8:$A$999,0),1)&"") ->  | AW1: =IF($A1="","",INDEX(AW$8:AW$999,MATCH($A1,$A$8:$A$999,0),1)&"") ->  | AX1: =IF($A1="","",INDEX(AX$8:AX$999,MATCH($A1,$A$8:$A$999,0),1)&"") ->  | AY1: =IF($A1="","",INDEX(AY$8:AY$999,MATCH($A1,$A$8:$A$999,0),1)&"") ->  | AZ1: =IF($A1="",0,INDEX(AZ$8:AZ$999,MATCH($A1,$A$8:$A$999,0),1)) -> 00:00:00 | BA1: =IF($A1="","",INDEX(BA$8:BA$999,MATCH($A1,$A$8:$A$999,0),1)&"") ->  | BB1: =IF($A1="","",INDEX(BB$8:BB$999,MATCH($A1,$A$8:$A$999,0),1)&"") ->  | BC1: =IF($A1="","",INDEX(BC$8:BC$999,MATCH($A1,$A$8:$A$999,0),1)&"") ->  | BD1: =IF($A1="","",INDEX(BD$8:BD$999,MATCH($A1,$A$8:$A$999,0),1)&"") ->  | BE1: =IF($A1="","",INDEX(BE$8:BE$999,MATCH($A1,$A$8:$A$999,0),1)&"") ->  | BF1: =IF($A1="",0,INDEX(BF$8:BF$999,MATCH($A1,$A$8:$A$999,0),1)) -> 00:00:00 | BG1: =IF($A1="","",INDEX(BG$8:BG$999,MATCH($A1,$A$8:$A$999,0),1)&"") ->  | BH1: =IF($A1="","",INDEX(BH$8:BH$999,MATCH($A1,$A$8:$A$999,0),1)&"") ->  | BI1: =IF($A1="","",INDEX(BI$8:BI$999,MATCH($A1,$A$8:$A$999,0),1)&"") ->  | BJ1: =IF($A1="","",INDEX(BJ$8:BJ$999,MATCH($A1,$A$8:$A$999,0),1)&"") ->  | BK1: =IF($A1="","",INDEX(BK$8:BK$999,MATCH($A1,$A$8:$A$999,0),1)&"") ->  | BL1: =IF($A1="",0,INDEX(BL$8:BL$999,MATCH($A1,$A$8:$A$999,0),1)) -> 00:00:00 | BM1: =IF($A1="","",INDEX(BM$8:BM$999,MATCH($A1,$A$8:$A$999,0),1)&"") ->  | BN1: =IF($A1="","",INDEX(BN$8:BN$999,MATCH($A1,$A$8:$A$999,0),1)&"") ->  | BO1: =IF($A1="","",INDEX(BO$8:BO$999,MATCH($A1,$A$8:$A$999,0),1)&"") ->  | BP1: =IF($A1="","",INDEX(BP$8:BP$999,MATCH($A1,$A$8:$A$999,0),1)&"") ->  | BQ1: =IF($A1="",0,INDEX(BQ$8:BQ$999,MATCH($A1,$A$8:$A$999,0),1)) -> 0 | BR1: =IF($A1="",0,INDEX(BR$8:BR$999,MATCH($A1,$A$8:$A$999,0),1)) -> 0 | BS1: =IF($A1="",0,INDEX(BS$8:BS$999,MATCH($A1,$A$8:$A$999,0),1)) -> 0 | BT1: =IF($A1="","",INDEX(BT$8:BT$999,MATCH($A1,$A$8:$A$999,0),1)&"") ->  | BU1: =IF($A1="",0,INDEX(BU$8:BU$999,MATCH($A1,$A$8:$A$999,0),1)) -> 0 | BV1: 0 | BW1: 0 | BX1: 0 | BY1: 0 | BZ1: 0 | CA1: 0 | CB1: =IF($A1="",0,INDEX(CB$8:CB$999,MATCH($A1,$A$8:$A$999,0),1)) -> 0 | CC1: =IF($A1="",0,INDEX(CC$8:CC$999,MATCH($A1,$A$8:$A$999,0),1)) -> 0 | CD1: =IF($A1="",0,INDEX(CD$8:CD$999,MATCH($A1,$A$8:$A$999,0),1)) -> 0 | CE1: =IF($A1="",0,INDEX(CE$8:CE$999,MATCH($A1,$A$8:$A$999,0),1)) -> 0 | CF1: 0 | CG1: 0 | CH1: 0 | CI1: 0 | CJ1: 0 | CK1: =IF($A1="","",INDEX(CK$8:CK$999,MATCH($A1,$A$8:$A$999,0),1)&"") ->  | CN1: 0 | CO1: 0 | CP1: =IF($A1="","",INDEX(CP$8:CP$999,MATCH($A1,$A$8:$A$999,0),1)&"") ->  | CT1: =IF($A1="","",INDEX(CT$8:CT$999,MATCH($A1,$A$8:$A$999,0),1)&"") ->  | CU1: =IF($A1="","",INDEX(CU$8:CU$999,MATCH($A1,$A$8:$A$999,0),1)&"") ->  | CV1: =IF($A1="","",INDEX(CV$8:CV$999,MATCH($A1,$A$8:$A$999,0),1)&"") ->  | CW1: =IF($A1="",0,INDEX(CW$8:CW$999,MATCH($A1,$A$8:$A$999,0),1)) -> 00:00:00 | CZ1: =IF($A1="",0,INDEX(CZ$8:CZ$999,MATCH($A1,$A$8:$A$999,0),1)) -> 0 | DA1: =IF($A1="",0,INDEX(DA$8:DA$999,MATCH($A1,$A$8:$A$999,0),1)) -> 00:00:00 | DB1: =IF($A1="","",INDEX(DB$8:DB$999,MATCH($A1,$A$8:$A$999,0),1)&"") ->  | DC1: =IF($A1="",0,INDEX(DC$8:DC$999,MATCH($A1,$A$8:$A$999,0),1)) -> 0 | DD1: =IF($A1="",0,INDEX(DD$8:DD$999,MATCH($A1,$A$8:$A$999,0),1)) -> 00:00:00 | DE1: =IF($A1="","",INDEX(DE$8:DE$999,MATCH($A1,$A$8:$A$999,0),1)&"") ->  | DF1: =IF($A1="",0,INDEX(DF$8:DF$999,MATCH($A1,$A$8:$A$999,0),1)) -> 0 | DG1: 0 | DH1: 0 | DI1: 0 | DJ1: 0 | DK1: 0 | DL1: 0 | DM1: 0 | DN1: 0 | DO1: 0 | DP1: 0 | DQ1: 0 | DR1: 0 | DS1: 0 | DT1: 0 | DU1: 0 | DV1: 0 | DW1: 0 | DX1: 0 | DY1: 0 | DZ1: 0 | EA1: 0 | EB1: 0 | EC1: 0 | ED1: 0
A2: 年末調整・源泉徴収票関連情報入力 | C2: →CN列まで入力項目があります 入力後に、源泉徴収票などを作成してください。 | O2: →源泉徴収簿を見て入力してください | AA2: →扶養控除申告書を見て入力してください | AK2: →扶養控除申告書（控除対象扶養親族、16歳未満の扶養親族） | BO2: →扶養控除申告書（障害者、寡婦控除） | BU2: →保険料控除申告書を見て入力してください | CZ2: →住宅借入金等特別控除申告書を見て入力してください | DH2: →年末調整の計算結果です（セルを選択できますが、数式を壊さないようにご注意ください）
B4: 一般情報 | O4: 源泉徴収簿 | AA4: 扶養控除申告書 | BU4: 保険料控除申告書 ※ここより右は2020年度Ver1_00で入力欄のレイアウトに修正あり | CG4: 給与所得者の基礎控除申告書 兼 給与所得者の配偶者控除等申告書 兼 所得金額調整控除申告書 | CZ4: 住宅借入金等特別控除申告書など | DH4: 源泉徴収簿（計算結果） ※年末調整をしない場合、薄赤セルは無条件に０（あるいは天引税額をそのまま転記）している
F5: 今年中の入退社 | H5: 源泉徴収 | I5: 年調実施 | O5: 給料（前職分の給料・賞与除く） | R5: 賞与（前職分の給料・賞与除く） | U5: 前職についての情報 | AA5: 本人の情報 | AE5: 源泉控除対象配偶者 | AK5: 扶養親族１ | AQ5: 扶養親族２ | AW5: 扶養親族３ | BC5: 扶養親族４ | BI5: 扶養親族５ | BO5: 障害者 | BQ5: 扶養家族障害者人数 | BT5: 寡婦 | BU5: 生命保険料控除 | BZ5: 地震保険料控除 | CB5: 社会保険料控除 | CD5: 小規模 | CG5: 基礎控除 | CK5: 配偶者控除・配偶者特別控除 | CS5: 所得金額調整控除申告書 | CZ5: 住宅借入金等 | DA5: １回目 | DD5: 2回目 | DH5: 給与等計 | DI5: 税額計 | DJ5: 給与所得控除後の | DK5: 所得金額調整 | DL5: 給与所得控除後の給与 | DM5: 所得控除 | DY5: 差引課税 | DZ5: 算出 | EA5: 住宅借入金等 | EB5: 年調 | EC5: 年調 | ED5: 差引超過額
A6: No | B6: 氏名 | C6: 氏名フリガナ | D6: 役員 | E6: 役職名 | F6: 入社日 | G6: 退社日 | H6: 区分 | I6: 有無 | J6: 死亡退職 | K6: 外国人 | L6: 災害者 | M6: 住民税徴収方法 | N6: 普通徴収理由 | O6: 総支給金額 | P6: 社会保険料 | Q6: 算出税額 | R6: 総支給金額 | S6: 社会保険料 | T6: 算出税額 | U6: 給与等の金額 | V6: 社会保険料等 | W6: 税額 | X6: 住所 | Y6: 名称 | Z6: 退職年月日 | AA6: 個人番号 | AB6: 生年月日 | AC6: 住所 | AD6: 給与支払報告書提出先自治体 | AE6: 氏名 | AF6: フリガナ | AG6: 個人番号 | AH6: 生年月日 | AI6: 所得見積額 | AJ6: 非居住者 | AK6: 氏名 | AL6: フリガナ | AM6: 個人番号 | AN6: 生年月日 | AO6: 同居 | AP6: 非居住者 | AQ6: 氏名 | AR6: フリガナ | AS6: 個人番号 | AT6: 生年月日 | AU6: 同居 | AV6: 非居住者 | AW6: 氏名 | AX6: フリガナ | AY6: 個人番号 | AZ6: 生年月日 | BA6: 同居 | BB6: 非居住者 | BC6: 氏名 | BD6: フリガナ | BE6: 個人番号 | BF6: 生年月日 | BG6: 同居 | BH6: 非居住者 | BI6: 氏名 | BJ6: フリガナ | BK6: 個人番号 | BL6: 生年月日 | BM6: 同居 | BN6: 非居住者 | BO6: 本人 | BP6: 同一生計配偶者 | BQ6: 一般 | BR6: 特別 | BS6: 同居特別 | BT6: 勤労学生 | BU6: 一般新 | BV6: 一般旧 | BW6: 介護医療 | BX6: 年金新 | BY6: 年金旧 | BZ6: 地震 | CA6: 旧長期損害 | CB6: 合計（控除額） | CC6: （うち国民年金支払額） | CD6: 企業共済 | CG6: 合計所得金額 | CK6: 配偶者氏名 | CL6: フリガナ | CM6: 個人番号 | CN6: 生年月日 | CO6: 所得見積額 | CP6: 非居住者 | CS6: 要件 | CZ6: 特別控除額 | DA6: 居住開始年月日 | DB6: 控除区分 | DC6: 住宅借入金等年末残高 | DD6: 居住開始年月日 | DE6: 控除区分 | DF6: 住宅借入金等年末残高 | DJ6: 給与等の金額 | DK6: 控除額 | DL6: 等の金額（調整控除後） | DM6: 社会保険料等 | DP6: 生命保険料 | DQ6: 地震保険料 | DR6: 配偶者特別 | DS6: 配偶者 | DT6: 扶養 | DU6: 障害者 | DV6: 寡婦等 | DW6: 基礎 | DX6: 控除額計 | DY6: 給与所得金額 | DZ6: 所得税額 | EA6: 特別控除額 | EB6: 所得税額 | EC6: 年税額 | ED6: または不足額
O7: ① | P7: ② | Q7: ③ | R7: ④ | S7: ⑤ | T7: ⑥ | BU7: A | BV7: B | BW7: C | BX7: D | BY7: E | BZ7: B | CA7: C | CO7: (*)欄 | DH7: ⑦ | DI7: ⑧ | DJ7: ⑨ | DK7: ⑩ | DL7: ⑪ | DM7: ⑫ | DN7: ⑬ | DO7: ⑭ | DP7: ⑮ | DQ7: ⑯ | DR7: ⑰ | DT7: ⑱ | DW7: ⑲ | DX7: 20 | DY7: 21 | DZ7: 22 | EA7: 23 | EB7: 24 | EC7: 25 | ED7: 26
A8: 1 | B8: 神原有紀 | C8: カンバラユウキ | D8: 役員 | E8: 代表取締役 | F8: 2021-04-01 | H8: 甲欄 | I8: 有 | O8: 3000000 | P8: 454130 | Q8: 70300 | R8: 1570000 | S8: 237157 | T8: 51369 | U8: 2265000 | V8: 342000 | W8: 26150 | X8: 神奈川県横浜市中区１－２－３ | Y8: 武蔵株式会社 | Z8: 2016-03-31 | AA8: 234567890121 | AB8: 1970-01-25 | AC8: 渋谷区代々木１－２－３ | AE8: 神原悠人 | AF8: カンバラユウト | AG8: 135792468015 | AH8: 1967-11-01 | AI8: 170000 | AK8: 神原美希 | AL8: カンバラミキ | AM8: 345678901234 | AN8: 1996-02-04 | AQ8: 神原智史 | AR8: カンバラサトシ | AS8: 456789012346 | AT8: 2001-03-30 | AW8: 神原裕利 | AX8: カンバラユウリ | AY8: 567890123457 | AZ8: 1939-05-08 | BA8: 同居老親等 | BQ8: 1 | BU8: 24000 | BV8: 36000 | BW8: 48000 | BY8: 72000 | BZ8: 30000 | CA8: 19600 | CK8: 神原悠人 | CL8: カンバラユウト | CM8: 135792468015 | CN8: 1967-11-01 | CO8: 170000 | DH8: ='源泉徴収票計算過程(非)'!AJ8 -> 6835000 | DI8: ='源泉徴収票計算過程(非)'!AK8 -> 147819 | DJ8: ='源泉徴収票計算過程(非)'!AL8 -> 5051500 | DK8: ='源泉徴収票計算過程(非)'!AM8 -> 0 | DL8: ='源泉徴収票計算過程(非)'!AN8 -> 5051500 | DM8: ='源泉徴収票計算過程(非)'!AO8 -> 1033287 | DN8: ='源泉徴収票計算過程(非)'!AP8 -> 0 | DO8: ='源泉徴収票計算過程(非)'!AQ8 -> 0 | DP8: ='源泉徴収票計算過程(非)'!AR8 -> 115000 | DQ8: ='源泉徴収票計算過程(非)'!AS8 -> 44800 | DR8: ='源泉徴収票計算過程(非)'!AT8 -> 0 | DS8: ='源泉徴収票計算過程(非)'!AU8 -> 380000 | DT8: ='源泉徴収票計算過程(非)'!AV8 -> 1590000 | DU8: ='源泉徴収票計算過程(非)'!AW8 -> 270000 | DV8: ='源泉徴収票計算過程(非)'!AX8 -> 0 | DW8: ='源泉徴収票計算過程(非)'!AY8 -> 480000 | DX8: ='源泉徴収票計算過程(非)'!AZ8 -> 3913087 | DY8: ='源泉徴収票計算過程(非)'!BA8 -> 1138000 | DZ8: ='源泉徴収票計算過程(非)'!BB8 -> 56900 | EA8: ='源泉徴収票計算過程(非)'!BC8 -> 0 | EB8: ='源泉徴収票計算過程(非)'!BD8 -> 56900 | EC8: ='源泉徴収票計算過程(非)'!BE8 -> 58000 | ED8: ='源泉徴収票計算過程(非)'!BF8 -> -89819
A9: 2 | B9: 山田太郎 | C9: ヤマダタロウ | G9: 2021-12-31 | H9: 甲欄 | I9: 有 | O9: 4800000 | Q9: 192500 | AA9: 987654321018 | AB9: 1975-02-03 | AC9: 品川区品川２－４－６ | AE9: 山田花子 | AF9: ヤマダハナコ | AG9: 246801357924 | AH9: 1965-11-01 | AI9: 580000 | AK9: 山田百合子 | AL9: ヤマダユリコ | AM9: 293875987868 | AN9: 2009-01-02 | AQ9: 山田雄太 | AR9: ヤマダユウタ | AS9: 298759834673 | AT9: 2010-02-04 | AW9: 山田洋介 | AX9: ヤマダヨウスケ | AY9: 928765098370 | AZ9: 2012-04-06 | BC9: 山田美優 | BD9: ヤマダミユ | BE9: 908327464037 | BF9: 2014-06-02 | BI9: 山田美香 | BJ9: ヤマダミカ | BK9: 938460980222 | BL9: 2016-06-02 | CB9: 431000 | CC9: 123000 | CD9: 840000 | CK9: 山田花子 | CL9: ヤマダハナコ | CM9: 246801357924 | CN9: 1965-11-01 | CO9: 1060000 | CZ9: 100000 | DA9: 2013-08-05 | DB9: 住 | DC9: 10043269 | DH9: ='源泉徴収票計算過程(非)'!AJ9 -> 4800000 | DI9: ='源泉徴収票計算過程(非)'!AK9 -> 192500 | DJ9: ='源泉徴収票計算過程(非)'!AL9 -> 3400000 | DK9: ='源泉徴収票計算過程(非)'!AM9 -> 0 | DL9: ='源泉徴収票計算過程(非)'!AN9 -> 3400000 | DM9: ='源泉徴収票計算過程(非)'!AO9 -> 0 | DN9: ='源泉徴収票計算過程(非)'!AP9 -> 431000 | DO9: ='源泉徴収票計算過程(非)'!AQ9 -> 840000 | DP9: ='源泉徴収票計算過程(非)'!AR9 -> 0 | DQ9: ='源泉徴収票計算過程(非)'!AS9 -> 0 | DR9: ='源泉徴収票計算過程(非)'!AT9 -> 260000 | DS9: ='源泉徴収票計算過程(非)'!AU9 -> 0 | DT9: ='源泉徴収票計算過程(非)'!AV9 -> 0 | DU9: ='源泉徴収票計算過程(非)'!AW9 -> 0 | DV9: ='源泉徴収票計算過程(非)'!AX9 -> 0 | DW9: ='源泉徴収票計算過程(非)'!AY9 -> 480000 | DX9: ='源泉徴収票計算過程(非)'!AZ9 -> 2011000 | DY9: ='源泉徴収票計算過程(非)'!BA9 -> 1389000 | DZ9: ='源泉徴収票計算過程(非)'!BB9 -> 69450 | EA9: ='源泉徴収票計算過程(非)'!BC9 -> 100000 | EB9: ='源泉徴収票計算過程(非)'!BD9 -> 0 | EC9: ='源泉徴収票計算過程(非)'!BE9 -> 0 | ED9: ='源泉徴収票計算過程(非)'!BF9 -> -192500
A10: 3 | B10: 笠原花子 | C10: カサハラハナコ | H10: 乙欄 | I10: 無 | O10: 864200 | P10: 86000 | Q10: 3450 | AA10: 209348760912 | AB10: 1985-09-02 | AC10: 新宿区新宿３－６－４ | DH10: ='源泉徴収票計算過程(非)'!AJ10 -> 864200 | DI10: ='源泉徴収票計算過程(非)'!AK10 -> 3450 | DJ10: ='源泉徴収票計算過程(非)'!AL10 -> 0 | DK10: ='源泉徴収票計算過程(非)'!AM10 -> 0 | DL10: ='源泉徴収票計算過程(非)'!AN10 -> 0 | DM10: ='源泉徴収票計算過程(非)'!AO10 -> 86000 | DN10: ='源泉徴収票計算過程(非)'!AP10 -> 0 | DO10: ='源泉徴収票計算過程(非)'!AQ10 -> 0 | DP10: ='源泉徴収票計算過程(非)'!AR10 -> 0 | DQ10: ='源泉徴収票計算過程(非)'!AS10 -> 0 | DR10: ='源泉徴収票計算過程(非)'!AT10 -> 0 | DS10: ='源泉徴収票計算過程(非)'!AU10 -> 0 | DT10: ='源泉徴収票計算過程(非)'!AV10 -> 0 | DU10: ='源泉徴収票計算過程(非)'!AW10 -> 0 | DV10: ='源泉徴収票計算過程(非)'!AX10 -> 0 | DW10: ='源泉徴収票計算過程(非)'!AY10 -> 0 | DX10: ='源泉徴収票計算過程(非)'!AZ10 -> 0 | DY10: ='源泉徴収票計算過程(非)'!BA10 -> 0 | DZ10: ='源泉徴収票計算過程(非)'!BB10 -> 3450 | EA10: ='源泉徴収票計算過程(非)'!BC10 -> 0 | EB10: ='源泉徴収票計算過程(非)'!BD10 -> 3450 | EC10: ='源泉徴収票計算過程(非)'!BE10 -> 3450 | ED10: ='源泉徴収票計算過程(非)'!BF10 -> 0
A11: 4 | B11: 平松隆司 | C11: ヒラマツタカシ | D11: 役員 | E11: 代表取締役 | H11: 甲欄 | I11: 有 | O11: 18000000 | P11: 1644860 | Q11: 3066948 | AA11: 123456789012 | AB11: 1965-04-02 | AC11: 世田谷区世田谷１－１－１ | AK11: 平松健司 | AL11: ヒラマツケンジ | AM11: 123457890123 | AN11: 2009-05-03 | CS11: 扶養親族が年齢23歳未満 | DH11: ='源泉徴収票計算過程(非)'!AJ11 -> 18000000 | DI11: ='源泉徴収票計算過程(非)'!AK11 -> 3066948 | DJ11: ='源泉徴収票計算過程(非)'!AL11 -> 16050000 | DK11: ='源泉徴収票計算過程(非)'!AM11 -> 150000 | DL11: ='源泉徴収票計算過程(非)'!AN11 -> 15900000 | DM11: ='源泉徴収票計算過程(非)'!AO11 -> 1644860 | DN11: ='源泉徴収票計算過程(非)'!AP11 -> 0 | DO11: ='源泉徴収票計算過程(非)'!AQ11 -> 0 | DP11: ='源泉徴収票計算過程(非)'!AR11 -> 0 | DQ11: ='源泉徴収票計算過程(非)'!AS11 -> 0 | DR11: ='源泉徴収票計算過程(非)'!AT11 -> 0 | DS11: ='源泉徴収票計算過程(非)'!AU11 -> 0 | DT11: ='源泉徴収票計算過程(非)'!AV11 -> 0 | DU11: ='源泉徴収票計算過程(非)'!AW11 -> 0 | DV11: ='源泉徴収票計算過程(非)'!AX11 -> 0 | DW11: ='源泉徴収票計算過程(非)'!AY11 -> 480000 | DX11: ='源泉徴収票計算過程(非)'!AZ11 -> 2124860 | DY11: ='源泉徴収票計算過程(非)'!BA11 -> 13775000 | DZ11: ='源泉徴収票計算過程(非)'!BB11 -> 3009750 | EA11: ='源泉徴収票計算過程(非)'!BC11 -> 0 | EB11: ='源泉徴収票計算過程(非)'!BD11 -> 3009750 | EC11: ='源泉徴収票計算過程(非)'!BE11 -> 3072900 | ED11: ='源泉徴収票計算過程(非)'!BF11 -> 5952
A12: 5 | B12: 木村宏 | C12: キムラヒロシ | G12: 2021-08-01 | H12: 甲欄 | I12: 無 | O12: 4000000 | Q12: 142000 | AA12: 340648689567 | AB12: 1993-01-02 | AC12: 調布市調布９－７－６ | AE12: 木村明美 | AF12: キムラアケミ | AG12: 357924680135 | AH12: 1993-09-02 | AI12: 400000 | DH12: ='源泉徴収票計算過程(非)'!AJ12 -> 4000000 | DI12: ='源泉徴収票計算過程(非)'!AK12 -> 142000 | DJ12: ='源泉徴収票計算過程(非)'!AL12 -> 0 | DK12: ='源泉徴収票計算過程(非)'!AM12 -> 0 | DL12: ='源泉徴収票計算過程(非)'!AN12 -> 0 | DM12: ='源泉徴収票計算過程(非)'!AO12 -> 0 | DN12: ='源泉徴収票計算過程(非)'!AP12 -> 0 | DO12: ='源泉徴収票計算過程(非)'!AQ12 -> 0 | DP12: ='源泉徴収票計算過程(非)'!AR12 -> 0 | DQ12: ='源泉徴収票計算過程(非)'!AS12 -> 0 | DR12: ='源泉徴収票計算過程(非)'!AT12 -> 0 | DS12: ='源泉徴収票計算過程(非)'!AU12 -> 0 | DT12: ='源泉徴収票計算過程(非)'!AV12 -> 0 | DU12: ='源泉徴収票計算過程(非)'!AW12 -> 0 | DV12: ='源泉徴収票計算過程(非)'!AX12 -> 0 | DW12: ='源泉徴収票計算過程(非)'!AY12 -> 0 | DX12: ='源泉徴収票計算過程(非)'!AZ12 -> 0 | DY12: ='源泉徴収票計算過程(非)'!BA12 -> 0 | DZ12: ='源泉徴収票計算過程(非)'!BB12 -> 142000 | EA12: ='源泉徴収票計算過程(非)'!BC12 -> 0 | EB12: ='源泉徴収票計算過程(非)'!BD12 -> 142000 | EC12: ='源泉徴収票計算過程(非)'!BE12 -> 142000 | ED12: ='源泉徴収票計算過程(非)'!BF12 -> 0
A13: 6 | DH13: ='源泉徴収票計算過程(非)'!AJ13 -> 0 | DI13: ='源泉徴収票計算過程(非)'!AK13 -> 0 | DJ13: ='源泉徴収票計算過程(非)'!AL13 -> 0 | DK13: ='源泉徴収票計算過程(非)'!AM13 -> 0 | DL13: ='源泉徴収票計算過程(非)'!AN13 -> 0 | DM13: ='源泉徴収票計算過程(非)'!AO13 -> 0 | DN13: ='源泉徴収票計算過程(非)'!AP13 -> 0 | DO13: ='源泉徴収票計算過程(非)'!AQ13 -> 0 | DP13: ='源泉徴収票計算過程(非)'!AR13 -> 0 | DQ13: ='源泉徴収票計算過程(非)'!AS13 -> 0 | DR13: ='源泉徴収票計算過程(非)'!AT13 -> 0 | DS13: ='源泉徴収票計算過程(非)'!AU13 -> 0 | DT13: ='源泉徴収票計算過程(非)'!AV13 -> 0 | DU13: ='源泉徴収票計算過程(非)'!AW13 -> 0 | DV13: ='源泉徴収票計算過程(非)'!AX13 -> 0 | DW13: ='源泉徴収票計算過程(非)'!AY13 -> 480000 | DX13: ='源泉徴収票計算過程(非)'!AZ13 -> 480000 | DY13: ='源泉徴収票計算過程(非)'!BA13 -> 0 | DZ13: ='源泉徴収票計算過程(非)'!BB13 -> 0 | EA13: ='源泉徴収票計算過程(非)'!BC13 -> 0 | EB13: ='源泉徴収票計算過程(非)'!BD13 -> 0 | EC13: ='源泉徴収票計算過程(非)'!BE13 -> 0 | ED13: ='源泉徴収票計算過程(非)'!BF13 -> 0
A14: 7 | DH14: ='源泉徴収票計算過程(非)'!AJ14 -> 0 | DI14: ='源泉徴収票計算過程(非)'!AK14 -> 0 | DJ14: ='源泉徴収票計算過程(非)'!AL14 -> 0 | DK14: ='源泉徴収票計算過程(非)'!AM14 -> 0 | DL14: ='源泉徴収票計算過程(非)'!AN14 -> 0 | DM14: ='源泉徴収票計算過程(非)'!AO14 -> 0 | DN14: ='源泉徴収票計算過程(非)'!AP14 -> 0 | DO14: ='源泉徴収票計算過程(非)'!AQ14 -> 0 | DP14: ='源泉徴収票計算過程(非)'!AR14 -> 0 | DQ14: ='源泉徴収票計算過程(非)'!AS14 -> 0 | DR14: ='源泉徴収票計算過程(非)'!AT14 -> 0 | DS14: ='源泉徴収票計算過程(非)'!AU14 -> 0 | DT14: ='源泉徴収票計算過程(非)'!AV14 -> 0 | DU14: ='源泉徴収票計算過程(非)'!AW14 -> 0 | DV14: ='源泉徴収票計算過程(非)'!AX14 -> 0 | DW14: ='源泉徴収票計算過程(非)'!AY14 -> 480000 | DX14: ='源泉徴収票計算過程(非)'!AZ14 -> 480000 | DY14: ='源泉徴収票計算過程(非)'!BA14 -> 0 | DZ14: ='源泉徴収票計算過程(非)'!BB14 -> 0 | EA14: ='源泉徴収票計算過程(非)'!BC14 -> 0 | EB14: ='源泉徴収票計算過程(非)'!BD14 -> 0 | EC14: ='源泉徴収票計算過程(非)'!BE14 -> 0 | ED14: ='源泉徴収票計算過程(非)'!BF14 -> 0
A15: 8 | DH15: ='源泉徴収票計算過程(非)'!AJ15 -> 0 | DI15: ='源泉徴収票計算過程(非)'!AK15 -> 0 | DJ15: ='源泉徴収票計算過程(非)'!AL15 -> 0 | DK15: ='源泉徴収票計算過程(非)'!AM15 -> 0 | DL15: ='源泉徴収票計算過程(非)'!AN15 -> 0 | DM15: ='源泉徴収票計算過程(非)'!AO15 -> 0 | DN15: ='源泉徴収票計算過程(非)'!AP15 -> 0 | DO15: ='源泉徴収票計算過程(非)'!AQ15 -> 0 | DP15: ='源泉徴収票計算過程(非)'!AR15 -> 0 | DQ15: ='源泉徴収票計算過程(非)'!AS15 -> 0 | DR15: ='源泉徴収票計算過程(非)'!AT15 -> 0 | DS15: ='源泉徴収票計算過程(非)'!AU15 -> 0 | DT15: ='源泉徴収票計算過程(非)'!AV15 -> 0 | DU15: ='源泉徴収票計算過程(非)'!AW15 -> 0 | DV15: ='源泉徴収票計算過程(非)'!AX15 -> 0 | DW15: ='源泉徴収票計算過程(非)'!AY15 -> 480000 | DX15: ='源泉徴収票計算過程(非)'!AZ15 -> 480000 | DY15: ='源泉徴収票計算過程(非)'!BA15 -> 0 | DZ15: ='源泉徴収票計算過程(非)'!BB15 -> 0 | EA15: ='源泉徴収票計算過程(非)'!BC15 -> 0 | EB15: ='源泉徴収票計算過程(非)'!BD15 -> 0 | EC15: ='源泉徴収票計算過程(非)'!BE15 -> 0 | ED15: ='源泉徴収票計算過程(非)'!BF15 -> 0
A16: 9 | DH16: ='源泉徴収票計算過程(非)'!AJ16 -> 0 | DI16: ='源泉徴収票計算過程(非)'!AK16 -> 0 | DJ16: ='源泉徴収票計算過程(非)'!AL16 -> 0 | DK16: ='源泉徴収票計算過程(非)'!AM16 -> 0 | DL16: ='源泉徴収票計算過程(非)'!AN16 -> 0 | DM16: ='源泉徴収票計算過程(非)'!AO16 -> 0 | DN16: ='源泉徴収票計算過程(非)'!AP16 -> 0 | DO16: ='源泉徴収票計算過程(非)'!AQ16 -> 0 | DP16: ='源泉徴収票計算過程(非)'!AR16 -> 0 | DQ16: ='源泉徴収票計算過程(非)'!AS16 -> 0 | DR16: ='源泉徴収票計算過程(非)'!AT16 -> 0 | DS16: ='源泉徴収票計算過程(非)'!AU16 -> 0 | DT16: ='源泉徴収票計算過程(非)'!AV16 -> 0 | DU16: ='源泉徴収票計算過程(非)'!AW16 -> 0 | DV16: ='源泉徴収票計算過程(非)'!AX16 -> 0 | DW16: ='源泉徴収票計算過程(非)'!AY16 -> 480000 | DX16: ='源泉徴収票計算過程(非)'!AZ16 -> 480000 | DY16: ='源泉徴収票計算過程(非)'!BA16 -> 0 | DZ16: ='源泉徴収票計算過程(非)'!BB16 -> 0 | EA16: ='源泉徴収票計算過程(非)'!BC16 -> 0 | EB16: ='源泉徴収票計算過程(非)'!BD16 -> 0 | EC16: ='源泉徴収票計算過程(非)'!BE16 -> 0 | ED16: ='源泉徴収票計算過程(非)'!BF16 -> 0
A17: 10 | DH17: ='源泉徴収票計算過程(非)'!AJ17 -> 0 | DI17: ='源泉徴収票計算過程(非)'!AK17 -> 0 | DJ17: ='源泉徴収票計算過程(非)'!AL17 -> 0 | DK17: ='源泉徴収票計算過程(非)'!AM17 -> 0 | DL17: ='源泉徴収票計算過程(非)'!AN17 -> 0 | DM17: ='源泉徴収票計算過程(非)'!AO17 -> 0 | DN17: ='源泉徴収票計算過程(非)'!AP17 -> 0 | DO17: ='源泉徴収票計算過程(非)'!AQ17 -> 0 | DP17: ='源泉徴収票計算過程(非)'!AR17 -> 0 | DQ17: ='源泉徴収票計算過程(非)'!AS17 -> 0 | DR17: ='源泉徴収票計算過程(非)'!AT17 -> 0 | DS17: ='源泉徴収票計算過程(非)'!AU17 -> 0 | DT17: ='源泉徴収票計算過程(非)'!AV17 -> 0 | DU17: ='源泉徴収票計算過程(非)'!AW17 -> 0 | DV17: ='源泉徴収票計算過程(非)'!AX17 -> 0 | DW17: ='源泉徴収票計算過程(非)'!AY17 -> 480000 | DX17: ='源泉徴収票計算過程(非)'!AZ17 -> 480000 | DY17: ='源泉徴収票計算過程(非)'!BA17 -> 0 | DZ17: ='源泉徴収票計算過程(非)'!BB17 -> 0 | EA17: ='源泉徴収票計算過程(非)'!BC17 -> 0 | EB17: ='源泉徴収票計算過程(非)'!BD17 -> 0 | EC17: ='源泉徴収票計算過程(非)'!BE17 -> 0 | ED17: ='源泉徴収票計算過程(非)'!BF17 -> 0
A18: 11 | DH18: ='源泉徴収票計算過程(非)'!AJ18 -> 0 | DI18: ='源泉徴収票計算過程(非)'!AK18 -> 0 | DJ18: ='源泉徴収票計算過程(非)'!AL18 -> 0 | DK18: ='源泉徴収票計算過程(非)'!AM18 -> 0 | DL18: ='源泉徴収票計算過程(非)'!AN18 -> 0 | DM18: ='源泉徴収票計算過程(非)'!AO18 -> 0 | DN18: ='源泉徴収票計算過程(非)'!AP18 -> 0 | DO18: ='源泉徴収票計算過程(非)'!AQ18 -> 0 | DP18: ='源泉徴収票計算過程(非)'!AR18 -> 0 | DQ18: ='源泉徴収票計算過程(非)'!AS18 -> 0 | DR18: ='源泉徴収票計算過程(非)'!AT18 -> 0 | DS18: ='源泉徴収票計算過程(非)'!AU18 -> 0 | DT18: ='源泉徴収票計算過程(非)'!AV18 -> 0 | DU18: ='源泉徴収票計算過程(非)'!AW18 -> 0 | DV18: ='源泉徴収票計算過程(非)'!AX18 -> 0 | DW18: ='源泉徴収票計算過程(非)'!AY18 -> 480000 | DX18: ='源泉徴収票計算過程(非)'!AZ18 -> 480000 | DY18: ='源泉徴収票計算過程(非)'!BA18 -> 0 | DZ18: ='源泉徴収票計算過程(非)'!BB18 -> 0 | EA18: ='源泉徴収票計算過程(非)'!BC18 -> 0 | EB18: ='源泉徴収票計算過程(非)'!BD18 -> 0 | EC18: ='源泉徴収票計算過程(非)'!BE18 -> 0 | ED18: ='源泉徴収票計算過程(非)'!BF18 -> 0
A19: 12 | DH19: ='源泉徴収票計算過程(非)'!AJ19 -> 0 | DI19: ='源泉徴収票計算過程(非)'!AK19 -> 0 | DJ19: ='源泉徴収票計算過程(非)'!AL19 -> 0 | DK19: ='源泉徴収票計算過程(非)'!AM19 -> 0 | DL19: ='源泉徴収票計算過程(非)'!AN19 -> 0 | DM19: ='源泉徴収票計算過程(非)'!AO19 -> 0 | DN19: ='源泉徴収票計算過程(非)'!AP19 -> 0 | DO19: ='源泉徴収票計算過程(非)'!AQ19 -> 0 | DP19: ='源泉徴収票計算過程(非)'!AR19 -> 0 | DQ19: ='源泉徴収票計算過程(非)'!AS19 -> 0 | DR19: ='源泉徴収票計算過程(非)'!AT19 -> 0 | DS19: ='源泉徴収票計算過程(非)'!AU19 -> 0 | DT19: ='源泉徴収票計算過程(非)'!AV19 -> 0 | DU19: ='源泉徴収票計算過程(非)'!AW19 -> 0 | DV19: ='源泉徴収票計算過程(非)'!AX19 -> 0 | DW19: ='源泉徴収票計算過程(非)'!AY19 -> 480000 | DX19: ='源泉徴収票計算過程(非)'!AZ19 -> 480000 | DY19: ='源泉徴収票計算過程(非)'!BA19 -> 0 | DZ19: ='源泉徴収票計算過程(非)'!BB19 -> 0 | EA19: ='源泉徴収票計算過程(非)'!BC19 -> 0 | EB19: ='源泉徴収票計算過程(非)'!BD19 -> 0 | EC19: ='源泉徴収票計算過程(非)'!BE19 -> 0 | ED19: ='源泉徴収票計算過程(非)'!BF19 -> 0
A20: 13 | DH20: ='源泉徴収票計算過程(非)'!AJ20 -> 0 | DI20: ='源泉徴収票計算過程(非)'!AK20 -> 0 | DJ20: ='源泉徴収票計算過程(非)'!AL20 -> 0 | DK20: ='源泉徴収票計算過程(非)'!AM20 -> 0 | DL20: ='源泉徴収票計算過程(非)'!AN20 -> 0 | DM20: ='源泉徴収票計算過程(非)'!AO20 -> 0 | DN20: ='源泉徴収票計算過程(非)'!AP20 -> 0 | DO20: ='源泉徴収票計算過程(非)'!AQ20 -> 0 | DP20: ='源泉徴収票計算過程(非)'!AR20 -> 0 | DQ20: ='源泉徴収票計算過程(非)'!AS20 -> 0 | DR20: ='源泉徴収票計算過程(非)'!AT20 -> 0 | DS20: ='源泉徴収票計算過程(非)'!AU20 -> 0 | DT20: ='源泉徴収票計算過程(非)'!AV20 -> 0 | DU20: ='源泉徴収票計算過程(非)'!AW20 -> 0 | DV20: ='源泉徴収票計算過程(非)'!AX20 -> 0 | DW20: ='源泉徴収票計算過程(非)'!AY20 -> 480000 | DX20: ='源泉徴収票計算過程(非)'!AZ20 -> 480000 | DY20: ='源泉徴収票計算過程(非)'!BA20 -> 0 | DZ20: ='源泉徴収票計算過程(非)'!BB20 -> 0 | EA20: ='源泉徴収票計算過程(非)'!BC20 -> 0 | EB20: ='源泉徴収票計算過程(非)'!BD20 -> 0 | EC20: ='源泉徴収票計算過程(非)'!BE20 -> 0 | ED20: ='源泉徴収票計算過程(非)'!BF20 -> 0
A21: 14 | DH21: ='源泉徴収票計算過程(非)'!AJ21 -> 0 | DI21: ='源泉徴収票計算過程(非)'!AK21 -> 0 | DJ21: ='源泉徴収票計算過程(非)'!AL21 -> 0 | DK21: ='源泉徴収票計算過程(非)'!AM21 -> 0 | DL21: ='源泉徴収票計算過程(非)'!AN21 -> 0 | DM21: ='源泉徴収票計算過程(非)'!AO21 -> 0 | DN21: ='源泉徴収票計算過程(非)'!AP21 -> 0 | DO21: ='源泉徴収票計算過程(非)'!AQ21 -> 0 | DP21: ='源泉徴収票計算過程(非)'!AR21 -> 0 | DQ21: ='源泉徴収票計算過程(非)'!AS21 -> 0 | DR21: ='源泉徴収票計算過程(非)'!AT21 -> 0 | DS21: ='源泉徴収票計算過程(非)'!AU21 -> 0 | DT21: ='源泉徴収票計算過程(非)'!AV21 -> 0 | DU21: ='源泉徴収票計算過程(非)'!AW21 -> 0 | DV21: ='源泉徴収票計算過程(非)'!AX21 -> 0 | DW21: ='源泉徴収票計算過程(非)'!AY21 -> 480000 | DX21: ='源泉徴収票計算過程(非)'!AZ21 -> 480000 | DY21: ='源泉徴収票計算過程(非)'!BA21 -> 0 | DZ21: ='源泉徴収票計算過程(非)'!BB21 -> 0 | EA21: ='源泉徴収票計算過程(非)'!BC21 -> 0 | EB21: ='源泉徴収票計算過程(非)'!BD21 -> 0 | EC21: ='源泉徴収票計算過程(非)'!BE21 -> 0 | ED21: ='源泉徴収票計算過程(非)'!BF21 -> 0
A22: 15 | DH22: ='源泉徴収票計算過程(非)'!AJ22 -> 0 | DI22: ='源泉徴収票計算過程(非)'!AK22 -> 0 | DJ22: ='源泉徴収票計算過程(非)'!AL22 -> 0 | DK22: ='源泉徴収票計算過程(非)'!AM22 -> 0 | DL22: ='源泉徴収票計算過程(非)'!AN22 -> 0 | DM22: ='源泉徴収票計算過程(非)'!AO22 -> 0 | DN22: ='源泉徴収票計算過程(非)'!AP22 -> 0 | DO22: ='源泉徴収票計算過程(非)'!AQ22 -> 0 | DP22: ='源泉徴収票計算過程(非)'!AR22 -> 0 | DQ22: ='源泉徴収票計算過程(非)'!AS22 -> 0 | DR22: ='源泉徴収票計算過程(非)'!AT22 -> 0 | DS22: ='源泉徴収票計算過程(非)'!AU22 -> 0 | DT22: ='源泉徴収票計算過程(非)'!AV22 -> 0 | DU22: ='源泉徴収票計算過程(非)'!AW22 -> 0 | DV22: ='源泉徴収票計算過程(非)'!AX22 -> 0 | DW22: ='源泉徴収票計算過程(非)'!AY22 -> 480000 | DX22: ='源泉徴収票計算過程(非)'!AZ22 -> 480000 | DY22: ='源泉徴収票計算過程(非)'!BA22 -> 0 | DZ22: ='源泉徴収票計算過程(非)'!BB22 -> 0 | EA22: ='源泉徴収票計算過程(非)'!BC22 -> 0 | EB22: ='源泉徴収票計算過程(非)'!BD22 -> 0 | EC22: ='源泉徴収票計算過程(非)'!BE22 -> 0 | ED22: ='源泉徴収票計算過程(非)'!BF22 -> 0
A23: 16 | DH23: ='源泉徴収票計算過程(非)'!AJ23 -> 0 | DI23: ='源泉徴収票計算過程(非)'!AK23 -> 0 | DJ23: ='源泉徴収票計算過程(非)'!AL23 -> 0 | DK23: ='源泉徴収票計算過程(非)'!AM23 -> 0 | DL23: ='源泉徴収票計算過程(非)'!AN23 -> 0 | DM23: ='源泉徴収票計算過程(非)'!AO23 -> 0 | DN23: ='源泉徴収票計算過程(非)'!AP23 -> 0 | DO23: ='源泉徴収票計算過程(非)'!AQ23 -> 0 | DP23: ='源泉徴収票計算過程(非)'!AR23 -> 0 | DQ23: ='源泉徴収票計算過程(非)'!AS23 -> 0 | DR23: ='源泉徴収票計算過程(非)'!AT23 -> 0 | DS23: ='源泉徴収票計算過程(非)'!AU23 -> 0 | DT23: ='源泉徴収票計算過程(非)'!AV23 -> 0 | DU23: ='源泉徴収票計算過程(非)'!AW23 -> 0 | DV23: ='源泉徴収票計算過程(非)'!AX23 -> 0 | DW23: ='源泉徴収票計算過程(非)'!AY23 -> 480000 | DX23: ='源泉徴収票計算過程(非)'!AZ23 -> 480000 | DY23: ='源泉徴収票計算過程(非)'!BA23 -> 0 | DZ23: ='源泉徴収票計算過程(非)'!BB23 -> 0 | EA23: ='源泉徴収票計算過程(非)'!BC23 -> 0 | EB23: ='源泉徴収票計算過程(非)'!BD23 -> 0 | EC23: ='源泉徴収票計算過程(非)'!BE23 -> 0 | ED23: ='源泉徴収票計算過程(非)'!BF23 -> 0
A24: 17 | DH24: ='源泉徴収票計算過程(非)'!AJ24 -> 0 | DI24: ='源泉徴収票計算過程(非)'!AK24 -> 0 | DJ24: ='源泉徴収票計算過程(非)'!AL24 -> 0 | DK24: ='源泉徴収票計算過程(非)'!AM24 -> 0 | DL24: ='源泉徴収票計算過程(非)'!AN24 -> 0 | DM24: ='源泉徴収票計算過程(非)'!AO24 -> 0 | DN24: ='源泉徴収票計算過程(非)'!AP24 -> 0 | DO24: ='源泉徴収票計算過程(非)'!AQ24 -> 0 | DP24: ='源泉徴収票計算過程(非)'!AR24 -> 0 | DQ24: ='源泉徴収票計算過程(非)'!AS24 -> 0 | DR24: ='源泉徴収票計算過程(非)'!AT24 -> 0 | DS24: ='源泉徴収票計算過程(非)'!AU24 -> 0 | DT24: ='源泉徴収票計算過程(非)'!AV24 -> 0 | DU24: ='源泉徴収票計算過程(非)'!AW24 -> 0 | DV24: ='源泉徴収票計算過程(非)'!AX24 -> 0 | DW24: ='源泉徴収票計算過程(非)'!AY24 -> 480000 | DX24: ='源泉徴収票計算過程(非)'!AZ24 -> 480000 | DY24: ='源泉徴収票計算過程(非)'!BA24 -> 0 | DZ24: ='源泉徴収票計算過程(非)'!BB24 -> 0 | EA24: ='源泉徴収票計算過程(非)'!BC24 -> 0 | EB24: ='源泉徴収票計算過程(非)'!BD24 -> 0 | EC24: ='源泉徴収票計算過程(非)'!BE24 -> 0 | ED24: ='源泉徴収票計算過程(非)'!BF24 -> 0
A25: 18 | DH25: ='源泉徴収票計算過程(非)'!AJ25 -> 0 | DI25: ='源泉徴収票計算過程(非)'!AK25 -> 0 | DJ25: ='源泉徴収票計算過程(非)'!AL25 -> 0 | DK25: ='源泉徴収票計算過程(非)'!AM25 -> 0 | DL25: ='源泉徴収票計算過程(非)'!AN25 -> 0 | DM25: ='源泉徴収票計算過程(非)'!AO25 -> 0 | DN25: ='源泉徴収票計算過程(非)'!AP25 -> 0 | DO25: ='源泉徴収票計算過程(非)'!AQ25 -> 0 | DP25: ='源泉徴収票計算過程(非)'!AR25 -> 0 | DQ25: ='源泉徴収票計算過程(非)'!AS25 -> 0 | DR25: ='源泉徴収票計算過程(非)'!AT25 -> 0 | DS25: ='源泉徴収票計算過程(非)'!AU25 -> 0 | DT25: ='源泉徴収票計算過程(非)'!AV25 -> 0 | DU25: ='源泉徴収票計算過程(非)'!AW25 -> 0 | DV25: ='源泉徴収票計算過程(非)'!AX25 -> 0 | DW25: ='源泉徴収票計算過程(非)'!AY25 -> 480000 | DX25: ='源泉徴収票計算過程(非)'!AZ25 -> 480000 | DY25: ='源泉徴収票計算過程(非)'!BA25 -> 0 | DZ25: ='源泉徴収票計算過程(非)'!BB25 -> 0 | EA25: ='源泉徴収票計算過程(非)'!BC25 -> 0 | EB25: ='源泉徴収票計算過程(非)'!BD25 -> 0 | EC25: ='源泉徴収票計算過程(非)'!BE25 -> 0 | ED25: ='源泉徴収票計算過程(非)'!BF25 -> 0
A26: 19 | DH26: ='源泉徴収票計算過程(非)'!AJ26 -> 0 | DI26: ='源泉徴収票計算過程(非)'!AK26 -> 0 | DJ26: ='源泉徴収票計算過程(非)'!AL26 -> 0 | DK26: ='源泉徴収票計算過程(非)'!AM26 -> 0 | DL26: ='源泉徴収票計算過程(非)'!AN26 -> 0 | DM26: ='源泉徴収票計算過程(非)'!AO26 -> 0 | DN26: ='源泉徴収票計算過程(非)'!AP26 -> 0 | DO26: ='源泉徴収票計算過程(非)'!AQ26 -> 0 | DP26: ='源泉徴収票計算過程(非)'!AR26 -> 0 | DQ26: ='源泉徴収票計算過程(非)'!AS26 -> 0 | DR26: ='源泉徴収票計算過程(非)'!AT26 -> 0 | DS26: ='源泉徴収票計算過程(非)'!AU26 -> 0 | DT26: ='源泉徴収票計算過程(非)'!AV26 -> 0 | DU26: ='源泉徴収票計算過程(非)'!AW26 -> 0 | DV26: ='源泉徴収票計算過程(非)'!AX26 -> 0 | DW26: ='源泉徴収票計算過程(非)'!AY26 -> 480000 | DX26: ='源泉徴収票計算過程(非)'!AZ26 -> 480000 | DY26: ='源泉徴収票計算過程(非)'!BA26 -> 0 | DZ26: ='源泉徴収票計算過程(非)'!BB26 -> 0 | EA26: ='源泉徴収票計算過程(非)'!BC26 -> 0 | EB26: ='源泉徴収票計算過程(非)'!BD26 -> 0 | EC26: ='源泉徴収票計算過程(非)'!BE26 -> 0 | ED26: ='源泉徴収票計算過程(非)'!BF26 -> 0
A27: 20 | DH27: ='源泉徴収票計算過程(非)'!AJ27 -> 0 | DI27: ='源泉徴収票計算過程(非)'!AK27 -> 0 | DJ27: ='源泉徴収票計算過程(非)'!AL27 -> 0 | DK27: ='源泉徴収票計算過程(非)'!AM27 -> 0 | DL27: ='源泉徴収票計算過程(非)'!AN27 -> 0 | DM27: ='源泉徴収票計算過程(非)'!AO27 -> 0 | DN27: ='源泉徴収票計算過程(非)'!AP27 -> 0 | DO27: ='源泉徴収票計算過程(非)'!AQ27 -> 0 | DP27: ='源泉徴収票計算過程(非)'!AR27 -> 0 | DQ27: ='源泉徴収票計算過程(非)'!AS27 -> 0 | DR27: ='源泉徴収票計算過程(非)'!AT27 -> 0 | DS27: ='源泉徴収票計算過程(非)'!AU27 -> 0 | DT27: ='源泉徴収票計算過程(非)'!AV27 -> 0 | DU27: ='源泉徴収票計算過程(非)'!AW27 -> 0 | DV27: ='源泉徴収票計算過程(非)'!AX27 -> 0 | DW27: ='源泉徴収票計算過程(非)'!AY27 -> 480000 | DX27: ='源泉徴収票計算過程(非)'!AZ27 -> 480000 | DY27: ='源泉徴収票計算過程(非)'!BA27 -> 0 | DZ27: ='源泉徴収票計算過程(非)'!BB27 -> 0 | EA27: ='源泉徴収票計算過程(非)'!BC27 -> 0 | EB27: ='源泉徴収票計算過程(非)'!BD27 -> 0 | EC27: ='源泉徴収票計算過程(非)'!BE27 -> 0 | ED27: ='源泉徴収票計算過程(非)'!BF27 -> 0

Sheet 退職所得
B1: =IF($A1="","",INDEX(B$8:B$999,MATCH($A1,$A$8:$A$999,0),1)&"") ->  | H1: =IF($A1="",0,INDEX(H$8:H$999,MATCH($A1,$A$8:$A$999,0),1)) -> 00:00:00 | I1: =IF($A1="",0,INDEX(I$8:I$999,MATCH($A1,$A$8:$A$999,0),1)) -> 00:00:00 | J1: =IF($A1="","",INDEX(J$8:J$999,MATCH($A1,$A$8:$A$999,0),1)&"") ->  | K1: =IF($A1="",0,INDEX(K$8:K$999,MATCH($A1,$A$8:$A$999,0),1)) -> 0 | L1: =IF($A1="",0,INDEX(L$8:L$999,MATCH($A1,$A$8:$A$999,0),1)) -> 0 | M1: =IF($A1="",0,INDEX(M$8:M$999,MATCH($A1,$A$8:$A$999,0),1)) -> 0 | N1: =IF($A1="",0,INDEX(N$8:N$999,MATCH($A1,$A$8:$A$999,0),1)) -> 0 | O1: =IF($A1="","",INDEX(O$8:O$999,MATCH($A1,$A$8:$A$999,0),1)&"") -> 
A2: 退職金の情報
A7: No | B7: 住所 | C7: ="令和"&TEXT(DATE(会社情報!C7,12,31),"ee")&"年"&CHAR(13)&"1月1日の住所" -> 令和03年 1月1日の住所 | D7: 氏名 | E7: 役員 | F7: 役職 | G7: 個人番号 | H7: 就職年月日 | I7: 退職年月日 | J7: 退職所得の受給 に関する申告書 | K7: 支払金額 | L7: 源泉徴収税額 | M7: 市町村民税 | N7: 道府県民税 | O7: 摘要 | P7: 提出義務
A8: 1 | B8: 品川区品川２－４－６ | C8: 世田谷区代田２－４－６ | D8: 山田太郎 | G8: 987654321018 | H8: 2011-04-01 | I8: 2017-12-31 | J8: 入手済 | K8: 3000000 | L8: 200000 | M8: 80000 | N8: 20000 | P8: =IF(E8<>"","あり","なし") -> なし
A9: 2 | B9: テスト住所 | C9: テスト住所１ | D9: テスト太郎 | E9: 役員 | G9: 321095009827 | H9: 1990-12-01 | I9: 2017-05-28 | J9: 未入手 | K9: 8000000 | L9: 600000 | M9: 150000 | N9: 50000 | P9: =IF(E9<>"","あり","なし") -> あり
A10: 3 | P10: なし
A11: 4 | P11: なし
A12: 5 | P12: なし
A13: 6 | P13: なし
A14: 7 | P14: なし
A15: 8 | P15: なし
A16: 9 | P16: なし
A17: 10 | P17: なし
A18: 11 | P18: なし
A19: 12 | P19: なし
A20: 13 | P20: なし
A21: 14 | P21: なし
A22: 15 | P22: なし
A23: 16 | P23: なし
A24: 17 | P24: なし
A25: 18 | P25: なし
A26: 19 | P26: なし
A27: 20 | P27: なし

Sheet 報酬支払先情報
B1: =IF($A1="","",INDEX(B$8:B$999,MATCH($A1,$A$8:$A$999,0),1)&"") -> 
A2: 報酬の支払先情報入力
A7: No | B7: 個人・法人 | C7: 住所 | D7: 氏名・名称 | E7: 個人番号・法人番号 | F7: 摘要１ | G7: 摘要２ | H7: 提出義務
A8: 1 | B8: 個人 | C8: 東京都渋谷区渋谷４－５－６ | D8: 渋谷太郎 | E8: 456789012345 | F8: 消費税抜 | H8: =IF(D8<>"",IF('報酬調書集計(非)'!AO8>0,"あり","なし"),"") -> あり
A9: 2 | B9: 個人 | C9: 東京都港区南青山１－１－１ | D9: 青山良子 | E9: 123456789012 | F9: 消費税抜 | H9: =IF(D9<>"",IF('報酬調書集計(非)'!AO9>0,"あり","なし"),"") -> あり
A10: 3 | B10: 個人 | C10: 東京都品川区品川２－２－２ | D10: 品川次郎 | E10: 298357698743 | F10: 消費税抜 | H10: =IF(D10<>"",IF('報酬調書集計(非)'!AO10>0,"あり","なし"),"") -> なし
A11: 4 | B11: 個人 | C11: 東京都新宿区新宿４－５－６ | D11: 新宿美奈子 | E11: 943287598172 | F11: 消費税抜 | G11: 摘要テスト | H11: =IF(D11<>"",IF('報酬調書集計(非)'!AO11>0,"あり","なし"),"") -> あり
A12: 5 | B12: 法人 | C12: 神奈川県川崎市宮前区鷺沼１丁目２−３ | D12: 川崎商事株式会社 | E12: 2498754904912 | F12: 消費税抜 | H12: =IF(D12<>"",IF('報酬調書集計(非)'!AO12>0,"あり","なし"),"") -> あり
A13: 6 | H13: =IF(D13<>"",IF('報酬調書集計(非)'!AO13>0,"あり","なし"),"") -> 
A14: 7 | H14: =IF(D14<>"",IF('報酬調書集計(非)'!AO14>0,"あり","なし"),"") -> 
A15: 8 | H15: =IF(D15<>"",IF('報酬調書集計(非)'!AO15>0,"あり","なし"),"") -> 
A16: 9 | H16: =IF(D16<>"",IF('報酬調書集計(非)'!AO16>0,"あり","なし"),"") -> 
A17: 10 | H17: =IF(D17<>"",IF('報酬調書集計(非)'!AO17>0,"あり","なし"),"") -> 
A18: 11 | H18: =IF(D18<>"",IF('報酬調書集計(非)'!AO18>0,"あり","なし"),"") -> 
A19: 12 | H19: =IF(D19<>"",IF('報酬調書集計(非)'!AO19>0,"あり","なし"),"") -> 
A20: 13 | H20: =IF(D20<>"",IF('報酬調書集計(非)'!AO20>0,"あり","なし"),"") -> 
A21: 14 | H21: =IF(D21<>"",IF('報酬調書集計(非)'!AO21>0,"あり","なし"),"") -> 
A22: 15 | H22: =IF(D22<>"",IF('報酬調書集計(非)'!AO22>0,"あり","なし"),"") -> 
A23: 16 | H23: =IF(D23<>"",IF('報酬調書集計(非)'!AO23>0,"あり","なし"),"") -> 
A24: 17 | H24: =IF(D24<>"",IF('報酬調書集計(非)'!AO24>0,"あり","なし"),"") -> 
A25: 18 | H25: =IF(D25<>"",IF('報酬調書集計(非)'!AO25>0,"あり","なし"),"") -> 
A26: 19 | H26: =IF(D26<>"",IF('報酬調書集計(非)'!AO26>0,"あり","なし"),"") -> 
A27: 20 | H27: =IF(D27<>"",IF('報酬調書集計(非)'!AO27>0,"あり","なし"),"") -> 

Sheet 報酬支払額
A1: =D1&"|"&E1&"|"&F1 -> || | G1: =SUMIF($A$10:$A$999,$A1,G$10:G$999) -> 0 | H1: 0
A2: || | G2: 0 | H2: 0
A3: || | G3: 0 | H3: 0
A4: || | G4: 0 | H4: 0
A5: || | G5: 0 | H5: 0
A6: || | G6: 0 | H6: 0
C7: 報酬の支払情報を入力 | D7: 報酬の支払情報入力
A9: 計算用 | B9: 号数 | C9: 支払先名 | D9: No | E9: 区分 | F9: 細目 | G9: 支払金額 | H9: 源泉徴収税額 | I9: （参考）支払日
A10: =D10&"|"&E10&"|"&F10 -> 1|原稿料| | B10: =D10&"|"&IF(ISERROR(VLOOKUP(E10,報酬区分!$A$8:$B$999,2,FALSE)),"",VLOOKUP(E10,報酬区分!$A$8:$B$999,2,FALSE)) -> 1|1 | C10: =IF(D10="","",VLOOKUP(D10,報酬支払先情報!$A$8:$G$999,4,FALSE)&"") -> 渋谷太郎 | D10: 1 | E10: 原稿料 | G10: 300000 | H10: 30630
A11: =D11&"|"&E11&"|"&F11 -> 1|さし絵料|サルでもわかるエクセル | B11: =D11&"|"&IF(ISERROR(VLOOKUP(E11,報酬区分!$A$8:$B$999,2,FALSE)),"",VLOOKUP(E11,報酬区分!$A$8:$B$999,2,FALSE)) -> 1|1 | C11: =IF(D11="","",VLOOKUP(D11,報酬支払先情報!$A$8:$G$999,4,FALSE)&"") -> 渋谷太郎 | D11: 1 | E11: さし絵料 | F11: サルでもわかるエクセル | G11: 215000 | H11: 21951
A12: 2|弁護士報酬| | B12: =D12&"|"&IF(ISERROR(VLOOKUP(E12,報酬区分!$A$8:$B$999,2,FALSE)),"",VLOOKUP(E12,報酬区分!$A$8:$B$999,2,FALSE)) -> 2|2 | C12: =IF(D12="","",VLOOKUP(D12,報酬支払先情報!$A$8:$G$999,4,FALSE)&"") -> 青山良子 | D12: 2 | E12: 弁護士報酬 | G12: 200000 | H12: 20420
A13: 2|弁護士報酬| | B13: =D13&"|"&IF(ISERROR(VLOOKUP(E13,報酬区分!$A$8:$B$999,2,FALSE)),"",VLOOKUP(E13,報酬区分!$A$8:$B$999,2,FALSE)) -> 2|2 | C13: =IF(D13="","",VLOOKUP(D13,報酬支払先情報!$A$8:$G$999,4,FALSE)&"") -> 青山良子 | D13: 2 | E13: 弁護士報酬 | G13: 300000 | H13: 30630
A14: 3|司法書士報酬| | B14: =D14&"|"&IF(ISERROR(VLOOKUP(E14,報酬区分!$A$8:$B$999,2,FALSE)),"",VLOOKUP(E14,報酬区分!$A$8:$B$999,2,FALSE)) -> 3|2 | C14: =IF(D14="","",VLOOKUP(D14,報酬支払先情報!$A$8:$G$999,4,FALSE)&"") -> 品川次郎 | D14: 3 | E14: 司法書士報酬 | G14: 30000 | H14: 2042
A15: 4|印税| | B15: =D15&"|"&IF(ISERROR(VLOOKUP(E15,報酬区分!$A$8:$B$999,2,FALSE)),"",VLOOKUP(E15,報酬区分!$A$8:$B$999,2,FALSE)) -> 4|1 | C15: =IF(D15="","",VLOOKUP(D15,報酬支払先情報!$A$8:$G$999,4,FALSE)&"") -> 新宿美奈子 | D15: 4 | E15: 印税 | G15: 436938 | H15: 44611
A16: 5|翻訳料| | B16: =D16&"|"&IF(ISERROR(VLOOKUP(E16,報酬区分!$A$8:$B$999,2,FALSE)),"",VLOOKUP(E16,報酬区分!$A$8:$B$999,2,FALSE)) -> 5|1 | C16: =IF(D16="","",VLOOKUP(D16,報酬支払先情報!$A$8:$G$999,4,FALSE)&"") -> 川崎商事株式会社 | D16: 5 | E16: 翻訳料 | G16: 150000 | H16: 0
A17: || | B17: =D17&"|"&IF(ISERROR(VLOOKUP(E17,報酬区分!$A$8:$B$999,2,FALSE)),"",VLOOKUP(E17,報酬区分!$A$8:$B$999,2,FALSE)) -> | | C17: =IF(D17="","",VLOOKUP(D17,報酬支払先情報!$A$8:$G$999,4,FALSE)&"") -> 
A18: || | B18: =D18&"|"&IF(ISERROR(VLOOKUP(E18,報酬区分!$A$8:$B$999,2,FALSE)),"",VLOOKUP(E18,報酬区分!$A$8:$B$999,2,FALSE)) -> | | C18: =IF(D18="","",VLOOKUP(D18,報酬支払先情報!$A$8:$G$999,4,FALSE)&"") -> 
A19: || | B19: =D19&"|"&IF(ISERROR(VLOOKUP(E19,報酬区分!$A$8:$B$999,2,FALSE)),"",VLOOKUP(E19,報酬区分!$A$8:$B$999,2,FALSE)) -> | | C19: =IF(D19="","",VLOOKUP(D19,報酬支払先情報!$A$8:$G$999,4,FALSE)&"") -> 
A20: || | B20: =D20&"|"&IF(ISERROR(VLOOKUP(E20,報酬区分!$A$8:$B$999,2,FALSE)),"",VLOOKUP(E20,報酬区分!$A$8:$B$999,2,FALSE)) -> | | C20: =IF(D20="","",VLOOKUP(D20,報酬支払先情報!$A$8:$G$999,4,FALSE)&"") -> 
A21: || | B21: =D21&"|"&IF(ISERROR(VLOOKUP(E21,報酬区分!$A$8:$B$999,2,FALSE)),"",VLOOKUP(E21,報酬区分!$A$8:$B$999,2,FALSE)) -> | | C21: =IF(D21="","",VLOOKUP(D21,報酬支払先情報!$A$8:$G$999,4,FALSE)&"") -> 
A22: || | B22: =D22&"|"&IF(ISERROR(VLOOKUP(E22,報酬区分!$A$8:$B$999,2,FALSE)),"",VLOOKUP(E22,報酬区分!$A$8:$B$999,2,FALSE)) -> | | C22: =IF(D22="","",VLOOKUP(D22,報酬支払先情報!$A$8:$G$999,4,FALSE)&"") -> 
A23: || | B23: =D23&"|"&IF(ISERROR(VLOOKUP(E23,報酬区分!$A$8:$B$999,2,FALSE)),"",VLOOKUP(E23,報酬区分!$A$8:$B$999,2,FALSE)) -> | | C23: =IF(D23="","",VLOOKUP(D23,報酬支払先情報!$A$8:$G$999,4,FALSE)&"") -> 
A24: || | B24: =D24&"|"&IF(ISERROR(VLOOKUP(E24,報酬区分!$A$8:$B$999,2,FALSE)),"",VLOOKUP(E24,報酬区分!$A$8:$B$999,2,FALSE)) -> | | C24: =IF(D24="","",VLOOKUP(D24,報酬支払先情報!$A$8:$G$999,4,FALSE)&"") -> 
A25: || | B25: =D25&"|"&IF(ISERROR(VLOOKUP(E25,報酬区分!$A$8:$B$999,2,FALSE)),"",VLOOKUP(E25,報酬区分!$A$8:$B$999,2,FALSE)) -> | | C25: =IF(D25="","",VLOOKUP(D25,報酬支払先情報!$A$8:$G$999,4,FALSE)&"") -> 
A26: || | B26: =D26&"|"&IF(ISERROR(VLOOKUP(E26,報酬区分!$A$8:$B$999,2,FALSE)),"",VLOOKUP(E26,報酬区分!$A$8:$B$999,2,FALSE)) -> | | C26: =IF(D26="","",VLOOKUP(D26,報酬支払先情報!$A$8:$G$999,4,FALSE)&"") -> 
A27: || | B27: =D27&"|"&IF(ISERROR(VLOOKUP(E27,報酬区分!$A$8:$B$999,2,FALSE)),"",VLOOKUP(E27,報酬区分!$A$8:$B$999,2,FALSE)) -> | | C27: =IF(D27="","",VLOOKUP(D27,報酬支払先情報!$A$8:$G$999,4,FALSE)&"") -> 
A28: || | B28: =D28&"|"&IF(ISERROR(VLOOKUP(E28,報酬区分!$A$8:$B$999,2,FALSE)),"",VLOOKUP(E28,報酬区分!$A$8:$B$999,2,FALSE)) -> | | C28: =IF(D28="","",VLOOKUP(D28,報酬支払先情報!$A$8:$G$999,4,FALSE)&"") -> 
A29: || | B29: =D29&"|"&IF(ISERROR(VLOOKUP(E29,報酬区分!$A$8:$B$999,2,FALSE)),"",VLOOKUP(E29,報酬区分!$A$8:$B$999,2,FALSE)) -> | | C29: =IF(D29="","",VLOOKUP(D29,報酬支払先情報!$A$8:$G$999,4,FALSE)&"") -> 
A30: || | B30: =D30&"|"&IF(ISERROR(VLOOKUP(E30,報酬区分!$A$8:$B$999,2,FALSE)),"",VLOOKUP(E30,報酬区分!$A$8:$B$999,2,FALSE)) -> | | C30: =IF(D30="","",VLOOKUP(D30,報酬支払先情報!$A$8:$G$999,4,FALSE)&"") -> 
A31: || | B31: =D31&"|"&IF(ISERROR(VLOOKUP(E31,報酬区分!$A$8:$B$999,2,FALSE)),"",VLOOKUP(E31,報酬区分!$A$8:$B$999,2,FALSE)) -> | | C31: =IF(D31="","",VLOOKUP(D31,報酬支払先情報!$A$8:$G$999,4,FALSE)&"") -> 
A32: || | B32: =D32&"|"&IF(ISERROR(VLOOKUP(E32,報酬区分!$A$8:$B$999,2,FALSE)),"",VLOOKUP(E32,報酬区分!$A$8:$B$999,2,FALSE)) -> | | C32: =IF(D32="","",VLOOKUP(D32,報酬支払先情報!$A$8:$G$999,4,FALSE)&"") -> 
A33: || | B33: =D33&"|"&IF(ISERROR(VLOOKUP(E33,報酬区分!$A$8:$B$999,2,FALSE)),"",VLOOKUP(E33,報酬区分!$A$8:$B$999,2,FALSE)) -> | | C33: =IF(D33="","",VLOOKUP(D33,報酬支払先情報!$A$8:$G$999,4,FALSE)&"") -> 
A34: || | B34: =D34&"|"&IF(ISERROR(VLOOKUP(E34,報酬区分!$A$8:$B$999,2,FALSE)),"",VLOOKUP(E34,報酬区分!$A$8:$B$999,2,FALSE)) -> | | C34: =IF(D34="","",VLOOKUP(D34,報酬支払先情報!$A$8:$G$999,4,FALSE)&"") -> 
A35: || | B35: =D35&"|"&IF(ISERROR(VLOOKUP(E35,報酬区分!$A$8:$B$999,2,FALSE)),"",VLOOKUP(E35,報酬区分!$A$8:$B$999,2,FALSE)) -> | | C35: =IF(D35="","",VLOOKUP(D35,報酬支払先情報!$A$8:$G$999,4,FALSE)&"") -> 
A36: || | B36: =D36&"|"&IF(ISERROR(VLOOKUP(E36,報酬区分!$A$8:$B$999,2,FALSE)),"",VLOOKUP(E36,報酬区分!$A$8:$B$999,2,FALSE)) -> | | C36: =IF(D36="","",VLOOKUP(D36,報酬支払先情報!$A$8:$G$999,4,FALSE)&"") -> 
A37: || | B37: =D37&"|"&IF(ISERROR(VLOOKUP(E37,報酬区分!$A$8:$B$999,2,FALSE)),"",VLOOKUP(E37,報酬区分!$A$8:$B$999,2,FALSE)) -> | | C37: =IF(D37="","",VLOOKUP(D37,報酬支払先情報!$A$8:$G$999,4,FALSE)&"") -> 
A38: || | B38: =D38&"|"&IF(ISERROR(VLOOKUP(E38,報酬区分!$A$8:$B$999,2,FALSE)),"",VLOOKUP(E38,報酬区分!$A$8:$B$999,2,FALSE)) -> | | C38: =IF(D38="","",VLOOKUP(D38,報酬支払先情報!$A$8:$G$999,4,FALSE)&"") -> 
A39: || | B39: =D39&"|"&IF(ISERROR(VLOOKUP(E39,報酬区分!$A$8:$B$999,2,FALSE)),"",VLOOKUP(E39,報酬区分!$A$8:$B$999,2,FALSE)) -> | | C39: =IF(D39="","",VLOOKUP(D39,報酬支払先情報!$A$8:$G$999,4,FALSE)&"") -> 
A40: || | B40: =D40&"|"&IF(ISERROR(VLOOKUP(E40,報酬区分!$A$8:$B$999,2,FALSE)),"",VLOOKUP(E40,報酬区分!$A$8:$B$999,2,FALSE)) -> | | C40: =IF(D40="","",VLOOKUP(D40,報酬支払先情報!$A$8:$G$999,4,FALSE)&"") -> 
A41: || | B41: =D41&"|"&IF(ISERROR(VLOOKUP(E41,報酬区分!$A$8:$B$999,2,FALSE)),"",VLOOKUP(E41,報酬区分!$A$8:$B$999,2,FALSE)) -> | | C41: =IF(D41="","",VLOOKUP(D41,報酬支払先情報!$A$8:$G$999,4,FALSE)&"") -> 
A42: || | B42: =D42&"|"&IF(ISERROR(VLOOKUP(E42,報酬区分!$A$8:$B$999,2,FALSE)),"",VLOOKUP(E42,報酬区分!$A$8:$B$999,2,FALSE)) -> | | C42: =IF(D42="","",VLOOKUP(D42,報酬支払先情報!$A$8:$G$999,4,FALSE)&"") -> 
A43: || | B43: =D43&"|"&IF(ISERROR(VLOOKUP(E43,報酬区分!$A$8:$B$999,2,FALSE)),"",VLOOKUP(E43,報酬区分!$A$8:$B$999,2,FALSE)) -> | | C43: =IF(D43="","",VLOOKUP(D43,報酬支払先情報!$A$8:$G$999,4,FALSE)&"") -> 
A44: || | B44: =D44&"|"&IF(ISERROR(VLOOKUP(E44,報酬区分!$A$8:$B$999,2,FALSE)),"",VLOOKUP(E44,報酬区分!$A$8:$B$999,2,FALSE)) -> | | C44: =IF(D44="","",VLOOKUP(D44,報酬支払先情報!$A$8:$G$999,4,FALSE)&"") -> 
A45: || | B45: =D45&"|"&IF(ISERROR(VLOOKUP(E45,報酬区分!$A$8:$B$999,2,FALSE)),"",VLOOKUP(E45,報酬区分!$A$8:$B$999,2,FALSE)) -> | | C45: =IF(D45="","",VLOOKUP(D45,報酬支払先情報!$A$8:$G$999,4,FALSE)&"") -> 
A46: || | B46: =D46&"|"&IF(ISERROR(VLOOKUP(E46,報酬区分!$A$8:$B$999,2,FALSE)),"",VLOOKUP(E46,報酬区分!$A$8:$B$999,2,FALSE)) -> | | C46: =IF(D46="","",VLOOKUP(D46,報酬支払先情報!$A$8:$G$999,4,FALSE)&"") -> 
A47: || | B47: =D47&"|"&IF(ISERROR(VLOOKUP(E47,報酬区分!$A$8:$B$999,2,FALSE)),"",VLOOKUP(E47,報酬区分!$A$8:$B$999,2,FALSE)) -> | | C47: =IF(D47="","",VLOOKUP(D47,報酬支払先情報!$A$8:$G$999,4,FALSE)&"") -> 
A48: || | B48: =D48&"|"&IF(ISERROR(VLOOKUP(E48,報酬区分!$A$8:$B$999,2,FALSE)),"",VLOOKUP(E48,報酬区分!$A$8:$B$999,2,FALSE)) -> | | C48: =IF(D48="","",VLOOKUP(D48,報酬支払先情報!$A$8:$G$999,4,FALSE)&"") -> 
A49: || | B49: =D49&"|"&IF(ISERROR(VLOOKUP(E49,報酬区分!$A$8:$B$999,2,FALSE)),"",VLOOKUP(E49,報酬区分!$A$8:$B$999,2,FALSE)) -> | | C49: =IF(D49="","",VLOOKUP(D49,報酬支払先情報!$A$8:$G$999,4,FALSE)&"") -> 
A50: || | B50: =D50&"|"&IF(ISERROR(VLOOKUP(E50,報酬区分!$A$8:$B$999,2,FALSE)),"",VLOOKUP(E50,報酬区分!$A$8:$B$999,2,FALSE)) -> | | C50: =IF(D50="","",VLOOKUP(D50,報酬支払先情報!$A$8:$G$999,4,FALSE)&"") -> 

Sheet 報酬区分
A1: 報酬区分の入力
A7: 区分一覧 | B7: 法定調書作成時の「何号」に該当するものとして集計するか？
A8: 弁護士報酬 | B8: 2
A9: 税理士報酬 | B9: 2
A10: 社会保険労務士報酬 | B10: 2
A11: 司法書士報酬 | B11: 2
A12: 弁理士報酬 | B12: 2
A13: .
A14: .
A15: 印税 | B15: 1
A16: 原稿料 | B16: 1
A17: さし絵料 | B17: 1
A18: 作曲料 | B18: 1
A19: 翻訳料 | B19: 1
A20: 通訳料 | B20: 1
A21: 脚本料 | B21: 1
A22: 著作権 | B22: 1
A23: 工業所有権の使用料 | B23: 1
A24: 放送謝金 | B24: 1
A25: 講演料 | B25: 1
A26: 教授料 | B26: 1
A27: 映画及び演劇の俳優 | B27: 5
A28: 外交員 | B28: 4
A29: ホステス等の報酬又は料金 | B29: 6
A30: 診療報酬 | B30: 3
A31: 契約金 | B31: 7
A32: 広告宣伝のための賞金 | B32: 8

Sheet 不動産支払先情報
B1: =IF($A1="","",INDEX(B$8:B$999,MATCH($A1,$A$8:$A$999,0),1)&"") ->  | C1: =IF($A1="","",INDEX(C$8:C$999,MATCH($A1,$A$8:$A$999,0),1)&"") ->  | D1: =IF($A1="","",INDEX(D$8:D$999,MATCH($A1,$A$8:$A$999,0),1)&"") ->  | E1: =IF($A1="","",INDEX(E$8:E$999,MATCH($A1,$A$8:$A$999,0),1)&"") ->  | F1: =IF($A1="","",INDEX(F$8:F$999,MATCH($A1,$A$8:$A$999,0),1)&"") ->  | H1: =IF($A1="","",INDEX(H$8:H$999,MATCH($A1,$A$8:$A$999,0),1)&"") ->  | I1: =IF($A1="","",INDEX(I$8:I$999,MATCH($A1,$A$8:$A$999,0),1)&"") ->  | J1: =IF($A1="","",INDEX(J$8:J$999,MATCH($A1,$A$8:$A$999,0),1)&"") ->  | K1: =IF($A1="",0,INDEX(K$8:K$999,MATCH($A1,$A$8:$A$999,0),1)) -> 00:00:00 | L1: =IF($A1="",0,INDEX(L$8:L$999,MATCH($A1,$A$8:$A$999,0),1)) -> 0
A2: 不動産賃借料の支払先情報と、仲介手数料の情報を入力
B6: 支払を受ける者（＝賃貸人）についての情報 | H6: あっせんをした者（＝仲介業者）についての情報と、支払年月日・支払額を入力
A7: No | B7: 個人・法人 | C7: 住所 | D7: 氏名・名称 | E7: 個人番号又は 法人番号 | F7: 摘要 | H7: 住所 | I7: 氏名・名称 | J7: 個人番号又は 法人番号 | K7: 支払確定 年月日 | L7: あっせん 手数料 | N7: 法定調書提出義務
A8: 1 | B8: 個人 | C8: 東京都渋谷区渋谷１－１－１ | D8: 大屋太郎 | E8: 109857075392 | H8: 東京都千代田区丸の内１－１－１ | I8: 武田地所株式会社 | J8: 1357924680135 | K8: 2017-01-05 | L8: 200000 | N8: =IF(D8<>"",IF('不動産調書集計(非)'!D8>0,"あり","なし"),"") -> あり
A9: 2 | B9: 個人 | C9: 東京都江戸川区江戸川１－２－３ | D9: 江戸川花子 | E9: 209834609809 | N9: =IF(D9<>"",IF('不動産調書集計(非)'!D9>0,"あり","なし"),"") -> あり
A10: 3 | N10: =IF(D10<>"",IF('不動産調書集計(非)'!D10>0,"あり","なし"),"") -> 
A11: 4 | N11: =IF(D11<>"",IF('不動産調書集計(非)'!D11>0,"あり","なし"),"") -> 
A12: 5 | N12: =IF(D12<>"",IF('不動産調書集計(非)'!D12>0,"あり","なし"),"") -> 
A13: 6 | N13: =IF(D13<>"",IF('不動産調書集計(非)'!D13>0,"あり","なし"),"") -> 
A14: 7 | N14: =IF(D14<>"",IF('不動産調書集計(非)'!D14>0,"あり","なし"),"") -> 
A15: 8 | N15: =IF(D15<>"",IF('不動産調書集計(非)'!D15>0,"あり","なし"),"") -> 
A16: 9 | N16: =IF(D16<>"",IF('不動産調書集計(非)'!D16>0,"あり","なし"),"") -> 
A17: 10 | N17: =IF(D17<>"",IF('不動産調書集計(非)'!D17>0,"あり","なし"),"") -> 
A18: 11 | N18: =IF(D18<>"",IF('不動産調書集計(非)'!D18>0,"あり","なし"),"") -> 
A19: 12 | N19: =IF(D19<>"",IF('不動産調書集計(非)'!D19>0,"あり","なし"),"") -> 
A20: 13 | N20: =IF(D20<>"",IF('不動産調書集計(非)'!D20>0,"あり","なし"),"") -> 
A21: 14 | N21: =IF(D21<>"",IF('不動産調書集計(非)'!D21>0,"あり","なし"),"") -> 
A22: 15 | N22: =IF(D22<>"",IF('不動産調書集計(非)'!D22>0,"あり","なし"),"") -> 
A23: 16 | N23: =IF(D23<>"",IF('不動産調書集計(非)'!D23>0,"あり","なし"),"") -> 
A24: 17 | N24: =IF(D24<>"",IF('不動産調書集計(非)'!D24>0,"あり","なし"),"") -> 
A25: 18 | N25: =IF(D25<>"",IF('不動産調書集計(非)'!D25>0,"あり","なし"),"") -> 
A26: 19 | N26: =IF(D26<>"",IF('不動産調書集計(非)'!D26>0,"あり","なし"),"") -> 
A27: 20 | N27: =IF(D27<>"",IF('不動産調書集計(非)'!D27>0,"あり","なし"),"") -> 

Sheet 不動産支払額
A1: =C1&"|"&D1&"|"&E1&"|"&F1&"|"&G1 -> |||| | H1: =SUMIF($A$10:$A$999,$A1,H$10:H$999) -> 0
A2: =C2&"|"&D2&"|"&E2&"|"&F2&"|"&G2 -> |||| | H2: =SUMIF($A$10:$A$999,$A2,H$10:H$999) -> 0
A3: |||| | H3: 0
A4: |||| | H4: 0
A5: |||| | H5: 0
A6: |||| | H6: 0
B7: 不動産賃借料の支払情報を入力
A9: 計算用 | B9: 支払先名 | C9: No | D9: 区分 | E9: 物件の所在地 | F9: 細目 | G9: 計算の基礎 | H9: 支払金額 | I9: （参考）支払日
A10: =C10&"|"&D10&"|"&E10&"|"&F10&"|"&G10 -> 1|家賃|東京都新宿区西新宿１－２－３|社宅|30m2 3～12月 月200,000 | B10: =IF(C10="","",VLOOKUP(C10,不動産支払先情報!$A$8:$H$999,4,FALSE)&"") -> 大屋太郎 | C10: 1 | D10: 家賃 | E10: 東京都新宿区西新宿１－２－３ | F10: 社宅 | G10: 30m2 3～12月 月200,000 | H10: 2000000
A11: =C11&"|"&D11&"|"&E11&"|"&F11&"|"&G11 -> 1|礼金|東京都新宿区西新宿１－２－３|社宅| | B11: =IF(C11="","",VLOOKUP(C11,不動産支払先情報!$A$8:$H$999,4,FALSE)&"") -> 大屋太郎 | C11: 1 | D11: 礼金 | E11: 東京都新宿区西新宿１－２－３ | F11: 社宅 | H11: 150000
A12: 2|家賃|東京都足立区竹の塚２－４－６|倉庫|50m2 1～12月 月108,000 | B12: =IF(C12="","",VLOOKUP(C12,不動産支払先情報!$A$8:$H$999,4,FALSE)&"") -> 江戸川花子 | C12: 2 | D12: 家賃 | E12: 東京都足立区竹の塚２－４－６ | F12: 倉庫 | G12: 50m2 1～12月 月108,000 | H12: 108000 | I12: 2017-01-31
A13: 2|家賃|東京都足立区竹の塚２－４－６|倉庫|50m2 1～12月 月108,000 | B13: =IF(C13="","",VLOOKUP(C13,不動産支払先情報!$A$8:$H$999,4,FALSE)&"") -> 江戸川花子 | C13: 2 | D13: 家賃 | E13: 東京都足立区竹の塚２－４－６ | F13: 倉庫 | G13: 50m2 1～12月 月108,000 | H13: 108000 | I13: 2017-02-28
A14: 2|家賃|東京都足立区竹の塚２－４－６|倉庫|50m2 1～12月 月108,000 | B14: =IF(C14="","",VLOOKUP(C14,不動産支払先情報!$A$8:$H$999,4,FALSE)&"") -> 江戸川花子 | C14: 2 | D14: 家賃 | E14: 東京都足立区竹の塚２－４－６ | F14: 倉庫 | G14: 50m2 1～12月 月108,000 | H14: 108000 | I14: 2017-03-31
A15: 2|家賃|東京都足立区竹の塚２－４－６|倉庫|50m2 1～12月 月108,000 | B15: =IF(C15="","",VLOOKUP(C15,不動産支払先情報!$A$8:$H$999,4,FALSE)&"") -> 江戸川花子 | C15: 2 | D15: 家賃 | E15: 東京都足立区竹の塚２－４－６ | F15: 倉庫 | G15: 50m2 1～12月 月108,000 | H15: 108000 | I15: 2017-04-30
A16: 2|家賃|東京都足立区竹の塚２－４－６|倉庫|50m2 1～12月 月108,000 | B16: =IF(C16="","",VLOOKUP(C16,不動産支払先情報!$A$8:$H$999,4,FALSE)&"") -> 江戸川花子 | C16: 2 | D16: 家賃 | E16: 東京都足立区竹の塚２－４－６ | F16: 倉庫 | G16: 50m2 1～12月 月108,000 | H16: 108000 | I16: 2017-05-31
A17: 2|家賃|東京都足立区竹の塚２－４－６|倉庫|50m2 1～12月 月108,000 | B17: =IF(C17="","",VLOOKUP(C17,不動産支払先情報!$A$8:$H$999,4,FALSE)&"") -> 江戸川花子 | C17: 2 | D17: 家賃 | E17: 東京都足立区竹の塚２－４－６ | F17: 倉庫 | G17: 50m2 1～12月 月108,000 | H17: 108000 | I17: 2017-06-30
A18: 2|家賃|東京都足立区竹の塚２－４－６|倉庫|50m2 1～12月 月108,000 | B18: =IF(C18="","",VLOOKUP(C18,不動産支払先情報!$A$8:$H$999,4,FALSE)&"") -> 江戸川花子 | C18: 2 | D18: 家賃 | E18: 東京都足立区竹の塚２－４－６ | F18: 倉庫 | G18: 50m2 1～12月 月108,000 | H18: 108000 | I18: 2017-07-31
A19: 2|家賃|東京都足立区竹の塚２－４－６|倉庫|50m2 1～12月 月108,000 | B19: =IF(C19="","",VLOOKUP(C19,不動産支払先情報!$A$8:$H$999,4,FALSE)&"") -> 江戸川花子 | C19: 2 | D19: 家賃 | E19: 東京都足立区竹の塚２－４－６ | F19: 倉庫 | G19: 50m2 1～12月 月108,000 | H19: 108000 | I19: 2017-08-31
A20: 2|家賃|東京都足立区竹の塚２－４－６|倉庫|50m2 1～12月 月108,000 | B20: =IF(C20="","",VLOOKUP(C20,不動産支払先情報!$A$8:$H$999,4,FALSE)&"") -> 江戸川花子 | C20: 2 | D20: 家賃 | E20: 東京都足立区竹の塚２－４－６ | F20: 倉庫 | G20: 50m2 1～12月 月108,000 | H20: 108000 | I20: 2017-09-30
A21: 2|家賃|東京都足立区竹の塚２－４－６|倉庫|50m2 1～12月 月108,000 | B21: =IF(C21="","",VLOOKUP(C21,不動産支払先情報!$A$8:$H$999,4,FALSE)&"") -> 江戸川花子 | C21: 2 | D21: 家賃 | E21: 東京都足立区竹の塚２－４－６ | F21: 倉庫 | G21: 50m2 1～12月 月108,000 | H21: 108000 | I21: 2017-10-31
A22: 2|家賃|東京都足立区竹の塚２－４－６|倉庫|50m2 1～12月 月108,000 | B22: =IF(C22="","",VLOOKUP(C22,不動産支払先情報!$A$8:$H$999,4,FALSE)&"") -> 江戸川花子 | C22: 2 | D22: 家賃 | E22: 東京都足立区竹の塚２－４－６ | F22: 倉庫 | G22: 50m2 1～12月 月108,000 | H22: 108000 | I22: 2017-11-30
A23: 2|家賃|東京都足立区竹の塚２－４－６|倉庫|50m2 1～12月 月108,000 | B23: =IF(C23="","",VLOOKUP(C23,不動産支払先情報!$A$8:$H$999,4,FALSE)&"") -> 江戸川花子 | C23: 2 | D23: 家賃 | E23: 東京都足立区竹の塚２－４－６ | F23: 倉庫 | G23: 50m2 1～12月 月108,000 | H23: 108000 | I23: 2017-12-31
A24: |||| | B24: =IF(C24="","",VLOOKUP(C24,不動産支払先情報!$A$8:$H$999,4,FALSE)&"") -> 
A25: |||| | B25: =IF(C25="","",VLOOKUP(C25,不動産支払先情報!$A$8:$H$999,4,FALSE)&"") -> 
A26: |||| | B26: =IF(C26="","",VLOOKUP(C26,不動産支払先情報!$A$8:$H$999,4,FALSE)&"") -> 
A27: |||| | B27: =IF(C27="","",VLOOKUP(C27,不動産支払先情報!$A$8:$H$999,4,FALSE)&"") -> 
A28: |||| | B28: =IF(C28="","",VLOOKUP(C28,不動産支払先情報!$A$8:$H$999,4,FALSE)&"") -> 
A29: |||| | B29: =IF(C29="","",VLOOKUP(C29,不動産支払先情報!$A$8:$H$999,4,FALSE)&"") -> 
A30: |||| | B30: =IF(C30="","",VLOOKUP(C30,不動産支払先情報!$A$8:$H$999,4,FALSE)&"") -> 
A31: |||| | B31: =IF(C31="","",VLOOKUP(C31,不動産支払先情報!$A$8:$H$999,4,FALSE)&"") -> 
A32: |||| | B32: =IF(C32="","",VLOOKUP(C32,不動産支払先情報!$A$8:$H$999,4,FALSE)&"") -> 
A33: |||| | B33: =IF(C33="","",VLOOKUP(C33,不動産支払先情報!$A$8:$H$999,4,FALSE)&"") -> 
A34: |||| | B34: =IF(C34="","",VLOOKUP(C34,不動産支払先情報!$A$8:$H$999,4,FALSE)&"") -> 
A35: |||| | B35: =IF(C35="","",VLOOKUP(C35,不動産支払先情報!$A$8:$H$999,4,FALSE)&"") -> 
A36: |||| | B36: =IF(C36="","",VLOOKUP(C36,不動産支払先情報!$A$8:$H$999,4,FALSE)&"") -> 
A37: |||| | B37: =IF(C37="","",VLOOKUP(C37,不動産支払先情報!$A$8:$H$999,4,FALSE)&"") -> 
A38: |||| | B38: =IF(C38="","",VLOOKUP(C38,不動産支払先情報!$A$8:$H$999,4,FALSE)&"") -> 
A39: |||| | B39: =IF(C39="","",VLOOKUP(C39,不動産支払先情報!$A$8:$H$999,4,FALSE)&"") -> 
A40: |||| | B40: =IF(C40="","",VLOOKUP(C40,不動産支払先情報!$A$8:$H$999,4,FALSE)&"") -> 
A41: |||| | B41: =IF(C41="","",VLOOKUP(C41,不動産支払先情報!$A$8:$H$999,4,FALSE)&"") -> 
A42: |||| | B42: =IF(C42="","",VLOOKUP(C42,不動産支払先情報!$A$8:$H$999,4,FALSE)&"") -> 
A43: |||| | B43: =IF(C43="","",VLOOKUP(C43,不動産支払先情報!$A$8:$H$999,4,FALSE)&"") -> 
A44: |||| | B44: =IF(C44="","",VLOOKUP(C44,不動産支払先情報!$A$8:$H$999,4,FALSE)&"") -> 
A45: |||| | B45: =IF(C45="","",VLOOKUP(C45,不動産支払先情報!$A$8:$H$999,4,FALSE)&"") -> 
A46: |||| | B46: =IF(C46="","",VLOOKUP(C46,不動産支払先情報!$A$8:$H$999,4,FALSE)&"") -> 
A47: |||| | B47: =IF(C47="","",VLOOKUP(C47,不動産支払先情報!$A$8:$H$999,4,FALSE)&"") -> 
A48: |||| | B48: =IF(C48="","",VLOOKUP(C48,不動産支払先情報!$A$8:$H$999,4,FALSE)&"") -> 
A49: |||| | B49: =IF(C49="","",VLOOKUP(C49,不動産支払先情報!$A$8:$H$999,4,FALSE)&"") -> 
A50: |||| | B50: =IF(C50="","",VLOOKUP(C50,不動産支払先情報!$A$8:$H$999,4,FALSE)&"") -> 

Sheet 不動産区分
A1: 支払情報入力時の区分を設定
A7: 区分一覧 | B7: 権利金、更新料等
A8: 地代
A9: 家賃
A10: 礼金 | B10: 該当
A11: 敷引 | B11: 該当
A12: 更新料 | B12: 該当
A13: 借地権設定対価 | B13: 該当
A14: 船舶の使用料

Sheet 源泉徴収票計算過程(非) (hidden)
A1: =IF(源泉徴収票!$A1="","",INDEX(A$8:A$999,MATCH(源泉徴収票!$A$1,源泉徴収票!$A$8:$A$999,0),1)) ->  | B1: =IF(源泉徴収票!$A1="","",INDEX(B$8:B$999,MATCH(源泉徴収票!$A$1,源泉徴収票!$A$8:$A$999,0),1)) ->  | C1: =IF(源泉徴収票!$A1="","",INDEX(C$8:C$999,MATCH(源泉徴収票!$A$1,源泉徴収票!$A$8:$A$999,0),1)) ->  | D1: =IF(源泉徴収票!$A1="","",INDEX(D$8:D$999,MATCH(源泉徴収票!$A$1,源泉徴収票!$A$8:$A$999,0),1)) ->  | E1: =IF(源泉徴収票!$A1="","",INDEX(E$8:E$999,MATCH(源泉徴収票!$A$1,源泉徴収票!$A$8:$A$999,0),1)) ->  | F1: =IF(源泉徴収票!$A1="","",INDEX(F$8:F$999,MATCH(源泉徴収票!$A$1,源泉徴収票!$A$8:$A$999,0),1)) ->  | G1: =IF(源泉徴収票!$A1="","",INDEX(G$8:G$999,MATCH(源泉徴収票!$A$1,源泉徴収票!$A$8:$A$999,0),1)) ->  | H1: =IF(源泉徴収票!$A1="","",INDEX(H$8:H$999,MATCH(源泉徴収票!$A$1,源泉徴収票!$A$8:$A$999,0),1)) ->  | I1: =IF(源泉徴収票!$A1="","",INDEX(I$8:I$999,MATCH(源泉徴収票!$A$1,源泉徴収票!$A$8:$A$999,0),1)) ->  | J1: =IF(源泉徴収票!$A1="","",INDEX(J$8:J$999,MATCH(源泉徴収票!$A$1,源泉徴収票!$A$8:$A$999,0),1)) ->  | K1: =IF(源泉徴収票!$A1="","",INDEX(K$8:K$999,MATCH(源泉徴収票!$A$1,源泉徴収票!$A$8:$A$999,0),1)) ->  | L1: =IF(源泉徴収票!$A1="","",INDEX(L$8:L$999,MATCH(源泉徴収票!$A$1,源泉徴収票!$A$8:$A$999,0),1)) ->  | M1: =IF(源泉徴収票!$A1="","",INDEX(M$8:M$999,MATCH(源泉徴収票!$A$1,源泉徴収票!$A$8:$A$999,0),1)) ->  | N1: =IF(源泉徴収票!$A1="","",INDEX(N$8:N$999,MATCH(源泉徴収票!$A$1,源泉徴収票!$A$8:$A$999,0),1)) ->  | O1: =IF(源泉徴収票!$A1="","",INDEX(O$8:O$999,MATCH(源泉徴収票!$A$1,源泉徴収票!$A$8:$A$999,0),1)) ->  | P1: =IF(源泉徴収票!$A1="","",INDEX(P$8:P$999,MATCH(源泉徴収票!$A$1,源泉徴収票!$A$8:$A$999,0),1)) ->  | Q1: =IF(源泉徴収票!$A1="","",INDEX(Q$8:Q$999,MATCH(源泉徴収票!$A$1,源泉徴収票!$A$8:$A$999,0),1)) ->  | R1: =IF(源泉徴収票!$A1="","",INDEX(R$8:R$999,MATCH(源泉徴収票!$A$1,源泉徴収票!$A$8:$A$999,0),1)) ->  | S1: =IF(源泉徴収票!$A1="","",INDEX(S$8:S$999,MATCH(源泉徴収票!$A$1,源泉徴収票!$A$8:$A$999,0),1)) ->  | T1: =IF(源泉徴収票!$A1="","",INDEX(T$8:T$999,MATCH(源泉徴収票!$A$1,源泉徴収票!$A$8:$A$999,0),1)) ->  | U1: =IF(源泉徴収票!$A1="","",INDEX(U$8:U$999,MATCH(源泉徴収票!$A$1,源泉徴収票!$A$8:$A$999,0),1)) ->  | V1: =IF(源泉徴収票!$A1="","",INDEX(V$8:V$999,MATCH(源泉徴収票!$A$1,源泉徴収票!$A$8:$A$999,0),1)) ->  | W1: =IF(源泉徴収票!$A1="","",INDEX(W$8:W$999,MATCH(源泉徴収票!$A$1,源泉徴収票!$A$8:$A$999,0),1)) ->  | X1: =IF(源泉徴収票!$A1="","",INDEX(X$8:X$999,MATCH(源泉徴収票!$A$1,源泉徴収票!$A$8:$A$999,0),1)) ->  | Y1: =IF(源泉徴収票!$A1="","",INDEX(Y$8:Y$999,MATCH(源泉徴収票!$A$1,源泉徴収票!$A$8:$A$999,0),1)) ->  | Z1: =IF(源泉徴収票!$A1="","",INDEX(Z$8:Z$999,MATCH(源泉徴収票!$A$1,源泉徴収票!$A$8:$A$999,0),1)) ->  | AA1: =IF(源泉徴収票!$A1="","",INDEX(AA$8:AA$999,MATCH(源泉徴収票!$A$1,源泉徴収票!$A$8:$A$999,0),1)) ->  | AB1: =IF(源泉徴収票!$A1="","",INDEX(AB$8:AB$999,MATCH(源泉徴収票!$A$1,源泉徴収票!$A$8:$A$999,0),1)) ->  | AC1: =IF(源泉徴収票!$A1="","",INDEX(AC$8:AC$999,MATCH(源泉徴収票!$A$1,源泉徴収票!$A$8:$A$999,0),1)) ->  | AD1: =IF(源泉徴収票!$A1="","",INDEX(AD$8:AD$999,MATCH(源泉徴収票!$A$1,源泉徴収票!$A$8:$A$999,0),1)) ->  | AE1: =IF(源泉徴収票!$A1="","",INDEX(AE$8:AE$999,MATCH(源泉徴収票!$A$1,源泉徴収票!$A$8:$A$999,0),1)) ->  | AF1: =IF(源泉徴収票!$A1="","",INDEX(AF$8:AF$999,MATCH(源泉徴収票!$A$1,源泉徴収票!$A$8:$A$999,0),1)) ->  | AG1: =IF(源泉徴収票!$A1="","",INDEX(AG$8:AG$999,MATCH(源泉徴収票!$A$1,源泉徴収票!$A$8:$A$999,0),1)) ->  | AH1: =IF(源泉徴収票!$A1="","",INDEX(AH$8:AH$999,MATCH(源泉徴収票!$A$1,源泉徴収票!$A$8:$A$999,0),1)) -> 
A4: 年調給与 | B4: 源泉控除対象配偶者 | C4: 配偶者控除 | E4: 配偶者特別控除 | F4: 配偶者・配偶者控除の該当欄 | H4: 扶養控除 | AJ4: 源泉徴収簿（計算結果）
B5: ※年末調整対象外のみ | C5: 適用有無 | D5: 老人控除対象 | E5: 適用有無 | F5: 配偶者所得区分 | G5: 本人所得区分 | H5: 年齢 | M5: 適用 | R5: 記入欄 | W5: 生命保険料控除計算 | AF5: 地震保険料控除計算 | AH5: 所得金額控除 | AJ5: 給与等計 | AK5: 税額計 | AL5: 給与所得控除後の | AM5: 所得金額調整 | AN5: 給与所得控除後の給与 | AO5: 所得控除 | BA5: 差引課税 | BB5: 算出 | BC5: 住宅借入金等 | BD5: 年調 | BE5: 年調 | BF5: 差引超過額
H6: 1 | I6: 2 | J6: 3 | K6: 4 | L6: 5 | M6: 1 | N6: 2 | O6: 3 | P6: 4 | Q6: 5 | R6: 1 | S6: 2 | T6: 3 | U6: 4 | V6: 5 | AF6: 地震保険 | AG6: 旧長期損害 | AL6: 給与等の金額 | AM6: 控除額 | AN6: 等の金額（調整控除後） | AO6: 社会保険料等 | AR6: 生命保険料 | AS6: 地震保険料 | AT6: 配偶者特別 | AU6: 配偶者 | AV6: 扶養 | AW6: 障害者 | AX6: 寡婦等 | AY6: 基礎 | AZ6: 控除額計 | BA6: 給与所得金額 | BB6: 所得税額 | BC6: 特別控除額 | BD6: 所得税額 | BE6: 年税額 | BF6: または不足額
W7: ① | X7: ② | Y7: ③ | Z7: イ | AA7: ロ | AB7: ④ | AC7: ⑤ | AD7: ⑥ | AE7: ハ | AJ7: ⑦ | AK7: ⑧ | AL7: ⑨ | AM7: ⑩ | AN7: ⑪ | AO7: ⑫ | AP7: ⑬ | AQ7: ⑭ | AR7: ⑮ | AS7: ⑯ | AT7: ⑰ | AV7: ⑱ | AY7: ⑲ | AZ7: 20 | BA7: 21 | BB7: 22 | BC7: 23 | BD7: 24 | BE7: 25 | BF7: 26
A8: =FLOOR(AJ8,VLOOKUP(AJ8,年調給与計算,3,TRUE)) -> 6835000 | B8: =IF(AND(源泉徴収票!I8="無",源泉徴収票!AE8<>""),"○","×") -> × | C8: =IF(AND(源泉徴収票!CO8<>"",源泉徴収票!CO8<=480000,AN8<=10000000),"○","×") -> ○ | D8: =IF(AND(C8="○",源泉徴収票!CN8<>"",会社情報!$C$7-YEAR(MAX(源泉徴収票!CN8-1,0))>=70),"○","×") -> × | E8: =IF(AND(源泉徴収票!CO8<>"",源泉徴収票!CO8>480000,源泉徴収票!CO8<=1330000,AN8<=10000000),"○","×") -> × | F8: =MATCH(源泉徴収票!CO8,H30配偶者控除・特別控除マスタ_配偶者所得,1) -> 1 | G8: =MATCH('源泉徴収票計算過程(非)'!AN8,H30配偶者控除・特別控除マスタ_所得者合計所得,1) -> 1 | H8: =IF(源泉徴収票!AN8="",-1,会社情報!$C$7-YEAR(源泉徴収票!AN8-1)) -> 25 | I8: =IF(源泉徴収票!AT8="",-1,会社情報!$C$7-YEAR(源泉徴収票!AT8-1)) -> 20 | J8: =IF(源泉徴収票!AZ8="",-1,会社情報!$C$7-YEAR(源泉徴収票!AZ8-1)) -> 82 | K8: =IF(源泉徴収票!BF8="",-1,会社情報!$C$7-YEAR(源泉徴収票!BF8-1)) -> -1 | L8: =IF(源泉徴収票!BL8="",-1,会社情報!$C$7-YEAR(源泉徴収票!BL8-1)) -> -1 | M8: =IF(H8>=16,IF(AND(H8>=19,H8<23),"特",IF(H8>=70,IF(源泉徴収票!AO8="同居老親等","同","老"),"一")),IF(H8>=0,"未","×")) -> 一 | N8: =IF(I8>=16,IF(AND(I8>=19,I8<23),"特",IF(I8>=70,IF(源泉徴収票!AU8="同居老親等","同","老"),"一")),IF(I8>=0,"未","×")) -> 特 | O8: =IF(J8>=16,IF(AND(J8>=19,J8<23),"特",IF(J8>=70,IF(源泉徴収票!BA8="同居老親等","同","老"),"一")),IF(J8>=0,"未","×")) -> 同 | P8: =IF(K8>=16,IF(AND(K8>=19,K8<23),"特",IF(K8>=70,IF(源泉徴収票!BG8="同居老親等","同","老"),"一")),IF(K8>=0,"未","×")) -> × | Q8: =IF(L8>=16,IF(AND(L8>=19,L8<23),"特",IF(L8>=70,IF(源泉徴収票!BM8="同居老親等","同","老"),"一")),IF(L8>=0,"未","×")) -> × | R8: =IF(M8="未","未",IF(M8<>"×","一","")) -> 一 | S8: =IF(N8="未","未",IF(N8<>"×","一","")) -> 一 | T8: =IF(O8="未","未",IF(O8<>"×","一","")) -> 一 | U8: =IF(P8="未","未",IF(P8<>"×","一","")) ->  | V8: =IF(Q8="未","未",IF(Q8<>"×","一","")) ->  | W8: =IF(源泉徴収票!BU8<=20000, 源泉徴収票!BU8, IF(源泉徴収票!BU8<=40000, 源泉徴収票!BU8*1/2+10000, IF(源泉徴収票!BU8<=80000, 源泉徴収票!BU8*1/4+20000, 40000))) -> 22000 | X8: =IF(源泉徴収票!BV8<=25000,源泉徴収票!BV8, IF(源泉徴収票!BV8<=50000,源泉徴収票!BV8*1/2+12500, IF(源泉徴収票!BV8<=100000,源泉徴収票!BV8*1/4+25000, 50000))) -> 30500 | Y8: =MIN(W8+X8,40000) -> 40000 | Z8: =MAX(X8,Y8) -> 40000 | AA8: =IF(源泉徴収票!BW8<=20000, 源泉徴収票!BW8, IF(源泉徴収票!BW8<=40000, 源泉徴収票!BW8*1/2+10000, IF(源泉徴収票!BW8<=80000, 源泉徴収票!BW8*1/4+20000, 40000))) -> 32000 | AB8: =IF(源泉徴収票!BX8<=20000, 源泉徴収票!BX8, IF(源泉徴収票!BX8<=40000, 源泉徴収票!BX8*1/2+10000, IF(源泉徴収票!BX8<=80000, 源泉徴収票!BX8*1/4+20000, 40000))) -> 0 | AC8: =IF(源泉徴収票!BY8<=25000,源泉徴収票!BY8, IF(源泉徴収票!BY8<=50000,源泉徴収票!BY8*1/2+12500, IF(源泉徴収票!BY8<=100000,源泉徴収票!BY8*1/4+25000, 50000))) -> 43000 | AD8: =MIN(AB8+AC8,40000) -> 40000 | AE8: =MAX(AC8,AD8) -> 43000 | AF8: =IF(源泉徴収票!BZ8<>"",MIN(源泉徴収票!BZ8,50000),0) -> 30000 | AG8: =IF(源泉徴収票!CA8>=20000,15000,IF(源泉徴収票!CA8>=10000,源泉徴収票!CA8/2+5000,源泉徴収票!CA8)) -> 14800 | AH8: =IF(源泉徴収票!CS8<>"","〇","×") -> × | AJ8: =源泉徴収票!O8+源泉徴収票!R8+源泉徴収票!U8 -> 6835000 | AK8: =源泉徴収票!Q8+源泉徴収票!T8+源泉徴収票!W8 -> 147819 | AL8: =IF(源泉徴収票!I8="無",0,INT(A8*VLOOKUP(A8, 給与所得計算, 3, TRUE) + VLOOKUP(A8, 給与所得計算, 4, TRUE) )) -> 5051500 | AM8: =IF(AH8="〇",MIN(150000,MAX(AJ8-8500000,0)*10%),0) -> 0 | AN8: =AL8-AM8 -> 5051500 | AO8: =源泉徴収票!P8+源泉徴収票!S8+源泉徴収票!V8 -> 1033287 | AP8: =IF(源泉徴収票!I8="無",0,源泉徴収票!CB8) -> 0 | AQ8: =IF(源泉徴収票!I8="無",0,源泉徴収票!CD8) -> 0 | AR8: =IF(源泉徴収票!I8="無",0,MIN(120000,Z8+AA8+AE8)) -> 115000 | AS8: =IF(源泉徴収票!I8="無",0,MIN(AF8+AG8,50000)) -> 44800 | AT8: =IF(源泉徴収票!I8="無",0,IF(E8="○",INDEX(H30配偶者控除・特別控除マスタ,F8,G8),0)) -> 0 | AU8: =IF(源泉徴収票!I8="無",0,IF(C8="○",INDEX(H30配偶者控除・特別控除マスタ,F8,G8),0)+IF(D8="○",INDEX(H30老人控除対象配偶者上乗せ,1,G8),0)) -> 380000 | AV8: =IF(源泉徴収票!I8="無",0,COUNTIF(M8:Q8,"一")*380000+COUNTIF(M8:Q8,"特")*630000+COUNTIF(M8:Q8,"老")*480000+COUNTIF(M8:Q8,"同")*580000) -> 1590000 | AW8: =IF(源泉徴収票!I8="無",0,(COUNTIF(源泉徴収票!BO8:BP8,"一般")+源泉徴収票!BQ8)*270000+(COUNTIF(源泉徴収票!BO8:BP8,"特別")+源泉徴収票!BR8)*400000+(COUNTIF(源泉徴収票!BP8,"同居特別")+源泉徴収票!BS8)*750000) -> 270000 | AX8: =IF(源泉徴収票!I8="無",0,IF(源泉徴収票!BT8<>"",IF(OR(源泉徴収票!BT8="特別の寡婦",源泉徴収票!BT8="ひとり親"),350000,270000),0)) -> 0 | AY8: =IF(源泉徴収票!I8="無",0,480000) -> 480000 | AZ8: =IF(源泉徴収票!I8="無",0,SUM(AO8:AY8)) -> 3913087 | BA8: =IF(源泉徴収票!I8="無",AN8,FLOOR(MAX(AN8-AZ8,0),1000)) -> 1138000 | BB8: =IF(源泉徴収票!I8="無",AK8,BA8*VLOOKUP(BA8,所得税額計算,3,TRUE)+VLOOKUP(BA8,所得税額計算,4,TRUE)) -> 56900 | BC8: =IF(源泉徴収票!I8="無",0,源泉徴収票!CZ8) -> 0 | BD8: =MAX(BB8-BC8,0) -> 56900 | BE8: =IF(源泉徴収票!I8="無",BD8,FLOOR(BD8*102.1%,100)) -> 58000 | BF8: =BE8-AK8 -> -89819
A9: 4800000 | B9: =IF(AND(源泉徴収票!I9="無",源泉徴収票!AE9<>""),"○","×") -> × | C9: =IF(AND(源泉徴収票!CO9<>"",源泉徴収票!CO9<=480000,AN9<=10000000),"○","×") -> × | D9: =IF(AND(C9="○",源泉徴収票!CN9<>"",会社情報!$C$7-YEAR(MAX(源泉徴収票!CN9-1,0))>=70),"○","×") -> × | E9: =IF(AND(源泉徴収票!CO9<>"",源泉徴収票!CO9>480000,源泉徴収票!CO9<=1330000,AN9<=10000000),"○","×") -> ○ | F9: =MATCH(源泉徴収票!CO9,H30配偶者控除・特別控除マスタ_配偶者所得,1) -> 5 | G9: =MATCH('源泉徴収票計算過程(非)'!AN9,H30配偶者控除・特別控除マスタ_所得者合計所得,1) -> 1 | H9: =IF(源泉徴収票!AN9="",-1,会社情報!$C$7-YEAR(源泉徴収票!AN9-1)) -> 12 | I9: =IF(源泉徴収票!AT9="",-1,会社情報!$C$7-YEAR(源泉徴収票!AT9-1)) -> 11 | J9: =IF(源泉徴収票!AZ9="",-1,会社情報!$C$7-YEAR(源泉徴収票!AZ9-1)) -> 9 | K9: =IF(源泉徴収票!BF9="",-1,会社情報!$C$7-YEAR(源泉徴収票!BF9-1)) -> 7 | L9: =IF(源泉徴収票!BL9="",-1,会社情報!$C$7-YEAR(源泉徴収票!BL9-1)) -> 5 | M9: =IF(H9>=16,IF(AND(H9>=19,H9<23),"特",IF(H9>=70,IF(源泉徴収票!AO9="同居老親等","同","老"),"一")),IF(H9>=0,"未","×")) -> 未 | N9: =IF(I9>=16,IF(AND(I9>=19,I9<23),"特",IF(I9>=70,IF(源泉徴収票!AU9="同居老親等","同","老"),"一")),IF(I9>=0,"未","×")) -> 未 | O9: =IF(J9>=16,IF(AND(J9>=19,J9<23),"特",IF(J9>=70,IF(源泉徴収票!BA9="同居老親等","同","老"),"一")),IF(J9>=0,"未","×")) -> 未 | P9: =IF(K9>=16,IF(AND(K9>=19,K9<23),"特",IF(K9>=70,IF(源泉徴収票!BG9="同居老親等","同","老"),"一")),IF(K9>=0,"未","×")) -> 未 | Q9: =IF(L9>=16,IF(AND(L9>=19,L9<23),"特",IF(L9>=70,IF(源泉徴収票!BM9="同居老親等","同","老"),"一")),IF(L9>=0,"未","×")) -> 未 | R9: 未 | S9: 未 | T9: 未 | U9: 未 | V9: 未 | W9: =IF(源泉徴収票!BU9<=20000, 源泉徴収票!BU9, IF(源泉徴収票!BU9<=40000, 源泉徴収票!BU9*1/2+10000, IF(源泉徴収票!BU9<=80000, 源泉徴収票!BU9*1/4+20000, 40000))) -> 0 | X9: =IF(源泉徴収票!BV9<=25000,源泉徴収票!BV9, IF(源泉徴収票!BV9<=50000,源泉徴収票!BV9*1/2+12500, IF(源泉徴収票!BV9<=100000,源泉徴収票!BV9*1/4+25000, 50000))) -> 0 | Y9: 0 | Z9: 0 | AA9: =IF(源泉徴収票!BW9<=20000, 源泉徴収票!BW9, IF(源泉徴収票!BW9<=40000, 源泉徴収票!BW9*1/2+10000, IF(源泉徴収票!BW9<=80000, 源泉徴収票!BW9*1/4+20000, 40000))) -> 0 | AB9: =IF(源泉徴収票!BX9<=20000, 源泉徴収票!BX9, IF(源泉徴収票!BX9<=40000, 源泉徴収票!BX9*1/2+10000, IF(源泉徴収票!BX9<=80000, 源泉徴収票!BX9*1/4+20000, 40000))) -> 0 | AC9: =IF(源泉徴収票!BY9<=25000,源泉徴収票!BY9, IF(源泉徴収票!BY9<=50000,源泉徴収票!BY9*1/2+12500, IF(源泉徴収票!BY9<=100000,源泉徴収票!BY9*1/4+25000, 50000))) -> 0 | AD9: 0 | AE9: 0 | AF9: =IF(源泉徴収票!BZ9<>"",MIN(源泉徴収票!BZ9,50000),0) -> 0 | AG9: =IF(源泉徴収票!CA9>=20000,15000,IF(源泉徴収票!CA9>=10000,源泉徴収票!CA9/2+5000,源泉徴収票!CA9)) -> 0 | AH9: =IF(源泉徴収票!CS9<>"","〇","×") -> × | AJ9: =源泉徴収票!O9+源泉徴収票!R9+源泉徴収票!U9 -> 4800000 | AK9: =源泉徴収票!Q9+源泉徴収票!T9+源泉徴収票!W9 -> 192500 | AL9: =IF(源泉徴収票!I9="無",0,INT(A9*VLOOKUP(A9, 給与所得計算, 3, TRUE) + VLOOKUP(A9, 給与所得計算, 4, TRUE) )) -> 3400000 | AM9: =IF(AH9="〇",MIN(150000,MAX(AJ9-8500000,0)*10%),0) -> 0 | AN9: =AL9-AM9 -> 3400000 | AO9: =源泉徴収票!P9+源泉徴収票!S9+源泉徴収票!V9 -> 0 | AP9: =IF(源泉徴収票!I9="無",0,源泉徴収票!CB9) -> 431000 | AQ9: =IF(源泉徴収票!I9="無",0,源泉徴収票!CD9) -> 840000 | AR9: =IF(源泉徴収票!I9="無",0,MIN(120000,Z9+AA9+AE9)) -> 0 | AS9: =IF(源泉徴収票!I9="無",0,MIN(AF9+AG9,50000)) -> 0 | AT9: =IF(源泉徴収票!I9="無",0,IF(E9="○",INDEX(H30配偶者控除・特別控除マスタ,F9,G9),0)) -> 260000 | AU9: =IF(源泉徴収票!I9="無",0,IF(C9="○",INDEX(H30配偶者控除・特別控除マスタ,F9,G9),0)+IF(D9="○",INDEX(H30老人控除対象配偶者上乗せ,1,G9),0)) -> 0 | AV9: =IF(源泉徴収票!I9="無",0,COUNTIF(M9:Q9,"一")*380000+COUNTIF(M9:Q9,"特")*630000+COUNTIF(M9:Q9,"老")*480000+COUNTIF(M9:Q9,"同")*580000) -> 0 | AW9: =IF(源泉徴収票!I9="無",0,(COUNTIF(源泉徴収票!BO9:BP9,"一般")+源泉徴収票!BQ9)*270000+(COUNTIF(源泉徴収票!BO9:BP9,"特別")+源泉徴収票!BR9)*400000+(COUNTIF(源泉徴収票!BP9,"同居特別")+源泉徴収票!BS9)*750000) -> 0 | AX9: =IF(源泉徴収票!I9="無",0,IF(源泉徴収票!BT9<>"",IF(OR(源泉徴収票!BT9="特別の寡婦",源泉徴収票!BT9="ひとり親"),350000,270000),0)) -> 0 | AY9: =IF(源泉徴収票!I9="無",0,480000) -> 480000 | AZ9: =IF(源泉徴収票!I9="無",0,SUM(AO9:AY9)) -> 2011000 | BA9: =IF(源泉徴収票!I9="無",AN9,FLOOR(MAX(AN9-AZ9,0),1000)) -> 1389000 | BB9: =IF(源泉徴収票!I9="無",AK9,BA9*VLOOKUP(BA9,所得税額計算,3,TRUE)+VLOOKUP(BA9,所得税額計算,4,TRUE)) -> 69450 | BC9: =IF(源泉徴収票!I9="無",0,源泉徴収票!CZ9) -> 100000 | BD9: 0 | BE9: =IF(源泉徴収票!I9="無",BD9,FLOOR(BD9*102.1%,100)) -> 0 | BF9: -192500
A10: 864200 | B10: =IF(AND(源泉徴収票!I10="無",源泉徴収票!AE10<>""),"○","×") -> × | C10: =IF(AND(源泉徴収票!CO10<>"",源泉徴収票!CO10<=480000,AN10<=10000000),"○","×") -> × | D10: =IF(AND(C10="○",源泉徴収票!CN10<>"",会社情報!$C$7-YEAR(MAX(源泉徴収票!CN10-1,0))>=70),"○","×") -> × | E10: =IF(AND(源泉徴収票!CO10<>"",源泉徴収票!CO10>480000,源泉徴収票!CO10<=1330000,AN10<=10000000),"○","×") -> × | F10: =MATCH(源泉徴収票!CO10,H30配偶者控除・特別控除マスタ_配偶者所得,1) -> 1 | G10: =MATCH('源泉徴収票計算過程(非)'!AN10,H30配偶者控除・特別控除マスタ_所得者合計所得,1) -> 1 | H10: =IF(源泉徴収票!AN10="",-1,会社情報!$C$7-YEAR(源泉徴収票!AN10-1)) -> -1 | I10: =IF(源泉徴収票!AT10="",-1,会社情報!$C$7-YEAR(源泉徴収票!AT10-1)) -> -1 | J10: =IF(源泉徴収票!AZ10="",-1,会社情報!$C$7-YEAR(源泉徴収票!AZ10-1)) -> -1 | K10: =IF(源泉徴収票!BF10="",-1,会社情報!$C$7-YEAR(源泉徴収票!BF10-1)) -> -1 | L10: =IF(源泉徴収票!BL10="",-1,会社情報!$C$7-YEAR(源泉徴収票!BL10-1)) -> -1 | M10: =IF(H10>=16,IF(AND(H10>=19,H10<23),"特",IF(H10>=70,IF(源泉徴収票!AO10="同居老親等","同","老"),"一")),IF(H10>=0,"未","×")) -> × | N10: =IF(I10>=16,IF(AND(I10>=19,I10<23),"特",IF(I10>=70,IF(源泉徴収票!AU10="同居老親等","同","老"),"一")),IF(I10>=0,"未","×")) -> × | O10: =IF(J10>=16,IF(AND(J10>=19,J10<23),"特",IF(J10>=70,IF(源泉徴収票!BA10="同居老親等","同","老"),"一")),IF(J10>=0,"未","×")) -> × | P10: =IF(K10>=16,IF(AND(K10>=19,K10<23),"特",IF(K10>=70,IF(源泉徴収票!BG10="同居老親等","同","老"),"一")),IF(K10>=0,"未","×")) -> × | Q10: =IF(L10>=16,IF(AND(L10>=19,L10<23),"特",IF(L10>=70,IF(源泉徴収票!BM10="同居老親等","同","老"),"一")),IF(L10>=0,"未","×")) -> × | W10: =IF(源泉徴収票!BU10<=20000, 源泉徴収票!BU10, IF(源泉徴収票!BU10<=40000, 源泉徴収票!BU10*1/2+10000, IF(源泉徴収票!BU10<=80000, 源泉徴収票!BU10*1/4+20000, 40000))) -> 0 | X10: =IF(源泉徴収票!BV10<=25000,源泉徴収票!BV10, IF(源泉徴収票!BV10<=50000,源泉徴収票!BV10*1/2+12500, IF(源泉徴収票!BV10<=100000,源泉徴収票!BV10*1/4+25000, 50000))) -> 0 | Y10: 0 | Z10: 0 | AA10: =IF(源泉徴収票!BW10<=20000, 源泉徴収票!BW10, IF(源泉徴収票!BW10<=40000, 源泉徴収票!BW10*1/2+10000, IF(源泉徴収票!BW10<=80000, 源泉徴収票!BW10*1/4+20000, 40000))) -> 0 | AB10: =IF(源泉徴収票!BX10<=20000, 源泉徴収票!BX10, IF(源泉徴収票!BX10<=40000, 源泉徴収票!BX10*1/2+10000, IF(源泉徴収票!BX10<=80000, 源泉徴収票!BX10*1/4+20000, 40000))) -> 0 | AC10: =IF(源泉徴収票!BY10<=25000,源泉徴収票!BY10, IF(源泉徴収票!BY10<=50000,源泉徴収票!BY10*1/2+12500, IF(源泉徴収票!BY10<=100000,源泉徴収票!BY10*1/4+25000, 50000))) -> 0 | AD10: 0 | AE10: 0 | AF10: =IF(源泉徴収票!BZ10<>"",MIN(源泉徴収票!BZ10,50000),0) -> 0 | AG10: =IF(源泉徴収票!CA10>=20000,15000,IF(源泉徴収票!CA10>=10000,源泉徴収票!CA10/2+5000,源泉徴収票!CA10)) -> 0 | AH10: =IF(源泉徴収票!CS10<>"","〇","×") -> × | AJ10: =源泉徴収票!O10+源泉徴収票!R10+源泉徴収票!U10 -> 864200 | AK10: =源泉徴収票!Q10+源泉徴収票!T10+源泉徴収票!W10 -> 3450 | AL10: =IF(源泉徴収票!I10="無",0,INT(A10*VLOOKUP(A10, 給与所得計算, 3, TRUE) + VLOOKUP(A10, 給与所得計算, 4, TRUE) )) -> 0 | AM10: 0 | AN10: 0 | AO10: =源泉徴収票!P10+源泉徴収票!S10+源泉徴収票!V10 -> 86000 | AP10: =IF(源泉徴収票!I10="無",0,源泉徴収票!CB10) -> 0 | AQ10: =IF(源泉徴収票!I10="無",0,源泉徴収票!CD10) -> 0 | AR10: =IF(源泉徴収票!I10="無",0,MIN(120000,Z10+AA10+AE10)) -> 0 | AS10: =IF(源泉徴収票!I10="無",0,MIN(AF10+AG10,50000)) -> 0 | AT10: =IF(源泉徴収票!I10="無",0,IF(E10="○",INDEX(H30配偶者控除・特別控除マスタ,F10,G10),0)) -> 0 | AU10: =IF(源泉徴収票!I10="無",0,IF(C10="○",INDEX(H30配偶者控除・特別控除マスタ,F10,G10),0)+IF(D10="○",INDEX(H30老人控除対象配偶者上乗せ,1,G10),0)) -> 0 | AV10: =IF(源泉徴収票!I10="無",0,COUNTIF(M10:Q10,"一")*380000+COUNTIF(M10:Q10,"特")*630000+COUNTIF(M10:Q10,"老")*480000+COUNTIF(M10:Q10,"同")*580000) -> 0 | AW10: =IF(源泉徴収票!I10="無",0,(COUNTIF(源泉徴収票!BO10:BP10,"一般")+源泉徴収票!BQ10)*270000+(COUNTIF(源泉徴収票!BO10:BP10,"特別")+源泉徴収票!BR10)*400000+(COUNTIF(源泉徴収票!BP10,"同居特別")+源泉徴収票!BS10)*750000) -> 0 | AX10: =IF(源泉徴収票!I10="無",0,IF(源泉徴収票!BT10<>"",IF(OR(源泉徴収票!BT10="特別の寡婦",源泉徴収票!BT10="ひとり親"),350000,270000),0)) -> 0 | AY10: =IF(源泉徴収票!I10="無",0,480000) -> 0 | AZ10: =IF(源泉徴収票!I10="無",0,SUM(AO10:AY10)) -> 0 | BA10: =IF(源泉徴収票!I10="無",AN10,FLOOR(MAX(AN10-AZ10,0),1000)) -> 0 | BB10: =IF(源泉徴収票!I10="無",AK10,BA10*VLOOKUP(BA10,所得税額計算,3,TRUE)+VLOOKUP(BA10,所得税額計算,4,TRUE)) -> 3450 | BC10: =IF(源泉徴収票!I10="無",0,源泉徴収票!CZ10) -> 0 | BD10: 3450 | BE10: =IF(源泉徴収票!I10="無",BD10,FLOOR(BD10*102.1%,100)) -> 3450 | BF10: 0
A11: 18000000 | B11: =IF(AND(源泉徴収票!I11="無",源泉徴収票!AE11<>""),"○","×") -> × | C11: =IF(AND(源泉徴収票!CO11<>"",源泉徴収票!CO11<=480000,AN11<=10000000),"○","×") -> × | D11: =IF(AND(C11="○",源泉徴収票!CN11<>"",会社情報!$C$7-YEAR(MAX(源泉徴収票!CN11-1,0))>=70),"○","×") -> × | E11: =IF(AND(源泉徴収票!CO11<>"",源泉徴収票!CO11>480000,源泉徴収票!CO11<=1330000,AN11<=10000000),"○","×") -> × | F11: =MATCH(源泉徴収票!CO11,H30配偶者控除・特別控除マスタ_配偶者所得,1) -> 1 | G11: =MATCH('源泉徴収票計算過程(非)'!AN11,H30配偶者控除・特別控除マスタ_所得者合計所得,1) -> 4 | H11: =IF(源泉徴収票!AN11="",-1,会社情報!$C$7-YEAR(源泉徴収票!AN11-1)) -> 12 | I11: =IF(源泉徴収票!AT11="",-1,会社情報!$C$7-YEAR(源泉徴収票!AT11-1)) -> -1 | J11: =IF(源泉徴収票!AZ11="",-1,会社情報!$C$7-YEAR(源泉徴収票!AZ11-1)) -> -1 | K11: =IF(源泉徴収票!BF11="",-1,会社情報!$C$7-YEAR(源泉徴収票!BF11-1)) -> -1 | L11: =IF(源泉徴収票!BL11="",-1,会社情報!$C$7-YEAR(源泉徴収票!BL11-1)) -> -1 | M11: =IF(H11>=16,IF(AND(H11>=19,H11<23),"特",IF(H11>=70,IF(源泉徴収票!AO11="同居老親等","同","老"),"一")),IF(H11>=0,"未","×")) -> 未 | N11: =IF(I11>=16,IF(AND(I11>=19,I11<23),"特",IF(I11>=70,IF(源泉徴収票!AU11="同居老親等","同","老"),"一")),IF(I11>=0,"未","×")) -> × | O11: =IF(J11>=16,IF(AND(J11>=19,J11<23),"特",IF(J11>=70,IF(源泉徴収票!BA11="同居老親等","同","老"),"一")),IF(J11>=0,"未","×")) -> × | P11: =IF(K11>=16,IF(AND(K11>=19,K11<23),"特",IF(K11>=70,IF(源泉徴収票!BG11="同居老親等","同","老"),"一")),IF(K11>=0,"未","×")) -> × | Q11: =IF(L11>=16,IF(AND(L11>=19,L11<23),"特",IF(L11>=70,IF(源泉徴収票!BM11="同居老親等","同","老"),"一")),IF(L11>=0,"未","×")) -> × | R11: 未 | W11: =IF(源泉徴収票!BU11<=20000, 源泉徴収票!BU11, IF(源泉徴収票!BU11<=40000, 源泉徴収票!BU11*1/2+10000, IF(源泉徴収票!BU11<=80000, 源泉徴収票!BU11*1/4+20000, 40000))) -> 0 | X11: =IF(源泉徴収票!BV11<=25000,源泉徴収票!BV11, IF(源泉徴収票!BV11<=50000,源泉徴収票!BV11*1/2+12500, IF(源泉徴収票!BV11<=100000,源泉徴収票!BV11*1/4+25000, 50000))) -> 0 | Y11: 0 | Z11: 0 | AA11: =IF(源泉徴収票!BW11<=20000, 源泉徴収票!BW11, IF(源泉徴収票!BW11<=40000, 源泉徴収票!BW11*1/2+10000, IF(源泉徴収票!BW11<=80000, 源泉徴収票!BW11*1/4+20000, 40000))) -> 0 | AB11: =IF(源泉徴収票!BX11<=20000, 源泉徴収票!BX11, IF(源泉徴収票!BX11<=40000, 源泉徴収票!BX11*1/2+10000, IF(源泉徴収票!BX11<=80000, 源泉徴収票!BX11*1/4+20000, 40000))) -> 0 | AC11: =IF(源泉徴収票!BY11<=25000,源泉徴収票!BY11, IF(源泉徴収票!BY11<=50000,源泉徴収票!BY11*1/2+12500, IF(源泉徴収票!BY11<=100000,源泉徴収票!BY11*1/4+25000, 50000))) -> 0 | AD11: 0 | AE11: 0 | AF11: =IF(源泉徴収票!BZ11<>"",MIN(源泉徴収票!BZ11,50000),0) -> 0 | AG11: =IF(源泉徴収票!CA11>=20000,15000,IF(源泉徴収票!CA11>=10000,源泉徴収票!CA11/2+5000,源泉徴収票!CA11)) -> 0 | AH11: =IF(源泉徴収票!CS11<>"","〇","×") -> 〇 | AJ11: =源泉徴収票!O11+源泉徴収票!R11+源泉徴収票!U11 -> 18000000 | AK11: =源泉徴収票!Q11+源泉徴収票!T11+源泉徴収票!W11 -> 3066948 | AL11: =IF(源泉徴収票!I11="無",0,INT(A11*VLOOKUP(A11, 給与所得計算, 3, TRUE) + VLOOKUP(A11, 給与所得計算, 4, TRUE) )) -> 16050000 | AM11: 150000 | AN11: 15900000 | AO11: =源泉徴収票!P11+源泉徴収票!S11+源泉徴収票!V11 -> 1644860 | AP11: =IF(源泉徴収票!I11="無",0,源泉徴収票!CB11) -> 0 | AQ11: =IF(源泉徴収票!I11="無",0,源泉徴収票!CD11) -> 0 | AR11: =IF(源泉徴収票!I11="無",0,MIN(120000,Z11+AA11+AE11)) -> 0 | AS11: =IF(源泉徴収票!I11="無",0,MIN(AF11+AG11,50000)) -> 0 | AT11: =IF(源泉徴収票!I11="無",0,IF(E11="○",INDEX(H30配偶者控除・特別控除マスタ,F11,G11),0)) -> 0 | AU11: =IF(源泉徴収票!I11="無",0,IF(C11="○",INDEX(H30配偶者控除・特別控除マスタ,F11,G11),0)+IF(D11="○",INDEX(H30老人控除対象配偶者上乗せ,1,G11),0)) -> 0 | AV11: =IF(源泉徴収票!I11="無",0,COUNTIF(M11:Q11,"一")*380000+COUNTIF(M11:Q11,"特")*630000+COUNTIF(M11:Q11,"老")*480000+COUNTIF(M11:Q11,"同")*580000) -> 0 | AW11: =IF(源泉徴収票!I11="無",0,(COUNTIF(源泉徴収票!BO11:BP11,"一般")+源泉徴収票!BQ11)*270000+(COUNTIF(源泉徴収票!BO11:BP11,"特別")+源泉徴収票!BR11)*400000+(COUNTIF(源泉徴収票!BP11,"同居特別")+源泉徴収票!BS11)*750000) -> 0 | AX11: =IF(源泉徴収票!I11="無",0,IF(源泉徴収票!BT11<>"",IF(OR(源泉徴収票!BT11="特別の寡婦",源泉徴収票!BT11="ひとり親"),350000,270000),0)) -> 0 | AY11: =IF(源泉徴収票!I11="無",0,480000) -> 480000 | AZ11: =IF(源泉徴収票!I11="無",0,SUM(AO11:AY11)) -> 2124860 | BA11: =IF(源泉徴収票!I11="無",AN11,FLOOR(MAX(AN11-AZ11,0),1000)) -> 13775000 | BB11: =IF(源泉徴収票!I11="無",AK11,BA11*VLOOKUP(BA11,所得税額計算,3,TRUE)+VLOOKUP(BA11,所得税額計算,4,TRUE)) -> 3009750 | BC11: =IF(源泉徴収票!I11="無",0,源泉徴収票!CZ11) -> 0 | BD11: 3009750 | BE11: =IF(源泉徴収票!I11="無",BD11,FLOOR(BD11*102.1%,100)) -> 3072900 | BF11: 5952
A12: 4000000 | B12: =IF(AND(源泉徴収票!I12="無",源泉徴収票!AE12<>""),"○","×") -> ○ | C12: =IF(AND(源泉徴収票!CO12<>"",源泉徴収票!CO12<=480000,AN12<=10000000),"○","×") -> × | D12: =IF(AND(C12="○",源泉徴収票!CN12<>"",会社情報!$C$7-YEAR(MAX(源泉徴収票!CN12-1,0))>=70),"○","×") -> × | E12: =IF(AND(源泉徴収票!CO12<>"",源泉徴収票!CO12>480000,源泉徴収票!CO12<=1330000,AN12<=10000000),"○","×") -> × | F12: =MATCH(源泉徴収票!CO12,H30配偶者控除・特別控除マスタ_配偶者所得,1) -> 1 | G12: =MATCH('源泉徴収票計算過程(非)'!AN12,H30配偶者控除・特別控除マスタ_所得者合計所得,1) -> 1 | H12: =IF(源泉徴収票!AN12="",-1,会社情報!$C$7-YEAR(源泉徴収票!AN12-1)) -> -1 | I12: =IF(源泉徴収票!AT12="",-1,会社情報!$C$7-YEAR(源泉徴収票!AT12-1)) -> -1 | J12: =IF(源泉徴収票!AZ12="",-1,会社情報!$C$7-YEAR(源泉徴収票!AZ12-1)) -> -1 | K12: =IF(源泉徴収票!BF12="",-1,会社情報!$C$7-YEAR(源泉徴収票!BF12-1)) -> -1 | L12: =IF(源泉徴収票!BL12="",-1,会社情報!$C$7-YEAR(源泉徴収票!BL12-1)) -> -1 | M12: =IF(H12>=16,IF(AND(H12>=19,H12<23),"特",IF(H12>=70,IF(源泉徴収票!AO12="同居老親等","同","老"),"一")),IF(H12>=0,"未","×")) -> × | N12: =IF(I12>=16,IF(AND(I12>=19,I12<23),"特",IF(I12>=70,IF(源泉徴収票!AU12="同居老親等","同","老"),"一")),IF(I12>=0,"未","×")) -> × | O12: =IF(J12>=16,IF(AND(J12>=19,J12<23),"特",IF(J12>=70,IF(源泉徴収票!BA12="同居老親等","同","老"),"一")),IF(J12>=0,"未","×")) -> × | P12: =IF(K12>=16,IF(AND(K12>=19,K12<23),"特",IF(K12>=70,IF(源泉徴収票!BG12="同居老親等","同","老"),"一")),IF(K12>=0,"未","×")) -> × | Q12: =IF(L12>=16,IF(AND(L12>=19,L12<23),"特",IF(L12>=70,IF(源泉徴収票!BM12="同居老親等","同","老"),"一")),IF(L12>=0,"未","×")) -> × | W12: =IF(源泉徴収票!BU12<=20000, 源泉徴収票!BU12, IF(源泉徴収票!BU12<=40000, 源泉徴収票!BU12*1/2+10000, IF(源泉徴収票!BU12<=80000, 源泉徴収票!BU12*1/4+20000, 40000))) -> 0 | X12: =IF(源泉徴収票!BV12<=25000,源泉徴収票!BV12, IF(源泉徴収票!BV12<=50000,源泉徴収票!BV12*1/2+12500, IF(源泉徴収票!BV12<=100000,源泉徴収票!BV12*1/4+25000, 50000))) -> 0 | Y12: 0 | Z12: 0 | AA12: =IF(源泉徴収票!BW12<=20000, 源泉徴収票!BW12, IF(源泉徴収票!BW12<=40000, 源泉徴収票!BW12*1/2+10000, IF(源泉徴収票!BW12<=80000, 源泉徴収票!BW12*1/4+20000, 40000))) -> 0 | AB12: =IF(源泉徴収票!BX12<=20000, 源泉徴収票!BX12, IF(源泉徴収票!BX12<=40000, 源泉徴収票!BX12*1/2+10000, IF(源泉徴収票!BX12<=80000, 源泉徴収票!BX12*1/4+20000, 40000))) -> 0 | AC12: =IF(源泉徴収票!BY12<=25000,源泉徴収票!BY12, IF(源泉徴収票!BY12<=50000,源泉徴収票!BY12*1/2+12500, IF(源泉徴収票!BY12<=100000,源泉徴収票!BY12*1/4+25000, 50000))) -> 0 | AD12: 0 | AE12: 0 | AF12: =IF(源泉徴収票!BZ12<>"",MIN(源泉徴収票!BZ12,50000),0) -> 0 | AG12: =IF(源泉徴収票!CA12>=20000,15000,IF(源泉徴収票!CA12>=10000,源泉徴収票!CA12/2+5000,源泉徴収票!CA12)) -> 0 | AH12: =IF(源泉徴収票!CS12<>"","〇","×") -> × | AJ12: =源泉徴収票!O12+源泉徴収票!R12+源泉徴収票!U12 -> 4000000 | AK12: =源泉徴収票!Q12+源泉徴収票!T12+源泉徴収票!W12 -> 142000 | AL12: =IF(源泉徴収票!I12="無",0,INT(A12*VLOOKUP(A12, 給与所得計算, 3, TRUE) + VLOOKUP(A12, 給与所得計算, 4, TRUE) )) -> 0 | AM12: 0 | AN12: 0 | AO12: =源泉徴収票!P12+源泉徴収票!S12+源泉徴収票!V12 -> 0 | AP12: =IF(源泉徴収票!I12="無",0,源泉徴収票!CB12) -> 0 | AQ12: =IF(源泉徴収票!I12="無",0,源泉徴収票!CD12) -> 0 | AR12: =IF(源泉徴収票!I12="無",0,MIN(120000,Z12+AA12+AE12)) -> 0 | AS12: =IF(源泉徴収票!I12="無",0,MIN(AF12+AG12,50000)) -> 0 | AT12: =IF(源泉徴収票!I12="無",0,IF(E12="○",INDEX(H30配偶者控除・特別控除マスタ,F12,G12),0)) -> 0 | AU12: =IF(源泉徴収票!I12="無",0,IF(C12="○",INDEX(H30配偶者控除・特別控除マスタ,F12,G12),0)+IF(D12="○",INDEX(H30老人控除対象配偶者上乗せ,1,G12),0)) -> 0 | AV12: =IF(源泉徴収票!I12="無",0,COUNTIF(M12:Q12,"一")*380000+COUNTIF(M12:Q12,"特")*630000+COUNTIF(M12:Q12,"老")*480000+COUNTIF(M12:Q12,"同")*580000) -> 0 | AW12: =IF(源泉徴収票!I12="無",0,(COUNTIF(源泉徴収票!BO12:BP12,"一般")+源泉徴収票!BQ12)*270000+(COUNTIF(源泉徴収票!BO12:BP12,"特別")+源泉徴収票!BR12)*400000+(COUNTIF(源泉徴収票!BP12,"同居特別")+源泉徴収票!BS12)*750000) -> 0 | AX12: =IF(源泉徴収票!I12="無",0,IF(源泉徴収票!BT12<>"",IF(OR(源泉徴収票!BT12="特別の寡婦",源泉徴収票!BT12="ひとり親"),350000,270000),0)) -> 0 | AY12: =IF(源泉徴収票!I12="無",0,480000) -> 0 | AZ12: =IF(源泉徴収票!I12="無",0,SUM(AO12:AY12)) -> 0 | BA12: =IF(源泉徴収票!I12="無",AN12,FLOOR(MAX(AN12-AZ12,0),1000)) -> 0 | BB12: =IF(源泉徴収票!I12="無",AK12,BA12*VLOOKUP(BA12,所得税額計算,3,TRUE)+VLOOKUP(BA12,所得税額計算,4,TRUE)) -> 142000 | BC12: =IF(源泉徴収票!I12="無",0,源泉徴収票!CZ12) -> 0 | BD12: 142000 | BE12: =IF(源泉徴収票!I12="無",BD12,FLOOR(BD12*102.1%,100)) -> 142000 | BF12: 0
A13: 0 | B13: =IF(AND(源泉徴収票!I13="無",源泉徴収票!AE13<>""),"○","×") -> × | C13: =IF(AND(源泉徴収票!CO13<>"",源泉徴収票!CO13<=480000,AN13<=10000000),"○","×") -> × | D13: =IF(AND(C13="○",源泉徴収票!CN13<>"",会社情報!$C$7-YEAR(MAX(源泉徴収票!CN13-1,0))>=70),"○","×") -> × | E13: =IF(AND(源泉徴収票!CO13<>"",源泉徴収票!CO13>480000,源泉徴収票!CO13<=1330000,AN13<=10000000),"○","×") -> × | F13: =MATCH(源泉徴収票!CO13,H30配偶者控除・特別控除マスタ_配偶者所得,1) -> 1 | G13: =MATCH('源泉徴収票計算過程(非)'!AN13,H30配偶者控除・特別控除マスタ_所得者合計所得,1) -> 1 | H13: =IF(源泉徴収票!AN13="",-1,会社情報!$C$7-YEAR(源泉徴収票!AN13-1)) -> -1 | I13: =IF(源泉徴収票!AT13="",-1,会社情報!$C$7-YEAR(源泉徴収票!AT13-1)) -> -1 | J13: =IF(源泉徴収票!AZ13="",-1,会社情報!$C$7-YEAR(源泉徴収票!AZ13-1)) -> -1 | K13: =IF(源泉徴収票!BF13="",-1,会社情報!$C$7-YEAR(源泉徴収票!BF13-1)) -> -1 | L13: =IF(源泉徴収票!BL13="",-1,会社情報!$C$7-YEAR(源泉徴収票!BL13-1)) -> -1 | M13: =IF(H13>=16,IF(AND(H13>=19,H13<23),"特",IF(H13>=70,IF(源泉徴収票!AO13="同居老親等","同","老"),"一")),IF(H13>=0,"未","×")) -> × | N13: =IF(I13>=16,IF(AND(I13>=19,I13<23),"特",IF(I13>=70,IF(源泉徴収票!AU13="同居老親等","同","老"),"一")),IF(I13>=0,"未","×")) -> × | O13: =IF(J13>=16,IF(AND(J13>=19,J13<23),"特",IF(J13>=70,IF(源泉徴収票!BA13="同居老親等","同","老"),"一")),IF(J13>=0,"未","×")) -> × | P13: =IF(K13>=16,IF(AND(K13>=19,K13<23),"特",IF(K13>=70,IF(源泉徴収票!BG13="同居老親等","同","老"),"一")),IF(K13>=0,"未","×")) -> × | Q13: =IF(L13>=16,IF(AND(L13>=19,L13<23),"特",IF(L13>=70,IF(源泉徴収票!BM13="同居老親等","同","老"),"一")),IF(L13>=0,"未","×")) -> × | W13: =IF(源泉徴収票!BU13<=20000, 源泉徴収票!BU13, IF(源泉徴収票!BU13<=40000, 源泉徴収票!BU13*1/2+10000, IF(源泉徴収票!BU13<=80000, 源泉徴収票!BU13*1/4+20000, 40000))) -> 0 | X13: =IF(源泉徴収票!BV13<=25000,源泉徴収票!BV13, IF(源泉徴収票!BV13<=50000,源泉徴収票!BV13*1/2+12500, IF(源泉徴収票!BV13<=100000,源泉徴収票!BV13*1/4+25000, 50000))) -> 0 | Y13: 0 | Z13: 0 | AA13: =IF(源泉徴収票!BW13<=20000, 源泉徴収票!BW13, IF(源泉徴収票!BW13<=40000, 源泉徴収票!BW13*1/2+10000, IF(源泉徴収票!BW13<=80000, 源泉徴収票!BW13*1/4+20000, 40000))) -> 0 | AB13: =IF(源泉徴収票!BX13<=20000, 源泉徴収票!BX13, IF(源泉徴収票!BX13<=40000, 源泉徴収票!BX13*1/2+10000, IF(源泉徴収票!BX13<=80000, 源泉徴収票!BX13*1/4+20000, 40000))) -> 0 | AC13: =IF(源泉徴収票!BY13<=25000,源泉徴収票!BY13, IF(源泉徴収票!BY13<=50000,源泉徴収票!BY13*1/2+12500, IF(源泉徴収票!BY13<=100000,源泉徴収票!BY13*1/4+25000, 50000))) -> 0 | AD13: 0 | AE13: 0 | AF13: =IF(源泉徴収票!BZ13<>"",MIN(源泉徴収票!BZ13,50000),0) -> 0 | AG13: =IF(源泉徴収票!CA13>=20000,15000,IF(源泉徴収票!CA13>=10000,源泉徴収票!CA13/2+5000,源泉徴収票!CA13)) -> 0 | AH13: =IF(源泉徴収票!CS13<>"","〇","×") -> × | AJ13: =源泉徴収票!O13+源泉徴収票!R13+源泉徴収票!U13 -> 0 | AK13: =源泉徴収票!Q13+源泉徴収票!T13+源泉徴収票!W13 -> 0 | AL13: =IF(源泉徴収票!I13="無",0,INT(A13*VLOOKUP(A13, 給与所得計算, 3, TRUE) + VLOOKUP(A13, 給与所得計算, 4, TRUE) )) -> 0 | AM13: 0 | AN13: 0 | AO13: =源泉徴収票!P13+源泉徴収票!S13+源泉徴収票!V13 -> 0 | AP13: =IF(源泉徴収票!I13="無",0,源泉徴収票!CB13) -> 0 | AQ13: =IF(源泉徴収票!I13="無",0,源泉徴収票!CD13) -> 0 | AR13: =IF(源泉徴収票!I13="無",0,MIN(120000,Z13+AA13+AE13)) -> 0 | AS13: =IF(源泉徴収票!I13="無",0,MIN(AF13+AG13,50000)) -> 0 | AT13: =IF(源泉徴収票!I13="無",0,IF(E13="○",INDEX(H30配偶者控除・特別控除マスタ,F13,G13),0)) -> 0 | AU13: =IF(源泉徴収票!I13="無",0,IF(C13="○",INDEX(H30配偶者控除・特別控除マスタ,F13,G13),0)+IF(D13="○",INDEX(H30老人控除対象配偶者上乗せ,1,G13),0)) -> 0 | AV13: =IF(源泉徴収票!I13="無",0,COUNTIF(M13:Q13,"一")*380000+COUNTIF(M13:Q13,"特")*630000+COUNTIF(M13:Q13,"老")*480000+COUNTIF(M13:Q13,"同")*580000) -> 0 | AW13: =IF(源泉徴収票!I13="無",0,(COUNTIF(源泉徴収票!BO13:BP13,"一般")+源泉徴収票!BQ13)*270000+(COUNTIF(源泉徴収票!BO13:BP13,"特別")+源泉徴収票!BR13)*400000+(COUNTIF(源泉徴収票!BP13,"同居特別")+源泉徴収票!BS13)*750000) -> 0 | AX13: =IF(源泉徴収票!I13="無",0,IF(源泉徴収票!BT13<>"",IF(OR(源泉徴収票!BT13="特別の寡婦",源泉徴収票!BT13="ひとり親"),350000,270000),0)) -> 0 | AY13: =IF(源泉徴収票!I13="無",0,480000) -> 480000 | AZ13: =IF(源泉徴収票!I13="無",0,SUM(AO13:AY13)) -> 480000 | BA13: =IF(源泉徴収票!I13="無",AN13,FLOOR(MAX(AN13-AZ13,0),1000)) -> 0 | BB13: =IF(源泉徴収票!I13="無",AK13,BA13*VLOOKUP(BA13,所得税額計算,3,TRUE)+VLOOKUP(BA13,所得税額計算,4,TRUE)) -> 0 | BC13: =IF(源泉徴収票!I13="無",0,源泉徴収票!CZ13) -> 0 | BD13: 0 | BE13: =IF(源泉徴収票!I13="無",BD13,FLOOR(BD13*102.1%,100)) -> 0 | BF13: 0
A14: 0 | B14: =IF(AND(源泉徴収票!I14="無",源泉徴収票!AE14<>""),"○","×") -> × | C14: =IF(AND(源泉徴収票!CO14<>"",源泉徴収票!CO14<=480000,AN14<=10000000),"○","×") -> × | D14: =IF(AND(C14="○",源泉徴収票!CN14<>"",会社情報!$C$7-YEAR(MAX(源泉徴収票!CN14-1,0))>=70),"○","×") -> × | E14: =IF(AND(源泉徴収票!CO14<>"",源泉徴収票!CO14>480000,源泉徴収票!CO14<=1330000,AN14<=10000000),"○","×") -> × | F14: =MATCH(源泉徴収票!CO14,H30配偶者控除・特別控除マスタ_配偶者所得,1) -> 1 | G14: =MATCH('源泉徴収票計算過程(非)'!AN14,H30配偶者控除・特別控除マスタ_所得者合計所得,1) -> 1 | H14: =IF(源泉徴収票!AN14="",-1,会社情報!$C$7-YEAR(源泉徴収票!AN14-1)) -> -1 | I14: =IF(源泉徴収票!AT14="",-1,会社情報!$C$7-YEAR(源泉徴収票!AT14-1)) -> -1 | J14: =IF(源泉徴収票!AZ14="",-1,会社情報!$C$7-YEAR(源泉徴収票!AZ14-1)) -> -1 | K14: =IF(源泉徴収票!BF14="",-1,会社情報!$C$7-YEAR(源泉徴収票!BF14-1)) -> -1 | L14: =IF(源泉徴収票!BL14="",-1,会社情報!$C$7-YEAR(源泉徴収票!BL14-1)) -> -1 | M14: =IF(H14>=16,IF(AND(H14>=19,H14<23),"特",IF(H14>=70,IF(源泉徴収票!AO14="同居老親等","同","老"),"一")),IF(H14>=0,"未","×")) -> × | N14: =IF(I14>=16,IF(AND(I14>=19,I14<23),"特",IF(I14>=70,IF(源泉徴収票!AU14="同居老親等","同","老"),"一")),IF(I14>=0,"未","×")) -> × | O14: =IF(J14>=16,IF(AND(J14>=19,J14<23),"特",IF(J14>=70,IF(源泉徴収票!BA14="同居老親等","同","老"),"一")),IF(J14>=0,"未","×")) -> × | P14: =IF(K14>=16,IF(AND(K14>=19,K14<23),"特",IF(K14>=70,IF(源泉徴収票!BG14="同居老親等","同","老"),"一")),IF(K14>=0,"未","×")) -> × | Q14: =IF(L14>=16,IF(AND(L14>=19,L14<23),"特",IF(L14>=70,IF(源泉徴収票!BM14="同居老親等","同","老"),"一")),IF(L14>=0,"未","×")) -> × | W14: =IF(源泉徴収票!BU14<=20000, 源泉徴収票!BU14, IF(源泉徴収票!BU14<=40000, 源泉徴収票!BU14*1/2+10000, IF(源泉徴収票!BU14<=80000, 源泉徴収票!BU14*1/4+20000, 40000))) -> 0 | X14: =IF(源泉徴収票!BV14<=25000,源泉徴収票!BV14, IF(源泉徴収票!BV14<=50000,源泉徴収票!BV14*1/2+12500, IF(源泉徴収票!BV14<=100000,源泉徴収票!BV14*1/4+25000, 50000))) -> 0 | Y14: 0 | Z14: 0 | AA14: =IF(源泉徴収票!BW14<=20000, 源泉徴収票!BW14, IF(源泉徴収票!BW14<=40000, 源泉徴収票!BW14*1/2+10000, IF(源泉徴収票!BW14<=80000, 源泉徴収票!BW14*1/4+20000, 40000))) -> 0 | AB14: =IF(源泉徴収票!BX14<=20000, 源泉徴収票!BX14, IF(源泉徴収票!BX14<=40000, 源泉徴収票!BX14*1/2+10000, IF(源泉徴収票!BX14<=80000, 源泉徴収票!BX14*1/4+20000, 40000))) -> 0 | AC14: =IF(源泉徴収票!BY14<=25000,源泉徴収票!BY14, IF(源泉徴収票!BY14<=50000,源泉徴収票!BY14*1/2+12500, IF(源泉徴収票!BY14<=100000,源泉徴収票!BY14*1/4+25000, 50000))) -> 0 | AD14: 0 | AE14: 0 | AF14: =IF(源泉徴収票!BZ14<>"",MIN(源泉徴収票!BZ14,50000),0) -> 0 | AG14: =IF(源泉徴収票!CA14>=20000,15000,IF(源泉徴収票!CA14>=10000,源泉徴収票!CA14/2+5000,源泉徴収票!CA14)) -> 0 | AH14: =IF(源泉徴収票!CS14<>"","〇","×") -> × | AJ14: =源泉徴収票!O14+源泉徴収票!R14+源泉徴収票!U14 -> 0 | AK14: =源泉徴収票!Q14+源泉徴収票!T14+源泉徴収票!W14 -> 0 | AL14: =IF(源泉徴収票!I14="無",0,INT(A14*VLOOKUP(A14, 給与所得計算, 3, TRUE) + VLOOKUP(A14, 給与所得計算, 4, TRUE) )) -> 0 | AM14: 0 | AN14: 0 | AO14: =源泉徴収票!P14+源泉徴収票!S14+源泉徴収票!V14 -> 0 | AP14: =IF(源泉徴収票!I14="無",0,源泉徴収票!CB14) -> 0 | AQ14: =IF(源泉徴収票!I14="無",0,源泉徴収票!CD14) -> 0 | AR14: =IF(源泉徴収票!I14="無",0,MIN(120000,Z14+AA14+AE14)) -> 0 | AS14: =IF(源泉徴収票!I14="無",0,MIN(AF14+AG14,50000)) -> 0 | AT14: =IF(源泉徴収票!I14="無",0,IF(E14="○",INDEX(H30配偶者控除・特別控除マスタ,F14,G14),0)) -> 0 | AU14: =IF(源泉徴収票!I14="無",0,IF(C14="○",INDEX(H30配偶者控除・特別控除マスタ,F14,G14),0)+IF(D14="○",INDEX(H30老人控除対象配偶者上乗せ,1,G14),0)) -> 0 | AV14: =IF(源泉徴収票!I14="無",0,COUNTIF(M14:Q14,"一")*380000+COUNTIF(M14:Q14,"特")*630000+COUNTIF(M14:Q14,"老")*480000+COUNTIF(M14:Q14,"同")*580000) -> 0 | AW14: =IF(源泉徴収票!I14="無",0,(COUNTIF(源泉徴収票!BO14:BP14,"一般")+源泉徴収票!BQ14)*270000+(COUNTIF(源泉徴収票!BO14:BP14,"特別")+源泉徴収票!BR14)*400000+(COUNTIF(源泉徴収票!BP14,"同居特別")+源泉徴収票!BS14)*750000) -> 0 | AX14: =IF(源泉徴収票!I14="無",0,IF(源泉徴収票!BT14<>"",IF(OR(源泉徴収票!BT14="特別の寡婦",源泉徴収票!BT14="ひとり親"),350000,270000),0)) -> 0 | AY14: =IF(源泉徴収票!I14="無",0,480000) -> 480000 | AZ14: =IF(源泉徴収票!I14="無",0,SUM(AO14:AY14)) -> 480000 | BA14: =IF(源泉徴収票!I14="無",AN14,FLOOR(MAX(AN14-AZ14,0),1000)) -> 0 | BB14: =IF(源泉徴収票!I14="無",AK14,BA14*VLOOKUP(BA14,所得税額計算,3,TRUE)+VLOOKUP(BA14,所得税額計算,4,TRUE)) -> 0 | BC14: =IF(源泉徴収票!I14="無",0,源泉徴収票!CZ14) -> 0 | BD14: 0 | BE14: =IF(源泉徴収票!I14="無",BD14,FLOOR(BD14*102.1%,100)) -> 0 | BF14: 0
A15: 0 | B15: =IF(AND(源泉徴収票!I15="無",源泉徴収票!AE15<>""),"○","×") -> × | C15: =IF(AND(源泉徴収票!CO15<>"",源泉徴収票!CO15<=480000,AN15<=10000000),"○","×") -> × | D15: =IF(AND(C15="○",源泉徴収票!CN15<>"",会社情報!$C$7-YEAR(MAX(源泉徴収票!CN15-1,0))>=70),"○","×") -> × | E15: =IF(AND(源泉徴収票!CO15<>"",源泉徴収票!CO15>480000,源泉徴収票!CO15<=1330000,AN15<=10000000),"○","×") -> × | F15: =MATCH(源泉徴収票!CO15,H30配偶者控除・特別控除マスタ_配偶者所得,1) -> 1 | G15: =MATCH('源泉徴収票計算過程(非)'!AN15,H30配偶者控除・特別控除マスタ_所得者合計所得,1) -> 1 | H15: =IF(源泉徴収票!AN15="",-1,会社情報!$C$7-YEAR(源泉徴収票!AN15-1)) -> -1 | I15: =IF(源泉徴収票!AT15="",-1,会社情報!$C$7-YEAR(源泉徴収票!AT15-1)) -> -1 | J15: =IF(源泉徴収票!AZ15="",-1,会社情報!$C$7-YEAR(源泉徴収票!AZ15-1)) -> -1 | K15: =IF(源泉徴収票!BF15="",-1,会社情報!$C$7-YEAR(源泉徴収票!BF15-1)) -> -1 | L15: =IF(源泉徴収票!BL15="",-1,会社情報!$C$7-YEAR(源泉徴収票!BL15-1)) -> -1 | M15: =IF(H15>=16,IF(AND(H15>=19,H15<23),"特",IF(H15>=70,IF(源泉徴収票!AO15="同居老親等","同","老"),"一")),IF(H15>=0,"未","×")) -> × | N15: =IF(I15>=16,IF(AND(I15>=19,I15<23),"特",IF(I15>=70,IF(源泉徴収票!AU15="同居老親等","同","老"),"一")),IF(I15>=0,"未","×")) -> × | O15: =IF(J15>=16,IF(AND(J15>=19,J15<23),"特",IF(J15>=70,IF(源泉徴収票!BA15="同居老親等","同","老"),"一")),IF(J15>=0,"未","×")) -> × | P15: =IF(K15>=16,IF(AND(K15>=19,K15<23),"特",IF(K15>=70,IF(源泉徴収票!BG15="同居老親等","同","老"),"一")),IF(K15>=0,"未","×")) -> × | Q15: =IF(L15>=16,IF(AND(L15>=19,L15<23),"特",IF(L15>=70,IF(源泉徴収票!BM15="同居老親等","同","老"),"一")),IF(L15>=0,"未","×")) -> × | W15: =IF(源泉徴収票!BU15<=20000, 源泉徴収票!BU15, IF(源泉徴収票!BU15<=40000, 源泉徴収票!BU15*1/2+10000, IF(源泉徴収票!BU15<=80000, 源泉徴収票!BU15*1/4+20000, 40000))) -> 0 | X15: =IF(源泉徴収票!BV15<=25000,源泉徴収票!BV15, IF(源泉徴収票!BV15<=50000,源泉徴収票!BV15*1/2+12500, IF(源泉徴収票!BV15<=100000,源泉徴収票!BV15*1/4+25000, 50000))) -> 0 | Y15: 0 | Z15: 0 | AA15: =IF(源泉徴収票!BW15<=20000, 源泉徴収票!BW15, IF(源泉徴収票!BW15<=40000, 源泉徴収票!BW15*1/2+10000, IF(源泉徴収票!BW15<=80000, 源泉徴収票!BW15*1/4+20000, 40000))) -> 0 | AB15: =IF(源泉徴収票!BX15<=20000, 源泉徴収票!BX15, IF(源泉徴収票!BX15<=40000, 源泉徴収票!BX15*1/2+10000, IF(源泉徴収票!BX15<=80000, 源泉徴収票!BX15*1/4+20000, 40000))) -> 0 | AC15: =IF(源泉徴収票!BY15<=25000,源泉徴収票!BY15, IF(源泉徴収票!BY15<=50000,源泉徴収票!BY15*1/2+12500, IF(源泉徴収票!BY15<=100000,源泉徴収票!BY15*1/4+25000, 50000))) -> 0 | AD15: 0 | AE15: 0 | AF15: =IF(源泉徴収票!BZ15<>"",MIN(源泉徴収票!BZ15,50000),0) -> 0 | AG15: =IF(源泉徴収票!CA15>=20000,15000,IF(源泉徴収票!CA15>=10000,源泉徴収票!CA15/2+5000,源泉徴収票!CA15)) -> 0 | AH15: =IF(源泉徴収票!CS15<>"","〇","×") -> × | AJ15: =源泉徴収票!O15+源泉徴収票!R15+源泉徴収票!U15 -> 0 | AK15: =源泉徴収票!Q15+源泉徴収票!T15+源泉徴収票!W15 -> 0 | AL15: =IF(源泉徴収票!I15="無",0,INT(A15*VLOOKUP(A15, 給与所得計算, 3, TRUE) + VLOOKUP(A15, 給与所得計算, 4, TRUE) )) -> 0 | AM15: 0 | AN15: 0 | AO15: =源泉徴収票!P15+源泉徴収票!S15+源泉徴収票!V15 -> 0 | AP15: =IF(源泉徴収票!I15="無",0,源泉徴収票!CB15) -> 0 | AQ15: =IF(源泉徴収票!I15="無",0,源泉徴収票!CD15) -> 0 | AR15: =IF(源泉徴収票!I15="無",0,MIN(120000,Z15+AA15+AE15)) -> 0 | AS15: =IF(源泉徴収票!I15="無",0,MIN(AF15+AG15,50000)) -> 0 | AT15: =IF(源泉徴収票!I15="無",0,IF(E15="○",INDEX(H30配偶者控除・特別控除マスタ,F15,G15),0)) -> 0 | AU15: =IF(源泉徴収票!I15="無",0,IF(C15="○",INDEX(H30配偶者控除・特別控除マスタ,F15,G15),0)+IF(D15="○",INDEX(H30老人控除対象配偶者上乗せ,1,G15),0)) -> 0 | AV15: =IF(源泉徴収票!I15="無",0,COUNTIF(M15:Q15,"一")*380000+COUNTIF(M15:Q15,"特")*630000+COUNTIF(M15:Q15,"老")*480000+COUNTIF(M15:Q15,"同")*580000) -> 0 | AW15: =IF(源泉徴収票!I15="無",0,(COUNTIF(源泉徴収票!BO15:BP15,"一般")+源泉徴収票!BQ15)*270000+(COUNTIF(源泉徴収票!BO15:BP15,"特別")+源泉徴収票!BR15)*400000+(COUNTIF(源泉徴収票!BP15,"同居特別")+源泉徴収票!BS15)*750000) -> 0 | AX15: =IF(源泉徴収票!I15="無",0,IF(源泉徴収票!BT15<>"",IF(OR(源泉徴収票!BT15="特別の寡婦",源泉徴収票!BT15="ひとり親"),350000,270000),0)) -> 0 | AY15: =IF(源泉徴収票!I15="無",0,480000) -> 480000 | AZ15: =IF(源泉徴収票!I15="無",0,SUM(AO15:AY15)) -> 480000 | BA15: =IF(源泉徴収票!I15="無",AN15,FLOOR(MAX(AN15-AZ15,0),1000)) -> 0 | BB15: =IF(源泉徴収票!I15="無",AK15,BA15*VLOOKUP(BA15,所得税額計算,3,TRUE)+VLOOKUP(BA15,所得税額計算,4,TRUE)) -> 0 | BC15: =IF(源泉徴収票!I15="無",0,源泉徴収票!CZ15) -> 0 | BD15: 0 | BE15: =IF(源泉徴収票!I15="無",BD15,FLOOR(BD15*102.1%,100)) -> 0 | BF15: 0
A16: 0 | B16: =IF(AND(源泉徴収票!I16="無",源泉徴収票!AE16<>""),"○","×") -> × | C16: =IF(AND(源泉徴収票!CO16<>"",源泉徴収票!CO16<=480000,AN16<=10000000),"○","×") -> × | D16: =IF(AND(C16="○",源泉徴収票!CN16<>"",会社情報!$C$7-YEAR(MAX(源泉徴収票!CN16-1,0))>=70),"○","×") -> × | E16: =IF(AND(源泉徴収票!CO16<>"",源泉徴収票!CO16>480000,源泉徴収票!CO16<=1330000,AN16<=10000000),"○","×") -> × | F16: =MATCH(源泉徴収票!CO16,H30配偶者控除・特別控除マスタ_配偶者所得,1) -> 1 | G16: =MATCH('源泉徴収票計算過程(非)'!AN16,H30配偶者控除・特別控除マスタ_所得者合計所得,1) -> 1 | H16: =IF(源泉徴収票!AN16="",-1,会社情報!$C$7-YEAR(源泉徴収票!AN16-1)) -> -1 | I16: =IF(源泉徴収票!AT16="",-1,会社情報!$C$7-YEAR(源泉徴収票!AT16-1)) -> -1 | J16: =IF(源泉徴収票!AZ16="",-1,会社情報!$C$7-YEAR(源泉徴収票!AZ16-1)) -> -1 | K16: =IF(源泉徴収票!BF16="",-1,会社情報!$C$7-YEAR(源泉徴収票!BF16-1)) -> -1 | L16: =IF(源泉徴収票!BL16="",-1,会社情報!$C$7-YEAR(源泉徴収票!BL16-1)) -> -1 | M16: =IF(H16>=16,IF(AND(H16>=19,H16<23),"特",IF(H16>=70,IF(源泉徴収票!AO16="同居老親等","同","老"),"一")),IF(H16>=0,"未","×")) -> × | N16: =IF(I16>=16,IF(AND(I16>=19,I16<23),"特",IF(I16>=70,IF(源泉徴収票!AU16="同居老親等","同","老"),"一")),IF(I16>=0,"未","×")) -> × | O16: =IF(J16>=16,IF(AND(J16>=19,J16<23),"特",IF(J16>=70,IF(源泉徴収票!BA16="同居老親等","同","老"),"一")),IF(J16>=0,"未","×")) -> × | P16: =IF(K16>=16,IF(AND(K16>=19,K16<23),"特",IF(K16>=70,IF(源泉徴収票!BG16="同居老親等","同","老"),"一")),IF(K16>=0,"未","×")) -> × | Q16: =IF(L16>=16,IF(AND(L16>=19,L16<23),"特",IF(L16>=70,IF(源泉徴収票!BM16="同居老親等","同","老"),"一")),IF(L16>=0,"未","×")) -> × | W16: =IF(源泉徴収票!BU16<=20000, 源泉徴収票!BU16, IF(源泉徴収票!BU16<=40000, 源泉徴収票!BU16*1/2+10000, IF(源泉徴収票!BU16<=80000, 源泉徴収票!BU16*1/4+20000, 40000))) -> 0 | X16: =IF(源泉徴収票!BV16<=25000,源泉徴収票!BV16, IF(源泉徴収票!BV16<=50000,源泉徴収票!BV16*1/2+12500, IF(源泉徴収票!BV16<=100000,源泉徴収票!BV16*1/4+25000, 50000))) -> 0 | Y16: 0 | Z16: 0 | AA16: =IF(源泉徴収票!BW16<=20000, 源泉徴収票!BW16, IF(源泉徴収票!BW16<=40000, 源泉徴収票!BW16*1/2+10000, IF(源泉徴収票!BW16<=80000, 源泉徴収票!BW16*1/4+20000, 40000))) -> 0 | AB16: =IF(源泉徴収票!BX16<=20000, 源泉徴収票!BX16, IF(源泉徴収票!BX16<=40000, 源泉徴収票!BX16*1/2+10000, IF(源泉徴収票!BX16<=80000, 源泉徴収票!BX16*1/4+20000, 40000))) -> 0 | AC16: =IF(源泉徴収票!BY16<=25000,源泉徴収票!BY16, IF(源泉徴収票!BY16<=50000,源泉徴収票!BY16*1/2+12500, IF(源泉徴収票!BY16<=100000,源泉徴収票!BY16*1/4+25000, 50000))) -> 0 | AD16: 0 | AE16: 0 | AF16: =IF(源泉徴収票!BZ16<>"",MIN(源泉徴収票!BZ16,50000),0) -> 0 | AG16: =IF(源泉徴収票!CA16>=20000,15000,IF(源泉徴収票!CA16>=10000,源泉徴収票!CA16/2+5000,源泉徴収票!CA16)) -> 0 | AH16: =IF(源泉徴収票!CS16<>"","〇","×") -> × | AJ16: =源泉徴収票!O16+源泉徴収票!R16+源泉徴収票!U16 -> 0 | AK16: =源泉徴収票!Q16+源泉徴収票!T16+源泉徴収票!W16 -> 0 | AL16: =IF(源泉徴収票!I16="無",0,INT(A16*VLOOKUP(A16, 給与所得計算, 3, TRUE) + VLOOKUP(A16, 給与所得計算, 4, TRUE) )) -> 0 | AM16: 0 | AN16: 0 | AO16: =源泉徴収票!P16+源泉徴収票!S16+源泉徴収票!V16 -> 0 | AP16: =IF(源泉徴収票!I16="無",0,源泉徴収票!CB16) -> 0 | AQ16: =IF(源泉徴収票!I16="無",0,源泉徴収票!CD16) -> 0 | AR16: =IF(源泉徴収票!I16="無",0,MIN(120000,Z16+AA16+AE16)) -> 0 | AS16: =IF(源泉徴収票!I16="無",0,MIN(AF16+AG16,50000)) -> 0 | AT16: =IF(源泉徴収票!I16="無",0,IF(E16="○",INDEX(H30配偶者控除・特別控除マスタ,F16,G16),0)) -> 0 | AU16: =IF(源泉徴収票!I16="無",0,IF(C16="○",INDEX(H30配偶者控除・特別控除マスタ,F16,G16),0)+IF(D16="○",INDEX(H30老人控除対象配偶者上乗せ,1,G16),0)) -> 0 | AV16: =IF(源泉徴収票!I16="無",0,COUNTIF(M16:Q16,"一")*380000+COUNTIF(M16:Q16,"特")*630000+COUNTIF(M16:Q16,"老")*480000+COUNTIF(M16:Q16,"同")*580000) -> 0 | AW16: =IF(源泉徴収票!I16="無",0,(COUNTIF(源泉徴収票!BO16:BP16,"一般")+源泉徴収票!BQ16)*270000+(COUNTIF(源泉徴収票!BO16:BP16,"特別")+源泉徴収票!BR16)*400000+(COUNTIF(源泉徴収票!BP16,"同居特別")+源泉徴収票!BS16)*750000) -> 0 | AX16: =IF(源泉徴収票!I16="無",0,IF(源泉徴収票!BT16<>"",IF(OR(源泉徴収票!BT16="特別の寡婦",源泉徴収票!BT16="ひとり親"),350000,270000),0)) -> 0 | AY16: =IF(源泉徴収票!I16="無",0,480000) -> 480000 | AZ16: =IF(源泉徴収票!I16="無",0,SUM(AO16:AY16)) -> 480000 | BA16: =IF(源泉徴収票!I16="無",AN16,FLOOR(MAX(AN16-AZ16,0),1000)) -> 0 | BB16: =IF(源泉徴収票!I16="無",AK16,BA16*VLOOKUP(BA16,所得税額計算,3,TRUE)+VLOOKUP(BA16,所得税額計算,4,TRUE)) -> 0 | BC16: =IF(源泉徴収票!I16="無",0,源泉徴収票!CZ16) -> 0 | BD16: 0 | BE16: =IF(源泉徴収票!I16="無",BD16,FLOOR(BD16*102.1%,100)) -> 0 | BF16: 0
A17: 0 | B17: =IF(AND(源泉徴収票!I17="無",源泉徴収票!AE17<>""),"○","×") -> × | C17: =IF(AND(源泉徴収票!CO17<>"",源泉徴収票!CO17<=480000,AN17<=10000000),"○","×") -> × | D17: =IF(AND(C17="○",源泉徴収票!CN17<>"",会社情報!$C$7-YEAR(MAX(源泉徴収票!CN17-1,0))>=70),"○","×") -> × | E17: =IF(AND(源泉徴収票!CO17<>"",源泉徴収票!CO17>480000,源泉徴収票!CO17<=1330000,AN17<=10000000),"○","×") -> × | F17: =MATCH(源泉徴収票!CO17,H30配偶者控除・特別控除マスタ_配偶者所得,1) -> 1 | G17: =MATCH('源泉徴収票計算過程(非)'!AN17,H30配偶者控除・特別控除マスタ_所得者合計所得,1) -> 1 | H17: =IF(源泉徴収票!AN17="",-1,会社情報!$C$7-YEAR(源泉徴収票!AN17-1)) -> -1 | I17: =IF(源泉徴収票!AT17="",-1,会社情報!$C$7-YEAR(源泉徴収票!AT17-1)) -> -1 | J17: =IF(源泉徴収票!AZ17="",-1,会社情報!$C$7-YEAR(源泉徴収票!AZ17-1)) -> -1 | K17: =IF(源泉徴収票!BF17="",-1,会社情報!$C$7-YEAR(源泉徴収票!BF17-1)) -> -1 | L17: =IF(源泉徴収票!BL17="",-1,会社情報!$C$7-YEAR(源泉徴収票!BL17-1)) -> -1 | M17: =IF(H17>=16,IF(AND(H17>=19,H17<23),"特",IF(H17>=70,IF(源泉徴収票!AO17="同居老親等","同","老"),"一")),IF(H17>=0,"未","×")) -> × | N17: =IF(I17>=16,IF(AND(I17>=19,I17<23),"特",IF(I17>=70,IF(源泉徴収票!AU17="同居老親等","同","老"),"一")),IF(I17>=0,"未","×")) -> × | O17: =IF(J17>=16,IF(AND(J17>=19,J17<23),"特",IF(J17>=70,IF(源泉徴収票!BA17="同居老親等","同","老"),"一")),IF(J17>=0,"未","×")) -> × | P17: =IF(K17>=16,IF(AND(K17>=19,K17<23),"特",IF(K17>=70,IF(源泉徴収票!BG17="同居老親等","同","老"),"一")),IF(K17>=0,"未","×")) -> × | Q17: =IF(L17>=16,IF(AND(L17>=19,L17<23),"特",IF(L17>=70,IF(源泉徴収票!BM17="同居老親等","同","老"),"一")),IF(L17>=0,"未","×")) -> × | W17: =IF(源泉徴収票!BU17<=20000, 源泉徴収票!BU17, IF(源泉徴収票!BU17<=40000, 源泉徴収票!BU17*1/2+10000, IF(源泉徴収票!BU17<=80000, 源泉徴収票!BU17*1/4+20000, 40000))) -> 0 | X17: =IF(源泉徴収票!BV17<=25000,源泉徴収票!BV17, IF(源泉徴収票!BV17<=50000,源泉徴収票!BV17*1/2+12500, IF(源泉徴収票!BV17<=100000,源泉徴収票!BV17*1/4+25000, 50000))) -> 0 | Y17: 0 | Z17: 0 | AA17: =IF(源泉徴収票!BW17<=20000, 源泉徴収票!BW17, IF(源泉徴収票!BW17<=40000, 源泉徴収票!BW17*1/2+10000, IF(源泉徴収票!BW17<=80000, 源泉徴収票!BW17*1/4+20000, 40000))) -> 0 | AB17: =IF(源泉徴収票!BX17<=20000, 源泉徴収票!BX17, IF(源泉徴収票!BX17<=40000, 源泉徴収票!BX17*1/2+10000, IF(源泉徴収票!BX17<=80000, 源泉徴収票!BX17*1/4+20000, 40000))) -> 0 | AC17: =IF(源泉徴収票!BY17<=25000,源泉徴収票!BY17, IF(源泉徴収票!BY17<=50000,源泉徴収票!BY17*1/2+12500, IF(源泉徴収票!BY17<=100000,源泉徴収票!BY17*1/4+25000, 50000))) -> 0 | AD17: 0 | AE17: 0 | AF17: =IF(源泉徴収票!BZ17<>"",MIN(源泉徴収票!BZ17,50000),0) -> 0 | AG17: =IF(源泉徴収票!CA17>=20000,15000,IF(源泉徴収票!CA17>=10000,源泉徴収票!CA17/2+5000,源泉徴収票!CA17)) -> 0 | AH17: =IF(源泉徴収票!CS17<>"","〇","×") -> × | AJ17: =源泉徴収票!O17+源泉徴収票!R17+源泉徴収票!U17 -> 0 | AK17: =源泉徴収票!Q17+源泉徴収票!T17+源泉徴収票!W17 -> 0 | AL17: =IF(源泉徴収票!I17="無",0,INT(A17*VLOOKUP(A17, 給与所得計算, 3, TRUE) + VLOOKUP(A17, 給与所得計算, 4, TRUE) )) -> 0 | AM17: 0 | AN17: 0 | AO17: =源泉徴収票!P17+源泉徴収票!S17+源泉徴収票!V17 -> 0 | AP17: =IF(源泉徴収票!I17="無",0,源泉徴収票!CB17) -> 0 | AQ17: =IF(源泉徴収票!I17="無",0,源泉徴収票!CD17) -> 0 | AR17: =IF(源泉徴収票!I17="無",0,MIN(120000,Z17+AA17+AE17)) -> 0 | AS17: =IF(源泉徴収票!I17="無",0,MIN(AF17+AG17,50000)) -> 0 | AT17: =IF(源泉徴収票!I17="無",0,IF(E17="○",INDEX(H30配偶者控除・特別控除マスタ,F17,G17),0)) -> 0 | AU17: =IF(源泉徴収票!I17="無",0,IF(C17="○",INDEX(H30配偶者控除・特別控除マスタ,F17,G17),0)+IF(D17="○",INDEX(H30老人控除対象配偶者上乗せ,1,G17),0)) -> 0 | AV17: =IF(源泉徴収票!I17="無",0,COUNTIF(M17:Q17,"一")*380000+COUNTIF(M17:Q17,"特")*630000+COUNTIF(M17:Q17,"老")*480000+COUNTIF(M17:Q17,"同")*580000) -> 0 | AW17: =IF(源泉徴収票!I17="無",0,(COUNTIF(源泉徴収票!BO17:BP17,"一般")+源泉徴収票!BQ17)*270000+(COUNTIF(源泉徴収票!BO17:BP17,"特別")+源泉徴収票!BR17)*400000+(COUNTIF(源泉徴収票!BP17,"同居特別")+源泉徴収票!BS17)*750000) -> 0 | AX17: =IF(源泉徴収票!I17="無",0,IF(源泉徴収票!BT17<>"",IF(OR(源泉徴収票!BT17="特別の寡婦",源泉徴収票!BT17="ひとり親"),350000,270000),0)) -> 0 | AY17: =IF(源泉徴収票!I17="無",0,480000) -> 480000 | AZ17: =IF(源泉徴収票!I17="無",0,SUM(AO17:AY17)) -> 480000 | BA17: =IF(源泉徴収票!I17="無",AN17,FLOOR(MAX(AN17-AZ17,0),1000)) -> 0 | BB17: =IF(源泉徴収票!I17="無",AK17,BA17*VLOOKUP(BA17,所得税額計算,3,TRUE)+VLOOKUP(BA17,所得税額計算,4,TRUE)) -> 0 | BC17: =IF(源泉徴収票!I17="無",0,源泉徴収票!CZ17) -> 0 | BD17: 0 | BE17: =IF(源泉徴収票!I17="無",BD17,FLOOR(BD17*102.1%,100)) -> 0 | BF17: 0
A18: 0 | B18: =IF(AND(源泉徴収票!I18="無",源泉徴収票!AE18<>""),"○","×") -> × | C18: =IF(AND(源泉徴収票!CO18<>"",源泉徴収票!CO18<=480000,AN18<=10000000),"○","×") -> × | D18: =IF(AND(C18="○",源泉徴収票!CN18<>"",会社情報!$C$7-YEAR(MAX(源泉徴収票!CN18-1,0))>=70),"○","×") -> × | E18: =IF(AND(源泉徴収票!CO18<>"",源泉徴収票!CO18>480000,源泉徴収票!CO18<=1330000,AN18<=10000000),"○","×") -> × | F18: =MATCH(源泉徴収票!CO18,H30配偶者控除・特別控除マスタ_配偶者所得,1) -> 1 | G18: =MATCH('源泉徴収票計算過程(非)'!AN18,H30配偶者控除・特別控除マスタ_所得者合計所得,1) -> 1 | H18: =IF(源泉徴収票!AN18="",-1,会社情報!$C$7-YEAR(源泉徴収票!AN18-1)) -> -1 | I18: =IF(源泉徴収票!AT18="",-1,会社情報!$C$7-YEAR(源泉徴収票!AT18-1)) -> -1 | J18: =IF(源泉徴収票!AZ18="",-1,会社情報!$C$7-YEAR(源泉徴収票!AZ18-1)) -> -1 | K18: =IF(源泉徴収票!BF18="",-1,会社情報!$C$7-YEAR(源泉徴収票!BF18-1)) -> -1 | L18: =IF(源泉徴収票!BL18="",-1,会社情報!$C$7-YEAR(源泉徴収票!BL18-1)) -> -1 | M18: =IF(H18>=16,IF(AND(H18>=19,H18<23),"特",IF(H18>=70,IF(源泉徴収票!AO18="同居老親等","同","老"),"一")),IF(H18>=0,"未","×")) -> × | N18: =IF(I18>=16,IF(AND(I18>=19,I18<23),"特",IF(I18>=70,IF(源泉徴収票!AU18="同居老親等","同","老"),"一")),IF(I18>=0,"未","×")) -> × | O18: =IF(J18>=16,IF(AND(J18>=19,J18<23),"特",IF(J18>=70,IF(源泉徴収票!BA18="同居老親等","同","老"),"一")),IF(J18>=0,"未","×")) -> × | P18: =IF(K18>=16,IF(AND(K18>=19,K18<23),"特",IF(K18>=70,IF(源泉徴収票!BG18="同居老親等","同","老"),"一")),IF(K18>=0,"未","×")) -> × | Q18: =IF(L18>=16,IF(AND(L18>=19,L18<23),"特",IF(L18>=70,IF(源泉徴収票!BM18="同居老親等","同","老"),"一")),IF(L18>=0,"未","×")) -> × | W18: =IF(源泉徴収票!BU18<=20000, 源泉徴収票!BU18, IF(源泉徴収票!BU18<=40000, 源泉徴収票!BU18*1/2+10000, IF(源泉徴収票!BU18<=80000, 源泉徴収票!BU18*1/4+20000, 40000))) -> 0 | X18: =IF(源泉徴収票!BV18<=25000,源泉徴収票!BV18, IF(源泉徴収票!BV18<=50000,源泉徴収票!BV18*1/2+12500, IF(源泉徴収票!BV18<=100000,源泉徴収票!BV18*1/4+25000, 50000))) -> 0 | Y18: 0 | Z18: 0 | AA18: =IF(源泉徴収票!BW18<=20000, 源泉徴収票!BW18, IF(源泉徴収票!BW18<=40000, 源泉徴収票!BW18*1/2+10000, IF(源泉徴収票!BW18<=80000, 源泉徴収票!BW18*1/4+20000, 40000))) -> 0 | AB18: =IF(源泉徴収票!BX18<=20000, 源泉徴収票!BX18, IF(源泉徴収票!BX18<=40000, 源泉徴収票!BX18*1/2+10000, IF(源泉徴収票!BX18<=80000, 源泉徴収票!BX18*1/4+20000, 40000))) -> 0 | AC18: =IF(源泉徴収票!BY18<=25000,源泉徴収票!BY18, IF(源泉徴収票!BY18<=50000,源泉徴収票!BY18*1/2+12500, IF(源泉徴収票!BY18<=100000,源泉徴収票!BY18*1/4+25000, 50000))) -> 0 | AD18: 0 | AE18: 0 | AF18: =IF(源泉徴収票!BZ18<>"",MIN(源泉徴収票!BZ18,50000),0) -> 0 | AG18: =IF(源泉徴収票!CA18>=20000,15000,IF(源泉徴収票!CA18>=10000,源泉徴収票!CA18/2+5000,源泉徴収票!CA18)) -> 0 | AH18: =IF(源泉徴収票!CS18<>"","〇","×") -> × | AJ18: =源泉徴収票!O18+源泉徴収票!R18+源泉徴収票!U18 -> 0 | AK18: =源泉徴収票!Q18+源泉徴収票!T18+源泉徴収票!W18 -> 0 | AL18: =IF(源泉徴収票!I18="無",0,INT(A18*VLOOKUP(A18, 給与所得計算, 3, TRUE) + VLOOKUP(A18, 給与所得計算, 4, TRUE) )) -> 0 | AM18: 0 | AN18: 0 | AO18: =源泉徴収票!P18+源泉徴収票!S18+源泉徴収票!V18 -> 0 | AP18: =IF(源泉徴収票!I18="無",0,源泉徴収票!CB18) -> 0 | AQ18: =IF(源泉徴収票!I18="無",0,源泉徴収票!CD18) -> 0 | AR18: =IF(源泉徴収票!I18="無",0,MIN(120000,Z18+AA18+AE18)) -> 0 | AS18: =IF(源泉徴収票!I18="無",0,MIN(AF18+AG18,50000)) -> 0 | AT18: =IF(源泉徴収票!I18="無",0,IF(E18="○",INDEX(H30配偶者控除・特別控除マスタ,F18,G18),0)) -> 0 | AU18: =IF(源泉徴収票!I18="無",0,IF(C18="○",INDEX(H30配偶者控除・特別控除マスタ,F18,G18),0)+IF(D18="○",INDEX(H30老人控除対象配偶者上乗せ,1,G18),0)) -> 0 | AV18: =IF(源泉徴収票!I18="無",0,COUNTIF(M18:Q18,"一")*380000+COUNTIF(M18:Q18,"特")*630000+COUNTIF(M18:Q18,"老")*480000+COUNTIF(M18:Q18,"同")*580000) -> 0 | AW18: =IF(源泉徴収票!I18="無",0,(COUNTIF(源泉徴収票!BO18:BP18,"一般")+源泉徴収票!BQ18)*270000+(COUNTIF(源泉徴収票!BO18:BP18,"特別")+源泉徴収票!BR18)*400000+(COUNTIF(源泉徴収票!BP18,"同居特別")+源泉徴収票!BS18)*750000) -> 0 | AX18: =IF(源泉徴収票!I18="無",0,IF(源泉徴収票!BT18<>"",IF(OR(源泉徴収票!BT18="特別の寡婦",源泉徴収票!BT18="ひとり親"),350000,270000),0)) -> 0 | AY18: =IF(源泉徴収票!I18="無",0,480000) -> 480000 | AZ18: =IF(源泉徴収票!I18="無",0,SUM(AO18:AY18)) -> 480000 | BA18: =IF(源泉徴収票!I18="無",AN18,FLOOR(MAX(AN18-AZ18,0),1000)) -> 0 | BB18: =IF(源泉徴収票!I18="無",AK18,BA18*VLOOKUP(BA18,所得税額計算,3,TRUE)+VLOOKUP(BA18,所得税額計算,4,TRUE)) -> 0 | BC18: =IF(源泉徴収票!I18="無",0,源泉徴収票!CZ18) -> 0 | BD18: 0 | BE18: =IF(源泉徴収票!I18="無",BD18,FLOOR(BD18*102.1%,100)) -> 0 | BF18: 0
A19: 0 | B19: =IF(AND(源泉徴収票!I19="無",源泉徴収票!AE19<>""),"○","×") -> × | C19: =IF(AND(源泉徴収票!CO19<>"",源泉徴収票!CO19<=480000,AN19<=10000000),"○","×") -> × | D19: =IF(AND(C19="○",源泉徴収票!CN19<>"",会社情報!$C$7-YEAR(MAX(源泉徴収票!CN19-1,0))>=70),"○","×") -> × | E19: =IF(AND(源泉徴収票!CO19<>"",源泉徴収票!CO19>480000,源泉徴収票!CO19<=1330000,AN19<=10000000),"○","×") -> × | F19: =MATCH(源泉徴収票!CO19,H30配偶者控除・特別控除マスタ_配偶者所得,1) -> 1 | G19: =MATCH('源泉徴収票計算過程(非)'!AN19,H30配偶者控除・特別控除マスタ_所得者合計所得,1) -> 1 | H19: =IF(源泉徴収票!AN19="",-1,会社情報!$C$7-YEAR(源泉徴収票!AN19-1)) -> -1 | I19: =IF(源泉徴収票!AT19="",-1,会社情報!$C$7-YEAR(源泉徴収票!AT19-1)) -> -1 | J19: =IF(源泉徴収票!AZ19="",-1,会社情報!$C$7-YEAR(源泉徴収票!AZ19-1)) -> -1 | K19: =IF(源泉徴収票!BF19="",-1,会社情報!$C$7-YEAR(源泉徴収票!BF19-1)) -> -1 | L19: =IF(源泉徴収票!BL19="",-1,会社情報!$C$7-YEAR(源泉徴収票!BL19-1)) -> -1 | M19: =IF(H19>=16,IF(AND(H19>=19,H19<23),"特",IF(H19>=70,IF(源泉徴収票!AO19="同居老親等","同","老"),"一")),IF(H19>=0,"未","×")) -> × | N19: =IF(I19>=16,IF(AND(I19>=19,I19<23),"特",IF(I19>=70,IF(源泉徴収票!AU19="同居老親等","同","老"),"一")),IF(I19>=0,"未","×")) -> × | O19: =IF(J19>=16,IF(AND(J19>=19,J19<23),"特",IF(J19>=70,IF(源泉徴収票!BA19="同居老親等","同","老"),"一")),IF(J19>=0,"未","×")) -> × | P19: =IF(K19>=16,IF(AND(K19>=19,K19<23),"特",IF(K19>=70,IF(源泉徴収票!BG19="同居老親等","同","老"),"一")),IF(K19>=0,"未","×")) -> × | Q19: =IF(L19>=16,IF(AND(L19>=19,L19<23),"特",IF(L19>=70,IF(源泉徴収票!BM19="同居老親等","同","老"),"一")),IF(L19>=0,"未","×")) -> × | W19: =IF(源泉徴収票!BU19<=20000, 源泉徴収票!BU19, IF(源泉徴収票!BU19<=40000, 源泉徴収票!BU19*1/2+10000, IF(源泉徴収票!BU19<=80000, 源泉徴収票!BU19*1/4+20000, 40000))) -> 0 | X19: =IF(源泉徴収票!BV19<=25000,源泉徴収票!BV19, IF(源泉徴収票!BV19<=50000,源泉徴収票!BV19*1/2+12500, IF(源泉徴収票!BV19<=100000,源泉徴収票!BV19*1/4+25000, 50000))) -> 0 | Y19: 0 | Z19: 0 | AA19: =IF(源泉徴収票!BW19<=20000, 源泉徴収票!BW19, IF(源泉徴収票!BW19<=40000, 源泉徴収票!BW19*1/2+10000, IF(源泉徴収票!BW19<=80000, 源泉徴収票!BW19*1/4+20000, 40000))) -> 0 | AB19: =IF(源泉徴収票!BX19<=20000, 源泉徴収票!BX19, IF(源泉徴収票!BX19<=40000, 源泉徴収票!BX19*1/2+10000, IF(源泉徴収票!BX19<=80000, 源泉徴収票!BX19*1/4+20000, 40000))) -> 0 | AC19: =IF(源泉徴収票!BY19<=25000,源泉徴収票!BY19, IF(源泉徴収票!BY19<=50000,源泉徴収票!BY19*1/2+12500, IF(源泉徴収票!BY19<=100000,源泉徴収票!BY19*1/4+25000, 50000))) -> 0 | AD19: 0 | AE19: 0 | AF19: =IF(源泉徴収票!BZ19<>"",MIN(源泉徴収票!BZ19,50000),0) -> 0 | AG19: =IF(源泉徴収票!CA19>=20000,15000,IF(源泉徴収票!CA19>=10000,源泉徴収票!CA19/2+5000,源泉徴収票!CA19)) -> 0 | AH19: =IF(源泉徴収票!CS19<>"","〇","×") -> × | AJ19: =源泉徴収票!O19+源泉徴収票!R19+源泉徴収票!U19 -> 0 | AK19: =源泉徴収票!Q19+源泉徴収票!T19+源泉徴収票!W19 -> 0 | AL19: =IF(源泉徴収票!I19="無",0,INT(A19*VLOOKUP(A19, 給与所得計算, 3, TRUE) + VLOOKUP(A19, 給与所得計算, 4, TRUE) )) -> 0 | AM19: 0 | AN19: 0 | AO19: =源泉徴収票!P19+源泉徴収票!S19+源泉徴収票!V19 -> 0 | AP19: =IF(源泉徴収票!I19="無",0,源泉徴収票!CB19) -> 0 | AQ19: =IF(源泉徴収票!I19="無",0,源泉徴収票!CD19) -> 0 | AR19: =IF(源泉徴収票!I19="無",0,MIN(120000,Z19+AA19+AE19)) -> 0 | AS19: =IF(源泉徴収票!I19="無",0,MIN(AF19+AG19,50000)) -> 0 | AT19: =IF(源泉徴収票!I19="無",0,IF(E19="○",INDEX(H30配偶者控除・特別控除マスタ,F19,G19),0)) -> 0 | AU19: =IF(源泉徴収票!I19="無",0,IF(C19="○",INDEX(H30配偶者控除・特別控除マスタ,F19,G19),0)+IF(D19="○",INDEX(H30老人控除対象配偶者上乗せ,1,G19),0)) -> 0 | AV19: =IF(源泉徴収票!I19="無",0,COUNTIF(M19:Q19,"一")*380000+COUNTIF(M19:Q19,"特")*630000+COUNTIF(M19:Q19,"老")*480000+COUNTIF(M19:Q19,"同")*580000) -> 0 | AW19: =IF(源泉徴収票!I19="無",0,(COUNTIF(源泉徴収票!BO19:BP19,"一般")+源泉徴収票!BQ19)*270000+(COUNTIF(源泉徴収票!BO19:BP19,"特別")+源泉徴収票!BR19)*400000+(COUNTIF(源泉徴収票!BP19,"同居特別")+源泉徴収票!BS19)*750000) -> 0 | AX19: =IF(源泉徴収票!I19="無",0,IF(源泉徴収票!BT19<>"",IF(OR(源泉徴収票!BT19="特別の寡婦",源泉徴収票!BT19="ひとり親"),350000,270000),0)) -> 0 | AY19: =IF(源泉徴収票!I19="無",0,480000) -> 480000 | AZ19: =IF(源泉徴収票!I19="無",0,SUM(AO19:AY19)) -> 480000 | BA19: =IF(源泉徴収票!I19="無",AN19,FLOOR(MAX(AN19-AZ19,0),1000)) -> 0 | BB19: =IF(源泉徴収票!I19="無",AK19,BA19*VLOOKUP(BA19,所得税額計算,3,TRUE)+VLOOKUP(BA19,所得税額計算,4,TRUE)) -> 0 | BC19: =IF(源泉徴収票!I19="無",0,源泉徴収票!CZ19) -> 0 | BD19: 0 | BE19: =IF(源泉徴収票!I19="無",BD19,FLOOR(BD19*102.1%,100)) -> 0 | BF19: 0
A20: 0 | B20: =IF(AND(源泉徴収票!I20="無",源泉徴収票!AE20<>""),"○","×") -> × | C20: =IF(AND(源泉徴収票!CO20<>"",源泉徴収票!CO20<=480000,AN20<=10000000),"○","×") -> × | D20: =IF(AND(C20="○",源泉徴収票!CN20<>"",会社情報!$C$7-YEAR(MAX(源泉徴収票!CN20-1,0))>=70),"○","×") -> × | E20: =IF(AND(源泉徴収票!CO20<>"",源泉徴収票!CO20>480000,源泉徴収票!CO20<=1330000,AN20<=10000000),"○","×") -> × | F20: =MATCH(源泉徴収票!CO20,H30配偶者控除・特別控除マスタ_配偶者所得,1) -> 1 | G20: =MATCH('源泉徴収票計算過程(非)'!AN20,H30配偶者控除・特別控除マスタ_所得者合計所得,1) -> 1 | H20: =IF(源泉徴収票!AN20="",-1,会社情報!$C$7-YEAR(源泉徴収票!AN20-1)) -> -1 | I20: =IF(源泉徴収票!AT20="",-1,会社情報!$C$7-YEAR(源泉徴収票!AT20-1)) -> -1 | J20: =IF(源泉徴収票!AZ20="",-1,会社情報!$C$7-YEAR(源泉徴収票!AZ20-1)) -> -1 | K20: =IF(源泉徴収票!BF20="",-1,会社情報!$C$7-YEAR(源泉徴収票!BF20-1)) -> -1 | L20: =IF(源泉徴収票!BL20="",-1,会社情報!$C$7-YEAR(源泉徴収票!BL20-1)) -> -1 | M20: =IF(H20>=16,IF(AND(H20>=19,H20<23),"特",IF(H20>=70,IF(源泉徴収票!AO20="同居老親等","同","老"),"一")),IF(H20>=0,"未","×")) -> × | N20: =IF(I20>=16,IF(AND(I20>=19,I20<23),"特",IF(I20>=70,IF(源泉徴収票!AU20="同居老親等","同","老"),"一")),IF(I20>=0,"未","×")) -> × | O20: =IF(J20>=16,IF(AND(J20>=19,J20<23),"特",IF(J20>=70,IF(源泉徴収票!BA20="同居老親等","同","老"),"一")),IF(J20>=0,"未","×")) -> × | P20: =IF(K20>=16,IF(AND(K20>=19,K20<23),"特",IF(K20>=70,IF(源泉徴収票!BG20="同居老親等","同","老"),"一")),IF(K20>=0,"未","×")) -> × | Q20: =IF(L20>=16,IF(AND(L20>=19,L20<23),"特",IF(L20>=70,IF(源泉徴収票!BM20="同居老親等","同","老"),"一")),IF(L20>=0,"未","×")) -> × | W20: =IF(源泉徴収票!BU20<=20000, 源泉徴収票!BU20, IF(源泉徴収票!BU20<=40000, 源泉徴収票!BU20*1/2+10000, IF(源泉徴収票!BU20<=80000, 源泉徴収票!BU20*1/4+20000, 40000))) -> 0 | X20: =IF(源泉徴収票!BV20<=25000,源泉徴収票!BV20, IF(源泉徴収票!BV20<=50000,源泉徴収票!BV20*1/2+12500, IF(源泉徴収票!BV20<=100000,源泉徴収票!BV20*1/4+25000, 50000))) -> 0 | Y20: 0 | Z20: 0 | AA20: =IF(源泉徴収票!BW20<=20000, 源泉徴収票!BW20, IF(源泉徴収票!BW20<=40000, 源泉徴収票!BW20*1/2+10000, IF(源泉徴収票!BW20<=80000, 源泉徴収票!BW20*1/4+20000, 40000))) -> 0 | AB20: =IF(源泉徴収票!BX20<=20000, 源泉徴収票!BX20, IF(源泉徴収票!BX20<=40000, 源泉徴収票!BX20*1/2+10000, IF(源泉徴収票!BX20<=80000, 源泉徴収票!BX20*1/4+20000, 40000))) -> 0 | AC20: =IF(源泉徴収票!BY20<=25000,源泉徴収票!BY20, IF(源泉徴収票!BY20<=50000,源泉徴収票!BY20*1/2+12500, IF(源泉徴収票!BY20<=100000,源泉徴収票!BY20*1/4+25000, 50000))) -> 0 | AD20: 0 | AE20: 0 | AF20: =IF(源泉徴収票!BZ20<>"",MIN(源泉徴収票!BZ20,50000),0) -> 0 | AG20: =IF(源泉徴収票!CA20>=20000,15000,IF(源泉徴収票!CA20>=10000,源泉徴収票!CA20/2+5000,源泉徴収票!CA20)) -> 0 | AH20: =IF(源泉徴収票!CS20<>"","〇","×") -> × | AJ20: =源泉徴収票!O20+源泉徴収票!R20+源泉徴収票!U20 -> 0 | AK20: =源泉徴収票!Q20+源泉徴収票!T20+源泉徴収票!W20 -> 0 | AL20: =IF(源泉徴収票!I20="無",0,INT(A20*VLOOKUP(A20, 給与所得計算, 3, TRUE) + VLOOKUP(A20, 給与所得計算, 4, TRUE) )) -> 0 | AM20: 0 | AN20: 0 | AO20: =源泉徴収票!P20+源泉徴収票!S20+源泉徴収票!V20 -> 0 | AP20: =IF(源泉徴収票!I20="無",0,源泉徴収票!CB20) -> 0 | AQ20: =IF(源泉徴収票!I20="無",0,源泉徴収票!CD20) -> 0 | AR20: =IF(源泉徴収票!I20="無",0,MIN(120000,Z20+AA20+AE20)) -> 0 | AS20: =IF(源泉徴収票!I20="無",0,MIN(AF20+AG20,50000)) -> 0 | AT20: =IF(源泉徴収票!I20="無",0,IF(E20="○",INDEX(H30配偶者控除・特別控除マスタ,F20,G20),0)) -> 0 | AU20: =IF(源泉徴収票!I20="無",0,IF(C20="○",INDEX(H30配偶者控除・特別控除マスタ,F20,G20),0)+IF(D20="○",INDEX(H30老人控除対象配偶者上乗せ,1,G20),0)) -> 0 | AV20: =IF(源泉徴収票!I20="無",0,COUNTIF(M20:Q20,"一")*380000+COUNTIF(M20:Q20,"特")*630000+COUNTIF(M20:Q20,"老")*480000+COUNTIF(M20:Q20,"同")*580000) -> 0 | AW20: =IF(源泉徴収票!I20="無",0,(COUNTIF(源泉徴収票!BO20:BP20,"一般")+源泉徴収票!BQ20)*270000+(COUNTIF(源泉徴収票!BO20:BP20,"特別")+源泉徴収票!BR20)*400000+(COUNTIF(源泉徴収票!BP20,"同居特別")+源泉徴収票!BS20)*750000) -> 0 | AX20: =IF(源泉徴収票!I20="無",0,IF(源泉徴収票!BT20<>"",IF(OR(源泉徴収票!BT20="特別の寡婦",源泉徴収票!BT20="ひとり親"),350000,270000),0)) -> 0 | AY20: =IF(源泉徴収票!I20="無",0,480000) -> 480000 | AZ20: =IF(源泉徴収票!I20="無",0,SUM(AO20:AY20)) -> 480000 | BA20: =IF(源泉徴収票!I20="無",AN20,FLOOR(MAX(AN20-AZ20,0),1000)) -> 0 | BB20: =IF(源泉徴収票!I20="無",AK20,BA20*VLOOKUP(BA20,所得税額計算,3,TRUE)+VLOOKUP(BA20,所得税額計算,4,TRUE)) -> 0 | BC20: =IF(源泉徴収票!I20="無",0,源泉徴収票!CZ20) -> 0 | BD20: 0 | BE20: =IF(源泉徴収票!I20="無",BD20,FLOOR(BD20*102.1%,100)) -> 0 | BF20: 0
A21: 0 | B21: =IF(AND(源泉徴収票!I21="無",源泉徴収票!AE21<>""),"○","×") -> × | C21: =IF(AND(源泉徴収票!CO21<>"",源泉徴収票!CO21<=480000,AN21<=10000000),"○","×") -> × | D21: =IF(AND(C21="○",源泉徴収票!CN21<>"",会社情報!$C$7-YEAR(MAX(源泉徴収票!CN21-1,0))>=70),"○","×") -> × | E21: =IF(AND(源泉徴収票!CO21<>"",源泉徴収票!CO21>480000,源泉徴収票!CO21<=1330000,AN21<=10000000),"○","×") -> × | F21: =MATCH(源泉徴収票!CO21,H30配偶者控除・特別控除マスタ_配偶者所得,1) -> 1 | G21: =MATCH('源泉徴収票計算過程(非)'!AN21,H30配偶者控除・特別控除マスタ_所得者合計所得,1) -> 1 | H21: =IF(源泉徴収票!AN21="",-1,会社情報!$C$7-YEAR(源泉徴収票!AN21-1)) -> -1 | I21: =IF(源泉徴収票!AT21="",-1,会社情報!$C$7-YEAR(源泉徴収票!AT21-1)) -> -1 | J21: =IF(源泉徴収票!AZ21="",-1,会社情報!$C$7-YEAR(源泉徴収票!AZ21-1)) -> -1 | K21: =IF(源泉徴収票!BF21="",-1,会社情報!$C$7-YEAR(源泉徴収票!BF21-1)) -> -1 | L21: =IF(源泉徴収票!BL21="",-1,会社情報!$C$7-YEAR(源泉徴収票!BL21-1)) -> -1 | M21: =IF(H21>=16,IF(AND(H21>=19,H21<23),"特",IF(H21>=70,IF(源泉徴収票!AO21="同居老親等","同","老"),"一")),IF(H21>=0,"未","×")) -> × | N21: =IF(I21>=16,IF(AND(I21>=19,I21<23),"特",IF(I21>=70,IF(源泉徴収票!AU21="同居老親等","同","老"),"一")),IF(I21>=0,"未","×")) -> × | O21: =IF(J21>=16,IF(AND(J21>=19,J21<23),"特",IF(J21>=70,IF(源泉徴収票!BA21="同居老親等","同","老"),"一")),IF(J21>=0,"未","×")) -> × | P21: =IF(K21>=16,IF(AND(K21>=19,K21<23),"特",IF(K21>=70,IF(源泉徴収票!BG21="同居老親等","同","老"),"一")),IF(K21>=0,"未","×")) -> × | Q21: =IF(L21>=16,IF(AND(L21>=19,L21<23),"特",IF(L21>=70,IF(源泉徴収票!BM21="同居老親等","同","老"),"一")),IF(L21>=0,"未","×")) -> × | W21: =IF(源泉徴収票!BU21<=20000, 源泉徴収票!BU21, IF(源泉徴収票!BU21<=40000, 源泉徴収票!BU21*1/2+10000, IF(源泉徴収票!BU21<=80000, 源泉徴収票!BU21*1/4+20000, 40000))) -> 0 | X21: =IF(源泉徴収票!BV21<=25000,源泉徴収票!BV21, IF(源泉徴収票!BV21<=50000,源泉徴収票!BV21*1/2+12500, IF(源泉徴収票!BV21<=100000,源泉徴収票!BV21*1/4+25000, 50000))) -> 0 | Y21: 0 | Z21: 0 | AA21: =IF(源泉徴収票!BW21<=20000, 源泉徴収票!BW21, IF(源泉徴収票!BW21<=40000, 源泉徴収票!BW21*1/2+10000, IF(源泉徴収票!BW21<=80000, 源泉徴収票!BW21*1/4+20000, 40000))) -> 0 | AB21: =IF(源泉徴収票!BX21<=20000, 源泉徴収票!BX21, IF(源泉徴収票!BX21<=40000, 源泉徴収票!BX21*1/2+10000, IF(源泉徴収票!BX21<=80000, 源泉徴収票!BX21*1/4+20000, 40000))) -> 0 | AC21: =IF(源泉徴収票!BY21<=25000,源泉徴収票!BY21, IF(源泉徴収票!BY21<=50000,源泉徴収票!BY21*1/2+12500, IF(源泉徴収票!BY21<=100000,源泉徴収票!BY21*1/4+25000, 50000))) -> 0 | AD21: 0 | AE21: 0 | AF21: =IF(源泉徴収票!BZ21<>"",MIN(源泉徴収票!BZ21,50000),0) -> 0 | AG21: =IF(源泉徴収票!CA21>=20000,15000,IF(源泉徴収票!CA21>=10000,源泉徴収票!CA21/2+5000,源泉徴収票!CA21)) -> 0 | AH21: =IF(源泉徴収票!CS21<>"","〇","×") -> × | AJ21: =源泉徴収票!O21+源泉徴収票!R21+源泉徴収票!U21 -> 0 | AK21: =源泉徴収票!Q21+源泉徴収票!T21+源泉徴収票!W21 -> 0 | AL21: =IF(源泉徴収票!I21="無",0,INT(A21*VLOOKUP(A21, 給与所得計算, 3, TRUE) + VLOOKUP(A21, 給与所得計算, 4, TRUE) )) -> 0 | AM21: 0 | AN21: 0 | AO21: =源泉徴収票!P21+源泉徴収票!S21+源泉徴収票!V21 -> 0 | AP21: =IF(源泉徴収票!I21="無",0,源泉徴収票!CB21) -> 0 | AQ21: =IF(源泉徴収票!I21="無",0,源泉徴収票!CD21) -> 0 | AR21: =IF(源泉徴収票!I21="無",0,MIN(120000,Z21+AA21+AE21)) -> 0 | AS21: =IF(源泉徴収票!I21="無",0,MIN(AF21+AG21,50000)) -> 0 | AT21: =IF(源泉徴収票!I21="無",0,IF(E21="○",INDEX(H30配偶者控除・特別控除マスタ,F21,G21),0)) -> 0 | AU21: =IF(源泉徴収票!I21="無",0,IF(C21="○",INDEX(H30配偶者控除・特別控除マスタ,F21,G21),0)+IF(D21="○",INDEX(H30老人控除対象配偶者上乗せ,1,G21),0)) -> 0 | AV21: =IF(源泉徴収票!I21="無",0,COUNTIF(M21:Q21,"一")*380000+COUNTIF(M21:Q21,"特")*630000+COUNTIF(M21:Q21,"老")*480000+COUNTIF(M21:Q21,"同")*580000) -> 0 | AW21: =IF(源泉徴収票!I21="無",0,(COUNTIF(源泉徴収票!BO21:BP21,"一般")+源泉徴収票!BQ21)*270000+(COUNTIF(源泉徴収票!BO21:BP21,"特別")+源泉徴収票!BR21)*400000+(COUNTIF(源泉徴収票!BP21,"同居特別")+源泉徴収票!BS21)*750000) -> 0 | AX21: =IF(源泉徴収票!I21="無",0,IF(源泉徴収票!BT21<>"",IF(OR(源泉徴収票!BT21="特別の寡婦",源泉徴収票!BT21="ひとり親"),350000,270000),0)) -> 0 | AY21: =IF(源泉徴収票!I21="無",0,480000) -> 480000 | AZ21: =IF(源泉徴収票!I21="無",0,SUM(AO21:AY21)) -> 480000 | BA21: =IF(源泉徴収票!I21="無",AN21,FLOOR(MAX(AN21-AZ21,0),1000)) -> 0 | BB21: =IF(源泉徴収票!I21="無",AK21,BA21*VLOOKUP(BA21,所得税額計算,3,TRUE)+VLOOKUP(BA21,所得税額計算,4,TRUE)) -> 0 | BC21: =IF(源泉徴収票!I21="無",0,源泉徴収票!CZ21) -> 0 | BD21: 0 | BE21: =IF(源泉徴収票!I21="無",BD21,FLOOR(BD21*102.1%,100)) -> 0 | BF21: 0
A22: 0 | B22: =IF(AND(源泉徴収票!I22="無",源泉徴収票!AE22<>""),"○","×") -> × | C22: =IF(AND(源泉徴収票!CO22<>"",源泉徴収票!CO22<=480000,AN22<=10000000),"○","×") -> × | D22: =IF(AND(C22="○",源泉徴収票!CN22<>"",会社情報!$C$7-YEAR(MAX(源泉徴収票!CN22-1,0))>=70),"○","×") -> × | E22: =IF(AND(源泉徴収票!CO22<>"",源泉徴収票!CO22>480000,源泉徴収票!CO22<=1330000,AN22<=10000000),"○","×") -> × | F22: =MATCH(源泉徴収票!CO22,H30配偶者控除・特別控除マスタ_配偶者所得,1) -> 1 | G22: =MATCH('源泉徴収票計算過程(非)'!AN22,H30配偶者控除・特別控除マスタ_所得者合計所得,1) -> 1 | H22: =IF(源泉徴収票!AN22="",-1,会社情報!$C$7-YEAR(源泉徴収票!AN22-1)) -> -1 | I22: =IF(源泉徴収票!AT22="",-1,会社情報!$C$7-YEAR(源泉徴収票!AT22-1)) -> -1 | J22: =IF(源泉徴収票!AZ22="",-1,会社情報!$C$7-YEAR(源泉徴収票!AZ22-1)) -> -1 | K22: =IF(源泉徴収票!BF22="",-1,会社情報!$C$7-YEAR(源泉徴収票!BF22-1)) -> -1 | L22: =IF(源泉徴収票!BL22="",-1,会社情報!$C$7-YEAR(源泉徴収票!BL22-1)) -> -1 | M22: =IF(H22>=16,IF(AND(H22>=19,H22<23),"特",IF(H22>=70,IF(源泉徴収票!AO22="同居老親等","同","老"),"一")),IF(H22>=0,"未","×")) -> × | N22: =IF(I22>=16,IF(AND(I22>=19,I22<23),"特",IF(I22>=70,IF(源泉徴収票!AU22="同居老親等","同","老"),"一")),IF(I22>=0,"未","×")) -> × | O22: =IF(J22>=16,IF(AND(J22>=19,J22<23),"特",IF(J22>=70,IF(源泉徴収票!BA22="同居老親等","同","老"),"一")),IF(J22>=0,"未","×")) -> × | P22: =IF(K22>=16,IF(AND(K22>=19,K22<23),"特",IF(K22>=70,IF(源泉徴収票!BG22="同居老親等","同","老"),"一")),IF(K22>=0,"未","×")) -> × | Q22: =IF(L22>=16,IF(AND(L22>=19,L22<23),"特",IF(L22>=70,IF(源泉徴収票!BM22="同居老親等","同","老"),"一")),IF(L22>=0,"未","×")) -> × | W22: =IF(源泉徴収票!BU22<=20000, 源泉徴収票!BU22, IF(源泉徴収票!BU22<=40000, 源泉徴収票!BU22*1/2+10000, IF(源泉徴収票!BU22<=80000, 源泉徴収票!BU22*1/4+20000, 40000))) -> 0 | X22: =IF(源泉徴収票!BV22<=25000,源泉徴収票!BV22, IF(源泉徴収票!BV22<=50000,源泉徴収票!BV22*1/2+12500, IF(源泉徴収票!BV22<=100000,源泉徴収票!BV22*1/4+25000, 50000))) -> 0 | Y22: 0 | Z22: 0 | AA22: =IF(源泉徴収票!BW22<=20000, 源泉徴収票!BW22, IF(源泉徴収票!BW22<=40000, 源泉徴収票!BW22*1/2+10000, IF(源泉徴収票!BW22<=80000, 源泉徴収票!BW22*1/4+20000, 40000))) -> 0 | AB22: =IF(源泉徴収票!BX22<=20000, 源泉徴収票!BX22, IF(源泉徴収票!BX22<=40000, 源泉徴収票!BX22*1/2+10000, IF(源泉徴収票!BX22<=80000, 源泉徴収票!BX22*1/4+20000, 40000))) -> 0 | AC22: =IF(源泉徴収票!BY22<=25000,源泉徴収票!BY22, IF(源泉徴収票!BY22<=50000,源泉徴収票!BY22*1/2+12500, IF(源泉徴収票!BY22<=100000,源泉徴収票!BY22*1/4+25000, 50000))) -> 0 | AD22: 0 | AE22: 0 | AF22: =IF(源泉徴収票!BZ22<>"",MIN(源泉徴収票!BZ22,50000),0) -> 0 | AG22: =IF(源泉徴収票!CA22>=20000,15000,IF(源泉徴収票!CA22>=10000,源泉徴収票!CA22/2+5000,源泉徴収票!CA22)) -> 0 | AH22: =IF(源泉徴収票!CS22<>"","〇","×") -> × | AJ22: =源泉徴収票!O22+源泉徴収票!R22+源泉徴収票!U22 -> 0 | AK22: =源泉徴収票!Q22+源泉徴収票!T22+源泉徴収票!W22 -> 0 | AL22: =IF(源泉徴収票!I22="無",0,INT(A22*VLOOKUP(A22, 給与所得計算, 3, TRUE) + VLOOKUP(A22, 給与所得計算, 4, TRUE) )) -> 0 | AM22: 0 | AN22: 0 | AO22: =源泉徴収票!P22+源泉徴収票!S22+源泉徴収票!V22 -> 0 | AP22: =IF(源泉徴収票!I22="無",0,源泉徴収票!CB22) -> 0 | AQ22: =IF(源泉徴収票!I22="無",0,源泉徴収票!CD22) -> 0 | AR22: =IF(源泉徴収票!I22="無",0,MIN(120000,Z22+AA22+AE22)) -> 0 | AS22: =IF(源泉徴収票!I22="無",0,MIN(AF22+AG22,50000)) -> 0 | AT22: =IF(源泉徴収票!I22="無",0,IF(E22="○",INDEX(H30配偶者控除・特別控除マスタ,F22,G22),0)) -> 0 | AU22: =IF(源泉徴収票!I22="無",0,IF(C22="○",INDEX(H30配偶者控除・特別控除マスタ,F22,G22),0)+IF(D22="○",INDEX(H30老人控除対象配偶者上乗せ,1,G22),0)) -> 0 | AV22: =IF(源泉徴収票!I22="無",0,COUNTIF(M22:Q22,"一")*380000+COUNTIF(M22:Q22,"特")*630000+COUNTIF(M22:Q22,"老")*480000+COUNTIF(M22:Q22,"同")*580000) -> 0 | AW22: =IF(源泉徴収票!I22="無",0,(COUNTIF(源泉徴収票!BO22:BP22,"一般")+源泉徴収票!BQ22)*270000+(COUNTIF(源泉徴収票!BO22:BP22,"特別")+源泉徴収票!BR22)*400000+(COUNTIF(源泉徴収票!BP22,"同居特別")+源泉徴収票!BS22)*750000) -> 0 | AX22: =IF(源泉徴収票!I22="無",0,IF(源泉徴収票!BT22<>"",IF(OR(源泉徴収票!BT22="特別の寡婦",源泉徴収票!BT22="ひとり親"),350000,270000),0)) -> 0 | AY22: =IF(源泉徴収票!I22="無",0,480000) -> 480000 | AZ22: =IF(源泉徴収票!I22="無",0,SUM(AO22:AY22)) -> 480000 | BA22: =IF(源泉徴収票!I22="無",AN22,FLOOR(MAX(AN22-AZ22,0),1000)) -> 0 | BB22: =IF(源泉徴収票!I22="無",AK22,BA22*VLOOKUP(BA22,所得税額計算,3,TRUE)+VLOOKUP(BA22,所得税額計算,4,TRUE)) -> 0 | BC22: =IF(源泉徴収票!I22="無",0,源泉徴収票!CZ22) -> 0 | BD22: 0 | BE22: =IF(源泉徴収票!I22="無",BD22,FLOOR(BD22*102.1%,100)) -> 0 | BF22: 0
A23: 0 | B23: =IF(AND(源泉徴収票!I23="無",源泉徴収票!AE23<>""),"○","×") -> × | C23: =IF(AND(源泉徴収票!CO23<>"",源泉徴収票!CO23<=480000,AN23<=10000000),"○","×") -> × | D23: =IF(AND(C23="○",源泉徴収票!CN23<>"",会社情報!$C$7-YEAR(MAX(源泉徴収票!CN23-1,0))>=70),"○","×") -> × | E23: =IF(AND(源泉徴収票!CO23<>"",源泉徴収票!CO23>480000,源泉徴収票!CO23<=1330000,AN23<=10000000),"○","×") -> × | F23: =MATCH(源泉徴収票!CO23,H30配偶者控除・特別控除マスタ_配偶者所得,1) -> 1 | G23: =MATCH('源泉徴収票計算過程(非)'!AN23,H30配偶者控除・特別控除マスタ_所得者合計所得,1) -> 1 | H23: =IF(源泉徴収票!AN23="",-1,会社情報!$C$7-YEAR(源泉徴収票!AN23-1)) -> -1 | I23: =IF(源泉徴収票!AT23="",-1,会社情報!$C$7-YEAR(源泉徴収票!AT23-1)) -> -1 | J23: =IF(源泉徴収票!AZ23="",-1,会社情報!$C$7-YEAR(源泉徴収票!AZ23-1)) -> -1 | K23: =IF(源泉徴収票!BF23="",-1,会社情報!$C$7-YEAR(源泉徴収票!BF23-1)) -> -1 | L23: =IF(源泉徴収票!BL23="",-1,会社情報!$C$7-YEAR(源泉徴収票!BL23-1)) -> -1 | M23: =IF(H23>=16,IF(AND(H23>=19,H23<23),"特",IF(H23>=70,IF(源泉徴収票!AO23="同居老親等","同","老"),"一")),IF(H23>=0,"未","×")) -> × | N23: =IF(I23>=16,IF(AND(I23>=19,I23<23),"特",IF(I23>=70,IF(源泉徴収票!AU23="同居老親等","同","老"),"一")),IF(I23>=0,"未","×")) -> × | O23: =IF(J23>=16,IF(AND(J23>=19,J23<23),"特",IF(J23>=70,IF(源泉徴収票!BA23="同居老親等","同","老"),"一")),IF(J23>=0,"未","×")) -> × | P23: =IF(K23>=16,IF(AND(K23>=19,K23<23),"特",IF(K23>=70,IF(源泉徴収票!BG23="同居老親等","同","老"),"一")),IF(K23>=0,"未","×")) -> × | Q23: =IF(L23>=16,IF(AND(L23>=19,L23<23),"特",IF(L23>=70,IF(源泉徴収票!BM23="同居老親等","同","老"),"一")),IF(L23>=0,"未","×")) -> × | W23: =IF(源泉徴収票!BU23<=20000, 源泉徴収票!BU23, IF(源泉徴収票!BU23<=40000, 源泉徴収票!BU23*1/2+10000, IF(源泉徴収票!BU23<=80000, 源泉徴収票!BU23*1/4+20000, 40000))) -> 0 | X23: =IF(源泉徴収票!BV23<=25000,源泉徴収票!BV23, IF(源泉徴収票!BV23<=50000,源泉徴収票!BV23*1/2+12500, IF(源泉徴収票!BV23<=100000,源泉徴収票!BV23*1/4+25000, 50000))) -> 0 | Y23: 0 | Z23: 0 | AA23: =IF(源泉徴収票!BW23<=20000, 源泉徴収票!BW23, IF(源泉徴収票!BW23<=40000, 源泉徴収票!BW23*1/2+10000, IF(源泉徴収票!BW23<=80000, 源泉徴収票!BW23*1/4+20000, 40000))) -> 0 | AB23: =IF(源泉徴収票!BX23<=20000, 源泉徴収票!BX23, IF(源泉徴収票!BX23<=40000, 源泉徴収票!BX23*1/2+10000, IF(源泉徴収票!BX23<=80000, 源泉徴収票!BX23*1/4+20000, 40000))) -> 0 | AC23: =IF(源泉徴収票!BY23<=25000,源泉徴収票!BY23, IF(源泉徴収票!BY23<=50000,源泉徴収票!BY23*1/2+12500, IF(源泉徴収票!BY23<=100000,源泉徴収票!BY23*1/4+25000, 50000))) -> 0 | AD23: 0 | AE23: 0 | AF23: =IF(源泉徴収票!BZ23<>"",MIN(源泉徴収票!BZ23,50000),0) -> 0 | AG23: =IF(源泉徴収票!CA23>=20000,15000,IF(源泉徴収票!CA23>=10000,源泉徴収票!CA23/2+5000,源泉徴収票!CA23)) -> 0 | AH23: =IF(源泉徴収票!CS23<>"","〇","×") -> × | AJ23: =源泉徴収票!O23+源泉徴収票!R23+源泉徴収票!U23 -> 0 | AK23: =源泉徴収票!Q23+源泉徴収票!T23+源泉徴収票!W23 -> 0 | AL23: =IF(源泉徴収票!I23="無",0,INT(A23*VLOOKUP(A23, 給与所得計算, 3, TRUE) + VLOOKUP(A23, 給与所得計算, 4, TRUE) )) -> 0 | AM23: 0 | AN23: 0 | AO23: =源泉徴収票!P23+源泉徴収票!S23+源泉徴収票!V23 -> 0 | AP23: =IF(源泉徴収票!I23="無",0,源泉徴収票!CB23) -> 0 | AQ23: =IF(源泉徴収票!I23="無",0,源泉徴収票!CD23) -> 0 | AR23: =IF(源泉徴収票!I23="無",0,MIN(120000,Z23+AA23+AE23)) -> 0 | AS23: =IF(源泉徴収票!I23="無",0,MIN(AF23+AG23,50000)) -> 0 | AT23: =IF(源泉徴収票!I23="無",0,IF(E23="○",INDEX(H30配偶者控除・特別控除マスタ,F23,G23),0)) -> 0 | AU23: =IF(源泉徴収票!I23="無",0,IF(C23="○",INDEX(H30配偶者控除・特別控除マスタ,F23,G23),0)+IF(D23="○",INDEX(H30老人控除対象配偶者上乗せ,1,G23),0)) -> 0 | AV23: =IF(源泉徴収票!I23="無",0,COUNTIF(M23:Q23,"一")*380000+COUNTIF(M23:Q23,"特")*630000+COUNTIF(M23:Q23,"老")*480000+COUNTIF(M23:Q23,"同")*580000) -> 0 | AW23: =IF(源泉徴収票!I23="無",0,(COUNTIF(源泉徴収票!BO23:BP23,"一般")+源泉徴収票!BQ23)*270000+(COUNTIF(源泉徴収票!BO23:BP23,"特別")+源泉徴収票!BR23)*400000+(COUNTIF(源泉徴収票!BP23,"同居特別")+源泉徴収票!BS23)*750000) -> 0 | AX23: =IF(源泉徴収票!I23="無",0,IF(源泉徴収票!BT23<>"",IF(OR(源泉徴収票!BT23="特別の寡婦",源泉徴収票!BT23="ひとり親"),350000,270000),0)) -> 0 | AY23: =IF(源泉徴収票!I23="無",0,480000) -> 480000 | AZ23: =IF(源泉徴収票!I23="無",0,SUM(AO23:AY23)) -> 480000 | BA23: =IF(源泉徴収票!I23="無",AN23,FLOOR(MAX(AN23-AZ23,0),1000)) -> 0 | BB23: =IF(源泉徴収票!I23="無",AK23,BA23*VLOOKUP(BA23,所得税額計算,3,TRUE)+VLOOKUP(BA23,所得税額計算,4,TRUE)) -> 0 | BC23: =IF(源泉徴収票!I23="無",0,源泉徴収票!CZ23) -> 0 | BD23: 0 | BE23: =IF(源泉徴収票!I23="無",BD23,FLOOR(BD23*102.1%,100)) -> 0 | BF23: 0
A24: 0 | B24: =IF(AND(源泉徴収票!I24="無",源泉徴収票!AE24<>""),"○","×") -> × | C24: =IF(AND(源泉徴収票!CO24<>"",源泉徴収票!CO24<=480000,AN24<=10000000),"○","×") -> × | D24: =IF(AND(C24="○",源泉徴収票!CN24<>"",会社情報!$C$7-YEAR(MAX(源泉徴収票!CN24-1,0))>=70),"○","×") -> × | E24: =IF(AND(源泉徴収票!CO24<>"",源泉徴収票!CO24>480000,源泉徴収票!CO24<=1330000,AN24<=10000000),"○","×") -> × | F24: =MATCH(源泉徴収票!CO24,H30配偶者控除・特別控除マスタ_配偶者所得,1) -> 1 | G24: =MATCH('源泉徴収票計算過程(非)'!AN24,H30配偶者控除・特別控除マスタ_所得者合計所得,1) -> 1 | H24: =IF(源泉徴収票!AN24="",-1,会社情報!$C$7-YEAR(源泉徴収票!AN24-1)) -> -1 | I24: =IF(源泉徴収票!AT24="",-1,会社情報!$C$7-YEAR(源泉徴収票!AT24-1)) -> -1 | J24: =IF(源泉徴収票!AZ24="",-1,会社情報!$C$7-YEAR(源泉徴収票!AZ24-1)) -> -1 | K24: =IF(源泉徴収票!BF24="",-1,会社情報!$C$7-YEAR(源泉徴収票!BF24-1)) -> -1 | L24: =IF(源泉徴収票!BL24="",-1,会社情報!$C$7-YEAR(源泉徴収票!BL24-1)) -> -1 | M24: =IF(H24>=16,IF(AND(H24>=19,H24<23),"特",IF(H24>=70,IF(源泉徴収票!AO24="同居老親等","同","老"),"一")),IF(H24>=0,"未","×")) -> × | N24: =IF(I24>=16,IF(AND(I24>=19,I24<23),"特",IF(I24>=70,IF(源泉徴収票!AU24="同居老親等","同","老"),"一")),IF(I24>=0,"未","×")) -> × | O24: =IF(J24>=16,IF(AND(J24>=19,J24<23),"特",IF(J24>=70,IF(源泉徴収票!BA24="同居老親等","同","老"),"一")),IF(J24>=0,"未","×")) -> × | P24: =IF(K24>=16,IF(AND(K24>=19,K24<23),"特",IF(K24>=70,IF(源泉徴収票!BG24="同居老親等","同","老"),"一")),IF(K24>=0,"未","×")) -> × | Q24: =IF(L24>=16,IF(AND(L24>=19,L24<23),"特",IF(L24>=70,IF(源泉徴収票!BM24="同居老親等","同","老"),"一")),IF(L24>=0,"未","×")) -> × | W24: =IF(源泉徴収票!BU24<=20000, 源泉徴収票!BU24, IF(源泉徴収票!BU24<=40000, 源泉徴収票!BU24*1/2+10000, IF(源泉徴収票!BU24<=80000, 源泉徴収票!BU24*1/4+20000, 40000))) -> 0 | X24: =IF(源泉徴収票!BV24<=25000,源泉徴収票!BV24, IF(源泉徴収票!BV24<=50000,源泉徴収票!BV24*1/2+12500, IF(源泉徴収票!BV24<=100000,源泉徴収票!BV24*1/4+25000, 50000))) -> 0 | Y24: 0 | Z24: 0 | AA24: =IF(源泉徴収票!BW24<=20000, 源泉徴収票!BW24, IF(源泉徴収票!BW24<=40000, 源泉徴収票!BW24*1/2+10000, IF(源泉徴収票!BW24<=80000, 源泉徴収票!BW24*1/4+20000, 40000))) -> 0 | AB24: =IF(源泉徴収票!BX24<=20000, 源泉徴収票!BX24, IF(源泉徴収票!BX24<=40000, 源泉徴収票!BX24*1/2+10000, IF(源泉徴収票!BX24<=80000, 源泉徴収票!BX24*1/4+20000, 40000))) -> 0 | AC24: =IF(源泉徴収票!BY24<=25000,源泉徴収票!BY24, IF(源泉徴収票!BY24<=50000,源泉徴収票!BY24*1/2+12500, IF(源泉徴収票!BY24<=100000,源泉徴収票!BY24*1/4+25000, 50000))) -> 0 | AD24: 0 | AE24: 0 | AF24: =IF(源泉徴収票!BZ24<>"",MIN(源泉徴収票!BZ24,50000),0) -> 0 | AG24: =IF(源泉徴収票!CA24>=20000,15000,IF(源泉徴収票!CA24>=10000,源泉徴収票!CA24/2+5000,源泉徴収票!CA24)) -> 0 | AH24: =IF(源泉徴収票!CS24<>"","〇","×") -> × | AJ24: =源泉徴収票!O24+源泉徴収票!R24+源泉徴収票!U24 -> 0 | AK24: =源泉徴収票!Q24+源泉徴収票!T24+源泉徴収票!W24 -> 0 | AL24: =IF(源泉徴収票!I24="無",0,INT(A24*VLOOKUP(A24, 給与所得計算, 3, TRUE) + VLOOKUP(A24, 給与所得計算, 4, TRUE) )) -> 0 | AM24: 0 | AN24: 0 | AO24: =源泉徴収票!P24+源泉徴収票!S24+源泉徴収票!V24 -> 0 | AP24: =IF(源泉徴収票!I24="無",0,源泉徴収票!CB24) -> 0 | AQ24: =IF(源泉徴収票!I24="無",0,源泉徴収票!CD24) -> 0 | AR24: =IF(源泉徴収票!I24="無",0,MIN(120000,Z24+AA24+AE24)) -> 0 | AS24: =IF(源泉徴収票!I24="無",0,MIN(AF24+AG24,50000)) -> 0 | AT24: =IF(源泉徴収票!I24="無",0,IF(E24="○",INDEX(H30配偶者控除・特別控除マスタ,F24,G24),0)) -> 0 | AU24: =IF(源泉徴収票!I24="無",0,IF(C24="○",INDEX(H30配偶者控除・特別控除マスタ,F24,G24),0)+IF(D24="○",INDEX(H30老人控除対象配偶者上乗せ,1,G24),0)) -> 0 | AV24: =IF(源泉徴収票!I24="無",0,COUNTIF(M24:Q24,"一")*380000+COUNTIF(M24:Q24,"特")*630000+COUNTIF(M24:Q24,"老")*480000+COUNTIF(M24:Q24,"同")*580000) -> 0 | AW24: =IF(源泉徴収票!I24="無",0,(COUNTIF(源泉徴収票!BO24:BP24,"一般")+源泉徴収票!BQ24)*270000+(COUNTIF(源泉徴収票!BO24:BP24,"特別")+源泉徴収票!BR24)*400000+(COUNTIF(源泉徴収票!BP24,"同居特別")+源泉徴収票!BS24)*750000) -> 0 | AX24: =IF(源泉徴収票!I24="無",0,IF(源泉徴収票!BT24<>"",IF(OR(源泉徴収票!BT24="特別の寡婦",源泉徴収票!BT24="ひとり親"),350000,270000),0)) -> 0 | AY24: =IF(源泉徴収票!I24="無",0,480000) -> 480000 | AZ24: =IF(源泉徴収票!I24="無",0,SUM(AO24:AY24)) -> 480000 | BA24: =IF(源泉徴収票!I24="無",AN24,FLOOR(MAX(AN24-AZ24,0),1000)) -> 0 | BB24: =IF(源泉徴収票!I24="無",AK24,BA24*VLOOKUP(BA24,所得税額計算,3,TRUE)+VLOOKUP(BA24,所得税額計算,4,TRUE)) -> 0 | BC24: =IF(源泉徴収票!I24="無",0,源泉徴収票!CZ24) -> 0 | BD24: 0 | BE24: =IF(源泉徴収票!I24="無",BD24,FLOOR(BD24*102.1%,100)) -> 0 | BF24: 0
A25: 0 | B25: =IF(AND(源泉徴収票!I25="無",源泉徴収票!AE25<>""),"○","×") -> × | C25: =IF(AND(源泉徴収票!CO25<>"",源泉徴収票!CO25<=480000,AN25<=10000000),"○","×") -> × | D25: =IF(AND(C25="○",源泉徴収票!CN25<>"",会社情報!$C$7-YEAR(MAX(源泉徴収票!CN25-1,0))>=70),"○","×") -> × | E25: =IF(AND(源泉徴収票!CO25<>"",源泉徴収票!CO25>480000,源泉徴収票!CO25<=1330000,AN25<=10000000),"○","×") -> × | F25: =MATCH(源泉徴収票!CO25,H30配偶者控除・特別控除マスタ_配偶者所得,1) -> 1 | G25: =MATCH('源泉徴収票計算過程(非)'!AN25,H30配偶者控除・特別控除マスタ_所得者合計所得,1) -> 1 | H25: =IF(源泉徴収票!AN25="",-1,会社情報!$C$7-YEAR(源泉徴収票!AN25-1)) -> -1 | I25: =IF(源泉徴収票!AT25="",-1,会社情報!$C$7-YEAR(源泉徴収票!AT25-1)) -> -1 | J25: =IF(源泉徴収票!AZ25="",-1,会社情報!$C$7-YEAR(源泉徴収票!AZ25-1)) -> -1 | K25: =IF(源泉徴収票!BF25="",-1,会社情報!$C$7-YEAR(源泉徴収票!BF25-1)) -> -1 | L25: =IF(源泉徴収票!BL25="",-1,会社情報!$C$7-YEAR(源泉徴収票!BL25-1)) -> -1 | M25: =IF(H25>=16,IF(AND(H25>=19,H25<23),"特",IF(H25>=70,IF(源泉徴収票!AO25="同居老親等","同","老"),"一")),IF(H25>=0,"未","×")) -> × | N25: =IF(I25>=16,IF(AND(I25>=19,I25<23),"特",IF(I25>=70,IF(源泉徴収票!AU25="同居老親等","同","老"),"一")),IF(I25>=0,"未","×")) -> × | O25: =IF(J25>=16,IF(AND(J25>=19,J25<23),"特",IF(J25>=70,IF(源泉徴収票!BA25="同居老親等","同","老"),"一")),IF(J25>=0,"未","×")) -> × | P25: =IF(K25>=16,IF(AND(K25>=19,K25<23),"特",IF(K25>=70,IF(源泉徴収票!BG25="同居老親等","同","老"),"一")),IF(K25>=0,"未","×")) -> × | Q25: =IF(L25>=16,IF(AND(L25>=19,L25<23),"特",IF(L25>=70,IF(源泉徴収票!BM25="同居老親等","同","老"),"一")),IF(L25>=0,"未","×")) -> × | W25: =IF(源泉徴収票!BU25<=20000, 源泉徴収票!BU25, IF(源泉徴収票!BU25<=40000, 源泉徴収票!BU25*1/2+10000, IF(源泉徴収票!BU25<=80000, 源泉徴収票!BU25*1/4+20000, 40000))) -> 0 | X25: =IF(源泉徴収票!BV25<=25000,源泉徴収票!BV25, IF(源泉徴収票!BV25<=50000,源泉徴収票!BV25*1/2+12500, IF(源泉徴収票!BV25<=100000,源泉徴収票!BV25*1/4+25000, 50000))) -> 0 | Y25: 0 | Z25: 0 | AA25: =IF(源泉徴収票!BW25<=20000, 源泉徴収票!BW25, IF(源泉徴収票!BW25<=40000, 源泉徴収票!BW25*1/2+10000, IF(源泉徴収票!BW25<=80000, 源泉徴収票!BW25*1/4+20000, 40000))) -> 0 | AB25: =IF(源泉徴収票!BX25<=20000, 源泉徴収票!BX25, IF(源泉徴収票!BX25<=40000, 源泉徴収票!BX25*1/2+10000, IF(源泉徴収票!BX25<=80000, 源泉徴収票!BX25*1/4+20000, 40000))) -> 0 | AC25: =IF(源泉徴収票!BY25<=25000,源泉徴収票!BY25, IF(源泉徴収票!BY25<=50000,源泉徴収票!BY25*1/2+12500, IF(源泉徴収票!BY25<=100000,源泉徴収票!BY25*1/4+25000, 50000))) -> 0 | AD25: 0 | AE25: 0 | AF25: =IF(源泉徴収票!BZ25<>"",MIN(源泉徴収票!BZ25,50000),0) -> 0 | AG25: =IF(源泉徴収票!CA25>=20000,15000,IF(源泉徴収票!CA25>=10000,源泉徴収票!CA25/2+5000,源泉徴収票!CA25)) -> 0 | AH25: =IF(源泉徴収票!CS25<>"","〇","×") -> × | AJ25: =源泉徴収票!O25+源泉徴収票!R25+源泉徴収票!U25 -> 0 | AK25: =源泉徴収票!Q25+源泉徴収票!T25+源泉徴収票!W25 -> 0 | AL25: =IF(源泉徴収票!I25="無",0,INT(A25*VLOOKUP(A25, 給与所得計算, 3, TRUE) + VLOOKUP(A25, 給与所得計算, 4, TRUE) )) -> 0 | AM25: 0 | AN25: 0 | AO25: =源泉徴収票!P25+源泉徴収票!S25+源泉徴収票!V25 -> 0 | AP25: =IF(源泉徴収票!I25="無",0,源泉徴収票!CB25) -> 0 | AQ25: =IF(源泉徴収票!I25="無",0,源泉徴収票!CD25) -> 0 | AR25: =IF(源泉徴収票!I25="無",0,MIN(120000,Z25+AA25+AE25)) -> 0 | AS25: =IF(源泉徴収票!I25="無",0,MIN(AF25+AG25,50000)) -> 0 | AT25: =IF(源泉徴収票!I25="無",0,IF(E25="○",INDEX(H30配偶者控除・特別控除マスタ,F25,G25),0)) -> 0 | AU25: =IF(源泉徴収票!I25="無",0,IF(C25="○",INDEX(H30配偶者控除・特別控除マスタ,F25,G25),0)+IF(D25="○",INDEX(H30老人控除対象配偶者上乗せ,1,G25),0)) -> 0 | AV25: =IF(源泉徴収票!I25="無",0,COUNTIF(M25:Q25,"一")*380000+COUNTIF(M25:Q25,"特")*630000+COUNTIF(M25:Q25,"老")*480000+COUNTIF(M25:Q25,"同")*580000) -> 0 | AW25: =IF(源泉徴収票!I25="無",0,(COUNTIF(源泉徴収票!BO25:BP25,"一般")+源泉徴収票!BQ25)*270000+(COUNTIF(源泉徴収票!BO25:BP25,"特別")+源泉徴収票!BR25)*400000+(COUNTIF(源泉徴収票!BP25,"同居特別")+源泉徴収票!BS25)*750000) -> 0 | AX25: =IF(源泉徴収票!I25="無",0,IF(源泉徴収票!BT25<>"",IF(OR(源泉徴収票!BT25="特別の寡婦",源泉徴収票!BT25="ひとり親"),350000,270000),0)) -> 0 | AY25: =IF(源泉徴収票!I25="無",0,480000) -> 480000 | AZ25: =IF(源泉徴収票!I25="無",0,SUM(AO25:AY25)) -> 480000 | BA25: =IF(源泉徴収票!I25="無",AN25,FLOOR(MAX(AN25-AZ25,0),1000)) -> 0 | BB25: =IF(源泉徴収票!I25="無",AK25,BA25*VLOOKUP(BA25,所得税額計算,3,TRUE)+VLOOKUP(BA25,所得税額計算,4,TRUE)) -> 0 | BC25: =IF(源泉徴収票!I25="無",0,源泉徴収票!CZ25) -> 0 | BD25: 0 | BE25: =IF(源泉徴収票!I25="無",BD25,FLOOR(BD25*102.1%,100)) -> 0 | BF25: 0
A26: 0 | B26: =IF(AND(源泉徴収票!I26="無",源泉徴収票!AE26<>""),"○","×") -> × | C26: =IF(AND(源泉徴収票!CO26<>"",源泉徴収票!CO26<=480000,AN26<=10000000),"○","×") -> × | D26: =IF(AND(C26="○",源泉徴収票!CN26<>"",会社情報!$C$7-YEAR(MAX(源泉徴収票!CN26-1,0))>=70),"○","×") -> × | E26: =IF(AND(源泉徴収票!CO26<>"",源泉徴収票!CO26>480000,源泉徴収票!CO26<=1330000,AN26<=10000000),"○","×") -> × | F26: =MATCH(源泉徴収票!CO26,H30配偶者控除・特別控除マスタ_配偶者所得,1) -> 1 | G26: =MATCH('源泉徴収票計算過程(非)'!AN26,H30配偶者控除・特別控除マスタ_所得者合計所得,1) -> 1 | H26: =IF(源泉徴収票!AN26="",-1,会社情報!$C$7-YEAR(源泉徴収票!AN26-1)) -> -1 | I26: =IF(源泉徴収票!AT26="",-1,会社情報!$C$7-YEAR(源泉徴収票!AT26-1)) -> -1 | J26: =IF(源泉徴収票!AZ26="",-1,会社情報!$C$7-YEAR(源泉徴収票!AZ26-1)) -> -1 | K26: =IF(源泉徴収票!BF26="",-1,会社情報!$C$7-YEAR(源泉徴収票!BF26-1)) -> -1 | L26: =IF(源泉徴収票!BL26="",-1,会社情報!$C$7-YEAR(源泉徴収票!BL26-1)) -> -1 | M26: =IF(H26>=16,IF(AND(H26>=19,H26<23),"特",IF(H26>=70,IF(源泉徴収票!AO26="同居老親等","同","老"),"一")),IF(H26>=0,"未","×")) -> × | N26: =IF(I26>=16,IF(AND(I26>=19,I26<23),"特",IF(I26>=70,IF(源泉徴収票!AU26="同居老親等","同","老"),"一")),IF(I26>=0,"未","×")) -> × | O26: =IF(J26>=16,IF(AND(J26>=19,J26<23),"特",IF(J26>=70,IF(源泉徴収票!BA26="同居老親等","同","老"),"一")),IF(J26>=0,"未","×")) -> × | P26: =IF(K26>=16,IF(AND(K26>=19,K26<23),"特",IF(K26>=70,IF(源泉徴収票!BG26="同居老親等","同","老"),"一")),IF(K26>=0,"未","×")) -> × | Q26: =IF(L26>=16,IF(AND(L26>=19,L26<23),"特",IF(L26>=70,IF(源泉徴収票!BM26="同居老親等","同","老"),"一")),IF(L26>=0,"未","×")) -> × | R26: =IF(M26="未","未",IF(M26<>"×","一","")) ->  | S26: =IF(N26="未","未",IF(N26<>"×","一","")) ->  | T26: =IF(O26="未","未",IF(O26<>"×","一","")) ->  | U26: =IF(P26="未","未",IF(P26<>"×","一","")) ->  | V26: =IF(Q26="未","未",IF(Q26<>"×","一","")) ->  | W26: =IF(源泉徴収票!BU26<=20000, 源泉徴収票!BU26, IF(源泉徴収票!BU26<=40000, 源泉徴収票!BU26*1/2+10000, IF(源泉徴収票!BU26<=80000, 源泉徴収票!BU26*1/4+20000, 40000))) -> 0 | X26: =IF(源泉徴収票!BV26<=25000,源泉徴収票!BV26, IF(源泉徴収票!BV26<=50000,源泉徴収票!BV26*1/2+12500, IF(源泉徴収票!BV26<=100000,源泉徴収票!BV26*1/4+25000, 50000))) -> 0 | Y26: =MIN(W26+X26,40000) -> 0 | Z26: =MAX(X26,Y26) -> 0 | AA26: =IF(源泉徴収票!BW26<=20000, 源泉徴収票!BW26, IF(源泉徴収票!BW26<=40000, 源泉徴収票!BW26*1/2+10000, IF(源泉徴収票!BW26<=80000, 源泉徴収票!BW26*1/4+20000, 40000))) -> 0 | AB26: =IF(源泉徴収票!BX26<=20000, 源泉徴収票!BX26, IF(源泉徴収票!BX26<=40000, 源泉徴収票!BX26*1/2+10000, IF(源泉徴収票!BX26<=80000, 源泉徴収票!BX26*1/4+20000, 40000))) -> 0 | AC26: =IF(源泉徴収票!BY26<=25000,源泉徴収票!BY26, IF(源泉徴収票!BY26<=50000,源泉徴収票!BY26*1/2+12500, IF(源泉徴収票!BY26<=100000,源泉徴収票!BY26*1/4+25000, 50000))) -> 0 | AD26: =MIN(AB26+AC26,40000) -> 0 | AE26: =MAX(AC26,AD26) -> 0 | AF26: =IF(源泉徴収票!BZ26<>"",MIN(源泉徴収票!BZ26,50000),0) -> 0 | AG26: =IF(源泉徴収票!CA26>=20000,15000,IF(源泉徴収票!CA26>=10000,源泉徴収票!CA26/2+5000,源泉徴収票!CA26)) -> 0 | AH26: =IF(源泉徴収票!CS26<>"","〇","×") -> × | AJ26: =源泉徴収票!O26+源泉徴収票!R26+源泉徴収票!U26 -> 0 | AK26: =源泉徴収票!Q26+源泉徴収票!T26+源泉徴収票!W26 -> 0 | AL26: =IF(源泉徴収票!I26="無",0,INT(A26*VLOOKUP(A26, 給与所得計算, 3, TRUE) + VLOOKUP(A26, 給与所得計算, 4, TRUE) )) -> 0 | AM26: 0 | AN26: 0 | AO26: =源泉徴収票!P26+源泉徴収票!S26+源泉徴収票!V26 -> 0 | AP26: =IF(源泉徴収票!I26="無",0,源泉徴収票!CB26) -> 0 | AQ26: =IF(源泉徴収票!I26="無",0,源泉徴収票!CD26) -> 0 | AR26: =IF(源泉徴収票!I26="無",0,MIN(120000,Z26+AA26+AE26)) -> 0 | AS26: =IF(源泉徴収票!I26="無",0,MIN(AF26+AG26,50000)) -> 0 | AT26: =IF(源泉徴収票!I26="無",0,IF(E26="○",INDEX(H30配偶者控除・特別控除マスタ,F26,G26),0)) -> 0 | AU26: =IF(源泉徴収票!I26="無",0,IF(C26="○",INDEX(H30配偶者控除・特別控除マスタ,F26,G26),0)+IF(D26="○",INDEX(H30老人控除対象配偶者上乗せ,1,G26),0)) -> 0 | AV26: =IF(源泉徴収票!I26="無",0,COUNTIF(M26:Q26,"一")*380000+COUNTIF(M26:Q26,"特")*630000+COUNTIF(M26:Q26,"老")*480000+COUNTIF(M26:Q26,"同")*580000) -> 0 | AW26: =IF(源泉徴収票!I26="無",0,(COUNTIF(源泉徴収票!BO26:BP26,"一般")+源泉徴収票!BQ26)*270000+(COUNTIF(源泉徴収票!BO26:BP26,"特別")+源泉徴収票!BR26)*400000+(COUNTIF(源泉徴収票!BP26,"同居特別")+源泉徴収票!BS26)*750000) -> 0 | AX26: =IF(源泉徴収票!I26="無",0,IF(源泉徴収票!BT26<>"",IF(OR(源泉徴収票!BT26="特別の寡婦",源泉徴収票!BT26="ひとり親"),350000,270000),0)) -> 0 | AY26: =IF(源泉徴収票!I26="無",0,480000) -> 480000 | AZ26: =IF(源泉徴収票!I26="無",0,SUM(AO26:AY26)) -> 480000 | BA26: =IF(源泉徴収票!I26="無",AN26,FLOOR(MAX(AN26-AZ26,0),1000)) -> 0 | BB26: =IF(源泉徴収票!I26="無",AK26,BA26*VLOOKUP(BA26,所得税額計算,3,TRUE)+VLOOKUP(BA26,所得税額計算,4,TRUE)) -> 0 | BC26: =IF(源泉徴収票!I26="無",0,源泉徴収票!CZ26) -> 0 | BD26: 0 | BE26: =IF(源泉徴収票!I26="無",BD26,FLOOR(BD26*102.1%,100)) -> 0 | BF26: 0
A27: 0 | B27: =IF(AND(源泉徴収票!I27="無",源泉徴収票!AE27<>""),"○","×") -> × | C27: =IF(AND(源泉徴収票!CO27<>"",源泉徴収票!CO27<=480000,AN27<=10000000),"○","×") -> × | D27: =IF(AND(C27="○",源泉徴収票!CN27<>"",会社情報!$C$7-YEAR(MAX(源泉徴収票!CN27-1,0))>=70),"○","×") -> × | E27: =IF(AND(源泉徴収票!CO27<>"",源泉徴収票!CO27>480000,源泉徴収票!CO27<=1330000,AN27<=10000000),"○","×") -> × | F27: =MATCH(源泉徴収票!CO27,H30配偶者控除・特別控除マスタ_配偶者所得,1) -> 1 | G27: =MATCH('源泉徴収票計算過程(非)'!AN27,H30配偶者控除・特別控除マスタ_所得者合計所得,1) -> 1 | H27: =IF(源泉徴収票!AN27="",-1,会社情報!$C$7-YEAR(源泉徴収票!AN27-1)) -> -1 | I27: =IF(源泉徴収票!AT27="",-1,会社情報!$C$7-YEAR(源泉徴収票!AT27-1)) -> -1 | J27: =IF(源泉徴収票!AZ27="",-1,会社情報!$C$7-YEAR(源泉徴収票!AZ27-1)) -> -1 | K27: =IF(源泉徴収票!BF27="",-1,会社情報!$C$7-YEAR(源泉徴収票!BF27-1)) -> -1 | L27: =IF(源泉徴収票!BL27="",-1,会社情報!$C$7-YEAR(源泉徴収票!BL27-1)) -> -1 | M27: =IF(H27>=16,IF(AND(H27>=19,H27<23),"特",IF(H27>=70,IF(源泉徴収票!AO27="同居老親等","同","老"),"一")),IF(H27>=0,"未","×")) -> × | N27: =IF(I27>=16,IF(AND(I27>=19,I27<23),"特",IF(I27>=70,IF(源泉徴収票!AU27="同居老親等","同","老"),"一")),IF(I27>=0,"未","×")) -> × | O27: =IF(J27>=16,IF(AND(J27>=19,J27<23),"特",IF(J27>=70,IF(源泉徴収票!BA27="同居老親等","同","老"),"一")),IF(J27>=0,"未","×")) -> × | P27: =IF(K27>=16,IF(AND(K27>=19,K27<23),"特",IF(K27>=70,IF(源泉徴収票!BG27="同居老親等","同","老"),"一")),IF(K27>=0,"未","×")) -> × | Q27: =IF(L27>=16,IF(AND(L27>=19,L27<23),"特",IF(L27>=70,IF(源泉徴収票!BM27="同居老親等","同","老"),"一")),IF(L27>=0,"未","×")) -> × | W27: =IF(源泉徴収票!BU27<=20000, 源泉徴収票!BU27, IF(源泉徴収票!BU27<=40000, 源泉徴収票!BU27*1/2+10000, IF(源泉徴収票!BU27<=80000, 源泉徴収票!BU27*1/4+20000, 40000))) -> 0 | X27: =IF(源泉徴収票!BV27<=25000,源泉徴収票!BV27, IF(源泉徴収票!BV27<=50000,源泉徴収票!BV27*1/2+12500, IF(源泉徴収票!BV27<=100000,源泉徴収票!BV27*1/4+25000, 50000))) -> 0 | Y27: 0 | Z27: 0 | AA27: =IF(源泉徴収票!BW27<=20000, 源泉徴収票!BW27, IF(源泉徴収票!BW27<=40000, 源泉徴収票!BW27*1/2+10000, IF(源泉徴収票!BW27<=80000, 源泉徴収票!BW27*1/4+20000, 40000))) -> 0 | AB27: =IF(源泉徴収票!BX27<=20000, 源泉徴収票!BX27, IF(源泉徴収票!BX27<=40000, 源泉徴収票!BX27*1/2+10000, IF(源泉徴収票!BX27<=80000, 源泉徴収票!BX27*1/4+20000, 40000))) -> 0 | AC27: =IF(源泉徴収票!BY27<=25000,源泉徴収票!BY27, IF(源泉徴収票!BY27<=50000,源泉徴収票!BY27*1/2+12500, IF(源泉徴収票!BY27<=100000,源泉徴収票!BY27*1/4+25000, 50000))) -> 0 | AD27: 0 | AE27: 0 | AF27: =IF(源泉徴収票!BZ27<>"",MIN(源泉徴収票!BZ27,50000),0) -> 0 | AG27: =IF(源泉徴収票!CA27>=20000,15000,IF(源泉徴収票!CA27>=10000,源泉徴収票!CA27/2+5000,源泉徴収票!CA27)) -> 0 | AH27: =IF(源泉徴収票!CS27<>"","〇","×") -> × | AJ27: =源泉徴収票!O27+源泉徴収票!R27+源泉徴収票!U27 -> 0 | AK27: =源泉徴収票!Q27+源泉徴収票!T27+源泉徴収票!W27 -> 0 | AL27: =IF(源泉徴収票!I27="無",0,INT(A27*VLOOKUP(A27, 給与所得計算, 3, TRUE) + VLOOKUP(A27, 給与所得計算, 4, TRUE) )) -> 0 | AM27: 0 | AN27: 0 | AO27: =源泉徴収票!P27+源泉徴収票!S27+源泉徴収票!V27 -> 0 | AP27: =IF(源泉徴収票!I27="無",0,源泉徴収票!CB27) -> 0 | AQ27: =IF(源泉徴収票!I27="無",0,源泉徴収票!CD27) -> 0 | AR27: =IF(源泉徴収票!I27="無",0,MIN(120000,Z27+AA27+AE27)) -> 0 | AS27: =IF(源泉徴収票!I27="無",0,MIN(AF27+AG27,50000)) -> 0 | AT27: =IF(源泉徴収票!I27="無",0,IF(E27="○",INDEX(H30配偶者控除・特別控除マスタ,F27,G27),0)) -> 0 | AU27: =IF(源泉徴収票!I27="無",0,IF(C27="○",INDEX(H30配偶者控除・特別控除マスタ,F27,G27),0)+IF(D27="○",INDEX(H30老人控除対象配偶者上乗せ,1,G27),0)) -> 0 | AV27: =IF(源泉徴収票!I27="無",0,COUNTIF(M27:Q27,"一")*380000+COUNTIF(M27:Q27,"特")*630000+COUNTIF(M27:Q27,"老")*480000+COUNTIF(M27:Q27,"同")*580000) -> 0 | AW27: =IF(源泉徴収票!I27="無",0,(COUNTIF(源泉徴収票!BO27:BP27,"一般")+源泉徴収票!BQ27)*270000+(COUNTIF(源泉徴収票!BO27:BP27,"特別")+源泉徴収票!BR27)*400000+(COUNTIF(源泉徴収票!BP27,"同居特別")+源泉徴収票!BS27)*750000) -> 0 | AX27: =IF(源泉徴収票!I27="無",0,IF(源泉徴収票!BT27<>"",IF(OR(源泉徴収票!BT27="特別の寡婦",源泉徴収票!BT27="ひとり親"),350000,270000),0)) -> 0 | AY27: =IF(源泉徴収票!I27="無",0,480000) -> 480000 | AZ27: =IF(源泉徴収票!I27="無",0,SUM(AO27:AY27)) -> 480000 | BA27: =IF(源泉徴収票!I27="無",AN27,FLOOR(MAX(AN27-AZ27,0),1000)) -> 0 | BB27: =IF(源泉徴収票!I27="無",AK27,BA27*VLOOKUP(BA27,所得税額計算,3,TRUE)+VLOOKUP(BA27,所得税額計算,4,TRUE)) -> 0 | BC27: =IF(源泉徴収票!I27="無",0,源泉徴収票!CZ27) -> 0 | BD27: 0 | BE27: =IF(源泉徴収票!I27="無",BD27,FLOOR(BD27*102.1%,100)) -> 0 | BF27: 0
A28: 0 | B28: =IF(AND(源泉徴収票!I28="無",源泉徴収票!AE28<>""),"○","×") -> × | C28: =IF(AND(源泉徴収票!CO28<>"",源泉徴収票!CO28<=480000,AN28<=10000000),"○","×") -> × | D28: =IF(AND(C28="○",源泉徴収票!CN28<>"",会社情報!$C$7-YEAR(MAX(源泉徴収票!CN28-1,0))>=70),"○","×") -> × | E28: =IF(AND(源泉徴収票!CO28<>"",源泉徴収票!CO28>480000,源泉徴収票!CO28<=1330000,AN28<=10000000),"○","×") -> × | F28: =MATCH(源泉徴収票!CO28,H30配偶者控除・特別控除マスタ_配偶者所得,1) -> 1 | G28: =MATCH('源泉徴収票計算過程(非)'!AN28,H30配偶者控除・特別控除マスタ_所得者合計所得,1) -> 1 | H28: =IF(源泉徴収票!AN28="",-1,会社情報!$C$7-YEAR(源泉徴収票!AN28-1)) -> -1 | I28: =IF(源泉徴収票!AT28="",-1,会社情報!$C$7-YEAR(源泉徴収票!AT28-1)) -> -1 | J28: =IF(源泉徴収票!AZ28="",-1,会社情報!$C$7-YEAR(源泉徴収票!AZ28-1)) -> -1 | K28: =IF(源泉徴収票!BF28="",-1,会社情報!$C$7-YEAR(源泉徴収票!BF28-1)) -> -1 | L28: =IF(源泉徴収票!BL28="",-1,会社情報!$C$7-YEAR(源泉徴収票!BL28-1)) -> -1 | M28: =IF(H28>=16,IF(AND(H28>=19,H28<23),"特",IF(H28>=70,IF(源泉徴収票!AO28="同居老親等","同","老"),"一")),IF(H28>=0,"未","×")) -> × | N28: =IF(I28>=16,IF(AND(I28>=19,I28<23),"特",IF(I28>=70,IF(源泉徴収票!AU28="同居老親等","同","老"),"一")),IF(I28>=0,"未","×")) -> × | O28: =IF(J28>=16,IF(AND(J28>=19,J28<23),"特",IF(J28>=70,IF(源泉徴収票!BA28="同居老親等","同","老"),"一")),IF(J28>=0,"未","×")) -> × | P28: =IF(K28>=16,IF(AND(K28>=19,K28<23),"特",IF(K28>=70,IF(源泉徴収票!BG28="同居老親等","同","老"),"一")),IF(K28>=0,"未","×")) -> × | Q28: =IF(L28>=16,IF(AND(L28>=19,L28<23),"特",IF(L28>=70,IF(源泉徴収票!BM28="同居老親等","同","老"),"一")),IF(L28>=0,"未","×")) -> × | R28: =IF(M28="未","未",IF(M28<>"×","一","")) ->  | S28: =IF(N28="未","未",IF(N28<>"×","一","")) ->  | T28: =IF(O28="未","未",IF(O28<>"×","一","")) ->  | U28: =IF(P28="未","未",IF(P28<>"×","一","")) ->  | V28: =IF(Q28="未","未",IF(Q28<>"×","一","")) ->  | W28: =IF(源泉徴収票!BU28<=20000, 源泉徴収票!BU28, IF(源泉徴収票!BU28<=40000, 源泉徴収票!BU28*1/2+10000, IF(源泉徴収票!BU28<=80000, 源泉徴収票!BU28*1/4+20000, 40000))) -> 0 | X28: =IF(源泉徴収票!BV28<=25000,源泉徴収票!BV28, IF(源泉徴収票!BV28<=50000,源泉徴収票!BV28*1/2+12500, IF(源泉徴収票!BV28<=100000,源泉徴収票!BV28*1/4+25000, 50000))) -> 0 | Y28: =MIN(W28+X28,40000) -> 0 | Z28: =MAX(X28,Y28) -> 0 | AA28: =IF(源泉徴収票!BW28<=20000, 源泉徴収票!BW28, IF(源泉徴収票!BW28<=40000, 源泉徴収票!BW28*1/2+10000, IF(源泉徴収票!BW28<=80000, 源泉徴収票!BW28*1/4+20000, 40000))) -> 0 | AB28: =IF(源泉徴収票!BX28<=20000, 源泉徴収票!BX28, IF(源泉徴収票!BX28<=40000, 源泉徴収票!BX28*1/2+10000, IF(源泉徴収票!BX28<=80000, 源泉徴収票!BX28*1/4+20000, 40000))) -> 0 | AC28: =IF(源泉徴収票!BY28<=25000,源泉徴収票!BY28, IF(源泉徴収票!BY28<=50000,源泉徴収票!BY28*1/2+12500, IF(源泉徴収票!BY28<=100000,源泉徴収票!BY28*1/4+25000, 50000))) -> 0 | AD28: =MIN(AB28+AC28,40000) -> 0 | AE28: =MAX(AC28,AD28) -> 0 | AF28: =IF(源泉徴収票!BZ28<>"",MIN(源泉徴収票!BZ28,50000),0) -> 0 | AG28: =IF(源泉徴収票!CA28>=20000,15000,IF(源泉徴収票!CA28>=10000,源泉徴収票!CA28/2+5000,源泉徴収票!CA28)) -> 0 | AH28: =IF(源泉徴収票!CS28<>"","〇","×") -> × | AJ28: =源泉徴収票!O28+源泉徴収票!R28+源泉徴収票!U28 -> 0 | AK28: =源泉徴収票!Q28+源泉徴収票!T28+源泉徴収票!W28 -> 0 | AL28: =IF(源泉徴収票!I28="無",0,INT(A28*VLOOKUP(A28, 給与所得計算, 3, TRUE) + VLOOKUP(A28, 給与所得計算, 4, TRUE) )) -> 0 | AM28: 0 | AN28: 0 | AO28: =源泉徴収票!P28+源泉徴収票!S28+源泉徴収票!V28 -> 0 | AP28: =IF(源泉徴収票!I28="無",0,源泉徴収票!CB28) -> 0 | AQ28: =IF(源泉徴収票!I28="無",0,源泉徴収票!CD28) -> 0 | AR28: =IF(源泉徴収票!I28="無",0,MIN(120000,Z28+AA28+AE28)) -> 0 | AS28: =IF(源泉徴収票!I28="無",0,MIN(AF28+AG28,50000)) -> 0 | AT28: =IF(源泉徴収票!I28="無",0,IF(E28="○",INDEX(H30配偶者控除・特別控除マスタ,F28,G28),0)) -> 0 | AU28: =IF(源泉徴収票!I28="無",0,IF(C28="○",INDEX(H30配偶者控除・特別控除マスタ,F28,G28),0)+IF(D28="○",INDEX(H30老人控除対象配偶者上乗せ,1,G28),0)) -> 0 | AV28: =IF(源泉徴収票!I28="無",0,COUNTIF(M28:Q28,"一")*380000+COUNTIF(M28:Q28,"特")*630000+COUNTIF(M28:Q28,"老")*480000+COUNTIF(M28:Q28,"同")*580000) -> 0 | AW28: =IF(源泉徴収票!I28="無",0,(COUNTIF(源泉徴収票!BO28:BP28,"一般")+源泉徴収票!BQ28)*270000+(COUNTIF(源泉徴収票!BO28:BP28,"特別")+源泉徴収票!BR28)*400000+(COUNTIF(源泉徴収票!BP28,"同居特別")+源泉徴収票!BS28)*750000) -> 0 | AX28: =IF(源泉徴収票!I28="無",0,IF(源泉徴収票!BT28<>"",IF(OR(源泉徴収票!BT28="特別の寡婦",源泉徴収票!BT28="ひとり親"),350000,270000),0)) -> 0 | AY28: =IF(源泉徴収票!I28="無",0,480000) -> 480000 | AZ28: =IF(源泉徴収票!I28="無",0,SUM(AO28:AY28)) -> 480000 | BA28: =IF(源泉徴収票!I28="無",AN28,FLOOR(MAX(AN28-AZ28,0),1000)) -> 0 | BB28: =IF(源泉徴収票!I28="無",AK28,BA28*VLOOKUP(BA28,所得税額計算,3,TRUE)+VLOOKUP(BA28,所得税額計算,4,TRUE)) -> 0 | BC28: =IF(源泉徴収票!I28="無",0,源泉徴収票!CZ28) -> 0 | BD28: =MAX(BB28-BC28,0) -> 0 | BE28: =IF(源泉徴収票!I28="無",BD28,FLOOR(BD28*102.1%,100)) -> 0 | BF28: =BE28-AK28 -> 0
A29: 0 | B29: =IF(AND(源泉徴収票!I29="無",源泉徴収票!AE29<>""),"○","×") -> × | C29: =IF(AND(源泉徴収票!CO29<>"",源泉徴収票!CO29<=480000,AN29<=10000000),"○","×") -> × | D29: =IF(AND(C29="○",源泉徴収票!CN29<>"",会社情報!$C$7-YEAR(MAX(源泉徴収票!CN29-1,0))>=70),"○","×") -> × | E29: =IF(AND(源泉徴収票!CO29<>"",源泉徴収票!CO29>480000,源泉徴収票!CO29<=1330000,AN29<=10000000),"○","×") -> × | F29: =MATCH(源泉徴収票!CO29,H30配偶者控除・特別控除マスタ_配偶者所得,1) -> 1 | G29: =MATCH('源泉徴収票計算過程(非)'!AN29,H30配偶者控除・特別控除マスタ_所得者合計所得,1) -> 1 | H29: =IF(源泉徴収票!AN29="",-1,会社情報!$C$7-YEAR(源泉徴収票!AN29-1)) -> -1 | I29: =IF(源泉徴収票!AT29="",-1,会社情報!$C$7-YEAR(源泉徴収票!AT29-1)) -> -1 | J29: =IF(源泉徴収票!AZ29="",-1,会社情報!$C$7-YEAR(源泉徴収票!AZ29-1)) -> -1 | K29: =IF(源泉徴収票!BF29="",-1,会社情報!$C$7-YEAR(源泉徴収票!BF29-1)) -> -1 | L29: =IF(源泉徴収票!BL29="",-1,会社情報!$C$7-YEAR(源泉徴収票!BL29-1)) -> -1 | M29: =IF(H29>=16,IF(AND(H29>=19,H29<23),"特",IF(H29>=70,IF(源泉徴収票!AO29="同居老親等","同","老"),"一")),IF(H29>=0,"未","×")) -> × | N29: =IF(I29>=16,IF(AND(I29>=19,I29<23),"特",IF(I29>=70,IF(源泉徴収票!AU29="同居老親等","同","老"),"一")),IF(I29>=0,"未","×")) -> × | O29: =IF(J29>=16,IF(AND(J29>=19,J29<23),"特",IF(J29>=70,IF(源泉徴収票!BA29="同居老親等","同","老"),"一")),IF(J29>=0,"未","×")) -> × | P29: =IF(K29>=16,IF(AND(K29>=19,K29<23),"特",IF(K29>=70,IF(源泉徴収票!BG29="同居老親等","同","老"),"一")),IF(K29>=0,"未","×")) -> × | Q29: =IF(L29>=16,IF(AND(L29>=19,L29<23),"特",IF(L29>=70,IF(源泉徴収票!BM29="同居老親等","同","老"),"一")),IF(L29>=0,"未","×")) -> × | W29: =IF(源泉徴収票!BU29<=20000, 源泉徴収票!BU29, IF(源泉徴収票!BU29<=40000, 源泉徴収票!BU29*1/2+10000, IF(源泉徴収票!BU29<=80000, 源泉徴収票!BU29*1/4+20000, 40000))) -> 0 | X29: =IF(源泉徴収票!BV29<=25000,源泉徴収票!BV29, IF(源泉徴収票!BV29<=50000,源泉徴収票!BV29*1/2+12500, IF(源泉徴収票!BV29<=100000,源泉徴収票!BV29*1/4+25000, 50000))) -> 0 | Y29: 0 | Z29: 0 | AA29: =IF(源泉徴収票!BW29<=20000, 源泉徴収票!BW29, IF(源泉徴収票!BW29<=40000, 源泉徴収票!BW29*1/2+10000, IF(源泉徴収票!BW29<=80000, 源泉徴収票!BW29*1/4+20000, 40000))) -> 0 | AB29: =IF(源泉徴収票!BX29<=20000, 源泉徴収票!BX29, IF(源泉徴収票!BX29<=40000, 源泉徴収票!BX29*1/2+10000, IF(源泉徴収票!BX29<=80000, 源泉徴収票!BX29*1/4+20000, 40000))) -> 0 | AC29: =IF(源泉徴収票!BY29<=25000,源泉徴収票!BY29, IF(源泉徴収票!BY29<=50000,源泉徴収票!BY29*1/2+12500, IF(源泉徴収票!BY29<=100000,源泉徴収票!BY29*1/4+25000, 50000))) -> 0 | AD29: 0 | AE29: 0 | AF29: =IF(源泉徴収票!BZ29<>"",MIN(源泉徴収票!BZ29,50000),0) -> 0 | AG29: =IF(源泉徴収票!CA29>=20000,15000,IF(源泉徴収票!CA29>=10000,源泉徴収票!CA29/2+5000,源泉徴収票!CA29)) -> 0 | AH29: =IF(源泉徴収票!CS29<>"","〇","×") -> × | AJ29: =源泉徴収票!O29+源泉徴収票!R29+源泉徴収票!U29 -> 0 | AK29: =源泉徴収票!Q29+源泉徴収票!T29+源泉徴収票!W29 -> 0 | AL29: =IF(源泉徴収票!I29="無",0,INT(A29*VLOOKUP(A29, 給与所得計算, 3, TRUE) + VLOOKUP(A29, 給与所得計算, 4, TRUE) )) -> 0 | AM29: 0 | AN29: 0 | AO29: =源泉徴収票!P29+源泉徴収票!S29+源泉徴収票!V29 -> 0 | AP29: =IF(源泉徴収票!I29="無",0,源泉徴収票!CB29) -> 0 | AQ29: =IF(源泉徴収票!I29="無",0,源泉徴収票!CD29) -> 0 | AR29: =IF(源泉徴収票!I29="無",0,MIN(120000,Z29+AA29+AE29)) -> 0 | AS29: =IF(源泉徴収票!I29="無",0,MIN(AF29+AG29,50000)) -> 0 | AT29: =IF(源泉徴収票!I29="無",0,IF(E29="○",INDEX(H30配偶者控除・特別控除マスタ,F29,G29),0)) -> 0 | AU29: =IF(源泉徴収票!I29="無",0,IF(C29="○",INDEX(H30配偶者控除・特別控除マスタ,F29,G29),0)+IF(D29="○",INDEX(H30老人控除対象配偶者上乗せ,1,G29),0)) -> 0 | AV29: =IF(源泉徴収票!I29="無",0,COUNTIF(M29:Q29,"一")*380000+COUNTIF(M29:Q29,"特")*630000+COUNTIF(M29:Q29,"老")*480000+COUNTIF(M29:Q29,"同")*580000) -> 0 | AW29: =IF(源泉徴収票!I29="無",0,(COUNTIF(源泉徴収票!BO29:BP29,"一般")+源泉徴収票!BQ29)*270000+(COUNTIF(源泉徴収票!BO29:BP29,"特別")+源泉徴収票!BR29)*400000+(COUNTIF(源泉徴収票!BP29,"同居特別")+源泉徴収票!BS29)*750000) -> 0 | AX29: =IF(源泉徴収票!I29="無",0,IF(源泉徴収票!BT29<>"",IF(OR(源泉徴収票!BT29="特別の寡婦",源泉徴収票!BT29="ひとり親"),350000,270000),0)) -> 0 | AY29: =IF(源泉徴収票!I29="無",0,480000) -> 480000 | AZ29: =IF(源泉徴収票!I29="無",0,SUM(AO29:AY29)) -> 480000 | BA29: =IF(源泉徴収票!I29="無",AN29,FLOOR(MAX(AN29-AZ29,0),1000)) -> 0 | BB29: =IF(源泉徴収票!I29="無",AK29,BA29*VLOOKUP(BA29,所得税額計算,3,TRUE)+VLOOKUP(BA29,所得税額計算,4,TRUE)) -> 0 | BC29: =IF(源泉徴収票!I29="無",0,源泉徴収票!CZ29) -> 0 | BD29: 0 | BE29: =IF(源泉徴収票!I29="無",BD29,FLOOR(BD29*102.1%,100)) -> 0 | BF29: 0
A30: 0 | B30: =IF(AND(源泉徴収票!I30="無",源泉徴収票!AE30<>""),"○","×") -> × | C30: =IF(AND(源泉徴収票!CO30<>"",源泉徴収票!CO30<=480000,AN30<=10000000),"○","×") -> × | D30: =IF(AND(C30="○",源泉徴収票!CN30<>"",会社情報!$C$7-YEAR(MAX(源泉徴収票!CN30-1,0))>=70),"○","×") -> × | E30: =IF(AND(源泉徴収票!CO30<>"",源泉徴収票!CO30>480000,源泉徴収票!CO30<=1330000,AN30<=10000000),"○","×") -> × | F30: =MATCH(源泉徴収票!CO30,H30配偶者控除・特別控除マスタ_配偶者所得,1) -> 1 | G30: =MATCH('源泉徴収票計算過程(非)'!AN30,H30配偶者控除・特別控除マスタ_所得者合計所得,1) -> 1 | H30: =IF(源泉徴収票!AN30="",-1,会社情報!$C$7-YEAR(源泉徴収票!AN30-1)) -> -1 | I30: =IF(源泉徴収票!AT30="",-1,会社情報!$C$7-YEAR(源泉徴収票!AT30-1)) -> -1 | J30: =IF(源泉徴収票!AZ30="",-1,会社情報!$C$7-YEAR(源泉徴収票!AZ30-1)) -> -1 | K30: =IF(源泉徴収票!BF30="",-1,会社情報!$C$7-YEAR(源泉徴収票!BF30-1)) -> -1 | L30: =IF(源泉徴収票!BL30="",-1,会社情報!$C$7-YEAR(源泉徴収票!BL30-1)) -> -1 | M30: =IF(H30>=16,IF(AND(H30>=19,H30<23),"特",IF(H30>=70,IF(源泉徴収票!AO30="同居老親等","同","老"),"一")),IF(H30>=0,"未","×")) -> × | N30: =IF(I30>=16,IF(AND(I30>=19,I30<23),"特",IF(I30>=70,IF(源泉徴収票!AU30="同居老親等","同","老"),"一")),IF(I30>=0,"未","×")) -> × | O30: =IF(J30>=16,IF(AND(J30>=19,J30<23),"特",IF(J30>=70,IF(源泉徴収票!BA30="同居老親等","同","老"),"一")),IF(J30>=0,"未","×")) -> × | P30: =IF(K30>=16,IF(AND(K30>=19,K30<23),"特",IF(K30>=70,IF(源泉徴収票!BG30="同居老親等","同","老"),"一")),IF(K30>=0,"未","×")) -> × | Q30: =IF(L30>=16,IF(AND(L30>=19,L30<23),"特",IF(L30>=70,IF(源泉徴収票!BM30="同居老親等","同","老"),"一")),IF(L30>=0,"未","×")) -> × | W30: =IF(源泉徴収票!BU30<=20000, 源泉徴収票!BU30, IF(源泉徴収票!BU30<=40000, 源泉徴収票!BU30*1/2+10000, IF(源泉徴収票!BU30<=80000, 源泉徴収票!BU30*1/4+20000, 40000))) -> 0 | X30: =IF(源泉徴収票!BV30<=25000,源泉徴収票!BV30, IF(源泉徴収票!BV30<=50000,源泉徴収票!BV30*1/2+12500, IF(源泉徴収票!BV30<=100000,源泉徴収票!BV30*1/4+25000, 50000))) -> 0 | Y30: 0 | Z30: 0 | AA30: =IF(源泉徴収票!BW30<=20000, 源泉徴収票!BW30, IF(源泉徴収票!BW30<=40000, 源泉徴収票!BW30*1/2+10000, IF(源泉徴収票!BW30<=80000, 源泉徴収票!BW30*1/4+20000, 40000))) -> 0 | AB30: =IF(源泉徴収票!BX30<=20000, 源泉徴収票!BX30, IF(源泉徴収票!BX30<=40000, 源泉徴収票!BX30*1/2+10000, IF(源泉徴収票!BX30<=80000, 源泉徴収票!BX30*1/4+20000, 40000))) -> 0 | AC30: =IF(源泉徴収票!BY30<=25000,源泉徴収票!BY30, IF(源泉徴収票!BY30<=50000,源泉徴収票!BY30*1/2+12500, IF(源泉徴収票!BY30<=100000,源泉徴収票!BY30*1/4+25000, 50000))) -> 0 | AD30: 0 | AE30: 0 | AF30: =IF(源泉徴収票!BZ30<>"",MIN(源泉徴収票!BZ30,50000),0) -> 0 | AG30: =IF(源泉徴収票!CA30>=20000,15000,IF(源泉徴収票!CA30>=10000,源泉徴収票!CA30/2+5000,源泉徴収票!CA30)) -> 0 | AH30: =IF(源泉徴収票!CS30<>"","〇","×") -> × | AJ30: =源泉徴収票!O30+源泉徴収票!R30+源泉徴収票!U30 -> 0 | AK30: =源泉徴収票!Q30+源泉徴収票!T30+源泉徴収票!W30 -> 0 | AL30: =IF(源泉徴収票!I30="無",0,INT(A30*VLOOKUP(A30, 給与所得計算, 3, TRUE) + VLOOKUP(A30, 給与所得計算, 4, TRUE) )) -> 0 | AM30: 0 | AN30: 0 | AO30: =源泉徴収票!P30+源泉徴収票!S30+源泉徴収票!V30 -> 0 | AP30: =IF(源泉徴収票!I30="無",0,源泉徴収票!CB30) -> 0 | AQ30: =IF(源泉徴収票!I30="無",0,源泉徴収票!CD30) -> 0 | AR30: =IF(源泉徴収票!I30="無",0,MIN(120000,Z30+AA30+AE30)) -> 0 | AS30: =IF(源泉徴収票!I30="無",0,MIN(AF30+AG30,50000)) -> 0 | AT30: =IF(源泉徴収票!I30="無",0,IF(E30="○",INDEX(H30配偶者控除・特別控除マスタ,F30,G30),0)) -> 0 | AU30: =IF(源泉徴収票!I30="無",0,IF(C30="○",INDEX(H30配偶者控除・特別控除マスタ,F30,G30),0)+IF(D30="○",INDEX(H30老人控除対象配偶者上乗せ,1,G30),0)) -> 0 | AV30: =IF(源泉徴収票!I30="無",0,COUNTIF(M30:Q30,"一")*380000+COUNTIF(M30:Q30,"特")*630000+COUNTIF(M30:Q30,"老")*480000+COUNTIF(M30:Q30,"同")*580000) -> 0 | AW30: =IF(源泉徴収票!I30="無",0,(COUNTIF(源泉徴収票!BO30:BP30,"一般")+源泉徴収票!BQ30)*270000+(COUNTIF(源泉徴収票!BO30:BP30,"特別")+源泉徴収票!BR30)*400000+(COUNTIF(源泉徴収票!BP30,"同居特別")+源泉徴収票!BS30)*750000) -> 0 | AX30: =IF(源泉徴収票!I30="無",0,IF(源泉徴収票!BT30<>"",IF(OR(源泉徴収票!BT30="特別の寡婦",源泉徴収票!BT30="ひとり親"),350000,270000),0)) -> 0 | AY30: =IF(源泉徴収票!I30="無",0,480000) -> 480000 | AZ30: =IF(源泉徴収票!I30="無",0,SUM(AO30:AY30)) -> 480000 | BA30: =IF(源泉徴収票!I30="無",AN30,FLOOR(MAX(AN30-AZ30,0),1000)) -> 0 | BB30: =IF(源泉徴収票!I30="無",AK30,BA30*VLOOKUP(BA30,所得税額計算,3,TRUE)+VLOOKUP(BA30,所得税額計算,4,TRUE)) -> 0 | BC30: =IF(源泉徴収票!I30="無",0,源泉徴収票!CZ30) -> 0 | BD30: 0 | BE30: =IF(源泉徴収票!I30="無",BD30,FLOOR(BD30*102.1%,100)) -> 0 | BF30: 0
A31: 0 | B31: =IF(AND(源泉徴収票!I31="無",源泉徴収票!AE31<>""),"○","×") -> × | C31: =IF(AND(源泉徴収票!CO31<>"",源泉徴収票!CO31<=480000,AN31<=10000000),"○","×") -> × | D31: =IF(AND(C31="○",源泉徴収票!CN31<>"",会社情報!$C$7-YEAR(MAX(源泉徴収票!CN31-1,0))>=70),"○","×") -> × | E31: =IF(AND(源泉徴収票!CO31<>"",源泉徴収票!CO31>480000,源泉徴収票!CO31<=1330000,AN31<=10000000),"○","×") -> × | F31: =MATCH(源泉徴収票!CO31,H30配偶者控除・特別控除マスタ_配偶者所得,1) -> 1 | G31: =MATCH('源泉徴収票計算過程(非)'!AN31,H30配偶者控除・特別控除マスタ_所得者合計所得,1) -> 1 | H31: =IF(源泉徴収票!AN31="",-1,会社情報!$C$7-YEAR(源泉徴収票!AN31-1)) -> -1 | I31: =IF(源泉徴収票!AT31="",-1,会社情報!$C$7-YEAR(源泉徴収票!AT31-1)) -> -1 | J31: =IF(源泉徴収票!AZ31="",-1,会社情報!$C$7-YEAR(源泉徴収票!AZ31-1)) -> -1 | K31: =IF(源泉徴収票!BF31="",-1,会社情報!$C$7-YEAR(源泉徴収票!BF31-1)) -> -1 | L31: =IF(源泉徴収票!BL31="",-1,会社情報!$C$7-YEAR(源泉徴収票!BL31-1)) -> -1 | M31: =IF(H31>=16,IF(AND(H31>=19,H31<23),"特",IF(H31>=70,IF(源泉徴収票!AO31="同居老親等","同","老"),"一")),IF(H31>=0,"未","×")) -> × | N31: =IF(I31>=16,IF(AND(I31>=19,I31<23),"特",IF(I31>=70,IF(源泉徴収票!AU31="同居老親等","同","老"),"一")),IF(I31>=0,"未","×")) -> × | O31: =IF(J31>=16,IF(AND(J31>=19,J31<23),"特",IF(J31>=70,IF(源泉徴収票!BA31="同居老親等","同","老"),"一")),IF(J31>=0,"未","×")) -> × | P31: =IF(K31>=16,IF(AND(K31>=19,K31<23),"特",IF(K31>=70,IF(源泉徴収票!BG31="同居老親等","同","老"),"一")),IF(K31>=0,"未","×")) -> × | Q31: =IF(L31>=16,IF(AND(L31>=19,L31<23),"特",IF(L31>=70,IF(源泉徴収票!BM31="同居老親等","同","老"),"一")),IF(L31>=0,"未","×")) -> × | W31: =IF(源泉徴収票!BU31<=20000, 源泉徴収票!BU31, IF(源泉徴収票!BU31<=40000, 源泉徴収票!BU31*1/2+10000, IF(源泉徴収票!BU31<=80000, 源泉徴収票!BU31*1/4+20000, 40000))) -> 0 | X31: =IF(源泉徴収票!BV31<=25000,源泉徴収票!BV31, IF(源泉徴収票!BV31<=50000,源泉徴収票!BV31*1/2+12500, IF(源泉徴収票!BV31<=100000,源泉徴収票!BV31*1/4+25000, 50000))) -> 0 | Y31: 0 | Z31: 0 | AA31: =IF(源泉徴収票!BW31<=20000, 源泉徴収票!BW31, IF(源泉徴収票!BW31<=40000, 源泉徴収票!BW31*1/2+10000, IF(源泉徴収票!BW31<=80000, 源泉徴収票!BW31*1/4+20000, 40000))) -> 0 | AB31: =IF(源泉徴収票!BX31<=20000, 源泉徴収票!BX31, IF(源泉徴収票!BX31<=40000, 源泉徴収票!BX31*1/2+10000, IF(源泉徴収票!BX31<=80000, 源泉徴収票!BX31*1/4+20000, 40000))) -> 0 | AC31: =IF(源泉徴収票!BY31<=25000,源泉徴収票!BY31, IF(源泉徴収票!BY31<=50000,源泉徴収票!BY31*1/2+12500, IF(源泉徴収票!BY31<=100000,源泉徴収票!BY31*1/4+25000, 50000))) -> 0 | AD31: 0 | AE31: 0 | AF31: =IF(源泉徴収票!BZ31<>"",MIN(源泉徴収票!BZ31,50000),0) -> 0 | AG31: =IF(源泉徴収票!CA31>=20000,15000,IF(源泉徴収票!CA31>=10000,源泉徴収票!CA31/2+5000,源泉徴収票!CA31)) -> 0 | AH31: =IF(源泉徴収票!CS31<>"","〇","×") -> × | AJ31: =源泉徴収票!O31+源泉徴収票!R31+源泉徴収票!U31 -> 0 | AK31: =源泉徴収票!Q31+源泉徴収票!T31+源泉徴収票!W31 -> 0 | AL31: =IF(源泉徴収票!I31="無",0,INT(A31*VLOOKUP(A31, 給与所得計算, 3, TRUE) + VLOOKUP(A31, 給与所得計算, 4, TRUE) )) -> 0 | AM31: 0 | AN31: 0 | AO31: =源泉徴収票!P31+源泉徴収票!S31+源泉徴収票!V31 -> 0 | AP31: =IF(源泉徴収票!I31="無",0,源泉徴収票!CB31) -> 0 | AQ31: =IF(源泉徴収票!I31="無",0,源泉徴収票!CD31) -> 0 | AR31: =IF(源泉徴収票!I31="無",0,MIN(120000,Z31+AA31+AE31)) -> 0 | AS31: =IF(源泉徴収票!I31="無",0,MIN(AF31+AG31,50000)) -> 0 | AT31: =IF(源泉徴収票!I31="無",0,IF(E31="○",INDEX(H30配偶者控除・特別控除マスタ,F31,G31),0)) -> 0 | AU31: =IF(源泉徴収票!I31="無",0,IF(C31="○",INDEX(H30配偶者控除・特別控除マスタ,F31,G31),0)+IF(D31="○",INDEX(H30老人控除対象配偶者上乗せ,1,G31),0)) -> 0 | AV31: =IF(源泉徴収票!I31="無",0,COUNTIF(M31:Q31,"一")*380000+COUNTIF(M31:Q31,"特")*630000+COUNTIF(M31:Q31,"老")*480000+COUNTIF(M31:Q31,"同")*580000) -> 0 | AW31: =IF(源泉徴収票!I31="無",0,(COUNTIF(源泉徴収票!BO31:BP31,"一般")+源泉徴収票!BQ31)*270000+(COUNTIF(源泉徴収票!BO31:BP31,"特別")+源泉徴収票!BR31)*400000+(COUNTIF(源泉徴収票!BP31,"同居特別")+源泉徴収票!BS31)*750000) -> 0 | AX31: =IF(源泉徴収票!I31="無",0,IF(源泉徴収票!BT31<>"",IF(OR(源泉徴収票!BT31="特別の寡婦",源泉徴収票!BT31="ひとり親"),350000,270000),0)) -> 0 | AY31: =IF(源泉徴収票!I31="無",0,480000) -> 480000 | AZ31: =IF(源泉徴収票!I31="無",0,SUM(AO31:AY31)) -> 480000 | BA31: =IF(源泉徴収票!I31="無",AN31,FLOOR(MAX(AN31-AZ31,0),1000)) -> 0 | BB31: =IF(源泉徴収票!I31="無",AK31,BA31*VLOOKUP(BA31,所得税額計算,3,TRUE)+VLOOKUP(BA31,所得税額計算,4,TRUE)) -> 0 | BC31: =IF(源泉徴収票!I31="無",0,源泉徴収票!CZ31) -> 0 | BD31: 0 | BE31: =IF(源泉徴収票!I31="無",BD31,FLOOR(BD31*102.1%,100)) -> 0 | BF31: 0
A32: 0 | B32: =IF(AND(源泉徴収票!I32="無",源泉徴収票!AE32<>""),"○","×") -> × | C32: =IF(AND(源泉徴収票!CO32<>"",源泉徴収票!CO32<=480000,AN32<=10000000),"○","×") -> × | D32: =IF(AND(C32="○",源泉徴収票!CN32<>"",会社情報!$C$7-YEAR(MAX(源泉徴収票!CN32-1,0))>=70),"○","×") -> × | E32: =IF(AND(源泉徴収票!CO32<>"",源泉徴収票!CO32>480000,源泉徴収票!CO32<=1330000,AN32<=10000000),"○","×") -> × | F32: =MATCH(源泉徴収票!CO32,H30配偶者控除・特別控除マスタ_配偶者所得,1) -> 1 | G32: =MATCH('源泉徴収票計算過程(非)'!AN32,H30配偶者控除・特別控除マスタ_所得者合計所得,1) -> 1 | H32: =IF(源泉徴収票!AN32="",-1,会社情報!$C$7-YEAR(源泉徴収票!AN32-1)) -> -1 | I32: =IF(源泉徴収票!AT32="",-1,会社情報!$C$7-YEAR(源泉徴収票!AT32-1)) -> -1 | J32: =IF(源泉徴収票!AZ32="",-1,会社情報!$C$7-YEAR(源泉徴収票!AZ32-1)) -> -1 | K32: =IF(源泉徴収票!BF32="",-1,会社情報!$C$7-YEAR(源泉徴収票!BF32-1)) -> -1 | L32: =IF(源泉徴収票!BL32="",-1,会社情報!$C$7-YEAR(源泉徴収票!BL32-1)) -> -1 | M32: =IF(H32>=16,IF(AND(H32>=19,H32<23),"特",IF(H32>=70,IF(源泉徴収票!AO32="同居老親等","同","老"),"一")),IF(H32>=0,"未","×")) -> × | N32: =IF(I32>=16,IF(AND(I32>=19,I32<23),"特",IF(I32>=70,IF(源泉徴収票!AU32="同居老親等","同","老"),"一")),IF(I32>=0,"未","×")) -> × | O32: =IF(J32>=16,IF(AND(J32>=19,J32<23),"特",IF(J32>=70,IF(源泉徴収票!BA32="同居老親等","同","老"),"一")),IF(J32>=0,"未","×")) -> × | P32: =IF(K32>=16,IF(AND(K32>=19,K32<23),"特",IF(K32>=70,IF(源泉徴収票!BG32="同居老親等","同","老"),"一")),IF(K32>=0,"未","×")) -> × | Q32: =IF(L32>=16,IF(AND(L32>=19,L32<23),"特",IF(L32>=70,IF(源泉徴収票!BM32="同居老親等","同","老"),"一")),IF(L32>=0,"未","×")) -> × | W32: =IF(源泉徴収票!BU32<=20000, 源泉徴収票!BU32, IF(源泉徴収票!BU32<=40000, 源泉徴収票!BU32*1/2+10000, IF(源泉徴収票!BU32<=80000, 源泉徴収票!BU32*1/4+20000, 40000))) -> 0 | X32: =IF(源泉徴収票!BV32<=25000,源泉徴収票!BV32, IF(源泉徴収票!BV32<=50000,源泉徴収票!BV32*1/2+12500, IF(源泉徴収票!BV32<=100000,源泉徴収票!BV32*1/4+25000, 50000))) -> 0 | Y32: 0 | Z32: 0 | AA32: =IF(源泉徴収票!BW32<=20000, 源泉徴収票!BW32, IF(源泉徴収票!BW32<=40000, 源泉徴収票!BW32*1/2+10000, IF(源泉徴収票!BW32<=80000, 源泉徴収票!BW32*1/4+20000, 40000))) -> 0 | AB32: =IF(源泉徴収票!BX32<=20000, 源泉徴収票!BX32, IF(源泉徴収票!BX32<=40000, 源泉徴収票!BX32*1/2+10000, IF(源泉徴収票!BX32<=80000, 源泉徴収票!BX32*1/4+20000, 40000))) -> 0 | AC32: =IF(源泉徴収票!BY32<=25000,源泉徴収票!BY32, IF(源泉徴収票!BY32<=50000,源泉徴収票!BY32*1/2+12500, IF(源泉徴収票!BY32<=100000,源泉徴収票!BY32*1/4+25000, 50000))) -> 0 | AD32: 0 | AE32: 0 | AF32: =IF(源泉徴収票!BZ32<>"",MIN(源泉徴収票!BZ32,50000),0) -> 0 | AG32: =IF(源泉徴収票!CA32>=20000,15000,IF(源泉徴収票!CA32>=10000,源泉徴収票!CA32/2+5000,源泉徴収票!CA32)) -> 0 | AH32: =IF(源泉徴収票!CS32<>"","〇","×") -> × | AJ32: =源泉徴収票!O32+源泉徴収票!R32+源泉徴収票!U32 -> 0 | AK32: =源泉徴収票!Q32+源泉徴収票!T32+源泉徴収票!W32 -> 0 | AL32: =IF(源泉徴収票!I32="無",0,INT(A32*VLOOKUP(A32, 給与所得計算, 3, TRUE) + VLOOKUP(A32, 給与所得計算, 4, TRUE) )) -> 0 | AM32: 0 | AN32: 0 | AO32: =源泉徴収票!P32+源泉徴収票!S32+源泉徴収票!V32 -> 0 | AP32: =IF(源泉徴収票!I32="無",0,源泉徴収票!CB32) -> 0 | AQ32: =IF(源泉徴収票!I32="無",0,源泉徴収票!CD32) -> 0 | AR32: =IF(源泉徴収票!I32="無",0,MIN(120000,Z32+AA32+AE32)) -> 0 | AS32: =IF(源泉徴収票!I32="無",0,MIN(AF32+AG32,50000)) -> 0 | AT32: =IF(源泉徴収票!I32="無",0,IF(E32="○",INDEX(H30配偶者控除・特別控除マスタ,F32,G32),0)) -> 0 | AU32: =IF(源泉徴収票!I32="無",0,IF(C32="○",INDEX(H30配偶者控除・特別控除マスタ,F32,G32),0)+IF(D32="○",INDEX(H30老人控除対象配偶者上乗せ,1,G32),0)) -> 0 | AV32: =IF(源泉徴収票!I32="無",0,COUNTIF(M32:Q32,"一")*380000+COUNTIF(M32:Q32,"特")*630000+COUNTIF(M32:Q32,"老")*480000+COUNTIF(M32:Q32,"同")*580000) -> 0 | AW32: =IF(源泉徴収票!I32="無",0,(COUNTIF(源泉徴収票!BO32:BP32,"一般")+源泉徴収票!BQ32)*270000+(COUNTIF(源泉徴収票!BO32:BP32,"特別")+源泉徴収票!BR32)*400000+(COUNTIF(源泉徴収票!BP32,"同居特別")+源泉徴収票!BS32)*750000) -> 0 | AX32: =IF(源泉徴収票!I32="無",0,IF(源泉徴収票!BT32<>"",IF(OR(源泉徴収票!BT32="特別の寡婦",源泉徴収票!BT32="ひとり親"),350000,270000),0)) -> 0 | AY32: =IF(源泉徴収票!I32="無",0,480000) -> 480000 | AZ32: =IF(源泉徴収票!I32="無",0,SUM(AO32:AY32)) -> 480000 | BA32: =IF(源泉徴収票!I32="無",AN32,FLOOR(MAX(AN32-AZ32,0),1000)) -> 0 | BB32: =IF(源泉徴収票!I32="無",AK32,BA32*VLOOKUP(BA32,所得税額計算,3,TRUE)+VLOOKUP(BA32,所得税額計算,4,TRUE)) -> 0 | BC32: =IF(源泉徴収票!I32="無",0,源泉徴収票!CZ32) -> 0 | BD32: 0 | BE32: =IF(源泉徴収票!I32="無",BD32,FLOOR(BD32*102.1%,100)) -> 0 | BF32: 0
A33: 0 | B33: =IF(AND(源泉徴収票!I33="無",源泉徴収票!AE33<>""),"○","×") -> × | C33: =IF(AND(源泉徴収票!CO33<>"",源泉徴収票!CO33<=480000,AN33<=10000000),"○","×") -> × | D33: =IF(AND(C33="○",源泉徴収票!CN33<>"",会社情報!$C$7-YEAR(MAX(源泉徴収票!CN33-1,0))>=70),"○","×") -> × | E33: =IF(AND(源泉徴収票!CO33<>"",源泉徴収票!CO33>480000,源泉徴収票!CO33<=1330000,AN33<=10000000),"○","×") -> × | F33: =MATCH(源泉徴収票!CO33,H30配偶者控除・特別控除マスタ_配偶者所得,1) -> 1 | G33: =MATCH('源泉徴収票計算過程(非)'!AN33,H30配偶者控除・特別控除マスタ_所得者合計所得,1) -> 1 | H33: =IF(源泉徴収票!AN33="",-1,会社情報!$C$7-YEAR(源泉徴収票!AN33-1)) -> -1 | I33: =IF(源泉徴収票!AT33="",-1,会社情報!$C$7-YEAR(源泉徴収票!AT33-1)) -> -1 | J33: =IF(源泉徴収票!AZ33="",-1,会社情報!$C$7-YEAR(源泉徴収票!AZ33-1)) -> -1 | K33: =IF(源泉徴収票!BF33="",-1,会社情報!$C$7-YEAR(源泉徴収票!BF33-1)) -> -1 | L33: =IF(源泉徴収票!BL33="",-1,会社情報!$C$7-YEAR(源泉徴収票!BL33-1)) -> -1 | M33: =IF(H33>=16,IF(AND(H33>=19,H33<23),"特",IF(H33>=70,IF(源泉徴収票!AO33="同居老親等","同","老"),"一")),IF(H33>=0,"未","×")) -> × | N33: =IF(I33>=16,IF(AND(I33>=19,I33<23),"特",IF(I33>=70,IF(源泉徴収票!AU33="同居老親等","同","老"),"一")),IF(I33>=0,"未","×")) -> × | O33: =IF(J33>=16,IF(AND(J33>=19,J33<23),"特",IF(J33>=70,IF(源泉徴収票!BA33="同居老親等","同","老"),"一")),IF(J33>=0,"未","×")) -> × | P33: =IF(K33>=16,IF(AND(K33>=19,K33<23),"特",IF(K33>=70,IF(源泉徴収票!BG33="同居老親等","同","老"),"一")),IF(K33>=0,"未","×")) -> × | Q33: =IF(L33>=16,IF(AND(L33>=19,L33<23),"特",IF(L33>=70,IF(源泉徴収票!BM33="同居老親等","同","老"),"一")),IF(L33>=0,"未","×")) -> × | W33: =IF(源泉徴収票!BU33<=20000, 源泉徴収票!BU33, IF(源泉徴収票!BU33<=40000, 源泉徴収票!BU33*1/2+10000, IF(源泉徴収票!BU33<=80000, 源泉徴収票!BU33*1/4+20000, 40000))) -> 0 | X33: =IF(源泉徴収票!BV33<=25000,源泉徴収票!BV33, IF(源泉徴収票!BV33<=50000,源泉徴収票!BV33*1/2+12500, IF(源泉徴収票!BV33<=100000,源泉徴収票!BV33*1/4+25000, 50000))) -> 0 | Y33: 0 | Z33: 0 | AA33: =IF(源泉徴収票!BW33<=20000, 源泉徴収票!BW33, IF(源泉徴収票!BW33<=40000, 源泉徴収票!BW33*1/2+10000, IF(源泉徴収票!BW33<=80000, 源泉徴収票!BW33*1/4+20000, 40000))) -> 0 | AB33: =IF(源泉徴収票!BX33<=20000, 源泉徴収票!BX33, IF(源泉徴収票!BX33<=40000, 源泉徴収票!BX33*1/2+10000, IF(源泉徴収票!BX33<=80000, 源泉徴収票!BX33*1/4+20000, 40000))) -> 0 | AC33: =IF(源泉徴収票!BY33<=25000,源泉徴収票!BY33, IF(源泉徴収票!BY33<=50000,源泉徴収票!BY33*1/2+12500, IF(源泉徴収票!BY33<=100000,源泉徴収票!BY33*1/4+25000, 50000))) -> 0 | AD33: 0 | AE33: 0 | AF33: =IF(源泉徴収票!BZ33<>"",MIN(源泉徴収票!BZ33,50000),0) -> 0 | AG33: =IF(源泉徴収票!CA33>=20000,15000,IF(源泉徴収票!CA33>=10000,源泉徴収票!CA33/2+5000,源泉徴収票!CA33)) -> 0 | AH33: =IF(源泉徴収票!CS33<>"","〇","×") -> × | AJ33: =源泉徴収票!O33+源泉徴収票!R33+源泉徴収票!U33 -> 0 | AK33: =源泉徴収票!Q33+源泉徴収票!T33+源泉徴収票!W33 -> 0 | AL33: =IF(源泉徴収票!I33="無",0,INT(A33*VLOOKUP(A33, 給与所得計算, 3, TRUE) + VLOOKUP(A33, 給与所得計算, 4, TRUE) )) -> 0 | AM33: 0 | AN33: 0 | AO33: =源泉徴収票!P33+源泉徴収票!S33+源泉徴収票!V33 -> 0 | AP33: =IF(源泉徴収票!I33="無",0,源泉徴収票!CB33) -> 0 | AQ33: =IF(源泉徴収票!I33="無",0,源泉徴収票!CD33) -> 0 | AR33: =IF(源泉徴収票!I33="無",0,MIN(120000,Z33+AA33+AE33)) -> 0 | AS33: =IF(源泉徴収票!I33="無",0,MIN(AF33+AG33,50000)) -> 0 | AT33: =IF(源泉徴収票!I33="無",0,IF(E33="○",INDEX(H30配偶者控除・特別控除マスタ,F33,G33),0)) -> 0 | AU33: =IF(源泉徴収票!I33="無",0,IF(C33="○",INDEX(H30配偶者控除・特別控除マスタ,F33,G33),0)+IF(D33="○",INDEX(H30老人控除対象配偶者上乗せ,1,G33),0)) -> 0 | AV33: =IF(源泉徴収票!I33="無",0,COUNTIF(M33:Q33,"一")*380000+COUNTIF(M33:Q33,"特")*630000+COUNTIF(M33:Q33,"老")*480000+COUNTIF(M33:Q33,"同")*580000) -> 0 | AW33: =IF(源泉徴収票!I33="無",0,(COUNTIF(源泉徴収票!BO33:BP33,"一般")+源泉徴収票!BQ33)*270000+(COUNTIF(源泉徴収票!BO33:BP33,"特別")+源泉徴収票!BR33)*400000+(COUNTIF(源泉徴収票!BP33,"同居特別")+源泉徴収票!BS33)*750000) -> 0 | AX33: =IF(源泉徴収票!I33="無",0,IF(源泉徴収票!BT33<>"",IF(OR(源泉徴収票!BT33="特別の寡婦",源泉徴収票!BT33="ひとり親"),350000,270000),0)) -> 0 | AY33: =IF(源泉徴収票!I33="無",0,480000) -> 480000 | AZ33: =IF(源泉徴収票!I33="無",0,SUM(AO33:AY33)) -> 480000 | BA33: =IF(源泉徴収票!I33="無",AN33,FLOOR(MAX(AN33-AZ33,0),1000)) -> 0 | BB33: =IF(源泉徴収票!I33="無",AK33,BA33*VLOOKUP(BA33,所得税額計算,3,TRUE)+VLOOKUP(BA33,所得税額計算,4,TRUE)) -> 0 | BC33: =IF(源泉徴収票!I33="無",0,源泉徴収票!CZ33) -> 0 | BD33: 0 | BE33: =IF(源泉徴収票!I33="無",BD33,FLOOR(BD33*102.1%,100)) -> 0 | BF33: 0
A34: 0 | B34: =IF(AND(源泉徴収票!I34="無",源泉徴収票!AE34<>""),"○","×") -> × | C34: =IF(AND(源泉徴収票!CO34<>"",源泉徴収票!CO34<=480000,AN34<=10000000),"○","×") -> × | D34: =IF(AND(C34="○",源泉徴収票!CN34<>"",会社情報!$C$7-YEAR(MAX(源泉徴収票!CN34-1,0))>=70),"○","×") -> × | E34: =IF(AND(源泉徴収票!CO34<>"",源泉徴収票!CO34>480000,源泉徴収票!CO34<=1330000,AN34<=10000000),"○","×") -> × | F34: =MATCH(源泉徴収票!CO34,H30配偶者控除・特別控除マスタ_配偶者所得,1) -> 1 | G34: =MATCH('源泉徴収票計算過程(非)'!AN34,H30配偶者控除・特別控除マスタ_所得者合計所得,1) -> 1 | H34: =IF(源泉徴収票!AN34="",-1,会社情報!$C$7-YEAR(源泉徴収票!AN34-1)) -> -1 | I34: =IF(源泉徴収票!AT34="",-1,会社情報!$C$7-YEAR(源泉徴収票!AT34-1)) -> -1 | J34: =IF(源泉徴収票!AZ34="",-1,会社情報!$C$7-YEAR(源泉徴収票!AZ34-1)) -> -1 | K34: =IF(源泉徴収票!BF34="",-1,会社情報!$C$7-YEAR(源泉徴収票!BF34-1)) -> -1 | L34: =IF(源泉徴収票!BL34="",-1,会社情報!$C$7-YEAR(源泉徴収票!BL34-1)) -> -1 | M34: =IF(H34>=16,IF(AND(H34>=19,H34<23),"特",IF(H34>=70,IF(源泉徴収票!AO34="同居老親等","同","老"),"一")),IF(H34>=0,"未","×")) -> × | N34: =IF(I34>=16,IF(AND(I34>=19,I34<23),"特",IF(I34>=70,IF(源泉徴収票!AU34="同居老親等","同","老"),"一")),IF(I34>=0,"未","×")) -> × | O34: =IF(J34>=16,IF(AND(J34>=19,J34<23),"特",IF(J34>=70,IF(源泉徴収票!BA34="同居老親等","同","老"),"一")),IF(J34>=0,"未","×")) -> × | P34: =IF(K34>=16,IF(AND(K34>=19,K34<23),"特",IF(K34>=70,IF(源泉徴収票!BG34="同居老親等","同","老"),"一")),IF(K34>=0,"未","×")) -> × | Q34: =IF(L34>=16,IF(AND(L34>=19,L34<23),"特",IF(L34>=70,IF(源泉徴収票!BM34="同居老親等","同","老"),"一")),IF(L34>=0,"未","×")) -> × | W34: =IF(源泉徴収票!BU34<=20000, 源泉徴収票!BU34, IF(源泉徴収票!BU34<=40000, 源泉徴収票!BU34*1/2+10000, IF(源泉徴収票!BU34<=80000, 源泉徴収票!BU34*1/4+20000, 40000))) -> 0 | X34: =IF(源泉徴収票!BV34<=25000,源泉徴収票!BV34, IF(源泉徴収票!BV34<=50000,源泉徴収票!BV34*1/2+12500, IF(源泉徴収票!BV34<=100000,源泉徴収票!BV34*1/4+25000, 50000))) -> 0 | Y34: 0 | Z34: 0 | AA34: =IF(源泉徴収票!BW34<=20000, 源泉徴収票!BW34, IF(源泉徴収票!BW34<=40000, 源泉徴収票!BW34*1/2+10000, IF(源泉徴収票!BW34<=80000, 源泉徴収票!BW34*1/4+20000, 40000))) -> 0 | AB34: =IF(源泉徴収票!BX34<=20000, 源泉徴収票!BX34, IF(源泉徴収票!BX34<=40000, 源泉徴収票!BX34*1/2+10000, IF(源泉徴収票!BX34<=80000, 源泉徴収票!BX34*1/4+20000, 40000))) -> 0 | AC34: =IF(源泉徴収票!BY34<=25000,源泉徴収票!BY34, IF(源泉徴収票!BY34<=50000,源泉徴収票!BY34*1/2+12500, IF(源泉徴収票!BY34<=100000,源泉徴収票!BY34*1/4+25000, 50000))) -> 0 | AD34: 0 | AE34: 0 | AF34: =IF(源泉徴収票!BZ34<>"",MIN(源泉徴収票!BZ34,50000),0) -> 0 | AG34: =IF(源泉徴収票!CA34>=20000,15000,IF(源泉徴収票!CA34>=10000,源泉徴収票!CA34/2+5000,源泉徴収票!CA34)) -> 0 | AH34: =IF(源泉徴収票!CS34<>"","〇","×") -> × | AJ34: =源泉徴収票!O34+源泉徴収票!R34+源泉徴収票!U34 -> 0 | AK34: =源泉徴収票!Q34+源泉徴収票!T34+源泉徴収票!W34 -> 0 | AL34: =IF(源泉徴収票!I34="無",0,INT(A34*VLOOKUP(A34, 給与所得計算, 3, TRUE) + VLOOKUP(A34, 給与所得計算, 4, TRUE) )) -> 0 | AM34: 0 | AN34: 0 | AO34: =源泉徴収票!P34+源泉徴収票!S34+源泉徴収票!V34 -> 0 | AP34: =IF(源泉徴収票!I34="無",0,源泉徴収票!CB34) -> 0 | AQ34: =IF(源泉徴収票!I34="無",0,源泉徴収票!CD34) -> 0 | AR34: =IF(源泉徴収票!I34="無",0,MIN(120000,Z34+AA34+AE34)) -> 0 | AS34: =IF(源泉徴収票!I34="無",0,MIN(AF34+AG34,50000)) -> 0 | AT34: =IF(源泉徴収票!I34="無",0,IF(E34="○",INDEX(H30配偶者控除・特別控除マスタ,F34,G34),0)) -> 0 | AU34: =IF(源泉徴収票!I34="無",0,IF(C34="○",INDEX(H30配偶者控除・特別控除マスタ,F34,G34),0)+IF(D34="○",INDEX(H30老人控除対象配偶者上乗せ,1,G34),0)) -> 0 | AV34: =IF(源泉徴収票!I34="無",0,COUNTIF(M34:Q34,"一")*380000+COUNTIF(M34:Q34,"特")*630000+COUNTIF(M34:Q34,"老")*480000+COUNTIF(M34:Q34,"同")*580000) -> 0 | AW34: =IF(源泉徴収票!I34="無",0,(COUNTIF(源泉徴収票!BO34:BP34,"一般")+源泉徴収票!BQ34)*270000+(COUNTIF(源泉徴収票!BO34:BP34,"特別")+源泉徴収票!BR34)*400000+(COUNTIF(源泉徴収票!BP34,"同居特別")+源泉徴収票!BS34)*750000) -> 0 | AX34: =IF(源泉徴収票!I34="無",0,IF(源泉徴収票!BT34<>"",IF(OR(源泉徴収票!BT34="特別の寡婦",源泉徴収票!BT34="ひとり親"),350000,270000),0)) -> 0 | AY34: =IF(源泉徴収票!I34="無",0,480000) -> 480000 | AZ34: =IF(源泉徴収票!I34="無",0,SUM(AO34:AY34)) -> 480000 | BA34: =IF(源泉徴収票!I34="無",AN34,FLOOR(MAX(AN34-AZ34,0),1000)) -> 0 | BB34: =IF(源泉徴収票!I34="無",AK34,BA34*VLOOKUP(BA34,所得税額計算,3,TRUE)+VLOOKUP(BA34,所得税額計算,4,TRUE)) -> 0 | BC34: =IF(源泉徴収票!I34="無",0,源泉徴収票!CZ34) -> 0 | BD34: 0 | BE34: =IF(源泉徴収票!I34="無",BD34,FLOOR(BD34*102.1%,100)) -> 0 | BF34: 0
A35: 0 | B35: =IF(AND(源泉徴収票!I35="無",源泉徴収票!AE35<>""),"○","×") -> × | C35: =IF(AND(源泉徴収票!CO35<>"",源泉徴収票!CO35<=480000,AN35<=10000000),"○","×") -> × | D35: =IF(AND(C35="○",源泉徴収票!CN35<>"",会社情報!$C$7-YEAR(MAX(源泉徴収票!CN35-1,0))>=70),"○","×") -> × | E35: =IF(AND(源泉徴収票!CO35<>"",源泉徴収票!CO35>480000,源泉徴収票!CO35<=1330000,AN35<=10000000),"○","×") -> × | F35: =MATCH(源泉徴収票!CO35,H30配偶者控除・特別控除マスタ_配偶者所得,1) -> 1 | G35: =MATCH('源泉徴収票計算過程(非)'!AN35,H30配偶者控除・特別控除マスタ_所得者合計所得,1) -> 1 | H35: =IF(源泉徴収票!AN35="",-1,会社情報!$C$7-YEAR(源泉徴収票!AN35-1)) -> -1 | I35: =IF(源泉徴収票!AT35="",-1,会社情報!$C$7-YEAR(源泉徴収票!AT35-1)) -> -1 | J35: =IF(源泉徴収票!AZ35="",-1,会社情報!$C$7-YEAR(源泉徴収票!AZ35-1)) -> -1 | K35: =IF(源泉徴収票!BF35="",-1,会社情報!$C$7-YEAR(源泉徴収票!BF35-1)) -> -1 | L35: =IF(源泉徴収票!BL35="",-1,会社情報!$C$7-YEAR(源泉徴収票!BL35-1)) -> -1 | M35: =IF(H35>=16,IF(AND(H35>=19,H35<23),"特",IF(H35>=70,IF(源泉徴収票!AO35="同居老親等","同","老"),"一")),IF(H35>=0,"未","×")) -> × | N35: =IF(I35>=16,IF(AND(I35>=19,I35<23),"特",IF(I35>=70,IF(源泉徴収票!AU35="同居老親等","同","老"),"一")),IF(I35>=0,"未","×")) -> × | O35: =IF(J35>=16,IF(AND(J35>=19,J35<23),"特",IF(J35>=70,IF(源泉徴収票!BA35="同居老親等","同","老"),"一")),IF(J35>=0,"未","×")) -> × | P35: =IF(K35>=16,IF(AND(K35>=19,K35<23),"特",IF(K35>=70,IF(源泉徴収票!BG35="同居老親等","同","老"),"一")),IF(K35>=0,"未","×")) -> × | Q35: =IF(L35>=16,IF(AND(L35>=19,L35<23),"特",IF(L35>=70,IF(源泉徴収票!BM35="同居老親等","同","老"),"一")),IF(L35>=0,"未","×")) -> × | W35: =IF(源泉徴収票!BU35<=20000, 源泉徴収票!BU35, IF(源泉徴収票!BU35<=40000, 源泉徴収票!BU35*1/2+10000, IF(源泉徴収票!BU35<=80000, 源泉徴収票!BU35*1/4+20000, 40000))) -> 0 | X35: =IF(源泉徴収票!BV35<=25000,源泉徴収票!BV35, IF(源泉徴収票!BV35<=50000,源泉徴収票!BV35*1/2+12500, IF(源泉徴収票!BV35<=100000,源泉徴収票!BV35*1/4+25000, 50000))) -> 0 | Y35: 0 | Z35: 0 | AA35: =IF(源泉徴収票!BW35<=20000, 源泉徴収票!BW35, IF(源泉徴収票!BW35<=40000, 源泉徴収票!BW35*1/2+10000, IF(源泉徴収票!BW35<=80000, 源泉徴収票!BW35*1/4+20000, 40000))) -> 0 | AB35: =IF(源泉徴収票!BX35<=20000, 源泉徴収票!BX35, IF(源泉徴収票!BX35<=40000, 源泉徴収票!BX35*1/2+10000, IF(源泉徴収票!BX35<=80000, 源泉徴収票!BX35*1/4+20000, 40000))) -> 0 | AC35: =IF(源泉徴収票!BY35<=25000,源泉徴収票!BY35, IF(源泉徴収票!BY35<=50000,源泉徴収票!BY35*1/2+12500, IF(源泉徴収票!BY35<=100000,源泉徴収票!BY35*1/4+25000, 50000))) -> 0 | AD35: 0 | AE35: 0 | AF35: =IF(源泉徴収票!BZ35<>"",MIN(源泉徴収票!BZ35,50000),0) -> 0 | AG35: =IF(源泉徴収票!CA35>=20000,15000,IF(源泉徴収票!CA35>=10000,源泉徴収票!CA35/2+5000,源泉徴収票!CA35)) -> 0 | AH35: =IF(源泉徴収票!CS35<>"","〇","×") -> × | AJ35: =源泉徴収票!O35+源泉徴収票!R35+源泉徴収票!U35 -> 0 | AK35: =源泉徴収票!Q35+源泉徴収票!T35+源泉徴収票!W35 -> 0 | AL35: =IF(源泉徴収票!I35="無",0,INT(A35*VLOOKUP(A35, 給与所得計算, 3, TRUE) + VLOOKUP(A35, 給与所得計算, 4, TRUE) )) -> 0 | AM35: 0 | AN35: 0 | AO35: =源泉徴収票!P35+源泉徴収票!S35+源泉徴収票!V35 -> 0 | AP35: =IF(源泉徴収票!I35="無",0,源泉徴収票!CB35) -> 0 | AQ35: =IF(源泉徴収票!I35="無",0,源泉徴収票!CD35) -> 0 | AR35: =IF(源泉徴収票!I35="無",0,MIN(120000,Z35+AA35+AE35)) -> 0 | AS35: =IF(源泉徴収票!I35="無",0,MIN(AF35+AG35,50000)) -> 0 | AT35: =IF(源泉徴収票!I35="無",0,IF(E35="○",INDEX(H30配偶者控除・特別控除マスタ,F35,G35),0)) -> 0 | AU35: =IF(源泉徴収票!I35="無",0,IF(C35="○",INDEX(H30配偶者控除・特別控除マスタ,F35,G35),0)+IF(D35="○",INDEX(H30老人控除対象配偶者上乗せ,1,G35),0)) -> 0 | AV35: =IF(源泉徴収票!I35="無",0,COUNTIF(M35:Q35,"一")*380000+COUNTIF(M35:Q35,"特")*630000+COUNTIF(M35:Q35,"老")*480000+COUNTIF(M35:Q35,"同")*580000) -> 0 | AW35: =IF(源泉徴収票!I35="無",0,(COUNTIF(源泉徴収票!BO35:BP35,"一般")+源泉徴収票!BQ35)*270000+(COUNTIF(源泉徴収票!BO35:BP35,"特別")+源泉徴収票!BR35)*400000+(COUNTIF(源泉徴収票!BP35,"同居特別")+源泉徴収票!BS35)*750000) -> 0 | AX35: =IF(源泉徴収票!I35="無",0,IF(源泉徴収票!BT35<>"",IF(OR(源泉徴収票!BT35="特別の寡婦",源泉徴収票!BT35="ひとり親"),350000,270000),0)) -> 0 | AY35: =IF(源泉徴収票!I35="無",0,480000) -> 480000 | AZ35: =IF(源泉徴収票!I35="無",0,SUM(AO35:AY35)) -> 480000 | BA35: =IF(源泉徴収票!I35="無",AN35,FLOOR(MAX(AN35-AZ35,0),1000)) -> 0 | BB35: =IF(源泉徴収票!I35="無",AK35,BA35*VLOOKUP(BA35,所得税額計算,3,TRUE)+VLOOKUP(BA35,所得税額計算,4,TRUE)) -> 0 | BC35: =IF(源泉徴収票!I35="無",0,源泉徴収票!CZ35) -> 0 | BD35: 0 | BE35: =IF(源泉徴収票!I35="無",BD35,FLOOR(BD35*102.1%,100)) -> 0 | BF35: 0
A36: 0 | B36: =IF(AND(源泉徴収票!I36="無",源泉徴収票!AE36<>""),"○","×") -> × | C36: =IF(AND(源泉徴収票!CO36<>"",源泉徴収票!CO36<=480000,AN36<=10000000),"○","×") -> × | D36: =IF(AND(C36="○",源泉徴収票!CN36<>"",会社情報!$C$7-YEAR(MAX(源泉徴収票!CN36-1,0))>=70),"○","×") -> × | E36: =IF(AND(源泉徴収票!CO36<>"",源泉徴収票!CO36>480000,源泉徴収票!CO36<=1330000,AN36<=10000000),"○","×") -> × | F36: =MATCH(源泉徴収票!CO36,H30配偶者控除・特別控除マスタ_配偶者所得,1) -> 1 | G36: =MATCH('源泉徴収票計算過程(非)'!AN36,H30配偶者控除・特別控除マスタ_所得者合計所得,1) -> 1 | H36: =IF(源泉徴収票!AN36="",-1,会社情報!$C$7-YEAR(源泉徴収票!AN36-1)) -> -1 | I36: =IF(源泉徴収票!AT36="",-1,会社情報!$C$7-YEAR(源泉徴収票!AT36-1)) -> -1 | J36: =IF(源泉徴収票!AZ36="",-1,会社情報!$C$7-YEAR(源泉徴収票!AZ36-1)) -> -1 | K36: =IF(源泉徴収票!BF36="",-1,会社情報!$C$7-YEAR(源泉徴収票!BF36-1)) -> -1 | L36: =IF(源泉徴収票!BL36="",-1,会社情報!$C$7-YEAR(源泉徴収票!BL36-1)) -> -1 | M36: =IF(H36>=16,IF(AND(H36>=19,H36<23),"特",IF(H36>=70,IF(源泉徴収票!AO36="同居老親等","同","老"),"一")),IF(H36>=0,"未","×")) -> × | N36: =IF(I36>=16,IF(AND(I36>=19,I36<23),"特",IF(I36>=70,IF(源泉徴収票!AU36="同居老親等","同","老"),"一")),IF(I36>=0,"未","×")) -> × | O36: =IF(J36>=16,IF(AND(J36>=19,J36<23),"特",IF(J36>=70,IF(源泉徴収票!BA36="同居老親等","同","老"),"一")),IF(J36>=0,"未","×")) -> × | P36: =IF(K36>=16,IF(AND(K36>=19,K36<23),"特",IF(K36>=70,IF(源泉徴収票!BG36="同居老親等","同","老"),"一")),IF(K36>=0,"未","×")) -> × | Q36: =IF(L36>=16,IF(AND(L36>=19,L36<23),"特",IF(L36>=70,IF(源泉徴収票!BM36="同居老親等","同","老"),"一")),IF(L36>=0,"未","×")) -> × | W36: =IF(源泉徴収票!BU36<=20000, 源泉徴収票!BU36, IF(源泉徴収票!BU36<=40000, 源泉徴収票!BU36*1/2+10000, IF(源泉徴収票!BU36<=80000, 源泉徴収票!BU36*1/4+20000, 40000))) -> 0 | X36: =IF(源泉徴収票!BV36<=25000,源泉徴収票!BV36, IF(源泉徴収票!BV36<=50000,源泉徴収票!BV36*1/2+12500, IF(源泉徴収票!BV36<=100000,源泉徴収票!BV36*1/4+25000, 50000))) -> 0 | Y36: 0 | Z36: 0 | AA36: =IF(源泉徴収票!BW36<=20000, 源泉徴収票!BW36, IF(源泉徴収票!BW36<=40000, 源泉徴収票!BW36*1/2+10000, IF(源泉徴収票!BW36<=80000, 源泉徴収票!BW36*1/4+20000, 40000))) -> 0 | AB36: =IF(源泉徴収票!BX36<=20000, 源泉徴収票!BX36, IF(源泉徴収票!BX36<=40000, 源泉徴収票!BX36*1/2+10000, IF(源泉徴収票!BX36<=80000, 源泉徴収票!BX36*1/4+20000, 40000))) -> 0 | AC36: =IF(源泉徴収票!BY36<=25000,源泉徴収票!BY36, IF(源泉徴収票!BY36<=50000,源泉徴収票!BY36*1/2+12500, IF(源泉徴収票!BY36<=100000,源泉徴収票!BY36*1/4+25000, 50000))) -> 0 | AD36: 0 | AE36: 0 | AF36: =IF(源泉徴収票!BZ36<>"",MIN(源泉徴収票!BZ36,50000),0) -> 0 | AG36: =IF(源泉徴収票!CA36>=20000,15000,IF(源泉徴収票!CA36>=10000,源泉徴収票!CA36/2+5000,源泉徴収票!CA36)) -> 0 | AH36: =IF(源泉徴収票!CS36<>"","〇","×") -> × | AJ36: =源泉徴収票!O36+源泉徴収票!R36+源泉徴収票!U36 -> 0 | AK36: =源泉徴収票!Q36+源泉徴収票!T36+源泉徴収票!W36 -> 0 | AL36: =IF(源泉徴収票!I36="無",0,INT(A36*VLOOKUP(A36, 給与所得計算, 3, TRUE) + VLOOKUP(A36, 給与所得計算, 4, TRUE) )) -> 0 | AM36: 0 | AN36: 0 | AO36: =源泉徴収票!P36+源泉徴収票!S36+源泉徴収票!V36 -> 0 | AP36: =IF(源泉徴収票!I36="無",0,源泉徴収票!CB36) -> 0 | AQ36: =IF(源泉徴収票!I36="無",0,源泉徴収票!CD36) -> 0 | AR36: =IF(源泉徴収票!I36="無",0,MIN(120000,Z36+AA36+AE36)) -> 0 | AS36: =IF(源泉徴収票!I36="無",0,MIN(AF36+AG36,50000)) -> 0 | AT36: =IF(源泉徴収票!I36="無",0,IF(E36="○",INDEX(H30配偶者控除・特別控除マスタ,F36,G36),0)) -> 0 | AU36: =IF(源泉徴収票!I36="無",0,IF(C36="○",INDEX(H30配偶者控除・特別控除マスタ,F36,G36),0)+IF(D36="○",INDEX(H30老人控除対象配偶者上乗せ,1,G36),0)) -> 0 | AV36: =IF(源泉徴収票!I36="無",0,COUNTIF(M36:Q36,"一")*380000+COUNTIF(M36:Q36,"特")*630000+COUNTIF(M36:Q36,"老")*480000+COUNTIF(M36:Q36,"同")*580000) -> 0 | AW36: =IF(源泉徴収票!I36="無",0,(COUNTIF(源泉徴収票!BO36:BP36,"一般")+源泉徴収票!BQ36)*270000+(COUNTIF(源泉徴収票!BO36:BP36,"特別")+源泉徴収票!BR36)*400000+(COUNTIF(源泉徴収票!BP36,"同居特別")+源泉徴収票!BS36)*750000) -> 0 | AX36: =IF(源泉徴収票!I36="無",0,IF(源泉徴収票!BT36<>"",IF(OR(源泉徴収票!BT36="特別の寡婦",源泉徴収票!BT36="ひとり親"),350000,270000),0)) -> 0 | AY36: =IF(源泉徴収票!I36="無",0,480000) -> 480000 | AZ36: =IF(源泉徴収票!I36="無",0,SUM(AO36:AY36)) -> 480000 | BA36: =IF(源泉徴収票!I36="無",AN36,FLOOR(MAX(AN36-AZ36,0),1000)) -> 0 | BB36: =IF(源泉徴収票!I36="無",AK36,BA36*VLOOKUP(BA36,所得税額計算,3,TRUE)+VLOOKUP(BA36,所得税額計算,4,TRUE)) -> 0 | BC36: =IF(源泉徴収票!I36="無",0,源泉徴収票!CZ36) -> 0 | BD36: 0 | BE36: =IF(源泉徴収票!I36="無",BD36,FLOOR(BD36*102.1%,100)) -> 0 | BF36: 0
A37: 0 | B37: =IF(AND(源泉徴収票!I37="無",源泉徴収票!AE37<>""),"○","×") -> × | C37: =IF(AND(源泉徴収票!CO37<>"",源泉徴収票!CO37<=480000,AN37<=10000000),"○","×") -> × | D37: =IF(AND(C37="○",源泉徴収票!CN37<>"",会社情報!$C$7-YEAR(MAX(源泉徴収票!CN37-1,0))>=70),"○","×") -> × | E37: =IF(AND(源泉徴収票!CO37<>"",源泉徴収票!CO37>480000,源泉徴収票!CO37<=1330000,AN37<=10000000),"○","×") -> × | F37: =MATCH(源泉徴収票!CO37,H30配偶者控除・特別控除マスタ_配偶者所得,1) -> 1 | G37: =MATCH('源泉徴収票計算過程(非)'!AN37,H30配偶者控除・特別控除マスタ_所得者合計所得,1) -> 1 | H37: =IF(源泉徴収票!AN37="",-1,会社情報!$C$7-YEAR(源泉徴収票!AN37-1)) -> -1 | I37: =IF(源泉徴収票!AT37="",-1,会社情報!$C$7-YEAR(源泉徴収票!AT37-1)) -> -1 | J37: =IF(源泉徴収票!AZ37="",-1,会社情報!$C$7-YEAR(源泉徴収票!AZ37-1)) -> -1 | K37: =IF(源泉徴収票!BF37="",-1,会社情報!$C$7-YEAR(源泉徴収票!BF37-1)) -> -1 | L37: =IF(源泉徴収票!BL37="",-1,会社情報!$C$7-YEAR(源泉徴収票!BL37-1)) -> -1 | M37: =IF(H37>=16,IF(AND(H37>=19,H37<23),"特",IF(H37>=70,IF(源泉徴収票!AO37="同居老親等","同","老"),"一")),IF(H37>=0,"未","×")) -> × | N37: =IF(I37>=16,IF(AND(I37>=19,I37<23),"特",IF(I37>=70,IF(源泉徴収票!AU37="同居老親等","同","老"),"一")),IF(I37>=0,"未","×")) -> × | O37: =IF(J37>=16,IF(AND(J37>=19,J37<23),"特",IF(J37>=70,IF(源泉徴収票!BA37="同居老親等","同","老"),"一")),IF(J37>=0,"未","×")) -> × | P37: =IF(K37>=16,IF(AND(K37>=19,K37<23),"特",IF(K37>=70,IF(源泉徴収票!BG37="同居老親等","同","老"),"一")),IF(K37>=0,"未","×")) -> × | Q37: =IF(L37>=16,IF(AND(L37>=19,L37<23),"特",IF(L37>=70,IF(源泉徴収票!BM37="同居老親等","同","老"),"一")),IF(L37>=0,"未","×")) -> × | W37: =IF(源泉徴収票!BU37<=20000, 源泉徴収票!BU37, IF(源泉徴収票!BU37<=40000, 源泉徴収票!BU37*1/2+10000, IF(源泉徴収票!BU37<=80000, 源泉徴収票!BU37*1/4+20000, 40000))) -> 0 | X37: =IF(源泉徴収票!BV37<=25000,源泉徴収票!BV37, IF(源泉徴収票!BV37<=50000,源泉徴収票!BV37*1/2+12500, IF(源泉徴収票!BV37<=100000,源泉徴収票!BV37*1/4+25000, 50000))) -> 0 | Y37: 0 | Z37: 0 | AA37: =IF(源泉徴収票!BW37<=20000, 源泉徴収票!BW37, IF(源泉徴収票!BW37<=40000, 源泉徴収票!BW37*1/2+10000, IF(源泉徴収票!BW37<=80000, 源泉徴収票!BW37*1/4+20000, 40000))) -> 0 | AB37: =IF(源泉徴収票!BX37<=20000, 源泉徴収票!BX37, IF(源泉徴収票!BX37<=40000, 源泉徴収票!BX37*1/2+10000, IF(源泉徴収票!BX37<=80000, 源泉徴収票!BX37*1/4+20000, 40000))) -> 0 | AC37: =IF(源泉徴収票!BY37<=25000,源泉徴収票!BY37, IF(源泉徴収票!BY37<=50000,源泉徴収票!BY37*1/2+12500, IF(源泉徴収票!BY37<=100000,源泉徴収票!BY37*1/4+25000, 50000))) -> 0 | AD37: 0 | AE37: 0 | AF37: =IF(源泉徴収票!BZ37<>"",MIN(源泉徴収票!BZ37,50000),0) -> 0 | AG37: =IF(源泉徴収票!CA37>=20000,15000,IF(源泉徴収票!CA37>=10000,源泉徴収票!CA37/2+5000,源泉徴収票!CA37)) -> 0 | AH37: =IF(源泉徴収票!CS37<>"","〇","×") -> × | AJ37: =源泉徴収票!O37+源泉徴収票!R37+源泉徴収票!U37 -> 0 | AK37: =源泉徴収票!Q37+源泉徴収票!T37+源泉徴収票!W37 -> 0 | AL37: =IF(源泉徴収票!I37="無",0,INT(A37*VLOOKUP(A37, 給与所得計算, 3, TRUE) + VLOOKUP(A37, 給与所得計算, 4, TRUE) )) -> 0 | AM37: 0 | AN37: 0 | AO37: =源泉徴収票!P37+源泉徴収票!S37+源泉徴収票!V37 -> 0 | AP37: =IF(源泉徴収票!I37="無",0,源泉徴収票!CB37) -> 0 | AQ37: =IF(源泉徴収票!I37="無",0,源泉徴収票!CD37) -> 0 | AR37: =IF(源泉徴収票!I37="無",0,MIN(120000,Z37+AA37+AE37)) -> 0 | AS37: =IF(源泉徴収票!I37="無",0,MIN(AF37+AG37,50000)) -> 0 | AT37: =IF(源泉徴収票!I37="無",0,IF(E37="○",INDEX(H30配偶者控除・特別控除マスタ,F37,G37),0)) -> 0 | AU37: =IF(源泉徴収票!I37="無",0,IF(C37="○",INDEX(H30配偶者控除・特別控除マスタ,F37,G37),0)+IF(D37="○",INDEX(H30老人控除対象配偶者上乗せ,1,G37),0)) -> 0 | AV37: =IF(源泉徴収票!I37="無",0,COUNTIF(M37:Q37,"一")*380000+COUNTIF(M37:Q37,"特")*630000+COUNTIF(M37:Q37,"老")*480000+COUNTIF(M37:Q37,"同")*580000) -> 0 | AW37: =IF(源泉徴収票!I37="無",0,(COUNTIF(源泉徴収票!BO37:BP37,"一般")+源泉徴収票!BQ37)*270000+(COUNTIF(源泉徴収票!BO37:BP37,"特別")+源泉徴収票!BR37)*400000+(COUNTIF(源泉徴収票!BP37,"同居特別")+源泉徴収票!BS37)*750000) -> 0 | AX37: =IF(源泉徴収票!I37="無",0,IF(源泉徴収票!BT37<>"",IF(OR(源泉徴収票!BT37="特別の寡婦",源泉徴収票!BT37="ひとり親"),350000,270000),0)) -> 0 | AY37: =IF(源泉徴収票!I37="無",0,480000) -> 480000 | AZ37: =IF(源泉徴収票!I37="無",0,SUM(AO37:AY37)) -> 480000 | BA37: =IF(源泉徴収票!I37="無",AN37,FLOOR(MAX(AN37-AZ37,0),1000)) -> 0 | BB37: =IF(源泉徴収票!I37="無",AK37,BA37*VLOOKUP(BA37,所得税額計算,3,TRUE)+VLOOKUP(BA37,所得税額計算,4,TRUE)) -> 0 | BC37: =IF(源泉徴収票!I37="無",0,源泉徴収票!CZ37) -> 0 | BD37: 0 | BE37: =IF(源泉徴収票!I37="無",BD37,FLOOR(BD37*102.1%,100)) -> 0 | BF37: 0
A38: 0 | B38: =IF(AND(源泉徴収票!I38="無",源泉徴収票!AE38<>""),"○","×") -> × | C38: =IF(AND(源泉徴収票!CO38<>"",源泉徴収票!CO38<=480000,AN38<=10000000),"○","×") -> × | D38: =IF(AND(C38="○",源泉徴収票!CN38<>"",会社情報!$C$7-YEAR(MAX(源泉徴収票!CN38-1,0))>=70),"○","×") -> × | E38: =IF(AND(源泉徴収票!CO38<>"",源泉徴収票!CO38>480000,源泉徴収票!CO38<=1330000,AN38<=10000000),"○","×") -> × | F38: =MATCH(源泉徴収票!CO38,H30配偶者控除・特別控除マスタ_配偶者所得,1) -> 1 | G38: =MATCH('源泉徴収票計算過程(非)'!AN38,H30配偶者控除・特別控除マスタ_所得者合計所得,1) -> 1 | H38: =IF(源泉徴収票!AN38="",-1,会社情報!$C$7-YEAR(源泉徴収票!AN38-1)) -> -1 | I38: =IF(源泉徴収票!AT38="",-1,会社情報!$C$7-YEAR(源泉徴収票!AT38-1)) -> -1 | J38: =IF(源泉徴収票!AZ38="",-1,会社情報!$C$7-YEAR(源泉徴収票!AZ38-1)) -> -1 | K38: =IF(源泉徴収票!BF38="",-1,会社情報!$C$7-YEAR(源泉徴収票!BF38-1)) -> -1 | L38: =IF(源泉徴収票!BL38="",-1,会社情報!$C$7-YEAR(源泉徴収票!BL38-1)) -> -1 | M38: =IF(H38>=16,IF(AND(H38>=19,H38<23),"特",IF(H38>=70,IF(源泉徴収票!AO38="同居老親等","同","老"),"一")),IF(H38>=0,"未","×")) -> × | N38: =IF(I38>=16,IF(AND(I38>=19,I38<23),"特",IF(I38>=70,IF(源泉徴収票!AU38="同居老親等","同","老"),"一")),IF(I38>=0,"未","×")) -> × | O38: =IF(J38>=16,IF(AND(J38>=19,J38<23),"特",IF(J38>=70,IF(源泉徴収票!BA38="同居老親等","同","老"),"一")),IF(J38>=0,"未","×")) -> × | P38: =IF(K38>=16,IF(AND(K38>=19,K38<23),"特",IF(K38>=70,IF(源泉徴収票!BG38="同居老親等","同","老"),"一")),IF(K38>=0,"未","×")) -> × | Q38: =IF(L38>=16,IF(AND(L38>=19,L38<23),"特",IF(L38>=70,IF(源泉徴収票!BM38="同居老親等","同","老"),"一")),IF(L38>=0,"未","×")) -> × | W38: =IF(源泉徴収票!BU38<=20000, 源泉徴収票!BU38, IF(源泉徴収票!BU38<=40000, 源泉徴収票!BU38*1/2+10000, IF(源泉徴収票!BU38<=80000, 源泉徴収票!BU38*1/4+20000, 40000))) -> 0 | X38: =IF(源泉徴収票!BV38<=25000,源泉徴収票!BV38, IF(源泉徴収票!BV38<=50000,源泉徴収票!BV38*1/2+12500, IF(源泉徴収票!BV38<=100000,源泉徴収票!BV38*1/4+25000, 50000))) -> 0 | Y38: 0 | Z38: 0 | AA38: =IF(源泉徴収票!BW38<=20000, 源泉徴収票!BW38, IF(源泉徴収票!BW38<=40000, 源泉徴収票!BW38*1/2+10000, IF(源泉徴収票!BW38<=80000, 源泉徴収票!BW38*1/4+20000, 40000))) -> 0 | AB38: =IF(源泉徴収票!BX38<=20000, 源泉徴収票!BX38, IF(源泉徴収票!BX38<=40000, 源泉徴収票!BX38*1/2+10000, IF(源泉徴収票!BX38<=80000, 源泉徴収票!BX38*1/4+20000, 40000))) -> 0 | AC38: =IF(源泉徴収票!BY38<=25000,源泉徴収票!BY38, IF(源泉徴収票!BY38<=50000,源泉徴収票!BY38*1/2+12500, IF(源泉徴収票!BY38<=100000,源泉徴収票!BY38*1/4+25000, 50000))) -> 0 | AD38: 0 | AE38: 0 | AF38: =IF(源泉徴収票!BZ38<>"",MIN(源泉徴収票!BZ38,50000),0) -> 0 | AG38: =IF(源泉徴収票!CA38>=20000,15000,IF(源泉徴収票!CA38>=10000,源泉徴収票!CA38/2+5000,源泉徴収票!CA38)) -> 0 | AH38: =IF(源泉徴収票!CS38<>"","〇","×") -> × | AJ38: =源泉徴収票!O38+源泉徴収票!R38+源泉徴収票!U38 -> 0 | AK38: =源泉徴収票!Q38+源泉徴収票!T38+源泉徴収票!W38 -> 0 | AL38: =IF(源泉徴収票!I38="無",0,INT(A38*VLOOKUP(A38, 給与所得計算, 3, TRUE) + VLOOKUP(A38, 給与所得計算, 4, TRUE) )) -> 0 | AM38: 0 | AN38: 0 | AO38: =源泉徴収票!P38+源泉徴収票!S38+源泉徴収票!V38 -> 0 | AP38: =IF(源泉徴収票!I38="無",0,源泉徴収票!CB38) -> 0 | AQ38: =IF(源泉徴収票!I38="無",0,源泉徴収票!CD38) -> 0 | AR38: =IF(源泉徴収票!I38="無",0,MIN(120000,Z38+AA38+AE38)) -> 0 | AS38: =IF(源泉徴収票!I38="無",0,MIN(AF38+AG38,50000)) -> 0 | AT38: =IF(源泉徴収票!I38="無",0,IF(E38="○",INDEX(H30配偶者控除・特別控除マスタ,F38,G38),0)) -> 0 | AU38: =IF(源泉徴収票!I38="無",0,IF(C38="○",INDEX(H30配偶者控除・特別控除マスタ,F38,G38),0)+IF(D38="○",INDEX(H30老人控除対象配偶者上乗せ,1,G38),0)) -> 0 | AV38: =IF(源泉徴収票!I38="無",0,COUNTIF(M38:Q38,"一")*380000+COUNTIF(M38:Q38,"特")*630000+COUNTIF(M38:Q38,"老")*480000+COUNTIF(M38:Q38,"同")*580000) -> 0 | AW38: =IF(源泉徴収票!I38="無",0,(COUNTIF(源泉徴収票!BO38:BP38,"一般")+源泉徴収票!BQ38)*270000+(COUNTIF(源泉徴収票!BO38:BP38,"特別")+源泉徴収票!BR38)*400000+(COUNTIF(源泉徴収票!BP38,"同居特別")+源泉徴収票!BS38)*750000) -> 0 | AX38: =IF(源泉徴収票!I38="無",0,IF(源泉徴収票!BT38<>"",IF(OR(源泉徴収票!BT38="特別の寡婦",源泉徴収票!BT38="ひとり親"),350000,270000),0)) -> 0 | AY38: =IF(源泉徴収票!I38="無",0,480000) -> 480000 | AZ38: =IF(源泉徴収票!I38="無",0,SUM(AO38:AY38)) -> 480000 | BA38: =IF(源泉徴収票!I38="無",AN38,FLOOR(MAX(AN38-AZ38,0),1000)) -> 0 | BB38: =IF(源泉徴収票!I38="無",AK38,BA38*VLOOKUP(BA38,所得税額計算,3,TRUE)+VLOOKUP(BA38,所得税額計算,4,TRUE)) -> 0 | BC38: =IF(源泉徴収票!I38="無",0,源泉徴収票!CZ38) -> 0 | BD38: 0 | BE38: =IF(源泉徴収票!I38="無",BD38,FLOOR(BD38*102.1%,100)) -> 0 | BF38: 0
A39: 0 | B39: =IF(AND(源泉徴収票!I39="無",源泉徴収票!AE39<>""),"○","×") -> × | C39: =IF(AND(源泉徴収票!CO39<>"",源泉徴収票!CO39<=480000,AN39<=10000000),"○","×") -> × | D39: =IF(AND(C39="○",源泉徴収票!CN39<>"",会社情報!$C$7-YEAR(MAX(源泉徴収票!CN39-1,0))>=70),"○","×") -> × | E39: =IF(AND(源泉徴収票!CO39<>"",源泉徴収票!CO39>480000,源泉徴収票!CO39<=1330000,AN39<=10000000),"○","×") -> × | F39: =MATCH(源泉徴収票!CO39,H30配偶者控除・特別控除マスタ_配偶者所得,1) -> 1 | G39: =MATCH('源泉徴収票計算過程(非)'!AN39,H30配偶者控除・特別控除マスタ_所得者合計所得,1) -> 1 | H39: =IF(源泉徴収票!AN39="",-1,会社情報!$C$7-YEAR(源泉徴収票!AN39-1)) -> -1 | I39: =IF(源泉徴収票!AT39="",-1,会社情報!$C$7-YEAR(源泉徴収票!AT39-1)) -> -1 | J39: =IF(源泉徴収票!AZ39="",-1,会社情報!$C$7-YEAR(源泉徴収票!AZ39-1)) -> -1 | K39: =IF(源泉徴収票!BF39="",-1,会社情報!$C$7-YEAR(源泉徴収票!BF39-1)) -> -1 | L39: =IF(源泉徴収票!BL39="",-1,会社情報!$C$7-YEAR(源泉徴収票!BL39-1)) -> -1 | M39: =IF(H39>=16,IF(AND(H39>=19,H39<23),"特",IF(H39>=70,IF(源泉徴収票!AO39="同居老親等","同","老"),"一")),IF(H39>=0,"未","×")) -> × | N39: =IF(I39>=16,IF(AND(I39>=19,I39<23),"特",IF(I39>=70,IF(源泉徴収票!AU39="同居老親等","同","老"),"一")),IF(I39>=0,"未","×")) -> × | O39: =IF(J39>=16,IF(AND(J39>=19,J39<23),"特",IF(J39>=70,IF(源泉徴収票!BA39="同居老親等","同","老"),"一")),IF(J39>=0,"未","×")) -> × | P39: =IF(K39>=16,IF(AND(K39>=19,K39<23),"特",IF(K39>=70,IF(源泉徴収票!BG39="同居老親等","同","老"),"一")),IF(K39>=0,"未","×")) -> × | Q39: =IF(L39>=16,IF(AND(L39>=19,L39<23),"特",IF(L39>=70,IF(源泉徴収票!BM39="同居老親等","同","老"),"一")),IF(L39>=0,"未","×")) -> × | W39: =IF(源泉徴収票!BU39<=20000, 源泉徴収票!BU39, IF(源泉徴収票!BU39<=40000, 源泉徴収票!BU39*1/2+10000, IF(源泉徴収票!BU39<=80000, 源泉徴収票!BU39*1/4+20000, 40000))) -> 0 | X39: =IF(源泉徴収票!BV39<=25000,源泉徴収票!BV39, IF(源泉徴収票!BV39<=50000,源泉徴収票!BV39*1/2+12500, IF(源泉徴収票!BV39<=100000,源泉徴収票!BV39*1/4+25000, 50000))) -> 0 | Y39: 0 | Z39: 0 | AA39: =IF(源泉徴収票!BW39<=20000, 源泉徴収票!BW39, IF(源泉徴収票!BW39<=40000, 源泉徴収票!BW39*1/2+10000, IF(源泉徴収票!BW39<=80000, 源泉徴収票!BW39*1/4+20000, 40000))) -> 0 | AB39: =IF(源泉徴収票!BX39<=20000, 源泉徴収票!BX39, IF(源泉徴収票!BX39<=40000, 源泉徴収票!BX39*1/2+10000, IF(源泉徴収票!BX39<=80000, 源泉徴収票!BX39*1/4+20000, 40000))) -> 0 | AC39: =IF(源泉徴収票!BY39<=25000,源泉徴収票!BY39, IF(源泉徴収票!BY39<=50000,源泉徴収票!BY39*1/2+12500, IF(源泉徴収票!BY39<=100000,源泉徴収票!BY39*1/4+25000, 50000))) -> 0 | AD39: 0 | AE39: 0 | AF39: =IF(源泉徴収票!BZ39<>"",MIN(源泉徴収票!BZ39,50000),0) -> 0 | AG39: =IF(源泉徴収票!CA39>=20000,15000,IF(源泉徴収票!CA39>=10000,源泉徴収票!CA39/2+5000,源泉徴収票!CA39)) -> 0 | AH39: =IF(源泉徴収票!CS39<>"","〇","×") -> × | AJ39: =源泉徴収票!O39+源泉徴収票!R39+源泉徴収票!U39 -> 0 | AK39: =源泉徴収票!Q39+源泉徴収票!T39+源泉徴収票!W39 -> 0 | AL39: =IF(源泉徴収票!I39="無",0,INT(A39*VLOOKUP(A39, 給与所得計算, 3, TRUE) + VLOOKUP(A39, 給与所得計算, 4, TRUE) )) -> 0 | AM39: 0 | AN39: 0 | AO39: =源泉徴収票!P39+源泉徴収票!S39+源泉徴収票!V39 -> 0 | AP39: =IF(源泉徴収票!I39="無",0,源泉徴収票!CB39) -> 0 | AQ39: =IF(源泉徴収票!I39="無",0,源泉徴収票!CD39) -> 0 | AR39: =IF(源泉徴収票!I39="無",0,MIN(120000,Z39+AA39+AE39)) -> 0 | AS39: =IF(源泉徴収票!I39="無",0,MIN(AF39+AG39,50000)) -> 0 | AT39: =IF(源泉徴収票!I39="無",0,IF(E39="○",INDEX(H30配偶者控除・特別控除マスタ,F39,G39),0)) -> 0 | AU39: =IF(源泉徴収票!I39="無",0,IF(C39="○",INDEX(H30配偶者控除・特別控除マスタ,F39,G39),0)+IF(D39="○",INDEX(H30老人控除対象配偶者上乗せ,1,G39),0)) -> 0 | AV39: =IF(源泉徴収票!I39="無",0,COUNTIF(M39:Q39,"一")*380000+COUNTIF(M39:Q39,"特")*630000+COUNTIF(M39:Q39,"老")*480000+COUNTIF(M39:Q39,"同")*580000) -> 0 | AW39: =IF(源泉徴収票!I39="無",0,(COUNTIF(源泉徴収票!BO39:BP39,"一般")+源泉徴収票!BQ39)*270000+(COUNTIF(源泉徴収票!BO39:BP39,"特別")+源泉徴収票!BR39)*400000+(COUNTIF(源泉徴収票!BP39,"同居特別")+源泉徴収票!BS39)*750000) -> 0 | AX39: =IF(源泉徴収票!I39="無",0,IF(源泉徴収票!BT39<>"",IF(OR(源泉徴収票!BT39="特別の寡婦",源泉徴収票!BT39="ひとり親"),350000,270000),0)) -> 0 | AY39: =IF(源泉徴収票!I39="無",0,480000) -> 480000 | AZ39: =IF(源泉徴収票!I39="無",0,SUM(AO39:AY39)) -> 480000 | BA39: =IF(源泉徴収票!I39="無",AN39,FLOOR(MAX(AN39-AZ39,0),1000)) -> 0 | BB39: =IF(源泉徴収票!I39="無",AK39,BA39*VLOOKUP(BA39,所得税額計算,3,TRUE)+VLOOKUP(BA39,所得税額計算,4,TRUE)) -> 0 | BC39: =IF(源泉徴収票!I39="無",0,源泉徴収票!CZ39) -> 0 | BD39: 0 | BE39: =IF(源泉徴収票!I39="無",BD39,FLOOR(BD39*102.1%,100)) -> 0 | BF39: 0
A40: =FLOOR(AJ40,VLOOKUP(AJ40,年調給与計算,3,TRUE)) -> 0 | B40: =IF(AND(源泉徴収票!I40="無",源泉徴収票!AE40<>""),"○","×") -> × | C40: =IF(AND(源泉徴収票!CO40<>"",源泉徴収票!CO40<=480000,AN40<=10000000),"○","×") -> × | D40: =IF(AND(C40="○",源泉徴収票!CN40<>"",会社情報!$C$7-YEAR(MAX(源泉徴収票!CN40-1,0))>=70),"○","×") -> × | E40: =IF(AND(源泉徴収票!CO40<>"",源泉徴収票!CO40>480000,源泉徴収票!CO40<=1330000,AN40<=10000000),"○","×") -> × | F40: =MATCH(源泉徴収票!CO40,H30配偶者控除・特別控除マスタ_配偶者所得,1) -> 1 | G40: =MATCH('源泉徴収票計算過程(非)'!AN40,H30配偶者控除・特別控除マスタ_所得者合計所得,1) -> 1 | H40: =IF(源泉徴収票!AN40="",-1,会社情報!$C$7-YEAR(源泉徴収票!AN40-1)) -> -1 | I40: =IF(源泉徴収票!AT40="",-1,会社情報!$C$7-YEAR(源泉徴収票!AT40-1)) -> -1 | J40: =IF(源泉徴収票!AZ40="",-1,会社情報!$C$7-YEAR(源泉徴収票!AZ40-1)) -> -1 | K40: =IF(源泉徴収票!BF40="",-1,会社情報!$C$7-YEAR(源泉徴収票!BF40-1)) -> -1 | L40: =IF(源泉徴収票!BL40="",-1,会社情報!$C$7-YEAR(源泉徴収票!BL40-1)) -> -1 | M40: =IF(H40>=16,IF(AND(H40>=19,H40<23),"特",IF(H40>=70,IF(源泉徴収票!AO40="同居老親等","同","老"),"一")),IF(H40>=0,"未","×")) -> × | N40: =IF(I40>=16,IF(AND(I40>=19,I40<23),"特",IF(I40>=70,IF(源泉徴収票!AU40="同居老親等","同","老"),"一")),IF(I40>=0,"未","×")) -> × | O40: =IF(J40>=16,IF(AND(J40>=19,J40<23),"特",IF(J40>=70,IF(源泉徴収票!BA40="同居老親等","同","老"),"一")),IF(J40>=0,"未","×")) -> × | P40: =IF(K40>=16,IF(AND(K40>=19,K40<23),"特",IF(K40>=70,IF(源泉徴収票!BG40="同居老親等","同","老"),"一")),IF(K40>=0,"未","×")) -> × | Q40: =IF(L40>=16,IF(AND(L40>=19,L40<23),"特",IF(L40>=70,IF(源泉徴収票!BM40="同居老親等","同","老"),"一")),IF(L40>=0,"未","×")) -> × | W40: =IF(源泉徴収票!BU40<=20000, 源泉徴収票!BU40, IF(源泉徴収票!BU40<=40000, 源泉徴収票!BU40*1/2+10000, IF(源泉徴収票!BU40<=80000, 源泉徴収票!BU40*1/4+20000, 40000))) -> 0 | X40: =IF(源泉徴収票!BV40<=25000,源泉徴収票!BV40, IF(源泉徴収票!BV40<=50000,源泉徴収票!BV40*1/2+12500, IF(源泉徴収票!BV40<=100000,源泉徴収票!BV40*1/4+25000, 50000))) -> 0 | Y40: 0 | Z40: 0 | AA40: =IF(源泉徴収票!BW40<=20000, 源泉徴収票!BW40, IF(源泉徴収票!BW40<=40000, 源泉徴収票!BW40*1/2+10000, IF(源泉徴収票!BW40<=80000, 源泉徴収票!BW40*1/4+20000, 40000))) -> 0 | AB40: =IF(源泉徴収票!BX40<=20000, 源泉徴収票!BX40, IF(源泉徴収票!BX40<=40000, 源泉徴収票!BX40*1/2+10000, IF(源泉徴収票!BX40<=80000, 源泉徴収票!BX40*1/4+20000, 40000))) -> 0 | AC40: =IF(源泉徴収票!BY40<=25000,源泉徴収票!BY40, IF(源泉徴収票!BY40<=50000,源泉徴収票!BY40*1/2+12500, IF(源泉徴収票!BY40<=100000,源泉徴収票!BY40*1/4+25000, 50000))) -> 0 | AD40: 0 | AE40: 0 | AF40: =IF(源泉徴収票!BZ40<>"",MIN(源泉徴収票!BZ40,50000),0) -> 0 | AG40: =IF(源泉徴収票!CA40>=20000,15000,IF(源泉徴収票!CA40>=10000,源泉徴収票!CA40/2+5000,源泉徴収票!CA40)) -> 0 | AH40: =IF(源泉徴収票!CS40<>"","〇","×") -> × | AJ40: =源泉徴収票!O40+源泉徴収票!R40+源泉徴収票!U40 -> 0 | AK40: =源泉徴収票!Q40+源泉徴収票!T40+源泉徴収票!W40 -> 0 | AL40: =IF(源泉徴収票!I40="無",0,INT(A40*VLOOKUP(A40, 給与所得計算, 3, TRUE) + VLOOKUP(A40, 給与所得計算, 4, TRUE) )) -> 0 | AM40: 0 | AN40: 0 | AO40: =源泉徴収票!P40+源泉徴収票!S40+源泉徴収票!V40 -> 0 | AP40: =IF(源泉徴収票!I40="無",0,源泉徴収票!CB40) -> 0 | AQ40: =IF(源泉徴収票!I40="無",0,源泉徴収票!CD40) -> 0 | AR40: =IF(源泉徴収票!I40="無",0,MIN(120000,Z40+AA40+AE40)) -> 0 | AS40: =IF(源泉徴収票!I40="無",0,MIN(AF40+AG40,50000)) -> 0 | AT40: =IF(源泉徴収票!I40="無",0,IF(E40="○",INDEX(H30配偶者控除・特別控除マスタ,F40,G40),0)) -> 0 | AU40: =IF(源泉徴収票!I40="無",0,IF(C40="○",INDEX(H30配偶者控除・特別控除マスタ,F40,G40),0)+IF(D40="○",INDEX(H30老人控除対象配偶者上乗せ,1,G40),0)) -> 0 | AV40: =IF(源泉徴収票!I40="無",0,COUNTIF(M40:Q40,"一")*380000+COUNTIF(M40:Q40,"特")*630000+COUNTIF(M40:Q40,"老")*480000+COUNTIF(M40:Q40,"同")*580000) -> 0 | AW40: =IF(源泉徴収票!I40="無",0,(COUNTIF(源泉徴収票!BO40:BP40,"一般")+源泉徴収票!BQ40)*270000+(COUNTIF(源泉徴収票!BO40:BP40,"特別")+源泉徴収票!BR40)*400000+(COUNTIF(源泉徴収票!BP40,"同居特別")+源泉徴収票!BS40)*750000) -> 0 | AX40: =IF(源泉徴収票!I40="無",0,IF(源泉徴収票!BT40<>"",IF(OR(源泉徴収票!BT40="特別の寡婦",源泉徴収票!BT40="ひとり親"),350000,270000),0)) -> 0 | AY40: =IF(源泉徴収票!I40="無",0,480000) -> 480000 | AZ40: =IF(源泉徴収票!I40="無",0,SUM(AO40:AY40)) -> 480000 | BA40: =IF(源泉徴収票!I40="無",AN40,FLOOR(MAX(AN40-AZ40,0),1000)) -> 0 | BB40: =IF(源泉徴収票!I40="無",AK40,BA40*VLOOKUP(BA40,所得税額計算,3,TRUE)+VLOOKUP(BA40,所得税額計算,4,TRUE)) -> 0 | BC40: =IF(源泉徴収票!I40="無",0,源泉徴収票!CZ40) -> 0 | BD40: 0 | BE40: =IF(源泉徴収票!I40="無",BD40,FLOOR(BD40*102.1%,100)) -> 0 | BF40: 0
A41: 0 | B41: =IF(AND(源泉徴収票!I41="無",源泉徴収票!AE41<>""),"○","×") -> × | C41: =IF(AND(源泉徴収票!CO41<>"",源泉徴収票!CO41<=480000,AN41<=10000000),"○","×") -> × | D41: =IF(AND(C41="○",源泉徴収票!CN41<>"",会社情報!$C$7-YEAR(MAX(源泉徴収票!CN41-1,0))>=70),"○","×") -> × | E41: =IF(AND(源泉徴収票!CO41<>"",源泉徴収票!CO41>480000,源泉徴収票!CO41<=1330000,AN41<=10000000),"○","×") -> × | F41: =MATCH(源泉徴収票!CO41,H30配偶者控除・特別控除マスタ_配偶者所得,1) -> 1 | G41: =MATCH('源泉徴収票計算過程(非)'!AN41,H30配偶者控除・特別控除マスタ_所得者合計所得,1) -> 1 | H41: =IF(源泉徴収票!AN41="",-1,会社情報!$C$7-YEAR(源泉徴収票!AN41-1)) -> -1 | I41: =IF(源泉徴収票!AT41="",-1,会社情報!$C$7-YEAR(源泉徴収票!AT41-1)) -> -1 | J41: =IF(源泉徴収票!AZ41="",-1,会社情報!$C$7-YEAR(源泉徴収票!AZ41-1)) -> -1 | K41: =IF(源泉徴収票!BF41="",-1,会社情報!$C$7-YEAR(源泉徴収票!BF41-1)) -> -1 | L41: =IF(源泉徴収票!BL41="",-1,会社情報!$C$7-YEAR(源泉徴収票!BL41-1)) -> -1 | M41: =IF(H41>=16,IF(AND(H41>=19,H41<23),"特",IF(H41>=70,IF(源泉徴収票!AO41="同居老親等","同","老"),"一")),IF(H41>=0,"未","×")) -> × | N41: =IF(I41>=16,IF(AND(I41>=19,I41<23),"特",IF(I41>=70,IF(源泉徴収票!AU41="同居老親等","同","老"),"一")),IF(I41>=0,"未","×")) -> × | O41: =IF(J41>=16,IF(AND(J41>=19,J41<23),"特",IF(J41>=70,IF(源泉徴収票!BA41="同居老親等","同","老"),"一")),IF(J41>=0,"未","×")) -> × | P41: =IF(K41>=16,IF(AND(K41>=19,K41<23),"特",IF(K41>=70,IF(源泉徴収票!BG41="同居老親等","同","老"),"一")),IF(K41>=0,"未","×")) -> × | Q41: =IF(L41>=16,IF(AND(L41>=19,L41<23),"特",IF(L41>=70,IF(源泉徴収票!BM41="同居老親等","同","老"),"一")),IF(L41>=0,"未","×")) -> × | W41: =IF(源泉徴収票!BU41<=20000, 源泉徴収票!BU41, IF(源泉徴収票!BU41<=40000, 源泉徴収票!BU41*1/2+10000, IF(源泉徴収票!BU41<=80000, 源泉徴収票!BU41*1/4+20000, 40000))) -> 0 | X41: =IF(源泉徴収票!BV41<=25000,源泉徴収票!BV41, IF(源泉徴収票!BV41<=50000,源泉徴収票!BV41*1/2+12500, IF(源泉徴収票!BV41<=100000,源泉徴収票!BV41*1/4+25000, 50000))) -> 0 | Y41: 0 | Z41: 0 | AA41: =IF(源泉徴収票!BW41<=20000, 源泉徴収票!BW41, IF(源泉徴収票!BW41<=40000, 源泉徴収票!BW41*1/2+10000, IF(源泉徴収票!BW41<=80000, 源泉徴収票!BW41*1/4+20000, 40000))) -> 0 | AB41: =IF(源泉徴収票!BX41<=20000, 源泉徴収票!BX41, IF(源泉徴収票!BX41<=40000, 源泉徴収票!BX41*1/2+10000, IF(源泉徴収票!BX41<=80000, 源泉徴収票!BX41*1/4+20000, 40000))) -> 0 | AC41: =IF(源泉徴収票!BY41<=25000,源泉徴収票!BY41, IF(源泉徴収票!BY41<=50000,源泉徴収票!BY41*1/2+12500, IF(源泉徴収票!BY41<=100000,源泉徴収票!BY41*1/4+25000, 50000))) -> 0 | AD41: 0 | AE41: 0 | AF41: =IF(源泉徴収票!BZ41<>"",MIN(源泉徴収票!BZ41,50000),0) -> 0 | AG41: =IF(源泉徴収票!CA41>=20000,15000,IF(源泉徴収票!CA41>=10000,源泉徴収票!CA41/2+5000,源泉徴収票!CA41)) -> 0 | AH41: =IF(源泉徴収票!CS41<>"","〇","×") -> × | AJ41: =源泉徴収票!O41+源泉徴収票!R41+源泉徴収票!U41 -> 0 | AK41: =源泉徴収票!Q41+源泉徴収票!T41+源泉徴収票!W41 -> 0 | AL41: =IF(源泉徴収票!I41="無",0,INT(A41*VLOOKUP(A41, 給与所得計算, 3, TRUE) + VLOOKUP(A41, 給与所得計算, 4, TRUE) )) -> 0 | AM41: 0 | AN41: 0 | AO41: =源泉徴収票!P41+源泉徴収票!S41+源泉徴収票!V41 -> 0 | AP41: =IF(源泉徴収票!I41="無",0,源泉徴収票!CB41) -> 0 | AQ41: =IF(源泉徴収票!I41="無",0,源泉徴収票!CD41) -> 0 | AR41: =IF(源泉徴収票!I41="無",0,MIN(120000,Z41+AA41+AE41)) -> 0 | AS41: =IF(源泉徴収票!I41="無",0,MIN(AF41+AG41,50000)) -> 0 | AT41: =IF(源泉徴収票!I41="無",0,IF(E41="○",INDEX(H30配偶者控除・特別控除マスタ,F41,G41),0)) -> 0 | AU41: =IF(源泉徴収票!I41="無",0,IF(C41="○",INDEX(H30配偶者控除・特別控除マスタ,F41,G41),0)+IF(D41="○",INDEX(H30老人控除対象配偶者上乗せ,1,G41),0)) -> 0 | AV41: =IF(源泉徴収票!I41="無",0,COUNTIF(M41:Q41,"一")*380000+COUNTIF(M41:Q41,"特")*630000+COUNTIF(M41:Q41,"老")*480000+COUNTIF(M41:Q41,"同")*580000) -> 0 | AW41: =IF(源泉徴収票!I41="無",0,(COUNTIF(源泉徴収票!BO41:BP41,"一般")+源泉徴収票!BQ41)*270000+(COUNTIF(源泉徴収票!BO41:BP41,"特別")+源泉徴収票!BR41)*400000+(COUNTIF(源泉徴収票!BP41,"同居特別")+源泉徴収票!BS41)*750000) -> 0 | AX41: =IF(源泉徴収票!I41="無",0,IF(源泉徴収票!BT41<>"",IF(OR(源泉徴収票!BT41="特別の寡婦",源泉徴収票!BT41="ひとり親"),350000,270000),0)) -> 0 | AY41: =IF(源泉徴収票!I41="無",0,480000) -> 480000 | AZ41: =IF(源泉徴収票!I41="無",0,SUM(AO41:AY41)) -> 480000 | BA41: =IF(源泉徴収票!I41="無",AN41,FLOOR(MAX(AN41-AZ41,0),1000)) -> 0 | BB41: =IF(源泉徴収票!I41="無",AK41,BA41*VLOOKUP(BA41,所得税額計算,3,TRUE)+VLOOKUP(BA41,所得税額計算,4,TRUE)) -> 0 | BC41: =IF(源泉徴収票!I41="無",0,源泉徴収票!CZ41) -> 0 | BD41: 0 | BE41: =IF(源泉徴収票!I41="無",BD41,FLOOR(BD41*102.1%,100)) -> 0 | BF41: 0
A42: 0 | B42: =IF(AND(源泉徴収票!I42="無",源泉徴収票!AE42<>""),"○","×") -> × | C42: =IF(AND(源泉徴収票!CO42<>"",源泉徴収票!CO42<=480000,AN42<=10000000),"○","×") -> × | D42: =IF(AND(C42="○",源泉徴収票!CN42<>"",会社情報!$C$7-YEAR(MAX(源泉徴収票!CN42-1,0))>=70),"○","×") -> × | E42: =IF(AND(源泉徴収票!CO42<>"",源泉徴収票!CO42>480000,源泉徴収票!CO42<=1330000,AN42<=10000000),"○","×") -> × | F42: =MATCH(源泉徴収票!CO42,H30配偶者控除・特別控除マスタ_配偶者所得,1) -> 1 | G42: =MATCH('源泉徴収票計算過程(非)'!AN42,H30配偶者控除・特別控除マスタ_所得者合計所得,1) -> 1 | H42: =IF(源泉徴収票!AN42="",-1,会社情報!$C$7-YEAR(源泉徴収票!AN42-1)) -> -1 | I42: =IF(源泉徴収票!AT42="",-1,会社情報!$C$7-YEAR(源泉徴収票!AT42-1)) -> -1 | J42: =IF(源泉徴収票!AZ42="",-1,会社情報!$C$7-YEAR(源泉徴収票!AZ42-1)) -> -1 | K42: =IF(源泉徴収票!BF42="",-1,会社情報!$C$7-YEAR(源泉徴収票!BF42-1)) -> -1 | L42: =IF(源泉徴収票!BL42="",-1,会社情報!$C$7-YEAR(源泉徴収票!BL42-1)) -> -1 | M42: =IF(H42>=16,IF(AND(H42>=19,H42<23),"特",IF(H42>=70,IF(源泉徴収票!AO42="同居老親等","同","老"),"一")),IF(H42>=0,"未","×")) -> × | N42: =IF(I42>=16,IF(AND(I42>=19,I42<23),"特",IF(I42>=70,IF(源泉徴収票!AU42="同居老親等","同","老"),"一")),IF(I42>=0,"未","×")) -> × | O42: =IF(J42>=16,IF(AND(J42>=19,J42<23),"特",IF(J42>=70,IF(源泉徴収票!BA42="同居老親等","同","老"),"一")),IF(J42>=0,"未","×")) -> × | P42: =IF(K42>=16,IF(AND(K42>=19,K42<23),"特",IF(K42>=70,IF(源泉徴収票!BG42="同居老親等","同","老"),"一")),IF(K42>=0,"未","×")) -> × | Q42: =IF(L42>=16,IF(AND(L42>=19,L42<23),"特",IF(L42>=70,IF(源泉徴収票!BM42="同居老親等","同","老"),"一")),IF(L42>=0,"未","×")) -> × | W42: =IF(源泉徴収票!BU42<=20000, 源泉徴収票!BU42, IF(源泉徴収票!BU42<=40000, 源泉徴収票!BU42*1/2+10000, IF(源泉徴収票!BU42<=80000, 源泉徴収票!BU42*1/4+20000, 40000))) -> 0 | X42: =IF(源泉徴収票!BV42<=25000,源泉徴収票!BV42, IF(源泉徴収票!BV42<=50000,源泉徴収票!BV42*1/2+12500, IF(源泉徴収票!BV42<=100000,源泉徴収票!BV42*1/4+25000, 50000))) -> 0 | Y42: 0 | Z42: 0 | AA42: =IF(源泉徴収票!BW42<=20000, 源泉徴収票!BW42, IF(源泉徴収票!BW42<=40000, 源泉徴収票!BW42*1/2+10000, IF(源泉徴収票!BW42<=80000, 源泉徴収票!BW42*1/4+20000, 40000))) -> 0 | AB42: =IF(源泉徴収票!BX42<=20000, 源泉徴収票!BX42, IF(源泉徴収票!BX42<=40000, 源泉徴収票!BX42*1/2+10000, IF(源泉徴収票!BX42<=80000, 源泉徴収票!BX42*1/4+20000, 40000))) -> 0 | AC42: =IF(源泉徴収票!BY42<=25000,源泉徴収票!BY42, IF(源泉徴収票!BY42<=50000,源泉徴収票!BY42*1/2+12500, IF(源泉徴収票!BY42<=100000,源泉徴収票!BY42*1/4+25000, 50000))) -> 0 | AD42: 0 | AE42: 0 | AF42: =IF(源泉徴収票!BZ42<>"",MIN(源泉徴収票!BZ42,50000),0) -> 0 | AG42: =IF(源泉徴収票!CA42>=20000,15000,IF(源泉徴収票!CA42>=10000,源泉徴収票!CA42/2+5000,源泉徴収票!CA42)) -> 0 | AH42: =IF(源泉徴収票!CS42<>"","〇","×") -> × | AJ42: =源泉徴収票!O42+源泉徴収票!R42+源泉徴収票!U42 -> 0 | AK42: =源泉徴収票!Q42+源泉徴収票!T42+源泉徴収票!W42 -> 0 | AL42: =IF(源泉徴収票!I42="無",0,INT(A42*VLOOKUP(A42, 給与所得計算, 3, TRUE) + VLOOKUP(A42, 給与所得計算, 4, TRUE) )) -> 0 | AM42: 0 | AN42: 0 | AO42: =源泉徴収票!P42+源泉徴収票!S42+源泉徴収票!V42 -> 0 | AP42: =IF(源泉徴収票!I42="無",0,源泉徴収票!CB42) -> 0 | AQ42: =IF(源泉徴収票!I42="無",0,源泉徴収票!CD42) -> 0 | AR42: =IF(源泉徴収票!I42="無",0,MIN(120000,Z42+AA42+AE42)) -> 0 | AS42: =IF(源泉徴収票!I42="無",0,MIN(AF42+AG42,50000)) -> 0 | AT42: =IF(源泉徴収票!I42="無",0,IF(E42="○",INDEX(H30配偶者控除・特別控除マスタ,F42,G42),0)) -> 0 | AU42: =IF(源泉徴収票!I42="無",0,IF(C42="○",INDEX(H30配偶者控除・特別控除マスタ,F42,G42),0)+IF(D42="○",INDEX(H30老人控除対象配偶者上乗せ,1,G42),0)) -> 0 | AV42: =IF(源泉徴収票!I42="無",0,COUNTIF(M42:Q42,"一")*380000+COUNTIF(M42:Q42,"特")*630000+COUNTIF(M42:Q42,"老")*480000+COUNTIF(M42:Q42,"同")*580000) -> 0 | AW42: =IF(源泉徴収票!I42="無",0,(COUNTIF(源泉徴収票!BO42:BP42,"一般")+源泉徴収票!BQ42)*270000+(COUNTIF(源泉徴収票!BO42:BP42,"特別")+源泉徴収票!BR42)*400000+(COUNTIF(源泉徴収票!BP42,"同居特別")+源泉徴収票!BS42)*750000) -> 0 | AX42: =IF(源泉徴収票!I42="無",0,IF(源泉徴収票!BT42<>"",IF(OR(源泉徴収票!BT42="特別の寡婦",源泉徴収票!BT42="ひとり親"),350000,270000),0)) -> 0 | AY42: =IF(源泉徴収票!I42="無",0,480000) -> 480000 | AZ42: =IF(源泉徴収票!I42="無",0,SUM(AO42:AY42)) -> 480000 | BA42: =IF(源泉徴収票!I42="無",AN42,FLOOR(MAX(AN42-AZ42,0),1000)) -> 0 | BB42: =IF(源泉徴収票!I42="無",AK42,BA42*VLOOKUP(BA42,所得税額計算,3,TRUE)+VLOOKUP(BA42,所得税額計算,4,TRUE)) -> 0 | BC42: =IF(源泉徴収票!I42="無",0,源泉徴収票!CZ42) -> 0 | BD42: 0 | BE42: =IF(源泉徴収票!I42="無",BD42,FLOOR(BD42*102.1%,100)) -> 0 | BF42: 0
A43: 0 | B43: =IF(AND(源泉徴収票!I43="無",源泉徴収票!AE43<>""),"○","×") -> × | C43: =IF(AND(源泉徴収票!CO43<>"",源泉徴収票!CO43<=480000,AN43<=10000000),"○","×") -> × | D43: =IF(AND(C43="○",源泉徴収票!CN43<>"",会社情報!$C$7-YEAR(MAX(源泉徴収票!CN43-1,0))>=70),"○","×") -> × | E43: =IF(AND(源泉徴収票!CO43<>"",源泉徴収票!CO43>480000,源泉徴収票!CO43<=1330000,AN43<=10000000),"○","×") -> × | F43: =MATCH(源泉徴収票!CO43,H30配偶者控除・特別控除マスタ_配偶者所得,1) -> 1 | G43: =MATCH('源泉徴収票計算過程(非)'!AN43,H30配偶者控除・特別控除マスタ_所得者合計所得,1) -> 1 | H43: =IF(源泉徴収票!AN43="",-1,会社情報!$C$7-YEAR(源泉徴収票!AN43-1)) -> -1 | I43: =IF(源泉徴収票!AT43="",-1,会社情報!$C$7-YEAR(源泉徴収票!AT43-1)) -> -1 | J43: =IF(源泉徴収票!AZ43="",-1,会社情報!$C$7-YEAR(源泉徴収票!AZ43-1)) -> -1 | K43: =IF(源泉徴収票!BF43="",-1,会社情報!$C$7-YEAR(源泉徴収票!BF43-1)) -> -1 | L43: =IF(源泉徴収票!BL43="",-1,会社情報!$C$7-YEAR(源泉徴収票!BL43-1)) -> -1 | M43: =IF(H43>=16,IF(AND(H43>=19,H43<23),"特",IF(H43>=70,IF(源泉徴収票!AO43="同居老親等","同","老"),"一")),IF(H43>=0,"未","×")) -> × | N43: =IF(I43>=16,IF(AND(I43>=19,I43<23),"特",IF(I43>=70,IF(源泉徴収票!AU43="同居老親等","同","老"),"一")),IF(I43>=0,"未","×")) -> × | O43: =IF(J43>=16,IF(AND(J43>=19,J43<23),"特",IF(J43>=70,IF(源泉徴収票!BA43="同居老親等","同","老"),"一")),IF(J43>=0,"未","×")) -> × | P43: =IF(K43>=16,IF(AND(K43>=19,K43<23),"特",IF(K43>=70,IF(源泉徴収票!BG43="同居老親等","同","老"),"一")),IF(K43>=0,"未","×")) -> × | Q43: =IF(L43>=16,IF(AND(L43>=19,L43<23),"特",IF(L43>=70,IF(源泉徴収票!BM43="同居老親等","同","老"),"一")),IF(L43>=0,"未","×")) -> × | W43: =IF(源泉徴収票!BU43<=20000, 源泉徴収票!BU43, IF(源泉徴収票!BU43<=40000, 源泉徴収票!BU43*1/2+10000, IF(源泉徴収票!BU43<=80000, 源泉徴収票!BU43*1/4+20000, 40000))) -> 0 | X43: =IF(源泉徴収票!BV43<=25000,源泉徴収票!BV43, IF(源泉徴収票!BV43<=50000,源泉徴収票!BV43*1/2+12500, IF(源泉徴収票!BV43<=100000,源泉徴収票!BV43*1/4+25000, 50000))) -> 0 | Y43: 0 | Z43: 0 | AA43: =IF(源泉徴収票!BW43<=20000, 源泉徴収票!BW43, IF(源泉徴収票!BW43<=40000, 源泉徴収票!BW43*1/2+10000, IF(源泉徴収票!BW43<=80000, 源泉徴収票!BW43*1/4+20000, 40000))) -> 0 | AB43: =IF(源泉徴収票!BX43<=20000, 源泉徴収票!BX43, IF(源泉徴収票!BX43<=40000, 源泉徴収票!BX43*1/2+10000, IF(源泉徴収票!BX43<=80000, 源泉徴収票!BX43*1/4+20000, 40000))) -> 0 | AC43: =IF(源泉徴収票!BY43<=25000,源泉徴収票!BY43, IF(源泉徴収票!BY43<=50000,源泉徴収票!BY43*1/2+12500, IF(源泉徴収票!BY43<=100000,源泉徴収票!BY43*1/4+25000, 50000))) -> 0 | AD43: 0 | AE43: 0 | AF43: =IF(源泉徴収票!BZ43<>"",MIN(源泉徴収票!BZ43,50000),0) -> 0 | AG43: =IF(源泉徴収票!CA43>=20000,15000,IF(源泉徴収票!CA43>=10000,源泉徴収票!CA43/2+5000,源泉徴収票!CA43)) -> 0 | AH43: =IF(源泉徴収票!CS43<>"","〇","×") -> × | AJ43: =源泉徴収票!O43+源泉徴収票!R43+源泉徴収票!U43 -> 0 | AK43: =源泉徴収票!Q43+源泉徴収票!T43+源泉徴収票!W43 -> 0 | AL43: =IF(源泉徴収票!I43="無",0,INT(A43*VLOOKUP(A43, 給与所得計算, 3, TRUE) + VLOOKUP(A43, 給与所得計算, 4, TRUE) )) -> 0 | AM43: 0 | AN43: 0 | AO43: =源泉徴収票!P43+源泉徴収票!S43+源泉徴収票!V43 -> 0 | AP43: =IF(源泉徴収票!I43="無",0,源泉徴収票!CB43) -> 0 | AQ43: =IF(源泉徴収票!I43="無",0,源泉徴収票!CD43) -> 0 | AR43: =IF(源泉徴収票!I43="無",0,MIN(120000,Z43+AA43+AE43)) -> 0 | AS43: =IF(源泉徴収票!I43="無",0,MIN(AF43+AG43,50000)) -> 0 | AT43: =IF(源泉徴収票!I43="無",0,IF(E43="○",INDEX(H30配偶者控除・特別控除マスタ,F43,G43),0)) -> 0 | AU43: =IF(源泉徴収票!I43="無",0,IF(C43="○",INDEX(H30配偶者控除・特別控除マスタ,F43,G43),0)+IF(D43="○",INDEX(H30老人控除対象配偶者上乗せ,1,G43),0)) -> 0 | AV43: =IF(源泉徴収票!I43="無",0,COUNTIF(M43:Q43,"一")*380000+COUNTIF(M43:Q43,"特")*630000+COUNTIF(M43:Q43,"老")*480000+COUNTIF(M43:Q43,"同")*580000) -> 0 | AW43: =IF(源泉徴収票!I43="無",0,(COUNTIF(源泉徴収票!BO43:BP43,"一般")+源泉徴収票!BQ43)*270000+(COUNTIF(源泉徴収票!BO43:BP43,"特別")+源泉徴収票!BR43)*400000+(COUNTIF(源泉徴収票!BP43,"同居特別")+源泉徴収票!BS43)*750000) -> 0 | AX43: =IF(源泉徴収票!I43="無",0,IF(源泉徴収票!BT43<>"",IF(OR(源泉徴収票!BT43="特別の寡婦",源泉徴収票!BT43="ひとり親"),350000,270000),0)) -> 0 | AY43: =IF(源泉徴収票!I43="無",0,480000) -> 480000 | AZ43: =IF(源泉徴収票!I43="無",0,SUM(AO43:AY43)) -> 480000 | BA43: =IF(源泉徴収票!I43="無",AN43,FLOOR(MAX(AN43-AZ43,0),1000)) -> 0 | BB43: =IF(源泉徴収票!I43="無",AK43,BA43*VLOOKUP(BA43,所得税額計算,3,TRUE)+VLOOKUP(BA43,所得税額計算,4,TRUE)) -> 0 | BC43: =IF(源泉徴収票!I43="無",0,源泉徴収票!CZ43) -> 0 | BD43: 0 | BE43: =IF(源泉徴収票!I43="無",BD43,FLOOR(BD43*102.1%,100)) -> 0 | BF43: 0
A44: 0 | B44: =IF(AND(源泉徴収票!I44="無",源泉徴収票!AE44<>""),"○","×") -> × | C44: =IF(AND(源泉徴収票!CO44<>"",源泉徴収票!CO44<=480000,AN44<=10000000),"○","×") -> × | D44: =IF(AND(C44="○",源泉徴収票!CN44<>"",会社情報!$C$7-YEAR(MAX(源泉徴収票!CN44-1,0))>=70),"○","×") -> × | E44: =IF(AND(源泉徴収票!CO44<>"",源泉徴収票!CO44>480000,源泉徴収票!CO44<=1330000,AN44<=10000000),"○","×") -> × | F44: =MATCH(源泉徴収票!CO44,H30配偶者控除・特別控除マスタ_配偶者所得,1) -> 1 | G44: =MATCH('源泉徴収票計算過程(非)'!AN44,H30配偶者控除・特別控除マスタ_所得者合計所得,1) -> 1 | H44: =IF(源泉徴収票!AN44="",-1,会社情報!$C$7-YEAR(源泉徴収票!AN44-1)) -> -1 | I44: =IF(源泉徴収票!AT44="",-1,会社情報!$C$7-YEAR(源泉徴収票!AT44-1)) -> -1 | J44: =IF(源泉徴収票!AZ44="",-1,会社情報!$C$7-YEAR(源泉徴収票!AZ44-1)) -> -1 | K44: =IF(源泉徴収票!BF44="",-1,会社情報!$C$7-YEAR(源泉徴収票!BF44-1)) -> -1 | L44: =IF(源泉徴収票!BL44="",-1,会社情報!$C$7-YEAR(源泉徴収票!BL44-1)) -> -1 | M44: =IF(H44>=16,IF(AND(H44>=19,H44<23),"特",IF(H44>=70,IF(源泉徴収票!AO44="同居老親等","同","老"),"一")),IF(H44>=0,"未","×")) -> × | N44: =IF(I44>=16,IF(AND(I44>=19,I44<23),"特",IF(I44>=70,IF(源泉徴収票!AU44="同居老親等","同","老"),"一")),IF(I44>=0,"未","×")) -> × | O44: =IF(J44>=16,IF(AND(J44>=19,J44<23),"特",IF(J44>=70,IF(源泉徴収票!BA44="同居老親等","同","老"),"一")),IF(J44>=0,"未","×")) -> × | P44: =IF(K44>=16,IF(AND(K44>=19,K44<23),"特",IF(K44>=70,IF(源泉徴収票!BG44="同居老親等","同","老"),"一")),IF(K44>=0,"未","×")) -> × | Q44: =IF(L44>=16,IF(AND(L44>=19,L44<23),"特",IF(L44>=70,IF(源泉徴収票!BM44="同居老親等","同","老"),"一")),IF(L44>=0,"未","×")) -> × | W44: =IF(源泉徴収票!BU44<=20000, 源泉徴収票!BU44, IF(源泉徴収票!BU44<=40000, 源泉徴収票!BU44*1/2+10000, IF(源泉徴収票!BU44<=80000, 源泉徴収票!BU44*1/4+20000, 40000))) -> 0 | X44: =IF(源泉徴収票!BV44<=25000,源泉徴収票!BV44, IF(源泉徴収票!BV44<=50000,源泉徴収票!BV44*1/2+12500, IF(源泉徴収票!BV44<=100000,源泉徴収票!BV44*1/4+25000, 50000))) -> 0 | Y44: 0 | Z44: 0 | AA44: =IF(源泉徴収票!BW44<=20000, 源泉徴収票!BW44, IF(源泉徴収票!BW44<=40000, 源泉徴収票!BW44*1/2+10000, IF(源泉徴収票!BW44<=80000, 源泉徴収票!BW44*1/4+20000, 40000))) -> 0 | AB44: =IF(源泉徴収票!BX44<=20000, 源泉徴収票!BX44, IF(源泉徴収票!BX44<=40000, 源泉徴収票!BX44*1/2+10000, IF(源泉徴収票!BX44<=80000, 源泉徴収票!BX44*1/4+20000, 40000))) -> 0 | AC44: =IF(源泉徴収票!BY44<=25000,源泉徴収票!BY44, IF(源泉徴収票!BY44<=50000,源泉徴収票!BY44*1/2+12500, IF(源泉徴収票!BY44<=100000,源泉徴収票!BY44*1/4+25000, 50000))) -> 0 | AD44: 0 | AE44: 0 | AF44: =IF(源泉徴収票!BZ44<>"",MIN(源泉徴収票!BZ44,50000),0) -> 0 | AG44: =IF(源泉徴収票!CA44>=20000,15000,IF(源泉徴収票!CA44>=10000,源泉徴収票!CA44/2+5000,源泉徴収票!CA44)) -> 0 | AH44: =IF(源泉徴収票!CS44<>"","〇","×") -> × | AJ44: =源泉徴収票!O44+源泉徴収票!R44+源泉徴収票!U44 -> 0 | AK44: =源泉徴収票!Q44+源泉徴収票!T44+源泉徴収票!W44 -> 0 | AL44: =IF(源泉徴収票!I44="無",0,INT(A44*VLOOKUP(A44, 給与所得計算, 3, TRUE) + VLOOKUP(A44, 給与所得計算, 4, TRUE) )) -> 0 | AM44: 0 | AN44: 0 | AO44: =源泉徴収票!P44+源泉徴収票!S44+源泉徴収票!V44 -> 0 | AP44: =IF(源泉徴収票!I44="無",0,源泉徴収票!CB44) -> 0 | AQ44: =IF(源泉徴収票!I44="無",0,源泉徴収票!CD44) -> 0 | AR44: =IF(源泉徴収票!I44="無",0,MIN(120000,Z44+AA44+AE44)) -> 0 | AS44: =IF(源泉徴収票!I44="無",0,MIN(AF44+AG44,50000)) -> 0 | AT44: =IF(源泉徴収票!I44="無",0,IF(E44="○",INDEX(H30配偶者控除・特別控除マスタ,F44,G44),0)) -> 0 | AU44: =IF(源泉徴収票!I44="無",0,IF(C44="○",INDEX(H30配偶者控除・特別控除マスタ,F44,G44),0)+IF(D44="○",INDEX(H30老人控除対象配偶者上乗せ,1,G44),0)) -> 0 | AV44: =IF(源泉徴収票!I44="無",0,COUNTIF(M44:Q44,"一")*380000+COUNTIF(M44:Q44,"特")*630000+COUNTIF(M44:Q44,"老")*480000+COUNTIF(M44:Q44,"同")*580000) -> 0 | AW44: =IF(源泉徴収票!I44="無",0,(COUNTIF(源泉徴収票!BO44:BP44,"一般")+源泉徴収票!BQ44)*270000+(COUNTIF(源泉徴収票!BO44:BP44,"特別")+源泉徴収票!BR44)*400000+(COUNTIF(源泉徴収票!BP44,"同居特別")+源泉徴収票!BS44)*750000) -> 0 | AX44: =IF(源泉徴収票!I44="無",0,IF(源泉徴収票!BT44<>"",IF(OR(源泉徴収票!BT44="特別の寡婦",源泉徴収票!BT44="ひとり親"),350000,270000),0)) -> 0 | AY44: =IF(源泉徴収票!I44="無",0,480000) -> 480000 | AZ44: =IF(源泉徴収票!I44="無",0,SUM(AO44:AY44)) -> 480000 | BA44: =IF(源泉徴収票!I44="無",AN44,FLOOR(MAX(AN44-AZ44,0),1000)) -> 0 | BB44: =IF(源泉徴収票!I44="無",AK44,BA44*VLOOKUP(BA44,所得税額計算,3,TRUE)+VLOOKUP(BA44,所得税額計算,4,TRUE)) -> 0 | BC44: =IF(源泉徴収票!I44="無",0,源泉徴収票!CZ44) -> 0 | BD44: 0 | BE44: =IF(源泉徴収票!I44="無",BD44,FLOOR(BD44*102.1%,100)) -> 0 | BF44: 0
A45: 0 | B45: =IF(AND(源泉徴収票!I45="無",源泉徴収票!AE45<>""),"○","×") -> × | C45: =IF(AND(源泉徴収票!CO45<>"",源泉徴収票!CO45<=480000,AN45<=10000000),"○","×") -> × | D45: =IF(AND(C45="○",源泉徴収票!CN45<>"",会社情報!$C$7-YEAR(MAX(源泉徴収票!CN45-1,0))>=70),"○","×") -> × | E45: =IF(AND(源泉徴収票!CO45<>"",源泉徴収票!CO45>480000,源泉徴収票!CO45<=1330000,AN45<=10000000),"○","×") -> × | F45: =MATCH(源泉徴収票!CO45,H30配偶者控除・特別控除マスタ_配偶者所得,1) -> 1 | G45: =MATCH('源泉徴収票計算過程(非)'!AN45,H30配偶者控除・特別控除マスタ_所得者合計所得,1) -> 1 | H45: =IF(源泉徴収票!AN45="",-1,会社情報!$C$7-YEAR(源泉徴収票!AN45-1)) -> -1 | I45: =IF(源泉徴収票!AT45="",-1,会社情報!$C$7-YEAR(源泉徴収票!AT45-1)) -> -1 | J45: =IF(源泉徴収票!AZ45="",-1,会社情報!$C$7-YEAR(源泉徴収票!AZ45-1)) -> -1 | K45: =IF(源泉徴収票!BF45="",-1,会社情報!$C$7-YEAR(源泉徴収票!BF45-1)) -> -1 | L45: =IF(源泉徴収票!BL45="",-1,会社情報!$C$7-YEAR(源泉徴収票!BL45-1)) -> -1 | M45: =IF(H45>=16,IF(AND(H45>=19,H45<23),"特",IF(H45>=70,IF(源泉徴収票!AO45="同居老親等","同","老"),"一")),IF(H45>=0,"未","×")) -> × | N45: =IF(I45>=16,IF(AND(I45>=19,I45<23),"特",IF(I45>=70,IF(源泉徴収票!AU45="同居老親等","同","老"),"一")),IF(I45>=0,"未","×")) -> × | O45: =IF(J45>=16,IF(AND(J45>=19,J45<23),"特",IF(J45>=70,IF(源泉徴収票!BA45="同居老親等","同","老"),"一")),IF(J45>=0,"未","×")) -> × | P45: =IF(K45>=16,IF(AND(K45>=19,K45<23),"特",IF(K45>=70,IF(源泉徴収票!BG45="同居老親等","同","老"),"一")),IF(K45>=0,"未","×")) -> × | Q45: =IF(L45>=16,IF(AND(L45>=19,L45<23),"特",IF(L45>=70,IF(源泉徴収票!BM45="同居老親等","同","老"),"一")),IF(L45>=0,"未","×")) -> × | W45: =IF(源泉徴収票!BU45<=20000, 源泉徴収票!BU45, IF(源泉徴収票!BU45<=40000, 源泉徴収票!BU45*1/2+10000, IF(源泉徴収票!BU45<=80000, 源泉徴収票!BU45*1/4+20000, 40000))) -> 0 | X45: =IF(源泉徴収票!BV45<=25000,源泉徴収票!BV45, IF(源泉徴収票!BV45<=50000,源泉徴収票!BV45*1/2+12500, IF(源泉徴収票!BV45<=100000,源泉徴収票!BV45*1/4+25000, 50000))) -> 0 | Y45: 0 | Z45: 0 | AA45: =IF(源泉徴収票!BW45<=20000, 源泉徴収票!BW45, IF(源泉徴収票!BW45<=40000, 源泉徴収票!BW45*1/2+10000, IF(源泉徴収票!BW45<=80000, 源泉徴収票!BW45*1/4+20000, 40000))) -> 0 | AB45: =IF(源泉徴収票!BX45<=20000, 源泉徴収票!BX45, IF(源泉徴収票!BX45<=40000, 源泉徴収票!BX45*1/2+10000, IF(源泉徴収票!BX45<=80000, 源泉徴収票!BX45*1/4+20000, 40000))) -> 0 | AC45: =IF(源泉徴収票!BY45<=25000,源泉徴収票!BY45, IF(源泉徴収票!BY45<=50000,源泉徴収票!BY45*1/2+12500, IF(源泉徴収票!BY45<=100000,源泉徴収票!BY45*1/4+25000, 50000))) -> 0 | AD45: 0 | AE45: 0 | AF45: =IF(源泉徴収票!BZ45<>"",MIN(源泉徴収票!BZ45,50000),0) -> 0 | AG45: =IF(源泉徴収票!CA45>=20000,15000,IF(源泉徴収票!CA45>=10000,源泉徴収票!CA45/2+5000,源泉徴収票!CA45)) -> 0 | AH45: =IF(源泉徴収票!CS45<>"","〇","×") -> × | AJ45: =源泉徴収票!O45+源泉徴収票!R45+源泉徴収票!U45 -> 0 | AK45: =源泉徴収票!Q45+源泉徴収票!T45+源泉徴収票!W45 -> 0 | AL45: =IF(源泉徴収票!I45="無",0,INT(A45*VLOOKUP(A45, 給与所得計算, 3, TRUE) + VLOOKUP(A45, 給与所得計算, 4, TRUE) )) -> 0 | AM45: 0 | AN45: 0 | AO45: =源泉徴収票!P45+源泉徴収票!S45+源泉徴収票!V45 -> 0 | AP45: =IF(源泉徴収票!I45="無",0,源泉徴収票!CB45) -> 0 | AQ45: =IF(源泉徴収票!I45="無",0,源泉徴収票!CD45) -> 0 | AR45: =IF(源泉徴収票!I45="無",0,MIN(120000,Z45+AA45+AE45)) -> 0 | AS45: =IF(源泉徴収票!I45="無",0,MIN(AF45+AG45,50000)) -> 0 | AT45: =IF(源泉徴収票!I45="無",0,IF(E45="○",INDEX(H30配偶者控除・特別控除マスタ,F45,G45),0)) -> 0 | AU45: =IF(源泉徴収票!I45="無",0,IF(C45="○",INDEX(H30配偶者控除・特別控除マスタ,F45,G45),0)+IF(D45="○",INDEX(H30老人控除対象配偶者上乗せ,1,G45),0)) -> 0 | AV45: =IF(源泉徴収票!I45="無",0,COUNTIF(M45:Q45,"一")*380000+COUNTIF(M45:Q45,"特")*630000+COUNTIF(M45:Q45,"老")*480000+COUNTIF(M45:Q45,"同")*580000) -> 0 | AW45: =IF(源泉徴収票!I45="無",0,(COUNTIF(源泉徴収票!BO45:BP45,"一般")+源泉徴収票!BQ45)*270000+(COUNTIF(源泉徴収票!BO45:BP45,"特別")+源泉徴収票!BR45)*400000+(COUNTIF(源泉徴収票!BP45,"同居特別")+源泉徴収票!BS45)*750000) -> 0 | AX45: =IF(源泉徴収票!I45="無",0,IF(源泉徴収票!BT45<>"",IF(OR(源泉徴収票!BT45="特別の寡婦",源泉徴収票!BT45="ひとり親"),350000,270000),0)) -> 0 | AY45: =IF(源泉徴収票!I45="無",0,480000) -> 480000 | AZ45: =IF(源泉徴収票!I45="無",0,SUM(AO45:AY45)) -> 480000 | BA45: =IF(源泉徴収票!I45="無",AN45,FLOOR(MAX(AN45-AZ45,0),1000)) -> 0 | BB45: =IF(源泉徴収票!I45="無",AK45,BA45*VLOOKUP(BA45,所得税額計算,3,TRUE)+VLOOKUP(BA45,所得税額計算,4,TRUE)) -> 0 | BC45: =IF(源泉徴収票!I45="無",0,源泉徴収票!CZ45) -> 0 | BD45: 0 | BE45: =IF(源泉徴収票!I45="無",BD45,FLOOR(BD45*102.1%,100)) -> 0 | BF45: 0
A46: 0 | B46: =IF(AND(源泉徴収票!I46="無",源泉徴収票!AE46<>""),"○","×") -> × | C46: =IF(AND(源泉徴収票!CO46<>"",源泉徴収票!CO46<=480000,AN46<=10000000),"○","×") -> × | D46: =IF(AND(C46="○",源泉徴収票!CN46<>"",会社情報!$C$7-YEAR(MAX(源泉徴収票!CN46-1,0))>=70),"○","×") -> × | E46: =IF(AND(源泉徴収票!CO46<>"",源泉徴収票!CO46>480000,源泉徴収票!CO46<=1330000,AN46<=10000000),"○","×") -> × | F46: =MATCH(源泉徴収票!CO46,H30配偶者控除・特別控除マスタ_配偶者所得,1) -> 1 | G46: =MATCH('源泉徴収票計算過程(非)'!AN46,H30配偶者控除・特別控除マスタ_所得者合計所得,1) -> 1 | H46: =IF(源泉徴収票!AN46="",-1,会社情報!$C$7-YEAR(源泉徴収票!AN46-1)) -> -1 | I46: =IF(源泉徴収票!AT46="",-1,会社情報!$C$7-YEAR(源泉徴収票!AT46-1)) -> -1 | J46: =IF(源泉徴収票!AZ46="",-1,会社情報!$C$7-YEAR(源泉徴収票!AZ46-1)) -> -1 | K46: =IF(源泉徴収票!BF46="",-1,会社情報!$C$7-YEAR(源泉徴収票!BF46-1)) -> -1 | L46: =IF(源泉徴収票!BL46="",-1,会社情報!$C$7-YEAR(源泉徴収票!BL46-1)) -> -1 | M46: =IF(H46>=16,IF(AND(H46>=19,H46<23),"特",IF(H46>=70,IF(源泉徴収票!AO46="同居老親等","同","老"),"一")),IF(H46>=0,"未","×")) -> × | N46: =IF(I46>=16,IF(AND(I46>=19,I46<23),"特",IF(I46>=70,IF(源泉徴収票!AU46="同居老親等","同","老"),"一")),IF(I46>=0,"未","×")) -> × | O46: =IF(J46>=16,IF(AND(J46>=19,J46<23),"特",IF(J46>=70,IF(源泉徴収票!BA46="同居老親等","同","老"),"一")),IF(J46>=0,"未","×")) -> × | P46: =IF(K46>=16,IF(AND(K46>=19,K46<23),"特",IF(K46>=70,IF(源泉徴収票!BG46="同居老親等","同","老"),"一")),IF(K46>=0,"未","×")) -> × | Q46: =IF(L46>=16,IF(AND(L46>=19,L46<23),"特",IF(L46>=70,IF(源泉徴収票!BM46="同居老親等","同","老"),"一")),IF(L46>=0,"未","×")) -> × | W46: =IF(源泉徴収票!BU46<=20000, 源泉徴収票!BU46, IF(源泉徴収票!BU46<=40000, 源泉徴収票!BU46*1/2+10000, IF(源泉徴収票!BU46<=80000, 源泉徴収票!BU46*1/4+20000, 40000))) -> 0 | X46: =IF(源泉徴収票!BV46<=25000,源泉徴収票!BV46, IF(源泉徴収票!BV46<=50000,源泉徴収票!BV46*1/2+12500, IF(源泉徴収票!BV46<=100000,源泉徴収票!BV46*1/4+25000, 50000))) -> 0 | Y46: 0 | Z46: 0 | AA46: =IF(源泉徴収票!BW46<=20000, 源泉徴収票!BW46, IF(源泉徴収票!BW46<=40000, 源泉徴収票!BW46*1/2+10000, IF(源泉徴収票!BW46<=80000, 源泉徴収票!BW46*1/4+20000, 40000))) -> 0 | AB46: =IF(源泉徴収票!BX46<=20000, 源泉徴収票!BX46, IF(源泉徴収票!BX46<=40000, 源泉徴収票!BX46*1/2+10000, IF(源泉徴収票!BX46<=80000, 源泉徴収票!BX46*1/4+20000, 40000))) -> 0 | AC46: =IF(源泉徴収票!BY46<=25000,源泉徴収票!BY46, IF(源泉徴収票!BY46<=50000,源泉徴収票!BY46*1/2+12500, IF(源泉徴収票!BY46<=100000,源泉徴収票!BY46*1/4+25000, 50000))) -> 0 | AD46: 0 | AE46: 0 | AF46: =IF(源泉徴収票!BZ46<>"",MIN(源泉徴収票!BZ46,50000),0) -> 0 | AG46: =IF(源泉徴収票!CA46>=20000,15000,IF(源泉徴収票!CA46>=10000,源泉徴収票!CA46/2+5000,源泉徴収票!CA46)) -> 0 | AH46: =IF(源泉徴収票!CS46<>"","〇","×") -> × | AJ46: =源泉徴収票!O46+源泉徴収票!R46+源泉徴収票!U46 -> 0 | AK46: =源泉徴収票!Q46+源泉徴収票!T46+源泉徴収票!W46 -> 0 | AL46: =IF(源泉徴収票!I46="無",0,INT(A46*VLOOKUP(A46, 給与所得計算, 3, TRUE) + VLOOKUP(A46, 給与所得計算, 4, TRUE) )) -> 0 | AM46: 0 | AN46: 0 | AO46: =源泉徴収票!P46+源泉徴収票!S46+源泉徴収票!V46 -> 0 | AP46: =IF(源泉徴収票!I46="無",0,源泉徴収票!CB46) -> 0 | AQ46: =IF(源泉徴収票!I46="無",0,源泉徴収票!CD46) -> 0 | AR46: =IF(源泉徴収票!I46="無",0,MIN(120000,Z46+AA46+AE46)) -> 0 | AS46: =IF(源泉徴収票!I46="無",0,MIN(AF46+AG46,50000)) -> 0 | AT46: =IF(源泉徴収票!I46="無",0,IF(E46="○",INDEX(H30配偶者控除・特別控除マスタ,F46,G46),0)) -> 0 | AU46: =IF(源泉徴収票!I46="無",0,IF(C46="○",INDEX(H30配偶者控除・特別控除マスタ,F46,G46),0)+IF(D46="○",INDEX(H30老人控除対象配偶者上乗せ,1,G46),0)) -> 0 | AV46: =IF(源泉徴収票!I46="無",0,COUNTIF(M46:Q46,"一")*380000+COUNTIF(M46:Q46,"特")*630000+COUNTIF(M46:Q46,"老")*480000+COUNTIF(M46:Q46,"同")*580000) -> 0 | AW46: =IF(源泉徴収票!I46="無",0,(COUNTIF(源泉徴収票!BO46:BP46,"一般")+源泉徴収票!BQ46)*270000+(COUNTIF(源泉徴収票!BO46:BP46,"特別")+源泉徴収票!BR46)*400000+(COUNTIF(源泉徴収票!BP46,"同居特別")+源泉徴収票!BS46)*750000) -> 0 | AX46: =IF(源泉徴収票!I46="無",0,IF(源泉徴収票!BT46<>"",IF(OR(源泉徴収票!BT46="特別の寡婦",源泉徴収票!BT46="ひとり親"),350000,270000),0)) -> 0 | AY46: =IF(源泉徴収票!I46="無",0,480000) -> 480000 | AZ46: =IF(源泉徴収票!I46="無",0,SUM(AO46:AY46)) -> 480000 | BA46: =IF(源泉徴収票!I46="無",AN46,FLOOR(MAX(AN46-AZ46,0),1000)) -> 0 | BB46: =IF(源泉徴収票!I46="無",AK46,BA46*VLOOKUP(BA46,所得税額計算,3,TRUE)+VLOOKUP(BA46,所得税額計算,4,TRUE)) -> 0 | BC46: =IF(源泉徴収票!I46="無",0,源泉徴収票!CZ46) -> 0 | BD46: 0 | BE46: =IF(源泉徴収票!I46="無",BD46,FLOOR(BD46*102.1%,100)) -> 0 | BF46: 0
A47: 0 | B47: =IF(AND(源泉徴収票!I47="無",源泉徴収票!AE47<>""),"○","×") -> × | C47: =IF(AND(源泉徴収票!CO47<>"",源泉徴収票!CO47<=480000,AN47<=10000000),"○","×") -> × | D47: =IF(AND(C47="○",源泉徴収票!CN47<>"",会社情報!$C$7-YEAR(MAX(源泉徴収票!CN47-1,0))>=70),"○","×") -> × | E47: =IF(AND(源泉徴収票!CO47<>"",源泉徴収票!CO47>480000,源泉徴収票!CO47<=1330000,AN47<=10000000),"○","×") -> × | F47: =MATCH(源泉徴収票!CO47,H30配偶者控除・特別控除マスタ_配偶者所得,1) -> 1 | G47: =MATCH('源泉徴収票計算過程(非)'!AN47,H30配偶者控除・特別控除マスタ_所得者合計所得,1) -> 1 | H47: =IF(源泉徴収票!AN47="",-1,会社情報!$C$7-YEAR(源泉徴収票!AN47-1)) -> -1 | I47: =IF(源泉徴収票!AT47="",-1,会社情報!$C$7-YEAR(源泉徴収票!AT47-1)) -> -1 | J47: =IF(源泉徴収票!AZ47="",-1,会社情報!$C$7-YEAR(源泉徴収票!AZ47-1)) -> -1 | K47: =IF(源泉徴収票!BF47="",-1,会社情報!$C$7-YEAR(源泉徴収票!BF47-1)) -> -1 | L47: =IF(源泉徴収票!BL47="",-1,会社情報!$C$7-YEAR(源泉徴収票!BL47-1)) -> -1 | M47: =IF(H47>=16,IF(AND(H47>=19,H47<23),"特",IF(H47>=70,IF(源泉徴収票!AO47="同居老親等","同","老"),"一")),IF(H47>=0,"未","×")) -> × | N47: =IF(I47>=16,IF(AND(I47>=19,I47<23),"特",IF(I47>=70,IF(源泉徴収票!AU47="同居老親等","同","老"),"一")),IF(I47>=0,"未","×")) -> × | O47: =IF(J47>=16,IF(AND(J47>=19,J47<23),"特",IF(J47>=70,IF(源泉徴収票!BA47="同居老親等","同","老"),"一")),IF(J47>=0,"未","×")) -> × | P47: =IF(K47>=16,IF(AND(K47>=19,K47<23),"特",IF(K47>=70,IF(源泉徴収票!BG47="同居老親等","同","老"),"一")),IF(K47>=0,"未","×")) -> × | Q47: =IF(L47>=16,IF(AND(L47>=19,L47<23),"特",IF(L47>=70,IF(源泉徴収票!BM47="同居老親等","同","老"),"一")),IF(L47>=0,"未","×")) -> × | W47: =IF(源泉徴収票!BU47<=20000, 源泉徴収票!BU47, IF(源泉徴収票!BU47<=40000, 源泉徴収票!BU47*1/2+10000, IF(源泉徴収票!BU47<=80000, 源泉徴収票!BU47*1/4+20000, 40000))) -> 0 | X47: =IF(源泉徴収票!BV47<=25000,源泉徴収票!BV47, IF(源泉徴収票!BV47<=50000,源泉徴収票!BV47*1/2+12500, IF(源泉徴収票!BV47<=100000,源泉徴収票!BV47*1/4+25000, 50000))) -> 0 | Y47: 0 | Z47: 0 | AA47: =IF(源泉徴収票!BW47<=20000, 源泉徴収票!BW47, IF(源泉徴収票!BW47<=40000, 源泉徴収票!BW47*1/2+10000, IF(源泉徴収票!BW47<=80000, 源泉徴収票!BW47*1/4+20000, 40000))) -> 0 | AB47: =IF(源泉徴収票!BX47<=20000, 源泉徴収票!BX47, IF(源泉徴収票!BX47<=40000, 源泉徴収票!BX47*1/2+10000, IF(源泉徴収票!BX47<=80000, 源泉徴収票!BX47*1/4+20000, 40000))) -> 0 | AC47: =IF(源泉徴収票!BY47<=25000,源泉徴収票!BY47, IF(源泉徴収票!BY47<=50000,源泉徴収票!BY47*1/2+12500, IF(源泉徴収票!BY47<=100000,源泉徴収票!BY47*1/4+25000, 50000))) -> 0 | AD47: 0 | AE47: 0 | AF47: =IF(源泉徴収票!BZ47<>"",MIN(源泉徴収票!BZ47,50000),0) -> 0 | AG47: =IF(源泉徴収票!CA47>=20000,15000,IF(源泉徴収票!CA47>=10000,源泉徴収票!CA47/2+5000,源泉徴収票!CA47)) -> 0 | AH47: =IF(源泉徴収票!CS47<>"","〇","×") -> × | AJ47: =源泉徴収票!O47+源泉徴収票!R47+源泉徴収票!U47 -> 0 | AK47: =源泉徴収票!Q47+源泉徴収票!T47+源泉徴収票!W47 -> 0 | AL47: =IF(源泉徴収票!I47="無",0,INT(A47*VLOOKUP(A47, 給与所得計算, 3, TRUE) + VLOOKUP(A47, 給与所得計算, 4, TRUE) )) -> 0 | AM47: 0 | AN47: 0 | AO47: =源泉徴収票!P47+源泉徴収票!S47+源泉徴収票!V47 -> 0 | AP47: =IF(源泉徴収票!I47="無",0,源泉徴収票!CB47) -> 0 | AQ47: =IF(源泉徴収票!I47="無",0,源泉徴収票!CD47) -> 0 | AR47: =IF(源泉徴収票!I47="無",0,MIN(120000,Z47+AA47+AE47)) -> 0 | AS47: =IF(源泉徴収票!I47="無",0,MIN(AF47+AG47,50000)) -> 0 | AT47: =IF(源泉徴収票!I47="無",0,IF(E47="○",INDEX(H30配偶者控除・特別控除マスタ,F47,G47),0)) -> 0 | AU47: =IF(源泉徴収票!I47="無",0,IF(C47="○",INDEX(H30配偶者控除・特別控除マスタ,F47,G47),0)+IF(D47="○",INDEX(H30老人控除対象配偶者上乗せ,1,G47),0)) -> 0 | AV47: =IF(源泉徴収票!I47="無",0,COUNTIF(M47:Q47,"一")*380000+COUNTIF(M47:Q47,"特")*630000+COUNTIF(M47:Q47,"老")*480000+COUNTIF(M47:Q47,"同")*580000) -> 0 | AW47: =IF(源泉徴収票!I47="無",0,(COUNTIF(源泉徴収票!BO47:BP47,"一般")+源泉徴収票!BQ47)*270000+(COUNTIF(源泉徴収票!BO47:BP47,"特別")+源泉徴収票!BR47)*400000+(COUNTIF(源泉徴収票!BP47,"同居特別")+源泉徴収票!BS47)*750000) -> 0 | AX47: =IF(源泉徴収票!I47="無",0,IF(源泉徴収票!BT47<>"",IF(OR(源泉徴収票!BT47="特別の寡婦",源泉徴収票!BT47="ひとり親"),350000,270000),0)) -> 0 | AY47: =IF(源泉徴収票!I47="無",0,480000) -> 480000 | AZ47: =IF(源泉徴収票!I47="無",0,SUM(AO47:AY47)) -> 480000 | BA47: =IF(源泉徴収票!I47="無",AN47,FLOOR(MAX(AN47-AZ47,0),1000)) -> 0 | BB47: =IF(源泉徴収票!I47="無",AK47,BA47*VLOOKUP(BA47,所得税額計算,3,TRUE)+VLOOKUP(BA47,所得税額計算,4,TRUE)) -> 0 | BC47: =IF(源泉徴収票!I47="無",0,源泉徴収票!CZ47) -> 0 | BD47: 0 | BE47: =IF(源泉徴収票!I47="無",BD47,FLOOR(BD47*102.1%,100)) -> 0 | BF47: 0
A48: 0 | B48: =IF(AND(源泉徴収票!I48="無",源泉徴収票!AE48<>""),"○","×") -> × | C48: =IF(AND(源泉徴収票!CO48<>"",源泉徴収票!CO48<=480000,AN48<=10000000),"○","×") -> × | D48: =IF(AND(C48="○",源泉徴収票!CN48<>"",会社情報!$C$7-YEAR(MAX(源泉徴収票!CN48-1,0))>=70),"○","×") -> × | E48: =IF(AND(源泉徴収票!CO48<>"",源泉徴収票!CO48>480000,源泉徴収票!CO48<=1330000,AN48<=10000000),"○","×") -> × | F48: =MATCH(源泉徴収票!CO48,H30配偶者控除・特別控除マスタ_配偶者所得,1) -> 1 | G48: =MATCH('源泉徴収票計算過程(非)'!AN48,H30配偶者控除・特別控除マスタ_所得者合計所得,1) -> 1 | H48: =IF(源泉徴収票!AN48="",-1,会社情報!$C$7-YEAR(源泉徴収票!AN48-1)) -> -1 | I48: =IF(源泉徴収票!AT48="",-1,会社情報!$C$7-YEAR(源泉徴収票!AT48-1)) -> -1 | J48: =IF(源泉徴収票!AZ48="",-1,会社情報!$C$7-YEAR(源泉徴収票!AZ48-1)) -> -1 | K48: =IF(源泉徴収票!BF48="",-1,会社情報!$C$7-YEAR(源泉徴収票!BF48-1)) -> -1 | L48: =IF(源泉徴収票!BL48="",-1,会社情報!$C$7-YEAR(源泉徴収票!BL48-1)) -> -1 | M48: =IF(H48>=16,IF(AND(H48>=19,H48<23),"特",IF(H48>=70,IF(源泉徴収票!AO48="同居老親等","同","老"),"一")),IF(H48>=0,"未","×")) -> × | N48: =IF(I48>=16,IF(AND(I48>=19,I48<23),"特",IF(I48>=70,IF(源泉徴収票!AU48="同居老親等","同","老"),"一")),IF(I48>=0,"未","×")) -> × | O48: =IF(J48>=16,IF(AND(J48>=19,J48<23),"特",IF(J48>=70,IF(源泉徴収票!BA48="同居老親等","同","老"),"一")),IF(J48>=0,"未","×")) -> × | P48: =IF(K48>=16,IF(AND(K48>=19,K48<23),"特",IF(K48>=70,IF(源泉徴収票!BG48="同居老親等","同","老"),"一")),IF(K48>=0,"未","×")) -> × | Q48: =IF(L48>=16,IF(AND(L48>=19,L48<23),"特",IF(L48>=70,IF(源泉徴収票!BM48="同居老親等","同","老"),"一")),IF(L48>=0,"未","×")) -> × | W48: =IF(源泉徴収票!BU48<=20000, 源泉徴収票!BU48, IF(源泉徴収票!BU48<=40000, 源泉徴収票!BU48*1/2+10000, IF(源泉徴収票!BU48<=80000, 源泉徴収票!BU48*1/4+20000, 40000))) -> 0 | X48: =IF(源泉徴収票!BV48<=25000,源泉徴収票!BV48, IF(源泉徴収票!BV48<=50000,源泉徴収票!BV48*1/2+12500, IF(源泉徴収票!BV48<=100000,源泉徴収票!BV48*1/4+25000, 50000))) -> 0 | Y48: 0 | Z48: 0 | AA48: =IF(源泉徴収票!BW48<=20000, 源泉徴収票!BW48, IF(源泉徴収票!BW48<=40000, 源泉徴収票!BW48*1/2+10000, IF(源泉徴収票!BW48<=80000, 源泉徴収票!BW48*1/4+20000, 40000))) -> 0 | AB48: =IF(源泉徴収票!BX48<=20000, 源泉徴収票!BX48, IF(源泉徴収票!BX48<=40000, 源泉徴収票!BX48*1/2+10000, IF(源泉徴収票!BX48<=80000, 源泉徴収票!BX48*1/4+20000, 40000))) -> 0 | AC48: =IF(源泉徴収票!BY48<=25000,源泉徴収票!BY48, IF(源泉徴収票!BY48<=50000,源泉徴収票!BY48*1/2+12500, IF(源泉徴収票!BY48<=100000,源泉徴収票!BY48*1/4+25000, 50000))) -> 0 | AD48: 0 | AE48: 0 | AF48: =IF(源泉徴収票!BZ48<>"",MIN(源泉徴収票!BZ48,50000),0) -> 0 | AG48: =IF(源泉徴収票!CA48>=20000,15000,IF(源泉徴収票!CA48>=10000,源泉徴収票!CA48/2+5000,源泉徴収票!CA48)) -> 0 | AH48: =IF(源泉徴収票!CS48<>"","〇","×") -> × | AJ48: =源泉徴収票!O48+源泉徴収票!R48+源泉徴収票!U48 -> 0 | AK48: =源泉徴収票!Q48+源泉徴収票!T48+源泉徴収票!W48 -> 0 | AL48: =IF(源泉徴収票!I48="無",0,INT(A48*VLOOKUP(A48, 給与所得計算, 3, TRUE) + VLOOKUP(A48, 給与所得計算, 4, TRUE) )) -> 0 | AM48: 0 | AN48: 0 | AO48: =源泉徴収票!P48+源泉徴収票!S48+源泉徴収票!V48 -> 0 | AP48: =IF(源泉徴収票!I48="無",0,源泉徴収票!CB48) -> 0 | AQ48: =IF(源泉徴収票!I48="無",0,源泉徴収票!CD48) -> 0 | AR48: =IF(源泉徴収票!I48="無",0,MIN(120000,Z48+AA48+AE48)) -> 0 | AS48: =IF(源泉徴収票!I48="無",0,MIN(AF48+AG48,50000)) -> 0 | AT48: =IF(源泉徴収票!I48="無",0,IF(E48="○",INDEX(H30配偶者控除・特別控除マスタ,F48,G48),0)) -> 0 | AU48: =IF(源泉徴収票!I48="無",0,IF(C48="○",INDEX(H30配偶者控除・特別控除マスタ,F48,G48),0)+IF(D48="○",INDEX(H30老人控除対象配偶者上乗せ,1,G48),0)) -> 0 | AV48: =IF(源泉徴収票!I48="無",0,COUNTIF(M48:Q48,"一")*380000+COUNTIF(M48:Q48,"特")*630000+COUNTIF(M48:Q48,"老")*480000+COUNTIF(M48:Q48,"同")*580000) -> 0 | AW48: =IF(源泉徴収票!I48="無",0,(COUNTIF(源泉徴収票!BO48:BP48,"一般")+源泉徴収票!BQ48)*270000+(COUNTIF(源泉徴収票!BO48:BP48,"特別")+源泉徴収票!BR48)*400000+(COUNTIF(源泉徴収票!BP48,"同居特別")+源泉徴収票!BS48)*750000) -> 0 | AX48: =IF(源泉徴収票!I48="無",0,IF(源泉徴収票!BT48<>"",IF(OR(源泉徴収票!BT48="特別の寡婦",源泉徴収票!BT48="ひとり親"),350000,270000),0)) -> 0 | AY48: =IF(源泉徴収票!I48="無",0,480000) -> 480000 | AZ48: =IF(源泉徴収票!I48="無",0,SUM(AO48:AY48)) -> 480000 | BA48: =IF(源泉徴収票!I48="無",AN48,FLOOR(MAX(AN48-AZ48,0),1000)) -> 0 | BB48: =IF(源泉徴収票!I48="無",AK48,BA48*VLOOKUP(BA48,所得税額計算,3,TRUE)+VLOOKUP(BA48,所得税額計算,4,TRUE)) -> 0 | BC48: =IF(源泉徴収票!I48="無",0,源泉徴収票!CZ48) -> 0 | BD48: 0 | BE48: =IF(源泉徴収票!I48="無",BD48,FLOOR(BD48*102.1%,100)) -> 0 | BF48: 0
A49: 0 | B49: =IF(AND(源泉徴収票!I49="無",源泉徴収票!AE49<>""),"○","×") -> × | C49: =IF(AND(源泉徴収票!CO49<>"",源泉徴収票!CO49<=480000,AN49<=10000000),"○","×") -> × | D49: =IF(AND(C49="○",源泉徴収票!CN49<>"",会社情報!$C$7-YEAR(MAX(源泉徴収票!CN49-1,0))>=70),"○","×") -> × | E49: =IF(AND(源泉徴収票!CO49<>"",源泉徴収票!CO49>480000,源泉徴収票!CO49<=1330000,AN49<=10000000),"○","×") -> × | F49: =MATCH(源泉徴収票!CO49,H30配偶者控除・特別控除マスタ_配偶者所得,1) -> 1 | G49: =MATCH('源泉徴収票計算過程(非)'!AN49,H30配偶者控除・特別控除マスタ_所得者合計所得,1) -> 1 | H49: =IF(源泉徴収票!AN49="",-1,会社情報!$C$7-YEAR(源泉徴収票!AN49-1)) -> -1 | I49: =IF(源泉徴収票!AT49="",-1,会社情報!$C$7-YEAR(源泉徴収票!AT49-1)) -> -1 | J49: =IF(源泉徴収票!AZ49="",-1,会社情報!$C$7-YEAR(源泉徴収票!AZ49-1)) -> -1 | K49: =IF(源泉徴収票!BF49="",-1,会社情報!$C$7-YEAR(源泉徴収票!BF49-1)) -> -1 | L49: =IF(源泉徴収票!BL49="",-1,会社情報!$C$7-YEAR(源泉徴収票!BL49-1)) -> -1 | M49: =IF(H49>=16,IF(AND(H49>=19,H49<23),"特",IF(H49>=70,IF(源泉徴収票!AO49="同居老親等","同","老"),"一")),IF(H49>=0,"未","×")) -> × | N49: =IF(I49>=16,IF(AND(I49>=19,I49<23),"特",IF(I49>=70,IF(源泉徴収票!AU49="同居老親等","同","老"),"一")),IF(I49>=0,"未","×")) -> × | O49: =IF(J49>=16,IF(AND(J49>=19,J49<23),"特",IF(J49>=70,IF(源泉徴収票!BA49="同居老親等","同","老"),"一")),IF(J49>=0,"未","×")) -> × | P49: =IF(K49>=16,IF(AND(K49>=19,K49<23),"特",IF(K49>=70,IF(源泉徴収票!BG49="同居老親等","同","老"),"一")),IF(K49>=0,"未","×")) -> × | Q49: =IF(L49>=16,IF(AND(L49>=19,L49<23),"特",IF(L49>=70,IF(源泉徴収票!BM49="同居老親等","同","老"),"一")),IF(L49>=0,"未","×")) -> × | W49: =IF(源泉徴収票!BU49<=20000, 源泉徴収票!BU49, IF(源泉徴収票!BU49<=40000, 源泉徴収票!BU49*1/2+10000, IF(源泉徴収票!BU49<=80000, 源泉徴収票!BU49*1/4+20000, 40000))) -> 0 | X49: =IF(源泉徴収票!BV49<=25000,源泉徴収票!BV49, IF(源泉徴収票!BV49<=50000,源泉徴収票!BV49*1/2+12500, IF(源泉徴収票!BV49<=100000,源泉徴収票!BV49*1/4+25000, 50000))) -> 0 | Y49: 0 | Z49: 0 | AA49: =IF(源泉徴収票!BW49<=20000, 源泉徴収票!BW49, IF(源泉徴収票!BW49<=40000, 源泉徴収票!BW49*1/2+10000, IF(源泉徴収票!BW49<=80000, 源泉徴収票!BW49*1/4+20000, 40000))) -> 0 | AB49: =IF(源泉徴収票!BX49<=20000, 源泉徴収票!BX49, IF(源泉徴収票!BX49<=40000, 源泉徴収票!BX49*1/2+10000, IF(源泉徴収票!BX49<=80000, 源泉徴収票!BX49*1/4+20000, 40000))) -> 0 | AC49: =IF(源泉徴収票!BY49<=25000,源泉徴収票!BY49, IF(源泉徴収票!BY49<=50000,源泉徴収票!BY49*1/2+12500, IF(源泉徴収票!BY49<=100000,源泉徴収票!BY49*1/4+25000, 50000))) -> 0 | AD49: 0 | AE49: 0 | AF49: =IF(源泉徴収票!BZ49<>"",MIN(源泉徴収票!BZ49,50000),0) -> 0 | AG49: =IF(源泉徴収票!CA49>=20000,15000,IF(源泉徴収票!CA49>=10000,源泉徴収票!CA49/2+5000,源泉徴収票!CA49)) -> 0 | AH49: =IF(源泉徴収票!CS49<>"","〇","×") -> × | AJ49: =源泉徴収票!O49+源泉徴収票!R49+源泉徴収票!U49 -> 0 | AK49: =源泉徴収票!Q49+源泉徴収票!T49+源泉徴収票!W49 -> 0 | AL49: =IF(源泉徴収票!I49="無",0,INT(A49*VLOOKUP(A49, 給与所得計算, 3, TRUE) + VLOOKUP(A49, 給与所得計算, 4, TRUE) )) -> 0 | AM49: 0 | AN49: 0 | AO49: =源泉徴収票!P49+源泉徴収票!S49+源泉徴収票!V49 -> 0 | AP49: =IF(源泉徴収票!I49="無",0,源泉徴収票!CB49) -> 0 | AQ49: =IF(源泉徴収票!I49="無",0,源泉徴収票!CD49) -> 0 | AR49: =IF(源泉徴収票!I49="無",0,MIN(120000,Z49+AA49+AE49)) -> 0 | AS49: =IF(源泉徴収票!I49="無",0,MIN(AF49+AG49,50000)) -> 0 | AT49: =IF(源泉徴収票!I49="無",0,IF(E49="○",INDEX(H30配偶者控除・特別控除マスタ,F49,G49),0)) -> 0 | AU49: =IF(源泉徴収票!I49="無",0,IF(C49="○",INDEX(H30配偶者控除・特別控除マスタ,F49,G49),0)+IF(D49="○",INDEX(H30老人控除対象配偶者上乗せ,1,G49),0)) -> 0 | AV49: =IF(源泉徴収票!I49="無",0,COUNTIF(M49:Q49,"一")*380000+COUNTIF(M49:Q49,"特")*630000+COUNTIF(M49:Q49,"老")*480000+COUNTIF(M49:Q49,"同")*580000) -> 0 | AW49: =IF(源泉徴収票!I49="無",0,(COUNTIF(源泉徴収票!BO49:BP49,"一般")+源泉徴収票!BQ49)*270000+(COUNTIF(源泉徴収票!BO49:BP49,"特別")+源泉徴収票!BR49)*400000+(COUNTIF(源泉徴収票!BP49,"同居特別")+源泉徴収票!BS49)*750000) -> 0 | AX49: =IF(源泉徴収票!I49="無",0,IF(源泉徴収票!BT49<>"",IF(OR(源泉徴収票!BT49="特別の寡婦",源泉徴収票!BT49="ひとり親"),350000,270000),0)) -> 0 | AY49: =IF(源泉徴収票!I49="無",0,480000) -> 480000 | AZ49: =IF(源泉徴収票!I49="無",0,SUM(AO49:AY49)) -> 480000 | BA49: =IF(源泉徴収票!I49="無",AN49,FLOOR(MAX(AN49-AZ49,0),1000)) -> 0 | BB49: =IF(源泉徴収票!I49="無",AK49,BA49*VLOOKUP(BA49,所得税額計算,3,TRUE)+VLOOKUP(BA49,所得税額計算,4,TRUE)) -> 0 | BC49: =IF(源泉徴収票!I49="無",0,源泉徴収票!CZ49) -> 0 | BD49: 0 | BE49: =IF(源泉徴収票!I49="無",BD49,FLOOR(BD49*102.1%,100)) -> 0 | BF49: 0
A50: 0 | B50: =IF(AND(源泉徴収票!I50="無",源泉徴収票!AE50<>""),"○","×") -> × | C50: =IF(AND(源泉徴収票!CO50<>"",源泉徴収票!CO50<=480000,AN50<=10000000),"○","×") -> × | D50: =IF(AND(C50="○",源泉徴収票!CN50<>"",会社情報!$C$7-YEAR(MAX(源泉徴収票!CN50-1,0))>=70),"○","×") -> × | E50: =IF(AND(源泉徴収票!CO50<>"",源泉徴収票!CO50>480000,源泉徴収票!CO50<=1330000,AN50<=10000000),"○","×") -> × | F50: =MATCH(源泉徴収票!CO50,H30配偶者控除・特別控除マスタ_配偶者所得,1) -> 1 | G50: =MATCH('源泉徴収票計算過程(非)'!AN50,H30配偶者控除・特別控除マスタ_所得者合計所得,1) -> 1 | H50: =IF(源泉徴収票!AN50="",-1,会社情報!$C$7-YEAR(源泉徴収票!AN50-1)) -> -1 | I50: =IF(源泉徴収票!AT50="",-1,会社情報!$C$7-YEAR(源泉徴収票!AT50-1)) -> -1 | J50: =IF(源泉徴収票!AZ50="",-1,会社情報!$C$7-YEAR(源泉徴収票!AZ50-1)) -> -1 | K50: =IF(源泉徴収票!BF50="",-1,会社情報!$C$7-YEAR(源泉徴収票!BF50-1)) -> -1 | L50: =IF(源泉徴収票!BL50="",-1,会社情報!$C$7-YEAR(源泉徴収票!BL50-1)) -> -1 | M50: =IF(H50>=16,IF(AND(H50>=19,H50<23),"特",IF(H50>=70,IF(源泉徴収票!AO50="同居老親等","同","老"),"一")),IF(H50>=0,"未","×")) -> × | N50: =IF(I50>=16,IF(AND(I50>=19,I50<23),"特",IF(I50>=70,IF(源泉徴収票!AU50="同居老親等","同","老"),"一")),IF(I50>=0,"未","×")) -> × | O50: =IF(J50>=16,IF(AND(J50>=19,J50<23),"特",IF(J50>=70,IF(源泉徴収票!BA50="同居老親等","同","老"),"一")),IF(J50>=0,"未","×")) -> × | P50: =IF(K50>=16,IF(AND(K50>=19,K50<23),"特",IF(K50>=70,IF(源泉徴収票!BG50="同居老親等","同","老"),"一")),IF(K50>=0,"未","×")) -> × | Q50: =IF(L50>=16,IF(AND(L50>=19,L50<23),"特",IF(L50>=70,IF(源泉徴収票!BM50="同居老親等","同","老"),"一")),IF(L50>=0,"未","×")) -> × | W50: =IF(源泉徴収票!BU50<=20000, 源泉徴収票!BU50, IF(源泉徴収票!BU50<=40000, 源泉徴収票!BU50*1/2+10000, IF(源泉徴収票!BU50<=80000, 源泉徴収票!BU50*1/4+20000, 40000))) -> 0 | X50: =IF(源泉徴収票!BV50<=25000,源泉徴収票!BV50, IF(源泉徴収票!BV50<=50000,源泉徴収票!BV50*1/2+12500, IF(源泉徴収票!BV50<=100000,源泉徴収票!BV50*1/4+25000, 50000))) -> 0 | Y50: 0 | Z50: 0 | AA50: =IF(源泉徴収票!BW50<=20000, 源泉徴収票!BW50, IF(源泉徴収票!BW50<=40000, 源泉徴収票!BW50*1/2+10000, IF(源泉徴収票!BW50<=80000, 源泉徴収票!BW50*1/4+20000, 40000))) -> 0 | AB50: =IF(源泉徴収票!BX50<=20000, 源泉徴収票!BX50, IF(源泉徴収票!BX50<=40000, 源泉徴収票!BX50*1/2+10000, IF(源泉徴収票!BX50<=80000, 源泉徴収票!BX50*1/4+20000, 40000))) -> 0 | AC50: =IF(源泉徴収票!BY50<=25000,源泉徴収票!BY50, IF(源泉徴収票!BY50<=50000,源泉徴収票!BY50*1/2+12500, IF(源泉徴収票!BY50<=100000,源泉徴収票!BY50*1/4+25000, 50000))) -> 0 | AD50: 0 | AE50: 0 | AF50: =IF(源泉徴収票!BZ50<>"",MIN(源泉徴収票!BZ50,50000),0) -> 0 | AG50: =IF(源泉徴収票!CA50>=20000,15000,IF(源泉徴収票!CA50>=10000,源泉徴収票!CA50/2+5000,源泉徴収票!CA50)) -> 0 | AH50: =IF(源泉徴収票!CS50<>"","〇","×") -> × | AJ50: =源泉徴収票!O50+源泉徴収票!R50+源泉徴収票!U50 -> 0 | AK50: =源泉徴収票!Q50+源泉徴収票!T50+源泉徴収票!W50 -> 0 | AL50: =IF(源泉徴収票!I50="無",0,INT(A50*VLOOKUP(A50, 給与所得計算, 3, TRUE) + VLOOKUP(A50, 給与所得計算, 4, TRUE) )) -> 0 | AM50: 0 | AN50: 0 | AO50: =源泉徴収票!P50+源泉徴収票!S50+源泉徴収票!V50 -> 0 | AP50: =IF(源泉徴収票!I50="無",0,源泉徴収票!CB50) -> 0 | AQ50: =IF(源泉徴収票!I50="無",0,源泉徴収票!CD50) -> 0 | AR50: =IF(源泉徴収票!I50="無",0,MIN(120000,Z50+AA50+AE50)) -> 0 | AS50: =IF(源泉徴収票!I50="無",0,MIN(AF50+AG50,50000)) -> 0 | AT50: =IF(源泉徴収票!I50="無",0,IF(E50="○",INDEX(H30配偶者控除・特別控除マスタ,F50,G50),0)) -> 0 | AU50: =IF(源泉徴収票!I50="無",0,IF(C50="○",INDEX(H30配偶者控除・特別控除マスタ,F50,G50),0)+IF(D50="○",INDEX(H30老人控除対象配偶者上乗せ,1,G50),0)) -> 0 | AV50: =IF(源泉徴収票!I50="無",0,COUNTIF(M50:Q50,"一")*380000+COUNTIF(M50:Q50,"特")*630000+COUNTIF(M50:Q50,"老")*480000+COUNTIF(M50:Q50,"同")*580000) -> 0 | AW50: =IF(源泉徴収票!I50="無",0,(COUNTIF(源泉徴収票!BO50:BP50,"一般")+源泉徴収票!BQ50)*270000+(COUNTIF(源泉徴収票!BO50:BP50,"特別")+源泉徴収票!BR50)*400000+(COUNTIF(源泉徴収票!BP50,"同居特別")+源泉徴収票!BS50)*750000) -> 0 | AX50: =IF(源泉徴収票!I50="無",0,IF(源泉徴収票!BT50<>"",IF(OR(源泉徴収票!BT50="特別の寡婦",源泉徴収票!BT50="ひとり親"),350000,270000),0)) -> 0 | AY50: =IF(源泉徴収票!I50="無",0,480000) -> 480000 | AZ50: =IF(源泉徴収票!I50="無",0,SUM(AO50:AY50)) -> 480000 | BA50: =IF(源泉徴収票!I50="無",AN50,FLOOR(MAX(AN50-AZ50,0),1000)) -> 0 | BB50: =IF(源泉徴収票!I50="無",AK50,BA50*VLOOKUP(BA50,所得税額計算,3,TRUE)+VLOOKUP(BA50,所得税額計算,4,TRUE)) -> 0 | BC50: =IF(源泉徴収票!I50="無",0,源泉徴収票!CZ50) -> 0 | BD50: 0 | BE50: =IF(源泉徴収票!I50="無",BD50,FLOOR(BD50*102.1%,100)) -> 0 | BF50: 0
A51: 0 | B51: =IF(AND(源泉徴収票!I51="無",源泉徴収票!AE51<>""),"○","×") -> × | C51: =IF(AND(源泉徴収票!CO51<>"",源泉徴収票!CO51<=480000,AN51<=10000000),"○","×") -> × | D51: =IF(AND(C51="○",源泉徴収票!CN51<>"",会社情報!$C$7-YEAR(MAX(源泉徴収票!CN51-1,0))>=70),"○","×") -> × | E51: =IF(AND(源泉徴収票!CO51<>"",源泉徴収票!CO51>480000,源泉徴収票!CO51<=1330000,AN51<=10000000),"○","×") -> × | F51: =MATCH(源泉徴収票!CO51,H30配偶者控除・特別控除マスタ_配偶者所得,1) -> 1 | G51: =MATCH('源泉徴収票計算過程(非)'!AN51,H30配偶者控除・特別控除マスタ_所得者合計所得,1) -> 1 | H51: =IF(源泉徴収票!AN51="",-1,会社情報!$C$7-YEAR(源泉徴収票!AN51-1)) -> -1 | I51: =IF(源泉徴収票!AT51="",-1,会社情報!$C$7-YEAR(源泉徴収票!AT51-1)) -> -1 | J51: =IF(源泉徴収票!AZ51="",-1,会社情報!$C$7-YEAR(源泉徴収票!AZ51-1)) -> -1 | K51: =IF(源泉徴収票!BF51="",-1,会社情報!$C$7-YEAR(源泉徴収票!BF51-1)) -> -1 | L51: =IF(源泉徴収票!BL51="",-1,会社情報!$C$7-YEAR(源泉徴収票!BL51-1)) -> -1 | M51: =IF(H51>=16,IF(AND(H51>=19,H51<23),"特",IF(H51>=70,IF(源泉徴収票!AO51="同居老親等","同","老"),"一")),IF(H51>=0,"未","×")) -> × | N51: =IF(I51>=16,IF(AND(I51>=19,I51<23),"特",IF(I51>=70,IF(源泉徴収票!AU51="同居老親等","同","老"),"一")),IF(I51>=0,"未","×")) -> × | O51: =IF(J51>=16,IF(AND(J51>=19,J51<23),"特",IF(J51>=70,IF(源泉徴収票!BA51="同居老親等","同","老"),"一")),IF(J51>=0,"未","×")) -> × | P51: =IF(K51>=16,IF(AND(K51>=19,K51<23),"特",IF(K51>=70,IF(源泉徴収票!BG51="同居老親等","同","老"),"一")),IF(K51>=0,"未","×")) -> × | Q51: =IF(L51>=16,IF(AND(L51>=19,L51<23),"特",IF(L51>=70,IF(源泉徴収票!BM51="同居老親等","同","老"),"一")),IF(L51>=0,"未","×")) -> × | W51: =IF(源泉徴収票!BU51<=20000, 源泉徴収票!BU51, IF(源泉徴収票!BU51<=40000, 源泉徴収票!BU51*1/2+10000, IF(源泉徴収票!BU51<=80000, 源泉徴収票!BU51*1/4+20000, 40000))) -> 0 | X51: =IF(源泉徴収票!BV51<=25000,源泉徴収票!BV51, IF(源泉徴収票!BV51<=50000,源泉徴収票!BV51*1/2+12500, IF(源泉徴収票!BV51<=100000,源泉徴収票!BV51*1/4+25000, 50000))) -> 0 | Y51: 0 | Z51: 0 | AA51: =IF(源泉徴収票!BW51<=20000, 源泉徴収票!BW51, IF(源泉徴収票!BW51<=40000, 源泉徴収票!BW51*1/2+10000, IF(源泉徴収票!BW51<=80000, 源泉徴収票!BW51*1/4+20000, 40000))) -> 0 | AB51: =IF(源泉徴収票!BX51<=20000, 源泉徴収票!BX51, IF(源泉徴収票!BX51<=40000, 源泉徴収票!BX51*1/2+10000, IF(源泉徴収票!BX51<=80000, 源泉徴収票!BX51*1/4+20000, 40000))) -> 0 | AC51: =IF(源泉徴収票!BY51<=25000,源泉徴収票!BY51, IF(源泉徴収票!BY51<=50000,源泉徴収票!BY51*1/2+12500, IF(源泉徴収票!BY51<=100000,源泉徴収票!BY51*1/4+25000, 50000))) -> 0 | AD51: 0 | AE51: 0 | AF51: =IF(源泉徴収票!BZ51<>"",MIN(源泉徴収票!BZ51,50000),0) -> 0 | AG51: =IF(源泉徴収票!CA51>=20000,15000,IF(源泉徴収票!CA51>=10000,源泉徴収票!CA51/2+5000,源泉徴収票!CA51)) -> 0 | AH51: =IF(源泉徴収票!CS51<>"","〇","×") -> × | AJ51: =源泉徴収票!O51+源泉徴収票!R51+源泉徴収票!U51 -> 0 | AK51: =源泉徴収票!Q51+源泉徴収票!T51+源泉徴収票!W51 -> 0 | AL51: =IF(源泉徴収票!I51="無",0,INT(A51*VLOOKUP(A51, 給与所得計算, 3, TRUE) + VLOOKUP(A51, 給与所得計算, 4, TRUE) )) -> 0 | AM51: 0 | AN51: 0 | AO51: =源泉徴収票!P51+源泉徴収票!S51+源泉徴収票!V51 -> 0 | AP51: =IF(源泉徴収票!I51="無",0,源泉徴収票!CB51) -> 0 | AQ51: =IF(源泉徴収票!I51="無",0,源泉徴収票!CD51) -> 0 | AR51: =IF(源泉徴収票!I51="無",0,MIN(120000,Z51+AA51+AE51)) -> 0 | AS51: =IF(源泉徴収票!I51="無",0,MIN(AF51+AG51,50000)) -> 0 | AT51: =IF(源泉徴収票!I51="無",0,IF(E51="○",INDEX(H30配偶者控除・特別控除マスタ,F51,G51),0)) -> 0 | AU51: =IF(源泉徴収票!I51="無",0,IF(C51="○",INDEX(H30配偶者控除・特別控除マスタ,F51,G51),0)+IF(D51="○",INDEX(H30老人控除対象配偶者上乗せ,1,G51),0)) -> 0 | AV51: =IF(源泉徴収票!I51="無",0,COUNTIF(M51:Q51,"一")*380000+COUNTIF(M51:Q51,"特")*630000+COUNTIF(M51:Q51,"老")*480000+COUNTIF(M51:Q51,"同")*580000) -> 0 | AW51: =IF(源泉徴収票!I51="無",0,(COUNTIF(源泉徴収票!BO51:BP51,"一般")+源泉徴収票!BQ51)*270000+(COUNTIF(源泉徴収票!BO51:BP51,"特別")+源泉徴収票!BR51)*400000+(COUNTIF(源泉徴収票!BP51,"同居特別")+源泉徴収票!BS51)*750000) -> 0 | AX51: =IF(源泉徴収票!I51="無",0,IF(源泉徴収票!BT51<>"",IF(OR(源泉徴収票!BT51="特別の寡婦",源泉徴収票!BT51="ひとり親"),350000,270000),0)) -> 0 | AY51: =IF(源泉徴収票!I51="無",0,480000) -> 480000 | AZ51: =IF(源泉徴収票!I51="無",0,SUM(AO51:AY51)) -> 480000 | BA51: =IF(源泉徴収票!I51="無",AN51,FLOOR(MAX(AN51-AZ51,0),1000)) -> 0 | BB51: =IF(源泉徴収票!I51="無",AK51,BA51*VLOOKUP(BA51,所得税額計算,3,TRUE)+VLOOKUP(BA51,所得税額計算,4,TRUE)) -> 0 | BC51: =IF(源泉徴収票!I51="無",0,源泉徴収票!CZ51) -> 0 | BD51: 0 | BE51: =IF(源泉徴収票!I51="無",BD51,FLOOR(BD51*102.1%,100)) -> 0 | BF51: 0
A52: 0 | B52: =IF(AND(源泉徴収票!I52="無",源泉徴収票!AE52<>""),"○","×") -> × | C52: =IF(AND(源泉徴収票!CO52<>"",源泉徴収票!CO52<=480000,AN52<=10000000),"○","×") -> × | D52: =IF(AND(C52="○",源泉徴収票!CN52<>"",会社情報!$C$7-YEAR(MAX(源泉徴収票!CN52-1,0))>=70),"○","×") -> × | E52: =IF(AND(源泉徴収票!CO52<>"",源泉徴収票!CO52>480000,源泉徴収票!CO52<=1330000,AN52<=10000000),"○","×") -> × | F52: =MATCH(源泉徴収票!CO52,H30配偶者控除・特別控除マスタ_配偶者所得,1) -> 1 | G52: =MATCH('源泉徴収票計算過程(非)'!AN52,H30配偶者控除・特別控除マスタ_所得者合計所得,1) -> 1 | H52: =IF(源泉徴収票!AN52="",-1,会社情報!$C$7-YEAR(源泉徴収票!AN52-1)) -> -1 | I52: =IF(源泉徴収票!AT52="",-1,会社情報!$C$7-YEAR(源泉徴収票!AT52-1)) -> -1 | J52: =IF(源泉徴収票!AZ52="",-1,会社情報!$C$7-YEAR(源泉徴収票!AZ52-1)) -> -1 | K52: =IF(源泉徴収票!BF52="",-1,会社情報!$C$7-YEAR(源泉徴収票!BF52-1)) -> -1 | L52: =IF(源泉徴収票!BL52="",-1,会社情報!$C$7-YEAR(源泉徴収票!BL52-1)) -> -1 | M52: =IF(H52>=16,IF(AND(H52>=19,H52<23),"特",IF(H52>=70,IF(源泉徴収票!AO52="同居老親等","同","老"),"一")),IF(H52>=0,"未","×")) -> × | N52: =IF(I52>=16,IF(AND(I52>=19,I52<23),"特",IF(I52>=70,IF(源泉徴収票!AU52="同居老親等","同","老"),"一")),IF(I52>=0,"未","×")) -> × | O52: =IF(J52>=16,IF(AND(J52>=19,J52<23),"特",IF(J52>=70,IF(源泉徴収票!BA52="同居老親等","同","老"),"一")),IF(J52>=0,"未","×")) -> × | P52: =IF(K52>=16,IF(AND(K52>=19,K52<23),"特",IF(K52>=70,IF(源泉徴収票!BG52="同居老親等","同","老"),"一")),IF(K52>=0,"未","×")) -> × | Q52: =IF(L52>=16,IF(AND(L52>=19,L52<23),"特",IF(L52>=70,IF(源泉徴収票!BM52="同居老親等","同","老"),"一")),IF(L52>=0,"未","×")) -> × | W52: =IF(源泉徴収票!BU52<=20000, 源泉徴収票!BU52, IF(源泉徴収票!BU52<=40000, 源泉徴収票!BU52*1/2+10000, IF(源泉徴収票!BU52<=80000, 源泉徴収票!BU52*1/4+20000, 40000))) -> 0 | X52: =IF(源泉徴収票!BV52<=25000,源泉徴収票!BV52, IF(源泉徴収票!BV52<=50000,源泉徴収票!BV52*1/2+12500, IF(源泉徴収票!BV52<=100000,源泉徴収票!BV52*1/4+25000, 50000))) -> 0 | Y52: 0 | Z52: 0 | AA52: =IF(源泉徴収票!BW52<=20000, 源泉徴収票!BW52, IF(源泉徴収票!BW52<=40000, 源泉徴収票!BW52*1/2+10000, IF(源泉徴収票!BW52<=80000, 源泉徴収票!BW52*1/4+20000, 40000))) -> 0 | AB52: =IF(源泉徴収票!BX52<=20000, 源泉徴収票!BX52, IF(源泉徴収票!BX52<=40000, 源泉徴収票!BX52*1/2+10000, IF(源泉徴収票!BX52<=80000, 源泉徴収票!BX52*1/4+20000, 40000))) -> 0 | AC52: =IF(源泉徴収票!BY52<=25000,源泉徴収票!BY52, IF(源泉徴収票!BY52<=50000,源泉徴収票!BY52*1/2+12500, IF(源泉徴収票!BY52<=100000,源泉徴収票!BY52*1/4+25000, 50000))) -> 0 | AD52: 0 | AE52: 0 | AF52: =IF(源泉徴収票!BZ52<>"",MIN(源泉徴収票!BZ52,50000),0) -> 0 | AG52: =IF(源泉徴収票!CA52>=20000,15000,IF(源泉徴収票!CA52>=10000,源泉徴収票!CA52/2+5000,源泉徴収票!CA52)) -> 0 | AH52: =IF(源泉徴収票!CS52<>"","〇","×") -> × | AJ52: =源泉徴収票!O52+源泉徴収票!R52+源泉徴収票!U52 -> 0 | AK52: =源泉徴収票!Q52+源泉徴収票!T52+源泉徴収票!W52 -> 0 | AL52: =IF(源泉徴収票!I52="無",0,INT(A52*VLOOKUP(A52, 給与所得計算, 3, TRUE) + VLOOKUP(A52, 給与所得計算, 4, TRUE) )) -> 0 | AM52: 0 | AN52: 0 | AO52: =源泉徴収票!P52+源泉徴収票!S52+源泉徴収票!V52 -> 0 | AP52: =IF(源泉徴収票!I52="無",0,源泉徴収票!CB52) -> 0 | AQ52: =IF(源泉徴収票!I52="無",0,源泉徴収票!CD52) -> 0 | AR52: =IF(源泉徴収票!I52="無",0,MIN(120000,Z52+AA52+AE52)) -> 0 | AS52: =IF(源泉徴収票!I52="無",0,MIN(AF52+AG52,50000)) -> 0 | AT52: =IF(源泉徴収票!I52="無",0,IF(E52="○",INDEX(H30配偶者控除・特別控除マスタ,F52,G52),0)) -> 0 | AU52: =IF(源泉徴収票!I52="無",0,IF(C52="○",INDEX(H30配偶者控除・特別控除マスタ,F52,G52),0)+IF(D52="○",INDEX(H30老人控除対象配偶者上乗せ,1,G52),0)) -> 0 | AV52: =IF(源泉徴収票!I52="無",0,COUNTIF(M52:Q52,"一")*380000+COUNTIF(M52:Q52,"特")*630000+COUNTIF(M52:Q52,"老")*480000+COUNTIF(M52:Q52,"同")*580000) -> 0 | AW52: =IF(源泉徴収票!I52="無",0,(COUNTIF(源泉徴収票!BO52:BP52,"一般")+源泉徴収票!BQ52)*270000+(COUNTIF(源泉徴収票!BO52:BP52,"特別")+源泉徴収票!BR52)*400000+(COUNTIF(源泉徴収票!BP52,"同居特別")+源泉徴収票!BS52)*750000) -> 0 | AX52: =IF(源泉徴収票!I52="無",0,IF(源泉徴収票!BT52<>"",IF(OR(源泉徴収票!BT52="特別の寡婦",源泉徴収票!BT52="ひとり親"),350000,270000),0)) -> 0 | AY52: =IF(源泉徴収票!I52="無",0,480000) -> 480000 | AZ52: =IF(源泉徴収票!I52="無",0,SUM(AO52:AY52)) -> 480000 | BA52: =IF(源泉徴収票!I52="無",AN52,FLOOR(MAX(AN52-AZ52,0),1000)) -> 0 | BB52: =IF(源泉徴収票!I52="無",AK52,BA52*VLOOKUP(BA52,所得税額計算,3,TRUE)+VLOOKUP(BA52,所得税額計算,4,TRUE)) -> 0 | BC52: =IF(源泉徴収票!I52="無",0,源泉徴収票!CZ52) -> 0 | BD52: 0 | BE52: =IF(源泉徴収票!I52="無",BD52,FLOOR(BD52*102.1%,100)) -> 0 | BF52: 0
A53: 0 | B53: =IF(AND(源泉徴収票!I53="無",源泉徴収票!AE53<>""),"○","×") -> × | C53: =IF(AND(源泉徴収票!CO53<>"",源泉徴収票!CO53<=480000,AN53<=10000000),"○","×") -> × | D53: =IF(AND(C53="○",源泉徴収票!CN53<>"",会社情報!$C$7-YEAR(MAX(源泉徴収票!CN53-1,0))>=70),"○","×") -> × | E53: =IF(AND(源泉徴収票!CO53<>"",源泉徴収票!CO53>480000,源泉徴収票!CO53<=1330000,AN53<=10000000),"○","×") -> × | F53: =MATCH(源泉徴収票!CO53,H30配偶者控除・特別控除マスタ_配偶者所得,1) -> 1 | G53: =MATCH('源泉徴収票計算過程(非)'!AN53,H30配偶者控除・特別控除マスタ_所得者合計所得,1) -> 1 | H53: =IF(源泉徴収票!AN53="",-1,会社情報!$C$7-YEAR(源泉徴収票!AN53-1)) -> -1 | I53: =IF(源泉徴収票!AT53="",-1,会社情報!$C$7-YEAR(源泉徴収票!AT53-1)) -> -1 | J53: =IF(源泉徴収票!AZ53="",-1,会社情報!$C$7-YEAR(源泉徴収票!AZ53-1)) -> -1 | K53: =IF(源泉徴収票!BF53="",-1,会社情報!$C$7-YEAR(源泉徴収票!BF53-1)) -> -1 | L53: =IF(源泉徴収票!BL53="",-1,会社情報!$C$7-YEAR(源泉徴収票!BL53-1)) -> -1 | M53: =IF(H53>=16,IF(AND(H53>=19,H53<23),"特",IF(H53>=70,IF(源泉徴収票!AO53="同居老親等","同","老"),"一")),IF(H53>=0,"未","×")) -> × | N53: =IF(I53>=16,IF(AND(I53>=19,I53<23),"特",IF(I53>=70,IF(源泉徴収票!AU53="同居老親等","同","老"),"一")),IF(I53>=0,"未","×")) -> × | O53: =IF(J53>=16,IF(AND(J53>=19,J53<23),"特",IF(J53>=70,IF(源泉徴収票!BA53="同居老親等","同","老"),"一")),IF(J53>=0,"未","×")) -> × | P53: =IF(K53>=16,IF(AND(K53>=19,K53<23),"特",IF(K53>=70,IF(源泉徴収票!BG53="同居老親等","同","老"),"一")),IF(K53>=0,"未","×")) -> × | Q53: =IF(L53>=16,IF(AND(L53>=19,L53<23),"特",IF(L53>=70,IF(源泉徴収票!BM53="同居老親等","同","老"),"一")),IF(L53>=0,"未","×")) -> × | W53: =IF(源泉徴収票!BU53<=20000, 源泉徴収票!BU53, IF(源泉徴収票!BU53<=40000, 源泉徴収票!BU53*1/2+10000, IF(源泉徴収票!BU53<=80000, 源泉徴収票!BU53*1/4+20000, 40000))) -> 0 | X53: =IF(源泉徴収票!BV53<=25000,源泉徴収票!BV53, IF(源泉徴収票!BV53<=50000,源泉徴収票!BV53*1/2+12500, IF(源泉徴収票!BV53<=100000,源泉徴収票!BV53*1/4+25000, 50000))) -> 0 | Y53: 0 | Z53: 0 | AA53: =IF(源泉徴収票!BW53<=20000, 源泉徴収票!BW53, IF(源泉徴収票!BW53<=40000, 源泉徴収票!BW53*1/2+10000, IF(源泉徴収票!BW53<=80000, 源泉徴収票!BW53*1/4+20000, 40000))) -> 0 | AB53: =IF(源泉徴収票!BX53<=20000, 源泉徴収票!BX53, IF(源泉徴収票!BX53<=40000, 源泉徴収票!BX53*1/2+10000, IF(源泉徴収票!BX53<=80000, 源泉徴収票!BX53*1/4+20000, 40000))) -> 0 | AC53: =IF(源泉徴収票!BY53<=25000,源泉徴収票!BY53, IF(源泉徴収票!BY53<=50000,源泉徴収票!BY53*1/2+12500, IF(源泉徴収票!BY53<=100000,源泉徴収票!BY53*1/4+25000, 50000))) -> 0 | AD53: 0 | AE53: 0 | AF53: =IF(源泉徴収票!BZ53<>"",MIN(源泉徴収票!BZ53,50000),0) -> 0 | AG53: =IF(源泉徴収票!CA53>=20000,15000,IF(源泉徴収票!CA53>=10000,源泉徴収票!CA53/2+5000,源泉徴収票!CA53)) -> 0 | AH53: =IF(源泉徴収票!CS53<>"","〇","×") -> × | AJ53: =源泉徴収票!O53+源泉徴収票!R53+源泉徴収票!U53 -> 0 | AK53: =源泉徴収票!Q53+源泉徴収票!T53+源泉徴収票!W53 -> 0 | AL53: =IF(源泉徴収票!I53="無",0,INT(A53*VLOOKUP(A53, 給与所得計算, 3, TRUE) + VLOOKUP(A53, 給与所得計算, 4, TRUE) )) -> 0 | AM53: 0 | AN53: 0 | AO53: =源泉徴収票!P53+源泉徴収票!S53+源泉徴収票!V53 -> 0 | AP53: =IF(源泉徴収票!I53="無",0,源泉徴収票!CB53) -> 0 | AQ53: =IF(源泉徴収票!I53="無",0,源泉徴収票!CD53) -> 0 | AR53: =IF(源泉徴収票!I53="無",0,MIN(120000,Z53+AA53+AE53)) -> 0 | AS53: =IF(源泉徴収票!I53="無",0,MIN(AF53+AG53,50000)) -> 0 | AT53: =IF(源泉徴収票!I53="無",0,IF(E53="○",INDEX(H30配偶者控除・特別控除マスタ,F53,G53),0)) -> 0 | AU53: =IF(源泉徴収票!I53="無",0,IF(C53="○",INDEX(H30配偶者控除・特別控除マスタ,F53,G53),0)+IF(D53="○",INDEX(H30老人控除対象配偶者上乗せ,1,G53),0)) -> 0 | AV53: =IF(源泉徴収票!I53="無",0,COUNTIF(M53:Q53,"一")*380000+COUNTIF(M53:Q53,"特")*630000+COUNTIF(M53:Q53,"老")*480000+COUNTIF(M53:Q53,"同")*580000) -> 0 | AW53: =IF(源泉徴収票!I53="無",0,(COUNTIF(源泉徴収票!BO53:BP53,"一般")+源泉徴収票!BQ53)*270000+(COUNTIF(源泉徴収票!BO53:BP53,"特別")+源泉徴収票!BR53)*400000+(COUNTIF(源泉徴収票!BP53,"同居特別")+源泉徴収票!BS53)*750000) -> 0 | AX53: =IF(源泉徴収票!I53="無",0,IF(源泉徴収票!BT53<>"",IF(OR(源泉徴収票!BT53="特別の寡婦",源泉徴収票!BT53="ひとり親"),350000,270000),0)) -> 0 | AY53: =IF(源泉徴収票!I53="無",0,480000) -> 480000 | AZ53: =IF(源泉徴収票!I53="無",0,SUM(AO53:AY53)) -> 480000 | BA53: =IF(源泉徴収票!I53="無",AN53,FLOOR(MAX(AN53-AZ53,0),1000)) -> 0 | BB53: =IF(源泉徴収票!I53="無",AK53,BA53*VLOOKUP(BA53,所得税額計算,3,TRUE)+VLOOKUP(BA53,所得税額計算,4,TRUE)) -> 0 | BC53: =IF(源泉徴収票!I53="無",0,源泉徴収票!CZ53) -> 0 | BD53: 0 | BE53: =IF(源泉徴収票!I53="無",BD53,FLOOR(BD53*102.1%,100)) -> 0 | BF53: 0
A54: 0 | B54: =IF(AND(源泉徴収票!I54="無",源泉徴収票!AE54<>""),"○","×") -> × | C54: =IF(AND(源泉徴収票!CO54<>"",源泉徴収票!CO54<=480000,AN54<=10000000),"○","×") -> × | D54: =IF(AND(C54="○",源泉徴収票!CN54<>"",会社情報!$C$7-YEAR(MAX(源泉徴収票!CN54-1,0))>=70),"○","×") -> × | E54: =IF(AND(源泉徴収票!CO54<>"",源泉徴収票!CO54>480000,源泉徴収票!CO54<=1330000,AN54<=10000000),"○","×") -> × | F54: =MATCH(源泉徴収票!CO54,H30配偶者控除・特別控除マスタ_配偶者所得,1) -> 1 | G54: =MATCH('源泉徴収票計算過程(非)'!AN54,H30配偶者控除・特別控除マスタ_所得者合計所得,1) -> 1 | H54: =IF(源泉徴収票!AN54="",-1,会社情報!$C$7-YEAR(源泉徴収票!AN54-1)) -> -1 | I54: =IF(源泉徴収票!AT54="",-1,会社情報!$C$7-YEAR(源泉徴収票!AT54-1)) -> -1 | J54: =IF(源泉徴収票!AZ54="",-1,会社情報!$C$7-YEAR(源泉徴収票!AZ54-1)) -> -1 | K54: =IF(源泉徴収票!BF54="",-1,会社情報!$C$7-YEAR(源泉徴収票!BF54-1)) -> -1 | L54: =IF(源泉徴収票!BL54="",-1,会社情報!$C$7-YEAR(源泉徴収票!BL54-1)) -> -1 | M54: =IF(H54>=16,IF(AND(H54>=19,H54<23),"特",IF(H54>=70,IF(源泉徴収票!AO54="同居老親等","同","老"),"一")),IF(H54>=0,"未","×")) -> × | N54: =IF(I54>=16,IF(AND(I54>=19,I54<23),"特",IF(I54>=70,IF(源泉徴収票!AU54="同居老親等","同","老"),"一")),IF(I54>=0,"未","×")) -> × | O54: =IF(J54>=16,IF(AND(J54>=19,J54<23),"特",IF(J54>=70,IF(源泉徴収票!BA54="同居老親等","同","老"),"一")),IF(J54>=0,"未","×")) -> × | P54: =IF(K54>=16,IF(AND(K54>=19,K54<23),"特",IF(K54>=70,IF(源泉徴収票!BG54="同居老親等","同","老"),"一")),IF(K54>=0,"未","×")) -> × | Q54: =IF(L54>=16,IF(AND(L54>=19,L54<23),"特",IF(L54>=70,IF(源泉徴収票!BM54="同居老親等","同","老"),"一")),IF(L54>=0,"未","×")) -> × | W54: =IF(源泉徴収票!BU54<=20000, 源泉徴収票!BU54, IF(源泉徴収票!BU54<=40000, 源泉徴収票!BU54*1/2+10000, IF(源泉徴収票!BU54<=80000, 源泉徴収票!BU54*1/4+20000, 40000))) -> 0 | X54: =IF(源泉徴収票!BV54<=25000,源泉徴収票!BV54, IF(源泉徴収票!BV54<=50000,源泉徴収票!BV54*1/2+12500, IF(源泉徴収票!BV54<=100000,源泉徴収票!BV54*1/4+25000, 50000))) -> 0 | Y54: 0 | Z54: 0 | AA54: =IF(源泉徴収票!BW54<=20000, 源泉徴収票!BW54, IF(源泉徴収票!BW54<=40000, 源泉徴収票!BW54*1/2+10000, IF(源泉徴収票!BW54<=80000, 源泉徴収票!BW54*1/4+20000, 40000))) -> 0 | AB54: =IF(源泉徴収票!BX54<=20000, 源泉徴収票!BX54, IF(源泉徴収票!BX54<=40000, 源泉徴収票!BX54*1/2+10000, IF(源泉徴収票!BX54<=80000, 源泉徴収票!BX54*1/4+20000, 40000))) -> 0 | AC54: =IF(源泉徴収票!BY54<=25000,源泉徴収票!BY54, IF(源泉徴収票!BY54<=50000,源泉徴収票!BY54*1/2+12500, IF(源泉徴収票!BY54<=100000,源泉徴収票!BY54*1/4+25000, 50000))) -> 0 | AD54: 0 | AE54: 0 | AF54: =IF(源泉徴収票!BZ54<>"",MIN(源泉徴収票!BZ54,50000),0) -> 0 | AG54: =IF(源泉徴収票!CA54>=20000,15000,IF(源泉徴収票!CA54>=10000,源泉徴収票!CA54/2+5000,源泉徴収票!CA54)) -> 0 | AH54: =IF(源泉徴収票!CS54<>"","〇","×") -> × | AJ54: =源泉徴収票!O54+源泉徴収票!R54+源泉徴収票!U54 -> 0 | AK54: =源泉徴収票!Q54+源泉徴収票!T54+源泉徴収票!W54 -> 0 | AL54: =IF(源泉徴収票!I54="無",0,INT(A54*VLOOKUP(A54, 給与所得計算, 3, TRUE) + VLOOKUP(A54, 給与所得計算, 4, TRUE) )) -> 0 | AM54: 0 | AN54: 0 | AO54: =源泉徴収票!P54+源泉徴収票!S54+源泉徴収票!V54 -> 0 | AP54: =IF(源泉徴収票!I54="無",0,源泉徴収票!CB54) -> 0 | AQ54: =IF(源泉徴収票!I54="無",0,源泉徴収票!CD54) -> 0 | AR54: =IF(源泉徴収票!I54="無",0,MIN(120000,Z54+AA54+AE54)) -> 0 | AS54: =IF(源泉徴収票!I54="無",0,MIN(AF54+AG54,50000)) -> 0 | AT54: =IF(源泉徴収票!I54="無",0,IF(E54="○",INDEX(H30配偶者控除・特別控除マスタ,F54,G54),0)) -> 0 | AU54: =IF(源泉徴収票!I54="無",0,IF(C54="○",INDEX(H30配偶者控除・特別控除マスタ,F54,G54),0)+IF(D54="○",INDEX(H30老人控除対象配偶者上乗せ,1,G54),0)) -> 0 | AV54: =IF(源泉徴収票!I54="無",0,COUNTIF(M54:Q54,"一")*380000+COUNTIF(M54:Q54,"特")*630000+COUNTIF(M54:Q54,"老")*480000+COUNTIF(M54:Q54,"同")*580000) -> 0 | AW54: =IF(源泉徴収票!I54="無",0,(COUNTIF(源泉徴収票!BO54:BP54,"一般")+源泉徴収票!BQ54)*270000+(COUNTIF(源泉徴収票!BO54:BP54,"特別")+源泉徴収票!BR54)*400000+(COUNTIF(源泉徴収票!BP54,"同居特別")+源泉徴収票!BS54)*750000) -> 0 | AX54: =IF(源泉徴収票!I54="無",0,IF(源泉徴収票!BT54<>"",IF(OR(源泉徴収票!BT54="特別の寡婦",源泉徴収票!BT54="ひとり親"),350000,270000),0)) -> 0 | AY54: =IF(源泉徴収票!I54="無",0,480000) -> 480000 | AZ54: =IF(源泉徴収票!I54="無",0,SUM(AO54:AY54)) -> 480000 | BA54: =IF(源泉徴収票!I54="無",AN54,FLOOR(MAX(AN54-AZ54,0),1000)) -> 0 | BB54: =IF(源泉徴収票!I54="無",AK54,BA54*VLOOKUP(BA54,所得税額計算,3,TRUE)+VLOOKUP(BA54,所得税額計算,4,TRUE)) -> 0 | BC54: =IF(源泉徴収票!I54="無",0,源泉徴収票!CZ54) -> 0 | BD54: 0 | BE54: =IF(源泉徴収票!I54="無",BD54,FLOOR(BD54*102.1%,100)) -> 0 | BF54: 0
A55: 0 | B55: =IF(AND(源泉徴収票!I55="無",源泉徴収票!AE55<>""),"○","×") -> × | C55: =IF(AND(源泉徴収票!CO55<>"",源泉徴収票!CO55<=480000,AN55<=10000000),"○","×") -> × | D55: =IF(AND(C55="○",源泉徴収票!CN55<>"",会社情報!$C$7-YEAR(MAX(源泉徴収票!CN55-1,0))>=70),"○","×") -> × | E55: =IF(AND(源泉徴収票!CO55<>"",源泉徴収票!CO55>480000,源泉徴収票!CO55<=1330000,AN55<=10000000),"○","×") -> × | F55: =MATCH(源泉徴収票!CO55,H30配偶者控除・特別控除マスタ_配偶者所得,1) -> 1 | G55: =MATCH('源泉徴収票計算過程(非)'!AN55,H30配偶者控除・特別控除マスタ_所得者合計所得,1) -> 1 | H55: =IF(源泉徴収票!AN55="",-1,会社情報!$C$7-YEAR(源泉徴収票!AN55-1)) -> -1 | I55: =IF(源泉徴収票!AT55="",-1,会社情報!$C$7-YEAR(源泉徴収票!AT55-1)) -> -1 | J55: =IF(源泉徴収票!AZ55="",-1,会社情報!$C$7-YEAR(源泉徴収票!AZ55-1)) -> -1 | K55: =IF(源泉徴収票!BF55="",-1,会社情報!$C$7-YEAR(源泉徴収票!BF55-1)) -> -1 | L55: =IF(源泉徴収票!BL55="",-1,会社情報!$C$7-YEAR(源泉徴収票!BL55-1)) -> -1 | M55: =IF(H55>=16,IF(AND(H55>=19,H55<23),"特",IF(H55>=70,IF(源泉徴収票!AO55="同居老親等","同","老"),"一")),IF(H55>=0,"未","×")) -> × | N55: =IF(I55>=16,IF(AND(I55>=19,I55<23),"特",IF(I55>=70,IF(源泉徴収票!AU55="同居老親等","同","老"),"一")),IF(I55>=0,"未","×")) -> × | O55: =IF(J55>=16,IF(AND(J55>=19,J55<23),"特",IF(J55>=70,IF(源泉徴収票!BA55="同居老親等","同","老"),"一")),IF(J55>=0,"未","×")) -> × | P55: =IF(K55>=16,IF(AND(K55>=19,K55<23),"特",IF(K55>=70,IF(源泉徴収票!BG55="同居老親等","同","老"),"一")),IF(K55>=0,"未","×")) -> × | Q55: =IF(L55>=16,IF(AND(L55>=19,L55<23),"特",IF(L55>=70,IF(源泉徴収票!BM55="同居老親等","同","老"),"一")),IF(L55>=0,"未","×")) -> × | W55: =IF(源泉徴収票!BU55<=20000, 源泉徴収票!BU55, IF(源泉徴収票!BU55<=40000, 源泉徴収票!BU55*1/2+10000, IF(源泉徴収票!BU55<=80000, 源泉徴収票!BU55*1/4+20000, 40000))) -> 0 | X55: =IF(源泉徴収票!BV55<=25000,源泉徴収票!BV55, IF(源泉徴収票!BV55<=50000,源泉徴収票!BV55*1/2+12500, IF(源泉徴収票!BV55<=100000,源泉徴収票!BV55*1/4+25000, 50000))) -> 0 | Y55: 0 | Z55: 0 | AA55: =IF(源泉徴収票!BW55<=20000, 源泉徴収票!BW55, IF(源泉徴収票!BW55<=40000, 源泉徴収票!BW55*1/2+10000, IF(源泉徴収票!BW55<=80000, 源泉徴収票!BW55*1/4+20000, 40000))) -> 0 | AB55: =IF(源泉徴収票!BX55<=20000, 源泉徴収票!BX55, IF(源泉徴収票!BX55<=40000, 源泉徴収票!BX55*1/2+10000, IF(源泉徴収票!BX55<=80000, 源泉徴収票!BX55*1/4+20000, 40000))) -> 0 | AC55: =IF(源泉徴収票!BY55<=25000,源泉徴収票!BY55, IF(源泉徴収票!BY55<=50000,源泉徴収票!BY55*1/2+12500, IF(源泉徴収票!BY55<=100000,源泉徴収票!BY55*1/4+25000, 50000))) -> 0 | AD55: 0 | AE55: 0 | AF55: =IF(源泉徴収票!BZ55<>"",MIN(源泉徴収票!BZ55,50000),0) -> 0 | AG55: =IF(源泉徴収票!CA55>=20000,15000,IF(源泉徴収票!CA55>=10000,源泉徴収票!CA55/2+5000,源泉徴収票!CA55)) -> 0 | AH55: =IF(源泉徴収票!CS55<>"","〇","×") -> × | AJ55: =源泉徴収票!O55+源泉徴収票!R55+源泉徴収票!U55 -> 0 | AK55: =源泉徴収票!Q55+源泉徴収票!T55+源泉徴収票!W55 -> 0 | AL55: =IF(源泉徴収票!I55="無",0,INT(A55*VLOOKUP(A55, 給与所得計算, 3, TRUE) + VLOOKUP(A55, 給与所得計算, 4, TRUE) )) -> 0 | AM55: 0 | AN55: 0 | AO55: =源泉徴収票!P55+源泉徴収票!S55+源泉徴収票!V55 -> 0 | AP55: =IF(源泉徴収票!I55="無",0,源泉徴収票!CB55) -> 0 | AQ55: =IF(源泉徴収票!I55="無",0,源泉徴収票!CD55) -> 0 | AR55: =IF(源泉徴収票!I55="無",0,MIN(120000,Z55+AA55+AE55)) -> 0 | AS55: =IF(源泉徴収票!I55="無",0,MIN(AF55+AG55,50000)) -> 0 | AT55: =IF(源泉徴収票!I55="無",0,IF(E55="○",INDEX(H30配偶者控除・特別控除マスタ,F55,G55),0)) -> 0 | AU55: =IF(源泉徴収票!I55="無",0,IF(C55="○",INDEX(H30配偶者控除・特別控除マスタ,F55,G55),0)+IF(D55="○",INDEX(H30老人控除対象配偶者上乗せ,1,G55),0)) -> 0 | AV55: =IF(源泉徴収票!I55="無",0,COUNTIF(M55:Q55,"一")*380000+COUNTIF(M55:Q55,"特")*630000+COUNTIF(M55:Q55,"老")*480000+COUNTIF(M55:Q55,"同")*580000) -> 0 | AW55: =IF(源泉徴収票!I55="無",0,(COUNTIF(源泉徴収票!BO55:BP55,"一般")+源泉徴収票!BQ55)*270000+(COUNTIF(源泉徴収票!BO55:BP55,"特別")+源泉徴収票!BR55)*400000+(COUNTIF(源泉徴収票!BP55,"同居特別")+源泉徴収票!BS55)*750000) -> 0 | AX55: =IF(源泉徴収票!I55="無",0,IF(源泉徴収票!BT55<>"",IF(OR(源泉徴収票!BT55="特別の寡婦",源泉徴収票!BT55="ひとり親"),350000,270000),0)) -> 0 | AY55: =IF(源泉徴収票!I55="無",0,480000) -> 480000 | AZ55: =IF(源泉徴収票!I55="無",0,SUM(AO55:AY55)) -> 480000 | BA55: =IF(源泉徴収票!I55="無",AN55,FLOOR(MAX(AN55-AZ55,0),1000)) -> 0 | BB55: =IF(源泉徴収票!I55="無",AK55,BA55*VLOOKUP(BA55,所得税額計算,3,TRUE)+VLOOKUP(BA55,所得税額計算,4,TRUE)) -> 0 | BC55: =IF(源泉徴収票!I55="無",0,源泉徴収票!CZ55) -> 0 | BD55: 0 | BE55: =IF(源泉徴収票!I55="無",BD55,FLOOR(BD55*102.1%,100)) -> 0 | BF55: 0
A56: 0 | B56: =IF(AND(源泉徴収票!I56="無",源泉徴収票!AE56<>""),"○","×") -> × | C56: =IF(AND(源泉徴収票!CO56<>"",源泉徴収票!CO56<=480000,AN56<=10000000),"○","×") -> × | D56: =IF(AND(C56="○",源泉徴収票!CN56<>"",会社情報!$C$7-YEAR(MAX(源泉徴収票!CN56-1,0))>=70),"○","×") -> × | E56: =IF(AND(源泉徴収票!CO56<>"",源泉徴収票!CO56>480000,源泉徴収票!CO56<=1330000,AN56<=10000000),"○","×") -> × | F56: =MATCH(源泉徴収票!CO56,H30配偶者控除・特別控除マスタ_配偶者所得,1) -> 1 | G56: =MATCH('源泉徴収票計算過程(非)'!AN56,H30配偶者控除・特別控除マスタ_所得者合計所得,1) -> 1 | H56: =IF(源泉徴収票!AN56="",-1,会社情報!$C$7-YEAR(源泉徴収票!AN56-1)) -> -1 | I56: =IF(源泉徴収票!AT56="",-1,会社情報!$C$7-YEAR(源泉徴収票!AT56-1)) -> -1 | J56: =IF(源泉徴収票!AZ56="",-1,会社情報!$C$7-YEAR(源泉徴収票!AZ56-1)) -> -1 | K56: =IF(源泉徴収票!BF56="",-1,会社情報!$C$7-YEAR(源泉徴収票!BF56-1)) -> -1 | L56: =IF(源泉徴収票!BL56="",-1,会社情報!$C$7-YEAR(源泉徴収票!BL56-1)) -> -1 | M56: =IF(H56>=16,IF(AND(H56>=19,H56<23),"特",IF(H56>=70,IF(源泉徴収票!AO56="同居老親等","同","老"),"一")),IF(H56>=0,"未","×")) -> × | N56: =IF(I56>=16,IF(AND(I56>=19,I56<23),"特",IF(I56>=70,IF(源泉徴収票!AU56="同居老親等","同","老"),"一")),IF(I56>=0,"未","×")) -> × | O56: =IF(J56>=16,IF(AND(J56>=19,J56<23),"特",IF(J56>=70,IF(源泉徴収票!BA56="同居老親等","同","老"),"一")),IF(J56>=0,"未","×")) -> × | P56: =IF(K56>=16,IF(AND(K56>=19,K56<23),"特",IF(K56>=70,IF(源泉徴収票!BG56="同居老親等","同","老"),"一")),IF(K56>=0,"未","×")) -> × | Q56: =IF(L56>=16,IF(AND(L56>=19,L56<23),"特",IF(L56>=70,IF(源泉徴収票!BM56="同居老親等","同","老"),"一")),IF(L56>=0,"未","×")) -> × | W56: =IF(源泉徴収票!BU56<=20000, 源泉徴収票!BU56, IF(源泉徴収票!BU56<=40000, 源泉徴収票!BU56*1/2+10000, IF(源泉徴収票!BU56<=80000, 源泉徴収票!BU56*1/4+20000, 40000))) -> 0 | X56: =IF(源泉徴収票!BV56<=25000,源泉徴収票!BV56, IF(源泉徴収票!BV56<=50000,源泉徴収票!BV56*1/2+12500, IF(源泉徴収票!BV56<=100000,源泉徴収票!BV56*1/4+25000, 50000))) -> 0 | Y56: 0 | Z56: 0 | AA56: =IF(源泉徴収票!BW56<=20000, 源泉徴収票!BW56, IF(源泉徴収票!BW56<=40000, 源泉徴収票!BW56*1/2+10000, IF(源泉徴収票!BW56<=80000, 源泉徴収票!BW56*1/4+20000, 40000))) -> 0 | AB56: =IF(源泉徴収票!BX56<=20000, 源泉徴収票!BX56, IF(源泉徴収票!BX56<=40000, 源泉徴収票!BX56*1/2+10000, IF(源泉徴収票!BX56<=80000, 源泉徴収票!BX56*1/4+20000, 40000))) -> 0 | AC56: =IF(源泉徴収票!BY56<=25000,源泉徴収票!BY56, IF(源泉徴収票!BY56<=50000,源泉徴収票!BY56*1/2+12500, IF(源泉徴収票!BY56<=100000,源泉徴収票!BY56*1/4+25000, 50000))) -> 0 | AD56: 0 | AE56: 0 | AF56: =IF(源泉徴収票!BZ56<>"",MIN(源泉徴収票!BZ56,50000),0) -> 0 | AG56: =IF(源泉徴収票!CA56>=20000,15000,IF(源泉徴収票!CA56>=10000,源泉徴収票!CA56/2+5000,源泉徴収票!CA56)) -> 0 | AH56: =IF(源泉徴収票!CS56<>"","〇","×") -> × | AJ56: =源泉徴収票!O56+源泉徴収票!R56+源泉徴収票!U56 -> 0 | AK56: =源泉徴収票!Q56+源泉徴収票!T56+源泉徴収票!W56 -> 0 | AL56: =IF(源泉徴収票!I56="無",0,INT(A56*VLOOKUP(A56, 給与所得計算, 3, TRUE) + VLOOKUP(A56, 給与所得計算, 4, TRUE) )) -> 0 | AM56: 0 | AN56: 0 | AO56: =源泉徴収票!P56+源泉徴収票!S56+源泉徴収票!V56 -> 0 | AP56: =IF(源泉徴収票!I56="無",0,源泉徴収票!CB56) -> 0 | AQ56: =IF(源泉徴収票!I56="無",0,源泉徴収票!CD56) -> 0 | AR56: =IF(源泉徴収票!I56="無",0,MIN(120000,Z56+AA56+AE56)) -> 0 | AS56: =IF(源泉徴収票!I56="無",0,MIN(AF56+AG56,50000)) -> 0 | AT56: =IF(源泉徴収票!I56="無",0,IF(E56="○",INDEX(H30配偶者控除・特別控除マスタ,F56,G56),0)) -> 0 | AU56: =IF(源泉徴収票!I56="無",0,IF(C56="○",INDEX(H30配偶者控除・特別控除マスタ,F56,G56),0)+IF(D56="○",INDEX(H30老人控除対象配偶者上乗せ,1,G56),0)) -> 0 | AV56: =IF(源泉徴収票!I56="無",0,COUNTIF(M56:Q56,"一")*380000+COUNTIF(M56:Q56,"特")*630000+COUNTIF(M56:Q56,"老")*480000+COUNTIF(M56:Q56,"同")*580000) -> 0 | AW56: =IF(源泉徴収票!I56="無",0,(COUNTIF(源泉徴収票!BO56:BP56,"一般")+源泉徴収票!BQ56)*270000+(COUNTIF(源泉徴収票!BO56:BP56,"特別")+源泉徴収票!BR56)*400000+(COUNTIF(源泉徴収票!BP56,"同居特別")+源泉徴収票!BS56)*750000) -> 0 | AX56: =IF(源泉徴収票!I56="無",0,IF(源泉徴収票!BT56<>"",IF(OR(源泉徴収票!BT56="特別の寡婦",源泉徴収票!BT56="ひとり親"),350000,270000),0)) -> 0 | AY56: =IF(源泉徴収票!I56="無",0,480000) -> 480000 | AZ56: =IF(源泉徴収票!I56="無",0,SUM(AO56:AY56)) -> 480000 | BA56: =IF(源泉徴収票!I56="無",AN56,FLOOR(MAX(AN56-AZ56,0),1000)) -> 0 | BB56: =IF(源泉徴収票!I56="無",AK56,BA56*VLOOKUP(BA56,所得税額計算,3,TRUE)+VLOOKUP(BA56,所得税額計算,4,TRUE)) -> 0 | BC56: =IF(源泉徴収票!I56="無",0,源泉徴収票!CZ56) -> 0 | BD56: 0 | BE56: =IF(源泉徴収票!I56="無",BD56,FLOOR(BD56*102.1%,100)) -> 0 | BF56: 0
A57: 0 | B57: =IF(AND(源泉徴収票!I57="無",源泉徴収票!AE57<>""),"○","×") -> × | C57: =IF(AND(源泉徴収票!CO57<>"",源泉徴収票!CO57<=480000,AN57<=10000000),"○","×") -> × | D57: =IF(AND(C57="○",源泉徴収票!CN57<>"",会社情報!$C$7-YEAR(MAX(源泉徴収票!CN57-1,0))>=70),"○","×") -> × | E57: =IF(AND(源泉徴収票!CO57<>"",源泉徴収票!CO57>480000,源泉徴収票!CO57<=1330000,AN57<=10000000),"○","×") -> × | F57: =MATCH(源泉徴収票!CO57,H30配偶者控除・特別控除マスタ_配偶者所得,1) -> 1 | G57: =MATCH('源泉徴収票計算過程(非)'!AN57,H30配偶者控除・特別控除マスタ_所得者合計所得,1) -> 1 | H57: =IF(源泉徴収票!AN57="",-1,会社情報!$C$7-YEAR(源泉徴収票!AN57-1)) -> -1 | I57: =IF(源泉徴収票!AT57="",-1,会社情報!$C$7-YEAR(源泉徴収票!AT57-1)) -> -1 | J57: =IF(源泉徴収票!AZ57="",-1,会社情報!$C$7-YEAR(源泉徴収票!AZ57-1)) -> -1 | K57: =IF(源泉徴収票!BF57="",-1,会社情報!$C$7-YEAR(源泉徴収票!BF57-1)) -> -1 | L57: =IF(源泉徴収票!BL57="",-1,会社情報!$C$7-YEAR(源泉徴収票!BL57-1)) -> -1 | M57: =IF(H57>=16,IF(AND(H57>=19,H57<23),"特",IF(H57>=70,IF(源泉徴収票!AO57="同居老親等","同","老"),"一")),IF(H57>=0,"未","×")) -> × | N57: =IF(I57>=16,IF(AND(I57>=19,I57<23),"特",IF(I57>=70,IF(源泉徴収票!AU57="同居老親等","同","老"),"一")),IF(I57>=0,"未","×")) -> × | O57: =IF(J57>=16,IF(AND(J57>=19,J57<23),"特",IF(J57>=70,IF(源泉徴収票!BA57="同居老親等","同","老"),"一")),IF(J57>=0,"未","×")) -> × | P57: =IF(K57>=16,IF(AND(K57>=19,K57<23),"特",IF(K57>=70,IF(源泉徴収票!BG57="同居老親等","同","老"),"一")),IF(K57>=0,"未","×")) -> × | Q57: =IF(L57>=16,IF(AND(L57>=19,L57<23),"特",IF(L57>=70,IF(源泉徴収票!BM57="同居老親等","同","老"),"一")),IF(L57>=0,"未","×")) -> × | W57: =IF(源泉徴収票!BU57<=20000, 源泉徴収票!BU57, IF(源泉徴収票!BU57<=40000, 源泉徴収票!BU57*1/2+10000, IF(源泉徴収票!BU57<=80000, 源泉徴収票!BU57*1/4+20000, 40000))) -> 0 | X57: =IF(源泉徴収票!BV57<=25000,源泉徴収票!BV57, IF(源泉徴収票!BV57<=50000,源泉徴収票!BV57*1/2+12500, IF(源泉徴収票!BV57<=100000,源泉徴収票!BV57*1/4+25000, 50000))) -> 0 | Y57: 0 | Z57: 0 | AA57: =IF(源泉徴収票!BW57<=20000, 源泉徴収票!BW57, IF(源泉徴収票!BW57<=40000, 源泉徴収票!BW57*1/2+10000, IF(源泉徴収票!BW57<=80000, 源泉徴収票!BW57*1/4+20000, 40000))) -> 0 | AB57: =IF(源泉徴収票!BX57<=20000, 源泉徴収票!BX57, IF(源泉徴収票!BX57<=40000, 源泉徴収票!BX57*1/2+10000, IF(源泉徴収票!BX57<=80000, 源泉徴収票!BX57*1/4+20000, 40000))) -> 0 | AC57: =IF(源泉徴収票!BY57<=25000,源泉徴収票!BY57, IF(源泉徴収票!BY57<=50000,源泉徴収票!BY57*1/2+12500, IF(源泉徴収票!BY57<=100000,源泉徴収票!BY57*1/4+25000, 50000))) -> 0 | AD57: 0 | AE57: 0 | AF57: =IF(源泉徴収票!BZ57<>"",MIN(源泉徴収票!BZ57,50000),0) -> 0 | AG57: =IF(源泉徴収票!CA57>=20000,15000,IF(源泉徴収票!CA57>=10000,源泉徴収票!CA57/2+5000,源泉徴収票!CA57)) -> 0 | AH57: =IF(源泉徴収票!CS57<>"","〇","×") -> × | AJ57: =源泉徴収票!O57+源泉徴収票!R57+源泉徴収票!U57 -> 0 | AK57: =源泉徴収票!Q57+源泉徴収票!T57+源泉徴収票!W57 -> 0 | AL57: =IF(源泉徴収票!I57="無",0,INT(A57*VLOOKUP(A57, 給与所得計算, 3, TRUE) + VLOOKUP(A57, 給与所得計算, 4, TRUE) )) -> 0 | AM57: 0 | AN57: 0 | AO57: =源泉徴収票!P57+源泉徴収票!S57+源泉徴収票!V57 -> 0 | AP57: =IF(源泉徴収票!I57="無",0,源泉徴収票!CB57) -> 0 | AQ57: =IF(源泉徴収票!I57="無",0,源泉徴収票!CD57) -> 0 | AR57: =IF(源泉徴収票!I57="無",0,MIN(120000,Z57+AA57+AE57)) -> 0 | AS57: =IF(源泉徴収票!I57="無",0,MIN(AF57+AG57,50000)) -> 0 | AT57: =IF(源泉徴収票!I57="無",0,IF(E57="○",INDEX(H30配偶者控除・特別控除マスタ,F57,G57),0)) -> 0 | AU57: =IF(源泉徴収票!I57="無",0,IF(C57="○",INDEX(H30配偶者控除・特別控除マスタ,F57,G57),0)+IF(D57="○",INDEX(H30老人控除対象配偶者上乗せ,1,G57),0)) -> 0 | AV57: =IF(源泉徴収票!I57="無",0,COUNTIF(M57:Q57,"一")*380000+COUNTIF(M57:Q57,"特")*630000+COUNTIF(M57:Q57,"老")*480000+COUNTIF(M57:Q57,"同")*580000) -> 0 | AW57: =IF(源泉徴収票!I57="無",0,(COUNTIF(源泉徴収票!BO57:BP57,"一般")+源泉徴収票!BQ57)*270000+(COUNTIF(源泉徴収票!BO57:BP57,"特別")+源泉徴収票!BR57)*400000+(COUNTIF(源泉徴収票!BP57,"同居特別")+源泉徴収票!BS57)*750000) -> 0 | AX57: =IF(源泉徴収票!I57="無",0,IF(源泉徴収票!BT57<>"",IF(OR(源泉徴収票!BT57="特別の寡婦",源泉徴収票!BT57="ひとり親"),350000,270000),0)) -> 0 | AY57: =IF(源泉徴収票!I57="無",0,480000) -> 480000 | AZ57: =IF(源泉徴収票!I57="無",0,SUM(AO57:AY57)) -> 480000 | BA57: =IF(源泉徴収票!I57="無",AN57,FLOOR(MAX(AN57-AZ57,0),1000)) -> 0 | BB57: =IF(源泉徴収票!I57="無",AK57,BA57*VLOOKUP(BA57,所得税額計算,3,TRUE)+VLOOKUP(BA57,所得税額計算,4,TRUE)) -> 0 | BC57: =IF(源泉徴収票!I57="無",0,源泉徴収票!CZ57) -> 0 | BD57: 0 | BE57: =IF(源泉徴収票!I57="無",BD57,FLOOR(BD57*102.1%,100)) -> 0 | BF57: 0
A58: 0 | B58: =IF(AND(源泉徴収票!I58="無",源泉徴収票!AE58<>""),"○","×") -> × | C58: =IF(AND(源泉徴収票!CO58<>"",源泉徴収票!CO58<=480000,AN58<=10000000),"○","×") -> × | D58: =IF(AND(C58="○",源泉徴収票!CN58<>"",会社情報!$C$7-YEAR(MAX(源泉徴収票!CN58-1,0))>=70),"○","×") -> × | E58: =IF(AND(源泉徴収票!CO58<>"",源泉徴収票!CO58>480000,源泉徴収票!CO58<=1330000,AN58<=10000000),"○","×") -> × | F58: =MATCH(源泉徴収票!CO58,H30配偶者控除・特別控除マスタ_配偶者所得,1) -> 1 | G58: =MATCH('源泉徴収票計算過程(非)'!AN58,H30配偶者控除・特別控除マスタ_所得者合計所得,1) -> 1 | H58: =IF(源泉徴収票!AN58="",-1,会社情報!$C$7-YEAR(源泉徴収票!AN58-1)) -> -1 | I58: =IF(源泉徴収票!AT58="",-1,会社情報!$C$7-YEAR(源泉徴収票!AT58-1)) -> -1 | J58: =IF(源泉徴収票!AZ58="",-1,会社情報!$C$7-YEAR(源泉徴収票!AZ58-1)) -> -1 | K58: =IF(源泉徴収票!BF58="",-1,会社情報!$C$7-YEAR(源泉徴収票!BF58-1)) -> -1 | L58: =IF(源泉徴収票!BL58="",-1,会社情報!$C$7-YEAR(源泉徴収票!BL58-1)) -> -1 | M58: =IF(H58>=16,IF(AND(H58>=19,H58<23),"特",IF(H58>=70,IF(源泉徴収票!AO58="同居老親等","同","老"),"一")),IF(H58>=0,"未","×")) -> × | N58: =IF(I58>=16,IF(AND(I58>=19,I58<23),"特",IF(I58>=70,IF(源泉徴収票!AU58="同居老親等","同","老"),"一")),IF(I58>=0,"未","×")) -> × | O58: =IF(J58>=16,IF(AND(J58>=19,J58<23),"特",IF(J58>=70,IF(源泉徴収票!BA58="同居老親等","同","老"),"一")),IF(J58>=0,"未","×")) -> × | P58: =IF(K58>=16,IF(AND(K58>=19,K58<23),"特",IF(K58>=70,IF(源泉徴収票!BG58="同居老親等","同","老"),"一")),IF(K58>=0,"未","×")) -> × | Q58: =IF(L58>=16,IF(AND(L58>=19,L58<23),"特",IF(L58>=70,IF(源泉徴収票!BM58="同居老親等","同","老"),"一")),IF(L58>=0,"未","×")) -> × | W58: =IF(源泉徴収票!BU58<=20000, 源泉徴収票!BU58, IF(源泉徴収票!BU58<=40000, 源泉徴収票!BU58*1/2+10000, IF(源泉徴収票!BU58<=80000, 源泉徴収票!BU58*1/4+20000, 40000))) -> 0 | X58: =IF(源泉徴収票!BV58<=25000,源泉徴収票!BV58, IF(源泉徴収票!BV58<=50000,源泉徴収票!BV58*1/2+12500, IF(源泉徴収票!BV58<=100000,源泉徴収票!BV58*1/4+25000, 50000))) -> 0 | Y58: 0 | Z58: 0 | AA58: =IF(源泉徴収票!BW58<=20000, 源泉徴収票!BW58, IF(源泉徴収票!BW58<=40000, 源泉徴収票!BW58*1/2+10000, IF(源泉徴収票!BW58<=80000, 源泉徴収票!BW58*1/4+20000, 40000))) -> 0 | AB58: =IF(源泉徴収票!BX58<=20000, 源泉徴収票!BX58, IF(源泉徴収票!BX58<=40000, 源泉徴収票!BX58*1/2+10000, IF(源泉徴収票!BX58<=80000, 源泉徴収票!BX58*1/4+20000, 40000))) -> 0 | AC58: =IF(源泉徴収票!BY58<=25000,源泉徴収票!BY58, IF(源泉徴収票!BY58<=50000,源泉徴収票!BY58*1/2+12500, IF(源泉徴収票!BY58<=100000,源泉徴収票!BY58*1/4+25000, 50000))) -> 0 | AD58: 0 | AE58: 0 | AF58: =IF(源泉徴収票!BZ58<>"",MIN(源泉徴収票!BZ58,50000),0) -> 0 | AG58: =IF(源泉徴収票!CA58>=20000,15000,IF(源泉徴収票!CA58>=10000,源泉徴収票!CA58/2+5000,源泉徴収票!CA58)) -> 0 | AH58: =IF(源泉徴収票!CS58<>"","〇","×") -> × | AJ58: =源泉徴収票!O58+源泉徴収票!R58+源泉徴収票!U58 -> 0 | AK58: =源泉徴収票!Q58+源泉徴収票!T58+源泉徴収票!W58 -> 0 | AL58: =IF(源泉徴収票!I58="無",0,INT(A58*VLOOKUP(A58, 給与所得計算, 3, TRUE) + VLOOKUP(A58, 給与所得計算, 4, TRUE) )) -> 0 | AM58: 0 | AN58: 0 | AO58: =源泉徴収票!P58+源泉徴収票!S58+源泉徴収票!V58 -> 0 | AP58: =IF(源泉徴収票!I58="無",0,源泉徴収票!CB58) -> 0 | AQ58: =IF(源泉徴収票!I58="無",0,源泉徴収票!CD58) -> 0 | AR58: =IF(源泉徴収票!I58="無",0,MIN(120000,Z58+AA58+AE58)) -> 0 | AS58: =IF(源泉徴収票!I58="無",0,MIN(AF58+AG58,50000)) -> 0 | AT58: =IF(源泉徴収票!I58="無",0,IF(E58="○",INDEX(H30配偶者控除・特別控除マスタ,F58,G58),0)) -> 0 | AU58: =IF(源泉徴収票!I58="無",0,IF(C58="○",INDEX(H30配偶者控除・特別控除マスタ,F58,G58),0)+IF(D58="○",INDEX(H30老人控除対象配偶者上乗せ,1,G58),0)) -> 0 | AV58: =IF(源泉徴収票!I58="無",0,COUNTIF(M58:Q58,"一")*380000+COUNTIF(M58:Q58,"特")*630000+COUNTIF(M58:Q58,"老")*480000+COUNTIF(M58:Q58,"同")*580000) -> 0 | AW58: =IF(源泉徴収票!I58="無",0,(COUNTIF(源泉徴収票!BO58:BP58,"一般")+源泉徴収票!BQ58)*270000+(COUNTIF(源泉徴収票!BO58:BP58,"特別")+源泉徴収票!BR58)*400000+(COUNTIF(源泉徴収票!BP58,"同居特別")+源泉徴収票!BS58)*750000) -> 0 | AX58: =IF(源泉徴収票!I58="無",0,IF(源泉徴収票!BT58<>"",IF(OR(源泉徴収票!BT58="特別の寡婦",源泉徴収票!BT58="ひとり親"),350000,270000),0)) -> 0 | AY58: =IF(源泉徴収票!I58="無",0,480000) -> 480000 | AZ58: =IF(源泉徴収票!I58="無",0,SUM(AO58:AY58)) -> 480000 | BA58: =IF(源泉徴収票!I58="無",AN58,FLOOR(MAX(AN58-AZ58,0),1000)) -> 0 | BB58: =IF(源泉徴収票!I58="無",AK58,BA58*VLOOKUP(BA58,所得税額計算,3,TRUE)+VLOOKUP(BA58,所得税額計算,4,TRUE)) -> 0 | BC58: =IF(源泉徴収票!I58="無",0,源泉徴収票!CZ58) -> 0 | BD58: 0 | BE58: =IF(源泉徴収票!I58="無",BD58,FLOOR(BD58*102.1%,100)) -> 0 | BF58: 0
A59: 0 | B59: =IF(AND(源泉徴収票!I59="無",源泉徴収票!AE59<>""),"○","×") -> × | C59: =IF(AND(源泉徴収票!CO59<>"",源泉徴収票!CO59<=480000,AN59<=10000000),"○","×") -> × | D59: =IF(AND(C59="○",源泉徴収票!CN59<>"",会社情報!$C$7-YEAR(MAX(源泉徴収票!CN59-1,0))>=70),"○","×") -> × | E59: =IF(AND(源泉徴収票!CO59<>"",源泉徴収票!CO59>480000,源泉徴収票!CO59<=1330000,AN59<=10000000),"○","×") -> × | F59: =MATCH(源泉徴収票!CO59,H30配偶者控除・特別控除マスタ_配偶者所得,1) -> 1 | G59: =MATCH('源泉徴収票計算過程(非)'!AN59,H30配偶者控除・特別控除マスタ_所得者合計所得,1) -> 1 | H59: =IF(源泉徴収票!AN59="",-1,会社情報!$C$7-YEAR(源泉徴収票!AN59-1)) -> -1 | I59: =IF(源泉徴収票!AT59="",-1,会社情報!$C$7-YEAR(源泉徴収票!AT59-1)) -> -1 | J59: =IF(源泉徴収票!AZ59="",-1,会社情報!$C$7-YEAR(源泉徴収票!AZ59-1)) -> -1 | K59: =IF(源泉徴収票!BF59="",-1,会社情報!$C$7-YEAR(源泉徴収票!BF59-1)) -> -1 | L59: =IF(源泉徴収票!BL59="",-1,会社情報!$C$7-YEAR(源泉徴収票!BL59-1)) -> -1 | M59: =IF(H59>=16,IF(AND(H59>=19,H59<23),"特",IF(H59>=70,IF(源泉徴収票!AO59="同居老親等","同","老"),"一")),IF(H59>=0,"未","×")) -> × | N59: =IF(I59>=16,IF(AND(I59>=19,I59<23),"特",IF(I59>=70,IF(源泉徴収票!AU59="同居老親等","同","老"),"一")),IF(I59>=0,"未","×")) -> × | O59: =IF(J59>=16,IF(AND(J59>=19,J59<23),"特",IF(J59>=70,IF(源泉徴収票!BA59="同居老親等","同","老"),"一")),IF(J59>=0,"未","×")) -> × | P59: =IF(K59>=16,IF(AND(K59>=19,K59<23),"特",IF(K59>=70,IF(源泉徴収票!BG59="同居老親等","同","老"),"一")),IF(K59>=0,"未","×")) -> × | Q59: =IF(L59>=16,IF(AND(L59>=19,L59<23),"特",IF(L59>=70,IF(源泉徴収票!BM59="同居老親等","同","老"),"一")),IF(L59>=0,"未","×")) -> × | W59: =IF(源泉徴収票!BU59<=20000, 源泉徴収票!BU59, IF(源泉徴収票!BU59<=40000, 源泉徴収票!BU59*1/2+10000, IF(源泉徴収票!BU59<=80000, 源泉徴収票!BU59*1/4+20000, 40000))) -> 0 | X59: =IF(源泉徴収票!BV59<=25000,源泉徴収票!BV59, IF(源泉徴収票!BV59<=50000,源泉徴収票!BV59*1/2+12500, IF(源泉徴収票!BV59<=100000,源泉徴収票!BV59*1/4+25000, 50000))) -> 0 | Y59: 0 | Z59: 0 | AA59: =IF(源泉徴収票!BW59<=20000, 源泉徴収票!BW59, IF(源泉徴収票!BW59<=40000, 源泉徴収票!BW59*1/2+10000, IF(源泉徴収票!BW59<=80000, 源泉徴収票!BW59*1/4+20000, 40000))) -> 0 | AB59: =IF(源泉徴収票!BX59<=20000, 源泉徴収票!BX59, IF(源泉徴収票!BX59<=40000, 源泉徴収票!BX59*1/2+10000, IF(源泉徴収票!BX59<=80000, 源泉徴収票!BX59*1/4+20000, 40000))) -> 0 | AC59: =IF(源泉徴収票!BY59<=25000,源泉徴収票!BY59, IF(源泉徴収票!BY59<=50000,源泉徴収票!BY59*1/2+12500, IF(源泉徴収票!BY59<=100000,源泉徴収票!BY59*1/4+25000, 50000))) -> 0 | AD59: 0 | AE59: 0 | AF59: =IF(源泉徴収票!BZ59<>"",MIN(源泉徴収票!BZ59,50000),0) -> 0 | AG59: =IF(源泉徴収票!CA59>=20000,15000,IF(源泉徴収票!CA59>=10000,源泉徴収票!CA59/2+5000,源泉徴収票!CA59)) -> 0 | AH59: =IF(源泉徴収票!CS59<>"","〇","×") -> × | AJ59: =源泉徴収票!O59+源泉徴収票!R59+源泉徴収票!U59 -> 0 | AK59: =源泉徴収票!Q59+源泉徴収票!T59+源泉徴収票!W59 -> 0 | AL59: =IF(源泉徴収票!I59="無",0,INT(A59*VLOOKUP(A59, 給与所得計算, 3, TRUE) + VLOOKUP(A59, 給与所得計算, 4, TRUE) )) -> 0 | AM59: 0 | AN59: 0 | AO59: =源泉徴収票!P59+源泉徴収票!S59+源泉徴収票!V59 -> 0 | AP59: =IF(源泉徴収票!I59="無",0,源泉徴収票!CB59) -> 0 | AQ59: =IF(源泉徴収票!I59="無",0,源泉徴収票!CD59) -> 0 | AR59: =IF(源泉徴収票!I59="無",0,MIN(120000,Z59+AA59+AE59)) -> 0 | AS59: =IF(源泉徴収票!I59="無",0,MIN(AF59+AG59,50000)) -> 0 | AT59: =IF(源泉徴収票!I59="無",0,IF(E59="○",INDEX(H30配偶者控除・特別控除マスタ,F59,G59),0)) -> 0 | AU59: =IF(源泉徴収票!I59="無",0,IF(C59="○",INDEX(H30配偶者控除・特別控除マスタ,F59,G59),0)+IF(D59="○",INDEX(H30老人控除対象配偶者上乗せ,1,G59),0)) -> 0 | AV59: =IF(源泉徴収票!I59="無",0,COUNTIF(M59:Q59,"一")*380000+COUNTIF(M59:Q59,"特")*630000+COUNTIF(M59:Q59,"老")*480000+COUNTIF(M59:Q59,"同")*580000) -> 0 | AW59: =IF(源泉徴収票!I59="無",0,(COUNTIF(源泉徴収票!BO59:BP59,"一般")+源泉徴収票!BQ59)*270000+(COUNTIF(源泉徴収票!BO59:BP59,"特別")+源泉徴収票!BR59)*400000+(COUNTIF(源泉徴収票!BP59,"同居特別")+源泉徴収票!BS59)*750000) -> 0 | AX59: =IF(源泉徴収票!I59="無",0,IF(源泉徴収票!BT59<>"",IF(OR(源泉徴収票!BT59="特別の寡婦",源泉徴収票!BT59="ひとり親"),350000,270000),0)) -> 0 | AY59: =IF(源泉徴収票!I59="無",0,480000) -> 480000 | AZ59: =IF(源泉徴収票!I59="無",0,SUM(AO59:AY59)) -> 480000 | BA59: =IF(源泉徴収票!I59="無",AN59,FLOOR(MAX(AN59-AZ59,0),1000)) -> 0 | BB59: =IF(源泉徴収票!I59="無",AK59,BA59*VLOOKUP(BA59,所得税額計算,3,TRUE)+VLOOKUP(BA59,所得税額計算,4,TRUE)) -> 0 | BC59: =IF(源泉徴収票!I59="無",0,源泉徴収票!CZ59) -> 0 | BD59: 0 | BE59: =IF(源泉徴収票!I59="無",BD59,FLOOR(BD59*102.1%,100)) -> 0 | BF59: 0
A60: 0 | B60: =IF(AND(源泉徴収票!I60="無",源泉徴収票!AE60<>""),"○","×") -> × | C60: =IF(AND(源泉徴収票!CO60<>"",源泉徴収票!CO60<=480000,AN60<=10000000),"○","×") -> × | D60: =IF(AND(C60="○",源泉徴収票!CN60<>"",会社情報!$C$7-YEAR(MAX(源泉徴収票!CN60-1,0))>=70),"○","×") -> × | E60: =IF(AND(源泉徴収票!CO60<>"",源泉徴収票!CO60>480000,源泉徴収票!CO60<=1330000,AN60<=10000000),"○","×") -> × | F60: =MATCH(源泉徴収票!CO60,H30配偶者控除・特別控除マスタ_配偶者所得,1) -> 1 | G60: =MATCH('源泉徴収票計算過程(非)'!AN60,H30配偶者控除・特別控除マスタ_所得者合計所得,1) -> 1 | H60: =IF(源泉徴収票!AN60="",-1,会社情報!$C$7-YEAR(源泉徴収票!AN60-1)) -> -1 | I60: =IF(源泉徴収票!AT60="",-1,会社情報!$C$7-YEAR(源泉徴収票!AT60-1)) -> -1 | J60: =IF(源泉徴収票!AZ60="",-1,会社情報!$C$7-YEAR(源泉徴収票!AZ60-1)) -> -1 | K60: =IF(源泉徴収票!BF60="",-1,会社情報!$C$7-YEAR(源泉徴収票!BF60-1)) -> -1 | L60: =IF(源泉徴収票!BL60="",-1,会社情報!$C$7-YEAR(源泉徴収票!BL60-1)) -> -1 | M60: =IF(H60>=16,IF(AND(H60>=19,H60<23),"特",IF(H60>=70,IF(源泉徴収票!AO60="同居老親等","同","老"),"一")),IF(H60>=0,"未","×")) -> × | N60: =IF(I60>=16,IF(AND(I60>=19,I60<23),"特",IF(I60>=70,IF(源泉徴収票!AU60="同居老親等","同","老"),"一")),IF(I60>=0,"未","×")) -> × | O60: =IF(J60>=16,IF(AND(J60>=19,J60<23),"特",IF(J60>=70,IF(源泉徴収票!BA60="同居老親等","同","老"),"一")),IF(J60>=0,"未","×")) -> × | P60: =IF(K60>=16,IF(AND(K60>=19,K60<23),"特",IF(K60>=70,IF(源泉徴収票!BG60="同居老親等","同","老"),"一")),IF(K60>=0,"未","×")) -> × | Q60: =IF(L60>=16,IF(AND(L60>=19,L60<23),"特",IF(L60>=70,IF(源泉徴収票!BM60="同居老親等","同","老"),"一")),IF(L60>=0,"未","×")) -> × | W60: =IF(源泉徴収票!BU60<=20000, 源泉徴収票!BU60, IF(源泉徴収票!BU60<=40000, 源泉徴収票!BU60*1/2+10000, IF(源泉徴収票!BU60<=80000, 源泉徴収票!BU60*1/4+20000, 40000))) -> 0 | X60: =IF(源泉徴収票!BV60<=25000,源泉徴収票!BV60, IF(源泉徴収票!BV60<=50000,源泉徴収票!BV60*1/2+12500, IF(源泉徴収票!BV60<=100000,源泉徴収票!BV60*1/4+25000, 50000))) -> 0 | Y60: 0 | Z60: 0 | AA60: =IF(源泉徴収票!BW60<=20000, 源泉徴収票!BW60, IF(源泉徴収票!BW60<=40000, 源泉徴収票!BW60*1/2+10000, IF(源泉徴収票!BW60<=80000, 源泉徴収票!BW60*1/4+20000, 40000))) -> 0 | AB60: =IF(源泉徴収票!BX60<=20000, 源泉徴収票!BX60, IF(源泉徴収票!BX60<=40000, 源泉徴収票!BX60*1/2+10000, IF(源泉徴収票!BX60<=80000, 源泉徴収票!BX60*1/4+20000, 40000))) -> 0 | AC60: =IF(源泉徴収票!BY60<=25000,源泉徴収票!BY60, IF(源泉徴収票!BY60<=50000,源泉徴収票!BY60*1/2+12500, IF(源泉徴収票!BY60<=100000,源泉徴収票!BY60*1/4+25000, 50000))) -> 0 | AD60: 0 | AE60: 0 | AF60: =IF(源泉徴収票!BZ60<>"",MIN(源泉徴収票!BZ60,50000),0) -> 0 | AG60: =IF(源泉徴収票!CA60>=20000,15000,IF(源泉徴収票!CA60>=10000,源泉徴収票!CA60/2+5000,源泉徴収票!CA60)) -> 0 | AH60: =IF(源泉徴収票!CS60<>"","〇","×") -> × | AJ60: =源泉徴収票!O60+源泉徴収票!R60+源泉徴収票!U60 -> 0 | AK60: =源泉徴収票!Q60+源泉徴収票!T60+源泉徴収票!W60 -> 0 | AL60: =IF(源泉徴収票!I60="無",0,INT(A60*VLOOKUP(A60, 給与所得計算, 3, TRUE) + VLOOKUP(A60, 給与所得計算, 4, TRUE) )) -> 0 | AM60: 0 | AN60: 0 | AO60: =源泉徴収票!P60+源泉徴収票!S60+源泉徴収票!V60 -> 0 | AP60: =IF(源泉徴収票!I60="無",0,源泉徴収票!CB60) -> 0 | AQ60: =IF(源泉徴収票!I60="無",0,源泉徴収票!CD60) -> 0 | AR60: =IF(源泉徴収票!I60="無",0,MIN(120000,Z60+AA60+AE60)) -> 0 | AS60: =IF(源泉徴収票!I60="無",0,MIN(AF60+AG60,50000)) -> 0 | AT60: =IF(源泉徴収票!I60="無",0,IF(E60="○",INDEX(H30配偶者控除・特別控除マスタ,F60,G60),0)) -> 0 | AU60: =IF(源泉徴収票!I60="無",0,IF(C60="○",INDEX(H30配偶者控除・特別控除マスタ,F60,G60),0)+IF(D60="○",INDEX(H30老人控除対象配偶者上乗せ,1,G60),0)) -> 0 | AV60: =IF(源泉徴収票!I60="無",0,COUNTIF(M60:Q60,"一")*380000+COUNTIF(M60:Q60,"特")*630000+COUNTIF(M60:Q60,"老")*480000+COUNTIF(M60:Q60,"同")*580000) -> 0 | AW60: =IF(源泉徴収票!I60="無",0,(COUNTIF(源泉徴収票!BO60:BP60,"一般")+源泉徴収票!BQ60)*270000+(COUNTIF(源泉徴収票!BO60:BP60,"特別")+源泉徴収票!BR60)*400000+(COUNTIF(源泉徴収票!BP60,"同居特別")+源泉徴収票!BS60)*750000) -> 0 | AX60: =IF(源泉徴収票!I60="無",0,IF(源泉徴収票!BT60<>"",IF(OR(源泉徴収票!BT60="特別の寡婦",源泉徴収票!BT60="ひとり親"),350000,270000),0)) -> 0 | AY60: =IF(源泉徴収票!I60="無",0,480000) -> 480000 | AZ60: =IF(源泉徴収票!I60="無",0,SUM(AO60:AY60)) -> 480000 | BA60: =IF(源泉徴収票!I60="無",AN60,FLOOR(MAX(AN60-AZ60,0),1000)) -> 0 | BB60: =IF(源泉徴収票!I60="無",AK60,BA60*VLOOKUP(BA60,所得税額計算,3,TRUE)+VLOOKUP(BA60,所得税額計算,4,TRUE)) -> 0 | BC60: =IF(源泉徴収票!I60="無",0,源泉徴収票!CZ60) -> 0 | BD60: 0 | BE60: =IF(源泉徴収票!I60="無",BD60,FLOOR(BD60*102.1%,100)) -> 0 | BF60: 0
A61: 0 | B61: =IF(AND(源泉徴収票!I61="無",源泉徴収票!AE61<>""),"○","×") -> × | C61: =IF(AND(源泉徴収票!CO61<>"",源泉徴収票!CO61<=480000,AN61<=10000000),"○","×") -> × | D61: =IF(AND(C61="○",源泉徴収票!CN61<>"",会社情報!$C$7-YEAR(MAX(源泉徴収票!CN61-1,0))>=70),"○","×") -> × | E61: =IF(AND(源泉徴収票!CO61<>"",源泉徴収票!CO61>480000,源泉徴収票!CO61<=1330000,AN61<=10000000),"○","×") -> × | F61: =MATCH(源泉徴収票!CO61,H30配偶者控除・特別控除マスタ_配偶者所得,1) -> 1 | G61: =MATCH('源泉徴収票計算過程(非)'!AN61,H30配偶者控除・特別控除マスタ_所得者合計所得,1) -> 1 | H61: =IF(源泉徴収票!AN61="",-1,会社情報!$C$7-YEAR(源泉徴収票!AN61-1)) -> -1 | I61: =IF(源泉徴収票!AT61="",-1,会社情報!$C$7-YEAR(源泉徴収票!AT61-1)) -> -1 | J61: =IF(源泉徴収票!AZ61="",-1,会社情報!$C$7-YEAR(源泉徴収票!AZ61-1)) -> -1 | K61: =IF(源泉徴収票!BF61="",-1,会社情報!$C$7-YEAR(源泉徴収票!BF61-1)) -> -1 | L61: =IF(源泉徴収票!BL61="",-1,会社情報!$C$7-YEAR(源泉徴収票!BL61-1)) -> -1 | M61: =IF(H61>=16,IF(AND(H61>=19,H61<23),"特",IF(H61>=70,IF(源泉徴収票!AO61="同居老親等","同","老"),"一")),IF(H61>=0,"未","×")) -> × | N61: =IF(I61>=16,IF(AND(I61>=19,I61<23),"特",IF(I61>=70,IF(源泉徴収票!AU61="同居老親等","同","老"),"一")),IF(I61>=0,"未","×")) -> × | O61: =IF(J61>=16,IF(AND(J61>=19,J61<23),"特",IF(J61>=70,IF(源泉徴収票!BA61="同居老親等","同","老"),"一")),IF(J61>=0,"未","×")) -> × | P61: =IF(K61>=16,IF(AND(K61>=19,K61<23),"特",IF(K61>=70,IF(源泉徴収票!BG61="同居老親等","同","老"),"一")),IF(K61>=0,"未","×")) -> × | Q61: =IF(L61>=16,IF(AND(L61>=19,L61<23),"特",IF(L61>=70,IF(源泉徴収票!BM61="同居老親等","同","老"),"一")),IF(L61>=0,"未","×")) -> × | W61: =IF(源泉徴収票!BU61<=20000, 源泉徴収票!BU61, IF(源泉徴収票!BU61<=40000, 源泉徴収票!BU61*1/2+10000, IF(源泉徴収票!BU61<=80000, 源泉徴収票!BU61*1/4+20000, 40000))) -> 0 | X61: =IF(源泉徴収票!BV61<=25000,源泉徴収票!BV61, IF(源泉徴収票!BV61<=50000,源泉徴収票!BV61*1/2+12500, IF(源泉徴収票!BV61<=100000,源泉徴収票!BV61*1/4+25000, 50000))) -> 0 | Y61: 0 | Z61: 0 | AA61: =IF(源泉徴収票!BW61<=20000, 源泉徴収票!BW61, IF(源泉徴収票!BW61<=40000, 源泉徴収票!BW61*1/2+10000, IF(源泉徴収票!BW61<=80000, 源泉徴収票!BW61*1/4+20000, 40000))) -> 0 | AB61: =IF(源泉徴収票!BX61<=20000, 源泉徴収票!BX61, IF(源泉徴収票!BX61<=40000, 源泉徴収票!BX61*1/2+10000, IF(源泉徴収票!BX61<=80000, 源泉徴収票!BX61*1/4+20000, 40000))) -> 0 | AC61: =IF(源泉徴収票!BY61<=25000,源泉徴収票!BY61, IF(源泉徴収票!BY61<=50000,源泉徴収票!BY61*1/2+12500, IF(源泉徴収票!BY61<=100000,源泉徴収票!BY61*1/4+25000, 50000))) -> 0 | AD61: 0 | AE61: 0 | AF61: =IF(源泉徴収票!BZ61<>"",MIN(源泉徴収票!BZ61,50000),0) -> 0 | AG61: =IF(源泉徴収票!CA61>=20000,15000,IF(源泉徴収票!CA61>=10000,源泉徴収票!CA61/2+5000,源泉徴収票!CA61)) -> 0 | AH61: =IF(源泉徴収票!CS61<>"","〇","×") -> × | AJ61: =源泉徴収票!O61+源泉徴収票!R61+源泉徴収票!U61 -> 0 | AK61: =源泉徴収票!Q61+源泉徴収票!T61+源泉徴収票!W61 -> 0 | AL61: =IF(源泉徴収票!I61="無",0,INT(A61*VLOOKUP(A61, 給与所得計算, 3, TRUE) + VLOOKUP(A61, 給与所得計算, 4, TRUE) )) -> 0 | AM61: 0 | AN61: 0 | AO61: =源泉徴収票!P61+源泉徴収票!S61+源泉徴収票!V61 -> 0 | AP61: =IF(源泉徴収票!I61="無",0,源泉徴収票!CB61) -> 0 | AQ61: =IF(源泉徴収票!I61="無",0,源泉徴収票!CD61) -> 0 | AR61: =IF(源泉徴収票!I61="無",0,MIN(120000,Z61+AA61+AE61)) -> 0 | AS61: =IF(源泉徴収票!I61="無",0,MIN(AF61+AG61,50000)) -> 0 | AT61: =IF(源泉徴収票!I61="無",0,IF(E61="○",INDEX(H30配偶者控除・特別控除マスタ,F61,G61),0)) -> 0 | AU61: =IF(源泉徴収票!I61="無",0,IF(C61="○",INDEX(H30配偶者控除・特別控除マスタ,F61,G61),0)+IF(D61="○",INDEX(H30老人控除対象配偶者上乗せ,1,G61),0)) -> 0 | AV61: =IF(源泉徴収票!I61="無",0,COUNTIF(M61:Q61,"一")*380000+COUNTIF(M61:Q61,"特")*630000+COUNTIF(M61:Q61,"老")*480000+COUNTIF(M61:Q61,"同")*580000) -> 0 | AW61: =IF(源泉徴収票!I61="無",0,(COUNTIF(源泉徴収票!BO61:BP61,"一般")+源泉徴収票!BQ61)*270000+(COUNTIF(源泉徴収票!BO61:BP61,"特別")+源泉徴収票!BR61)*400000+(COUNTIF(源泉徴収票!BP61,"同居特別")+源泉徴収票!BS61)*750000) -> 0 | AX61: =IF(源泉徴収票!I61="無",0,IF(源泉徴収票!BT61<>"",IF(OR(源泉徴収票!BT61="特別の寡婦",源泉徴収票!BT61="ひとり親"),350000,270000),0)) -> 0 | AY61: =IF(源泉徴収票!I61="無",0,480000) -> 480000 | AZ61: =IF(源泉徴収票!I61="無",0,SUM(AO61:AY61)) -> 480000 | BA61: =IF(源泉徴収票!I61="無",AN61,FLOOR(MAX(AN61-AZ61,0),1000)) -> 0 | BB61: =IF(源泉徴収票!I61="無",AK61,BA61*VLOOKUP(BA61,所得税額計算,3,TRUE)+VLOOKUP(BA61,所得税額計算,4,TRUE)) -> 0 | BC61: =IF(源泉徴収票!I61="無",0,源泉徴収票!CZ61) -> 0 | BD61: 0 | BE61: =IF(源泉徴収票!I61="無",BD61,FLOOR(BD61*102.1%,100)) -> 0 | BF61: 0
A62: 0 | B62: =IF(AND(源泉徴収票!I62="無",源泉徴収票!AE62<>""),"○","×") -> × | C62: =IF(AND(源泉徴収票!CO62<>"",源泉徴収票!CO62<=480000,AN62<=10000000),"○","×") -> × | D62: =IF(AND(C62="○",源泉徴収票!CN62<>"",会社情報!$C$7-YEAR(MAX(源泉徴収票!CN62-1,0))>=70),"○","×") -> × | E62: =IF(AND(源泉徴収票!CO62<>"",源泉徴収票!CO62>480000,源泉徴収票!CO62<=1330000,AN62<=10000000),"○","×") -> × | F62: =MATCH(源泉徴収票!CO62,H30配偶者控除・特別控除マスタ_配偶者所得,1) -> 1 | G62: =MATCH('源泉徴収票計算過程(非)'!AN62,H30配偶者控除・特別控除マスタ_所得者合計所得,1) -> 1 | H62: =IF(源泉徴収票!AN62="",-1,会社情報!$C$7-YEAR(源泉徴収票!AN62-1)) -> -1 | I62: =IF(源泉徴収票!AT62="",-1,会社情報!$C$7-YEAR(源泉徴収票!AT62-1)) -> -1 | J62: =IF(源泉徴収票!AZ62="",-1,会社情報!$C$7-YEAR(源泉徴収票!AZ62-1)) -> -1 | K62: =IF(源泉徴収票!BF62="",-1,会社情報!$C$7-YEAR(源泉徴収票!BF62-1)) -> -1 | L62: =IF(源泉徴収票!BL62="",-1,会社情報!$C$7-YEAR(源泉徴収票!BL62-1)) -> -1 | M62: =IF(H62>=16,IF(AND(H62>=19,H62<23),"特",IF(H62>=70,IF(源泉徴収票!AO62="同居老親等","同","老"),"一")),IF(H62>=0,"未","×")) -> × | N62: =IF(I62>=16,IF(AND(I62>=19,I62<23),"特",IF(I62>=70,IF(源泉徴収票!AU62="同居老親等","同","老"),"一")),IF(I62>=0,"未","×")) -> × | O62: =IF(J62>=16,IF(AND(J62>=19,J62<23),"特",IF(J62>=70,IF(源泉徴収票!BA62="同居老親等","同","老"),"一")),IF(J62>=0,"未","×")) -> × | P62: =IF(K62>=16,IF(AND(K62>=19,K62<23),"特",IF(K62>=70,IF(源泉徴収票!BG62="同居老親等","同","老"),"一")),IF(K62>=0,"未","×")) -> × | Q62: =IF(L62>=16,IF(AND(L62>=19,L62<23),"特",IF(L62>=70,IF(源泉徴収票!BM62="同居老親等","同","老"),"一")),IF(L62>=0,"未","×")) -> × | W62: =IF(源泉徴収票!BU62<=20000, 源泉徴収票!BU62, IF(源泉徴収票!BU62<=40000, 源泉徴収票!BU62*1/2+10000, IF(源泉徴収票!BU62<=80000, 源泉徴収票!BU62*1/4+20000, 40000))) -> 0 | X62: =IF(源泉徴収票!BV62<=25000,源泉徴収票!BV62, IF(源泉徴収票!BV62<=50000,源泉徴収票!BV62*1/2+12500, IF(源泉徴収票!BV62<=100000,源泉徴収票!BV62*1/4+25000, 50000))) -> 0 | Y62: 0 | Z62: 0 | AA62: =IF(源泉徴収票!BW62<=20000, 源泉徴収票!BW62, IF(源泉徴収票!BW62<=40000, 源泉徴収票!BW62*1/2+10000, IF(源泉徴収票!BW62<=80000, 源泉徴収票!BW62*1/4+20000, 40000))) -> 0 | AB62: =IF(源泉徴収票!BX62<=20000, 源泉徴収票!BX62, IF(源泉徴収票!BX62<=40000, 源泉徴収票!BX62*1/2+10000, IF(源泉徴収票!BX62<=80000, 源泉徴収票!BX62*1/4+20000, 40000))) -> 0 | AC62: =IF(源泉徴収票!BY62<=25000,源泉徴収票!BY62, IF(源泉徴収票!BY62<=50000,源泉徴収票!BY62*1/2+12500, IF(源泉徴収票!BY62<=100000,源泉徴収票!BY62*1/4+25000, 50000))) -> 0 | AD62: 0 | AE62: 0 | AF62: =IF(源泉徴収票!BZ62<>"",MIN(源泉徴収票!BZ62,50000),0) -> 0 | AG62: =IF(源泉徴収票!CA62>=20000,15000,IF(源泉徴収票!CA62>=10000,源泉徴収票!CA62/2+5000,源泉徴収票!CA62)) -> 0 | AH62: =IF(源泉徴収票!CS62<>"","〇","×") -> × | AJ62: =源泉徴収票!O62+源泉徴収票!R62+源泉徴収票!U62 -> 0 | AK62: =源泉徴収票!Q62+源泉徴収票!T62+源泉徴収票!W62 -> 0 | AL62: =IF(源泉徴収票!I62="無",0,INT(A62*VLOOKUP(A62, 給与所得計算, 3, TRUE) + VLOOKUP(A62, 給与所得計算, 4, TRUE) )) -> 0 | AM62: 0 | AN62: 0 | AO62: =源泉徴収票!P62+源泉徴収票!S62+源泉徴収票!V62 -> 0 | AP62: =IF(源泉徴収票!I62="無",0,源泉徴収票!CB62) -> 0 | AQ62: =IF(源泉徴収票!I62="無",0,源泉徴収票!CD62) -> 0 | AR62: =IF(源泉徴収票!I62="無",0,MIN(120000,Z62+AA62+AE62)) -> 0 | AS62: =IF(源泉徴収票!I62="無",0,MIN(AF62+AG62,50000)) -> 0 | AT62: =IF(源泉徴収票!I62="無",0,IF(E62="○",INDEX(H30配偶者控除・特別控除マスタ,F62,G62),0)) -> 0 | AU62: =IF(源泉徴収票!I62="無",0,IF(C62="○",INDEX(H30配偶者控除・特別控除マスタ,F62,G62),0)+IF(D62="○",INDEX(H30老人控除対象配偶者上乗せ,1,G62),0)) -> 0 | AV62: =IF(源泉徴収票!I62="無",0,COUNTIF(M62:Q62,"一")*380000+COUNTIF(M62:Q62,"特")*630000+COUNTIF(M62:Q62,"老")*480000+COUNTIF(M62:Q62,"同")*580000) -> 0 | AW62: =IF(源泉徴収票!I62="無",0,(COUNTIF(源泉徴収票!BO62:BP62,"一般")+源泉徴収票!BQ62)*270000+(COUNTIF(源泉徴収票!BO62:BP62,"特別")+源泉徴収票!BR62)*400000+(COUNTIF(源泉徴収票!BP62,"同居特別")+源泉徴収票!BS62)*750000) -> 0 | AX62: =IF(源泉徴収票!I62="無",0,IF(源泉徴収票!BT62<>"",IF(OR(源泉徴収票!BT62="特別の寡婦",源泉徴収票!BT62="ひとり親"),350000,270000),0)) -> 0 | AY62: =IF(源泉徴収票!I62="無",0,480000) -> 480000 | AZ62: =IF(源泉徴収票!I62="無",0,SUM(AO62:AY62)) -> 480000 | BA62: =IF(源泉徴収票!I62="無",AN62,FLOOR(MAX(AN62-AZ62,0),1000)) -> 0 | BB62: =IF(源泉徴収票!I62="無",AK62,BA62*VLOOKUP(BA62,所得税額計算,3,TRUE)+VLOOKUP(BA62,所得税額計算,4,TRUE)) -> 0 | BC62: =IF(源泉徴収票!I62="無",0,源泉徴収票!CZ62) -> 0 | BD62: 0 | BE62: =IF(源泉徴収票!I62="無",BD62,FLOOR(BD62*102.1%,100)) -> 0 | BF62: 0
A63: 0 | B63: =IF(AND(源泉徴収票!I63="無",源泉徴収票!AE63<>""),"○","×") -> × | C63: =IF(AND(源泉徴収票!CO63<>"",源泉徴収票!CO63<=480000,AN63<=10000000),"○","×") -> × | D63: =IF(AND(C63="○",源泉徴収票!CN63<>"",会社情報!$C$7-YEAR(MAX(源泉徴収票!CN63-1,0))>=70),"○","×") -> × | E63: =IF(AND(源泉徴収票!CO63<>"",源泉徴収票!CO63>480000,源泉徴収票!CO63<=1330000,AN63<=10000000),"○","×") -> × | F63: =MATCH(源泉徴収票!CO63,H30配偶者控除・特別控除マスタ_配偶者所得,1) -> 1 | G63: =MATCH('源泉徴収票計算過程(非)'!AN63,H30配偶者控除・特別控除マスタ_所得者合計所得,1) -> 1 | H63: =IF(源泉徴収票!AN63="",-1,会社情報!$C$7-YEAR(源泉徴収票!AN63-1)) -> -1 | I63: =IF(源泉徴収票!AT63="",-1,会社情報!$C$7-YEAR(源泉徴収票!AT63-1)) -> -1 | J63: =IF(源泉徴収票!AZ63="",-1,会社情報!$C$7-YEAR(源泉徴収票!AZ63-1)) -> -1 | K63: =IF(源泉徴収票!BF63="",-1,会社情報!$C$7-YEAR(源泉徴収票!BF63-1)) -> -1 | L63: =IF(源泉徴収票!BL63="",-1,会社情報!$C$7-YEAR(源泉徴収票!BL63-1)) -> -1 | M63: =IF(H63>=16,IF(AND(H63>=19,H63<23),"特",IF(H63>=70,IF(源泉徴収票!AO63="同居老親等","同","老"),"一")),IF(H63>=0,"未","×")) -> × | N63: =IF(I63>=16,IF(AND(I63>=19,I63<23),"特",IF(I63>=70,IF(源泉徴収票!AU63="同居老親等","同","老"),"一")),IF(I63>=0,"未","×")) -> × | O63: =IF(J63>=16,IF(AND(J63>=19,J63<23),"特",IF(J63>=70,IF(源泉徴収票!BA63="同居老親等","同","老"),"一")),IF(J63>=0,"未","×")) -> × | P63: =IF(K63>=16,IF(AND(K63>=19,K63<23),"特",IF(K63>=70,IF(源泉徴収票!BG63="同居老親等","同","老"),"一")),IF(K63>=0,"未","×")) -> × | Q63: =IF(L63>=16,IF(AND(L63>=19,L63<23),"特",IF(L63>=70,IF(源泉徴収票!BM63="同居老親等","同","老"),"一")),IF(L63>=0,"未","×")) -> × | W63: =IF(源泉徴収票!BU63<=20000, 源泉徴収票!BU63, IF(源泉徴収票!BU63<=40000, 源泉徴収票!BU63*1/2+10000, IF(源泉徴収票!BU63<=80000, 源泉徴収票!BU63*1/4+20000, 40000))) -> 0 | X63: =IF(源泉徴収票!BV63<=25000,源泉徴収票!BV63, IF(源泉徴収票!BV63<=50000,源泉徴収票!BV63*1/2+12500, IF(源泉徴収票!BV63<=100000,源泉徴収票!BV63*1/4+25000, 50000))) -> 0 | Y63: 0 | Z63: 0 | AA63: =IF(源泉徴収票!BW63<=20000, 源泉徴収票!BW63, IF(源泉徴収票!BW63<=40000, 源泉徴収票!BW63*1/2+10000, IF(源泉徴収票!BW63<=80000, 源泉徴収票!BW63*1/4+20000, 40000))) -> 0 | AB63: =IF(源泉徴収票!BX63<=20000, 源泉徴収票!BX63, IF(源泉徴収票!BX63<=40000, 源泉徴収票!BX63*1/2+10000, IF(源泉徴収票!BX63<=80000, 源泉徴収票!BX63*1/4+20000, 40000))) -> 0 | AC63: =IF(源泉徴収票!BY63<=25000,源泉徴収票!BY63, IF(源泉徴収票!BY63<=50000,源泉徴収票!BY63*1/2+12500, IF(源泉徴収票!BY63<=100000,源泉徴収票!BY63*1/4+25000, 50000))) -> 0 | AD63: 0 | AE63: 0 | AF63: =IF(源泉徴収票!BZ63<>"",MIN(源泉徴収票!BZ63,50000),0) -> 0 | AG63: =IF(源泉徴収票!CA63>=20000,15000,IF(源泉徴収票!CA63>=10000,源泉徴収票!CA63/2+5000,源泉徴収票!CA63)) -> 0 | AH63: =IF(源泉徴収票!CS63<>"","〇","×") -> × | AJ63: =源泉徴収票!O63+源泉徴収票!R63+源泉徴収票!U63 -> 0 | AK63: =源泉徴収票!Q63+源泉徴収票!T63+源泉徴収票!W63 -> 0 | AL63: =IF(源泉徴収票!I63="無",0,INT(A63*VLOOKUP(A63, 給与所得計算, 3, TRUE) + VLOOKUP(A63, 給与所得計算, 4, TRUE) )) -> 0 | AM63: 0 | AN63: 0 | AO63: =源泉徴収票!P63+源泉徴収票!S63+源泉徴収票!V63 -> 0 | AP63: =IF(源泉徴収票!I63="無",0,源泉徴収票!CB63) -> 0 | AQ63: =IF(源泉徴収票!I63="無",0,源泉徴収票!CD63) -> 0 | AR63: =IF(源泉徴収票!I63="無",0,MIN(120000,Z63+AA63+AE63)) -> 0 | AS63: =IF(源泉徴収票!I63="無",0,MIN(AF63+AG63,50000)) -> 0 | AT63: =IF(源泉徴収票!I63="無",0,IF(E63="○",INDEX(H30配偶者控除・特別控除マスタ,F63,G63),0)) -> 0 | AU63: =IF(源泉徴収票!I63="無",0,IF(C63="○",INDEX(H30配偶者控除・特別控除マスタ,F63,G63),0)+IF(D63="○",INDEX(H30老人控除対象配偶者上乗せ,1,G63),0)) -> 0 | AV63: =IF(源泉徴収票!I63="無",0,COUNTIF(M63:Q63,"一")*380000+COUNTIF(M63:Q63,"特")*630000+COUNTIF(M63:Q63,"老")*480000+COUNTIF(M63:Q63,"同")*580000) -> 0 | AW63: =IF(源泉徴収票!I63="無",0,(COUNTIF(源泉徴収票!BO63:BP63,"一般")+源泉徴収票!BQ63)*270000+(COUNTIF(源泉徴収票!BO63:BP63,"特別")+源泉徴収票!BR63)*400000+(COUNTIF(源泉徴収票!BP63,"同居特別")+源泉徴収票!BS63)*750000) -> 0 | AX63: =IF(源泉徴収票!I63="無",0,IF(源泉徴収票!BT63<>"",IF(OR(源泉徴収票!BT63="特別の寡婦",源泉徴収票!BT63="ひとり親"),350000,270000),0)) -> 0 | AY63: =IF(源泉徴収票!I63="無",0,480000) -> 480000 | AZ63: =IF(源泉徴収票!I63="無",0,SUM(AO63:AY63)) -> 480000 | BA63: =IF(源泉徴収票!I63="無",AN63,FLOOR(MAX(AN63-AZ63,0),1000)) -> 0 | BB63: =IF(源泉徴収票!I63="無",AK63,BA63*VLOOKUP(BA63,所得税額計算,3,TRUE)+VLOOKUP(BA63,所得税額計算,4,TRUE)) -> 0 | BC63: =IF(源泉徴収票!I63="無",0,源泉徴収票!CZ63) -> 0 | BD63: 0 | BE63: =IF(源泉徴収票!I63="無",BD63,FLOOR(BD63*102.1%,100)) -> 0 | BF63: 0
A64: 0 | B64: =IF(AND(源泉徴収票!I64="無",源泉徴収票!AE64<>""),"○","×") -> × | C64: =IF(AND(源泉徴収票!CO64<>"",源泉徴収票!CO64<=480000,AN64<=10000000),"○","×") -> × | D64: =IF(AND(C64="○",源泉徴収票!CN64<>"",会社情報!$C$7-YEAR(MAX(源泉徴収票!CN64-1,0))>=70),"○","×") -> × | E64: =IF(AND(源泉徴収票!CO64<>"",源泉徴収票!CO64>480000,源泉徴収票!CO64<=1330000,AN64<=10000000),"○","×") -> × | F64: =MATCH(源泉徴収票!CO64,H30配偶者控除・特別控除マスタ_配偶者所得,1) -> 1 | G64: =MATCH('源泉徴収票計算過程(非)'!AN64,H30配偶者控除・特別控除マスタ_所得者合計所得,1) -> 1 | H64: =IF(源泉徴収票!AN64="",-1,会社情報!$C$7-YEAR(源泉徴収票!AN64-1)) -> -1 | I64: =IF(源泉徴収票!AT64="",-1,会社情報!$C$7-YEAR(源泉徴収票!AT64-1)) -> -1 | J64: =IF(源泉徴収票!AZ64="",-1,会社情報!$C$7-YEAR(源泉徴収票!AZ64-1)) -> -1 | K64: =IF(源泉徴収票!BF64="",-1,会社情報!$C$7-YEAR(源泉徴収票!BF64-1)) -> -1 | L64: =IF(源泉徴収票!BL64="",-1,会社情報!$C$7-YEAR(源泉徴収票!BL64-1)) -> -1 | M64: =IF(H64>=16,IF(AND(H64>=19,H64<23),"特",IF(H64>=70,IF(源泉徴収票!AO64="同居老親等","同","老"),"一")),IF(H64>=0,"未","×")) -> × | N64: =IF(I64>=16,IF(AND(I64>=19,I64<23),"特",IF(I64>=70,IF(源泉徴収票!AU64="同居老親等","同","老"),"一")),IF(I64>=0,"未","×")) -> × | O64: =IF(J64>=16,IF(AND(J64>=19,J64<23),"特",IF(J64>=70,IF(源泉徴収票!BA64="同居老親等","同","老"),"一")),IF(J64>=0,"未","×")) -> × | P64: =IF(K64>=16,IF(AND(K64>=19,K64<23),"特",IF(K64>=70,IF(源泉徴収票!BG64="同居老親等","同","老"),"一")),IF(K64>=0,"未","×")) -> × | Q64: =IF(L64>=16,IF(AND(L64>=19,L64<23),"特",IF(L64>=70,IF(源泉徴収票!BM64="同居老親等","同","老"),"一")),IF(L64>=0,"未","×")) -> × | W64: =IF(源泉徴収票!BU64<=20000, 源泉徴収票!BU64, IF(源泉徴収票!BU64<=40000, 源泉徴収票!BU64*1/2+10000, IF(源泉徴収票!BU64<=80000, 源泉徴収票!BU64*1/4+20000, 40000))) -> 0 | X64: =IF(源泉徴収票!BV64<=25000,源泉徴収票!BV64, IF(源泉徴収票!BV64<=50000,源泉徴収票!BV64*1/2+12500, IF(源泉徴収票!BV64<=100000,源泉徴収票!BV64*1/4+25000, 50000))) -> 0 | Y64: 0 | Z64: 0 | AA64: =IF(源泉徴収票!BW64<=20000, 源泉徴収票!BW64, IF(源泉徴収票!BW64<=40000, 源泉徴収票!BW64*1/2+10000, IF(源泉徴収票!BW64<=80000, 源泉徴収票!BW64*1/4+20000, 40000))) -> 0 | AB64: =IF(源泉徴収票!BX64<=20000, 源泉徴収票!BX64, IF(源泉徴収票!BX64<=40000, 源泉徴収票!BX64*1/2+10000, IF(源泉徴収票!BX64<=80000, 源泉徴収票!BX64*1/4+20000, 40000))) -> 0 | AC64: =IF(源泉徴収票!BY64<=25000,源泉徴収票!BY64, IF(源泉徴収票!BY64<=50000,源泉徴収票!BY64*1/2+12500, IF(源泉徴収票!BY64<=100000,源泉徴収票!BY64*1/4+25000, 50000))) -> 0 | AD64: 0 | AE64: 0 | AF64: =IF(源泉徴収票!BZ64<>"",MIN(源泉徴収票!BZ64,50000),0) -> 0 | AG64: =IF(源泉徴収票!CA64>=20000,15000,IF(源泉徴収票!CA64>=10000,源泉徴収票!CA64/2+5000,源泉徴収票!CA64)) -> 0 | AH64: =IF(源泉徴収票!CS64<>"","〇","×") -> × | AJ64: =源泉徴収票!O64+源泉徴収票!R64+源泉徴収票!U64 -> 0 | AK64: =源泉徴収票!Q64+源泉徴収票!T64+源泉徴収票!W64 -> 0 | AL64: =IF(源泉徴収票!I64="無",0,INT(A64*VLOOKUP(A64, 給与所得計算, 3, TRUE) + VLOOKUP(A64, 給与所得計算, 4, TRUE) )) -> 0 | AM64: 0 | AN64: 0 | AO64: =源泉徴収票!P64+源泉徴収票!S64+源泉徴収票!V64 -> 0 | AP64: =IF(源泉徴収票!I64="無",0,源泉徴収票!CB64) -> 0 | AQ64: =IF(源泉徴収票!I64="無",0,源泉徴収票!CD64) -> 0 | AR64: =IF(源泉徴収票!I64="無",0,MIN(120000,Z64+AA64+AE64)) -> 0 | AS64: =IF(源泉徴収票!I64="無",0,MIN(AF64+AG64,50000)) -> 0 | AT64: =IF(源泉徴収票!I64="無",0,IF(E64="○",INDEX(H30配偶者控除・特別控除マスタ,F64,G64),0)) -> 0 | AU64: =IF(源泉徴収票!I64="無",0,IF(C64="○",INDEX(H30配偶者控除・特別控除マスタ,F64,G64),0)+IF(D64="○",INDEX(H30老人控除対象配偶者上乗せ,1,G64),0)) -> 0 | AV64: =IF(源泉徴収票!I64="無",0,COUNTIF(M64:Q64,"一")*380000+COUNTIF(M64:Q64,"特")*630000+COUNTIF(M64:Q64,"老")*480000+COUNTIF(M64:Q64,"同")*580000) -> 0 | AW64: =IF(源泉徴収票!I64="無",0,(COUNTIF(源泉徴収票!BO64:BP64,"一般")+源泉徴収票!BQ64)*270000+(COUNTIF(源泉徴収票!BO64:BP64,"特別")+源泉徴収票!BR64)*400000+(COUNTIF(源泉徴収票!BP64,"同居特別")+源泉徴収票!BS64)*750000) -> 0 | AX64: =IF(源泉徴収票!I64="無",0,IF(源泉徴収票!BT64<>"",IF(OR(源泉徴収票!BT64="特別の寡婦",源泉徴収票!BT64="ひとり親"),350000,270000),0)) -> 0 | AY64: =IF(源泉徴収票!I64="無",0,480000) -> 480000 | AZ64: =IF(源泉徴収票!I64="無",0,SUM(AO64:AY64)) -> 480000 | BA64: =IF(源泉徴収票!I64="無",AN64,FLOOR(MAX(AN64-AZ64,0),1000)) -> 0 | BB64: =IF(源泉徴収票!I64="無",AK64,BA64*VLOOKUP(BA64,所得税額計算,3,TRUE)+VLOOKUP(BA64,所得税額計算,4,TRUE)) -> 0 | BC64: =IF(源泉徴収票!I64="無",0,源泉徴収票!CZ64) -> 0 | BD64: 0 | BE64: =IF(源泉徴収票!I64="無",BD64,FLOOR(BD64*102.1%,100)) -> 0 | BF64: 0
A65: 0 | B65: =IF(AND(源泉徴収票!I65="無",源泉徴収票!AE65<>""),"○","×") -> × | C65: =IF(AND(源泉徴収票!CO65<>"",源泉徴収票!CO65<=480000,AN65<=10000000),"○","×") -> × | D65: =IF(AND(C65="○",源泉徴収票!CN65<>"",会社情報!$C$7-YEAR(MAX(源泉徴収票!CN65-1,0))>=70),"○","×") -> × | E65: =IF(AND(源泉徴収票!CO65<>"",源泉徴収票!CO65>480000,源泉徴収票!CO65<=1330000,AN65<=10000000),"○","×") -> × | F65: =MATCH(源泉徴収票!CO65,H30配偶者控除・特別控除マスタ_配偶者所得,1) -> 1 | G65: =MATCH('源泉徴収票計算過程(非)'!AN65,H30配偶者控除・特別控除マスタ_所得者合計所得,1) -> 1 | H65: =IF(源泉徴収票!AN65="",-1,会社情報!$C$7-YEAR(源泉徴収票!AN65-1)) -> -1 | I65: =IF(源泉徴収票!AT65="",-1,会社情報!$C$7-YEAR(源泉徴収票!AT65-1)) -> -1 | J65: =IF(源泉徴収票!AZ65="",-1,会社情報!$C$7-YEAR(源泉徴収票!AZ65-1)) -> -1 | K65: =IF(源泉徴収票!BF65="",-1,会社情報!$C$7-YEAR(源泉徴収票!BF65-1)) -> -1 | L65: =IF(源泉徴収票!BL65="",-1,会社情報!$C$7-YEAR(源泉徴収票!BL65-1)) -> -1 | M65: =IF(H65>=16,IF(AND(H65>=19,H65<23),"特",IF(H65>=70,IF(源泉徴収票!AO65="同居老親等","同","老"),"一")),IF(H65>=0,"未","×")) -> × | N65: =IF(I65>=16,IF(AND(I65>=19,I65<23),"特",IF(I65>=70,IF(源泉徴収票!AU65="同居老親等","同","老"),"一")),IF(I65>=0,"未","×")) -> × | O65: =IF(J65>=16,IF(AND(J65>=19,J65<23),"特",IF(J65>=70,IF(源泉徴収票!BA65="同居老親等","同","老"),"一")),IF(J65>=0,"未","×")) -> × | P65: =IF(K65>=16,IF(AND(K65>=19,K65<23),"特",IF(K65>=70,IF(源泉徴収票!BG65="同居老親等","同","老"),"一")),IF(K65>=0,"未","×")) -> × | Q65: =IF(L65>=16,IF(AND(L65>=19,L65<23),"特",IF(L65>=70,IF(源泉徴収票!BM65="同居老親等","同","老"),"一")),IF(L65>=0,"未","×")) -> × | W65: =IF(源泉徴収票!BU65<=20000, 源泉徴収票!BU65, IF(源泉徴収票!BU65<=40000, 源泉徴収票!BU65*1/2+10000, IF(源泉徴収票!BU65<=80000, 源泉徴収票!BU65*1/4+20000, 40000))) -> 0 | X65: =IF(源泉徴収票!BV65<=25000,源泉徴収票!BV65, IF(源泉徴収票!BV65<=50000,源泉徴収票!BV65*1/2+12500, IF(源泉徴収票!BV65<=100000,源泉徴収票!BV65*1/4+25000, 50000))) -> 0 | Y65: 0 | Z65: 0 | AA65: =IF(源泉徴収票!BW65<=20000, 源泉徴収票!BW65, IF(源泉徴収票!BW65<=40000, 源泉徴収票!BW65*1/2+10000, IF(源泉徴収票!BW65<=80000, 源泉徴収票!BW65*1/4+20000, 40000))) -> 0 | AB65: =IF(源泉徴収票!BX65<=20000, 源泉徴収票!BX65, IF(源泉徴収票!BX65<=40000, 源泉徴収票!BX65*1/2+10000, IF(源泉徴収票!BX65<=80000, 源泉徴収票!BX65*1/4+20000, 40000))) -> 0 | AC65: =IF(源泉徴収票!BY65<=25000,源泉徴収票!BY65, IF(源泉徴収票!BY65<=50000,源泉徴収票!BY65*1/2+12500, IF(源泉徴収票!BY65<=100000,源泉徴収票!BY65*1/4+25000, 50000))) -> 0 | AD65: 0 | AE65: 0 | AF65: =IF(源泉徴収票!BZ65<>"",MIN(源泉徴収票!BZ65,50000),0) -> 0 | AG65: =IF(源泉徴収票!CA65>=20000,15000,IF(源泉徴収票!CA65>=10000,源泉徴収票!CA65/2+5000,源泉徴収票!CA65)) -> 0 | AH65: =IF(源泉徴収票!CS65<>"","〇","×") -> × | AJ65: =源泉徴収票!O65+源泉徴収票!R65+源泉徴収票!U65 -> 0 | AK65: =源泉徴収票!Q65+源泉徴収票!T65+源泉徴収票!W65 -> 0 | AL65: =IF(源泉徴収票!I65="無",0,INT(A65*VLOOKUP(A65, 給与所得計算, 3, TRUE) + VLOOKUP(A65, 給与所得計算, 4, TRUE) )) -> 0 | AM65: 0 | AN65: 0 | AO65: =源泉徴収票!P65+源泉徴収票!S65+源泉徴収票!V65 -> 0 | AP65: =IF(源泉徴収票!I65="無",0,源泉徴収票!CB65) -> 0 | AQ65: =IF(源泉徴収票!I65="無",0,源泉徴収票!CD65) -> 0 | AR65: =IF(源泉徴収票!I65="無",0,MIN(120000,Z65+AA65+AE65)) -> 0 | AS65: =IF(源泉徴収票!I65="無",0,MIN(AF65+AG65,50000)) -> 0 | AT65: =IF(源泉徴収票!I65="無",0,IF(E65="○",INDEX(H30配偶者控除・特別控除マスタ,F65,G65),0)) -> 0 | AU65: =IF(源泉徴収票!I65="無",0,IF(C65="○",INDEX(H30配偶者控除・特別控除マスタ,F65,G65),0)+IF(D65="○",INDEX(H30老人控除対象配偶者上乗せ,1,G65),0)) -> 0 | AV65: =IF(源泉徴収票!I65="無",0,COUNTIF(M65:Q65,"一")*380000+COUNTIF(M65:Q65,"特")*630000+COUNTIF(M65:Q65,"老")*480000+COUNTIF(M65:Q65,"同")*580000) -> 0 | AW65: =IF(源泉徴収票!I65="無",0,(COUNTIF(源泉徴収票!BO65:BP65,"一般")+源泉徴収票!BQ65)*270000+(COUNTIF(源泉徴収票!BO65:BP65,"特別")+源泉徴収票!BR65)*400000+(COUNTIF(源泉徴収票!BP65,"同居特別")+源泉徴収票!BS65)*750000) -> 0 | AX65: =IF(源泉徴収票!I65="無",0,IF(源泉徴収票!BT65<>"",IF(OR(源泉徴収票!BT65="特別の寡婦",源泉徴収票!BT65="ひとり親"),350000,270000),0)) -> 0 | AY65: =IF(源泉徴収票!I65="無",0,480000) -> 480000 | AZ65: =IF(源泉徴収票!I65="無",0,SUM(AO65:AY65)) -> 480000 | BA65: =IF(源泉徴収票!I65="無",AN65,FLOOR(MAX(AN65-AZ65,0),1000)) -> 0 | BB65: =IF(源泉徴収票!I65="無",AK65,BA65*VLOOKUP(BA65,所得税額計算,3,TRUE)+VLOOKUP(BA65,所得税額計算,4,TRUE)) -> 0 | BC65: =IF(源泉徴収票!I65="無",0,源泉徴収票!CZ65) -> 0 | BD65: 0 | BE65: =IF(源泉徴収票!I65="無",BD65,FLOOR(BD65*102.1%,100)) -> 0 | BF65: 0
A66: 0 | B66: =IF(AND(源泉徴収票!I66="無",源泉徴収票!AE66<>""),"○","×") -> × | C66: =IF(AND(源泉徴収票!CO66<>"",源泉徴収票!CO66<=480000,AN66<=10000000),"○","×") -> × | D66: =IF(AND(C66="○",源泉徴収票!CN66<>"",会社情報!$C$7-YEAR(MAX(源泉徴収票!CN66-1,0))>=70),"○","×") -> × | E66: =IF(AND(源泉徴収票!CO66<>"",源泉徴収票!CO66>480000,源泉徴収票!CO66<=1330000,AN66<=10000000),"○","×") -> × | F66: =MATCH(源泉徴収票!CO66,H30配偶者控除・特別控除マスタ_配偶者所得,1) -> 1 | G66: =MATCH('源泉徴収票計算過程(非)'!AN66,H30配偶者控除・特別控除マスタ_所得者合計所得,1) -> 1 | H66: =IF(源泉徴収票!AN66="",-1,会社情報!$C$7-YEAR(源泉徴収票!AN66-1)) -> -1 | I66: =IF(源泉徴収票!AT66="",-1,会社情報!$C$7-YEAR(源泉徴収票!AT66-1)) -> -1 | J66: =IF(源泉徴収票!AZ66="",-1,会社情報!$C$7-YEAR(源泉徴収票!AZ66-1)) -> -1 | K66: =IF(源泉徴収票!BF66="",-1,会社情報!$C$7-YEAR(源泉徴収票!BF66-1)) -> -1 | L66: =IF(源泉徴収票!BL66="",-1,会社情報!$C$7-YEAR(源泉徴収票!BL66-1)) -> -1 | M66: =IF(H66>=16,IF(AND(H66>=19,H66<23),"特",IF(H66>=70,IF(源泉徴収票!AO66="同居老親等","同","老"),"一")),IF(H66>=0,"未","×")) -> × | N66: =IF(I66>=16,IF(AND(I66>=19,I66<23),"特",IF(I66>=70,IF(源泉徴収票!AU66="同居老親等","同","老"),"一")),IF(I66>=0,"未","×")) -> × | O66: =IF(J66>=16,IF(AND(J66>=19,J66<23),"特",IF(J66>=70,IF(源泉徴収票!BA66="同居老親等","同","老"),"一")),IF(J66>=0,"未","×")) -> × | P66: =IF(K66>=16,IF(AND(K66>=19,K66<23),"特",IF(K66>=70,IF(源泉徴収票!BG66="同居老親等","同","老"),"一")),IF(K66>=0,"未","×")) -> × | Q66: =IF(L66>=16,IF(AND(L66>=19,L66<23),"特",IF(L66>=70,IF(源泉徴収票!BM66="同居老親等","同","老"),"一")),IF(L66>=0,"未","×")) -> × | W66: =IF(源泉徴収票!BU66<=20000, 源泉徴収票!BU66, IF(源泉徴収票!BU66<=40000, 源泉徴収票!BU66*1/2+10000, IF(源泉徴収票!BU66<=80000, 源泉徴収票!BU66*1/4+20000, 40000))) -> 0 | X66: =IF(源泉徴収票!BV66<=25000,源泉徴収票!BV66, IF(源泉徴収票!BV66<=50000,源泉徴収票!BV66*1/2+12500, IF(源泉徴収票!BV66<=100000,源泉徴収票!BV66*1/4+25000, 50000))) -> 0 | Y66: 0 | Z66: 0 | AA66: =IF(源泉徴収票!BW66<=20000, 源泉徴収票!BW66, IF(源泉徴収票!BW66<=40000, 源泉徴収票!BW66*1/2+10000, IF(源泉徴収票!BW66<=80000, 源泉徴収票!BW66*1/4+20000, 40000))) -> 0 | AB66: =IF(源泉徴収票!BX66<=20000, 源泉徴収票!BX66, IF(源泉徴収票!BX66<=40000, 源泉徴収票!BX66*1/2+10000, IF(源泉徴収票!BX66<=80000, 源泉徴収票!BX66*1/4+20000, 40000))) -> 0 | AC66: =IF(源泉徴収票!BY66<=25000,源泉徴収票!BY66, IF(源泉徴収票!BY66<=50000,源泉徴収票!BY66*1/2+12500, IF(源泉徴収票!BY66<=100000,源泉徴収票!BY66*1/4+25000, 50000))) -> 0 | AD66: 0 | AE66: 0 | AF66: =IF(源泉徴収票!BZ66<>"",MIN(源泉徴収票!BZ66,50000),0) -> 0 | AG66: =IF(源泉徴収票!CA66>=20000,15000,IF(源泉徴収票!CA66>=10000,源泉徴収票!CA66/2+5000,源泉徴収票!CA66)) -> 0 | AH66: =IF(源泉徴収票!CS66<>"","〇","×") -> × | AJ66: =源泉徴収票!O66+源泉徴収票!R66+源泉徴収票!U66 -> 0 | AK66: =源泉徴収票!Q66+源泉徴収票!T66+源泉徴収票!W66 -> 0 | AL66: =IF(源泉徴収票!I66="無",0,INT(A66*VLOOKUP(A66, 給与所得計算, 3, TRUE) + VLOOKUP(A66, 給与所得計算, 4, TRUE) )) -> 0 | AM66: 0 | AN66: 0 | AO66: =源泉徴収票!P66+源泉徴収票!S66+源泉徴収票!V66 -> 0 | AP66: =IF(源泉徴収票!I66="無",0,源泉徴収票!CB66) -> 0 | AQ66: =IF(源泉徴収票!I66="無",0,源泉徴収票!CD66) -> 0 | AR66: =IF(源泉徴収票!I66="無",0,MIN(120000,Z66+AA66+AE66)) -> 0 | AS66: =IF(源泉徴収票!I66="無",0,MIN(AF66+AG66,50000)) -> 0 | AT66: =IF(源泉徴収票!I66="無",0,IF(E66="○",INDEX(H30配偶者控除・特別控除マスタ,F66,G66),0)) -> 0 | AU66: =IF(源泉徴収票!I66="無",0,IF(C66="○",INDEX(H30配偶者控除・特別控除マスタ,F66,G66),0)+IF(D66="○",INDEX(H30老人控除対象配偶者上乗せ,1,G66),0)) -> 0 | AV66: =IF(源泉徴収票!I66="無",0,COUNTIF(M66:Q66,"一")*380000+COUNTIF(M66:Q66,"特")*630000+COUNTIF(M66:Q66,"老")*480000+COUNTIF(M66:Q66,"同")*580000) -> 0 | AW66: =IF(源泉徴収票!I66="無",0,(COUNTIF(源泉徴収票!BO66:BP66,"一般")+源泉徴収票!BQ66)*270000+(COUNTIF(源泉徴収票!BO66:BP66,"特別")+源泉徴収票!BR66)*400000+(COUNTIF(源泉徴収票!BP66,"同居特別")+源泉徴収票!BS66)*750000) -> 0 | AX66: =IF(源泉徴収票!I66="無",0,IF(源泉徴収票!BT66<>"",IF(OR(源泉徴収票!BT66="特別の寡婦",源泉徴収票!BT66="ひとり親"),350000,270000),0)) -> 0 | AY66: =IF(源泉徴収票!I66="無",0,480000) -> 480000 | AZ66: =IF(源泉徴収票!I66="無",0,SUM(AO66:AY66)) -> 480000 | BA66: =IF(源泉徴収票!I66="無",AN66,FLOOR(MAX(AN66-AZ66,0),1000)) -> 0 | BB66: =IF(源泉徴収票!I66="無",AK66,BA66*VLOOKUP(BA66,所得税額計算,3,TRUE)+VLOOKUP(BA66,所得税額計算,4,TRUE)) -> 0 | BC66: =IF(源泉徴収票!I66="無",0,源泉徴収票!CZ66) -> 0 | BD66: 0 | BE66: =IF(源泉徴収票!I66="無",BD66,FLOOR(BD66*102.1%,100)) -> 0 | BF66: 0
A67: 0 | B67: =IF(AND(源泉徴収票!I67="無",源泉徴収票!AE67<>""),"○","×") -> × | C67: =IF(AND(源泉徴収票!CO67<>"",源泉徴収票!CO67<=480000,AN67<=10000000),"○","×") -> × | D67: =IF(AND(C67="○",源泉徴収票!CN67<>"",会社情報!$C$7-YEAR(MAX(源泉徴収票!CN67-1,0))>=70),"○","×") -> × | E67: =IF(AND(源泉徴収票!CO67<>"",源泉徴収票!CO67>480000,源泉徴収票!CO67<=1330000,AN67<=10000000),"○","×") -> × | F67: =MATCH(源泉徴収票!CO67,H30配偶者控除・特別控除マスタ_配偶者所得,1) -> 1 | G67: =MATCH('源泉徴収票計算過程(非)'!AN67,H30配偶者控除・特別控除マスタ_所得者合計所得,1) -> 1 | H67: =IF(源泉徴収票!AN67="",-1,会社情報!$C$7-YEAR(源泉徴収票!AN67-1)) -> -1 | I67: =IF(源泉徴収票!AT67="",-1,会社情報!$C$7-YEAR(源泉徴収票!AT67-1)) -> -1 | J67: =IF(源泉徴収票!AZ67="",-1,会社情報!$C$7-YEAR(源泉徴収票!AZ67-1)) -> -1 | K67: =IF(源泉徴収票!BF67="",-1,会社情報!$C$7-YEAR(源泉徴収票!BF67-1)) -> -1 | L67: =IF(源泉徴収票!BL67="",-1,会社情報!$C$7-YEAR(源泉徴収票!BL67-1)) -> -1 | M67: =IF(H67>=16,IF(AND(H67>=19,H67<23),"特",IF(H67>=70,IF(源泉徴収票!AO67="同居老親等","同","老"),"一")),IF(H67>=0,"未","×")) -> × | N67: =IF(I67>=16,IF(AND(I67>=19,I67<23),"特",IF(I67>=70,IF(源泉徴収票!AU67="同居老親等","同","老"),"一")),IF(I67>=0,"未","×")) -> × | O67: =IF(J67>=16,IF(AND(J67>=19,J67<23),"特",IF(J67>=70,IF(源泉徴収票!BA67="同居老親等","同","老"),"一")),IF(J67>=0,"未","×")) -> × | P67: =IF(K67>=16,IF(AND(K67>=19,K67<23),"特",IF(K67>=70,IF(源泉徴収票!BG67="同居老親等","同","老"),"一")),IF(K67>=0,"未","×")) -> × | Q67: =IF(L67>=16,IF(AND(L67>=19,L67<23),"特",IF(L67>=70,IF(源泉徴収票!BM67="同居老親等","同","老"),"一")),IF(L67>=0,"未","×")) -> × | W67: =IF(源泉徴収票!BU67<=20000, 源泉徴収票!BU67, IF(源泉徴収票!BU67<=40000, 源泉徴収票!BU67*1/2+10000, IF(源泉徴収票!BU67<=80000, 源泉徴収票!BU67*1/4+20000, 40000))) -> 0 | X67: =IF(源泉徴収票!BV67<=25000,源泉徴収票!BV67, IF(源泉徴収票!BV67<=50000,源泉徴収票!BV67*1/2+12500, IF(源泉徴収票!BV67<=100000,源泉徴収票!BV67*1/4+25000, 50000))) -> 0 | Y67: 0 | Z67: 0 | AA67: =IF(源泉徴収票!BW67<=20000, 源泉徴収票!BW67, IF(源泉徴収票!BW67<=40000, 源泉徴収票!BW67*1/2+10000, IF(源泉徴収票!BW67<=80000, 源泉徴収票!BW67*1/4+20000, 40000))) -> 0 | AB67: =IF(源泉徴収票!BX67<=20000, 源泉徴収票!BX67, IF(源泉徴収票!BX67<=40000, 源泉徴収票!BX67*1/2+10000, IF(源泉徴収票!BX67<=80000, 源泉徴収票!BX67*1/4+20000, 40000))) -> 0 | AC67: =IF(源泉徴収票!BY67<=25000,源泉徴収票!BY67, IF(源泉徴収票!BY67<=50000,源泉徴収票!BY67*1/2+12500, IF(源泉徴収票!BY67<=100000,源泉徴収票!BY67*1/4+25000, 50000))) -> 0 | AD67: 0 | AE67: 0 | AF67: =IF(源泉徴収票!BZ67<>"",MIN(源泉徴収票!BZ67,50000),0) -> 0 | AG67: =IF(源泉徴収票!CA67>=20000,15000,IF(源泉徴収票!CA67>=10000,源泉徴収票!CA67/2+5000,源泉徴収票!CA67)) -> 0 | AH67: =IF(源泉徴収票!CS67<>"","〇","×") -> × | AJ67: =源泉徴収票!O67+源泉徴収票!R67+源泉徴収票!U67 -> 0 | AK67: =源泉徴収票!Q67+源泉徴収票!T67+源泉徴収票!W67 -> 0 | AL67: =IF(源泉徴収票!I67="無",0,INT(A67*VLOOKUP(A67, 給与所得計算, 3, TRUE) + VLOOKUP(A67, 給与所得計算, 4, TRUE) )) -> 0 | AM67: 0 | AN67: 0 | AO67: =源泉徴収票!P67+源泉徴収票!S67+源泉徴収票!V67 -> 0 | AP67: =IF(源泉徴収票!I67="無",0,源泉徴収票!CB67) -> 0 | AQ67: =IF(源泉徴収票!I67="無",0,源泉徴収票!CD67) -> 0 | AR67: =IF(源泉徴収票!I67="無",0,MIN(120000,Z67+AA67+AE67)) -> 0 | AS67: =IF(源泉徴収票!I67="無",0,MIN(AF67+AG67,50000)) -> 0 | AT67: =IF(源泉徴収票!I67="無",0,IF(E67="○",INDEX(H30配偶者控除・特別控除マスタ,F67,G67),0)) -> 0 | AU67: =IF(源泉徴収票!I67="無",0,IF(C67="○",INDEX(H30配偶者控除・特別控除マスタ,F67,G67),0)+IF(D67="○",INDEX(H30老人控除対象配偶者上乗せ,1,G67),0)) -> 0 | AV67: =IF(源泉徴収票!I67="無",0,COUNTIF(M67:Q67,"一")*380000+COUNTIF(M67:Q67,"特")*630000+COUNTIF(M67:Q67,"老")*480000+COUNTIF(M67:Q67,"同")*580000) -> 0 | AW67: =IF(源泉徴収票!I67="無",0,(COUNTIF(源泉徴収票!BO67:BP67,"一般")+源泉徴収票!BQ67)*270000+(COUNTIF(源泉徴収票!BO67:BP67,"特別")+源泉徴収票!BR67)*400000+(COUNTIF(源泉徴収票!BP67,"同居特別")+源泉徴収票!BS67)*750000) -> 0 | AX67: =IF(源泉徴収票!I67="無",0,IF(源泉徴収票!BT67<>"",IF(OR(源泉徴収票!BT67="特別の寡婦",源泉徴収票!BT67="ひとり親"),350000,270000),0)) -> 0 | AY67: =IF(源泉徴収票!I67="無",0,480000) -> 480000 | AZ67: =IF(源泉徴収票!I67="無",0,SUM(AO67:AY67)) -> 480000 | BA67: =IF(源泉徴収票!I67="無",AN67,FLOOR(MAX(AN67-AZ67,0),1000)) -> 0 | BB67: =IF(源泉徴収票!I67="無",AK67,BA67*VLOOKUP(BA67,所得税額計算,3,TRUE)+VLOOKUP(BA67,所得税額計算,4,TRUE)) -> 0 | BC67: =IF(源泉徴収票!I67="無",0,源泉徴収票!CZ67) -> 0 | BD67: 0 | BE67: =IF(源泉徴収票!I67="無",BD67,FLOOR(BD67*102.1%,100)) -> 0 | BF67: 0
A68: 0 | B68: =IF(AND(源泉徴収票!I68="無",源泉徴収票!AE68<>""),"○","×") -> × | C68: =IF(AND(源泉徴収票!CO68<>"",源泉徴収票!CO68<=480000,AN68<=10000000),"○","×") -> × | D68: =IF(AND(C68="○",源泉徴収票!CN68<>"",会社情報!$C$7-YEAR(MAX(源泉徴収票!CN68-1,0))>=70),"○","×") -> × | E68: =IF(AND(源泉徴収票!CO68<>"",源泉徴収票!CO68>480000,源泉徴収票!CO68<=1330000,AN68<=10000000),"○","×") -> × | F68: =MATCH(源泉徴収票!CO68,H30配偶者控除・特別控除マスタ_配偶者所得,1) -> 1 | G68: =MATCH('源泉徴収票計算過程(非)'!AN68,H30配偶者控除・特別控除マスタ_所得者合計所得,1) -> 1 | H68: =IF(源泉徴収票!AN68="",-1,会社情報!$C$7-YEAR(源泉徴収票!AN68-1)) -> -1 | I68: =IF(源泉徴収票!AT68="",-1,会社情報!$C$7-YEAR(源泉徴収票!AT68-1)) -> -1 | J68: =IF(源泉徴収票!AZ68="",-1,会社情報!$C$7-YEAR(源泉徴収票!AZ68-1)) -> -1 | K68: =IF(源泉徴収票!BF68="",-1,会社情報!$C$7-YEAR(源泉徴収票!BF68-1)) -> -1 | L68: =IF(源泉徴収票!BL68="",-1,会社情報!$C$7-YEAR(源泉徴収票!BL68-1)) -> -1 | M68: =IF(H68>=16,IF(AND(H68>=19,H68<23),"特",IF(H68>=70,IF(源泉徴収票!AO68="同居老親等","同","老"),"一")),IF(H68>=0,"未","×")) -> × | N68: =IF(I68>=16,IF(AND(I68>=19,I68<23),"特",IF(I68>=70,IF(源泉徴収票!AU68="同居老親等","同","老"),"一")),IF(I68>=0,"未","×")) -> × | O68: =IF(J68>=16,IF(AND(J68>=19,J68<23),"特",IF(J68>=70,IF(源泉徴収票!BA68="同居老親等","同","老"),"一")),IF(J68>=0,"未","×")) -> × | P68: =IF(K68>=16,IF(AND(K68>=19,K68<23),"特",IF(K68>=70,IF(源泉徴収票!BG68="同居老親等","同","老"),"一")),IF(K68>=0,"未","×")) -> × | Q68: =IF(L68>=16,IF(AND(L68>=19,L68<23),"特",IF(L68>=70,IF(源泉徴収票!BM68="同居老親等","同","老"),"一")),IF(L68>=0,"未","×")) -> × | W68: =IF(源泉徴収票!BU68<=20000, 源泉徴収票!BU68, IF(源泉徴収票!BU68<=40000, 源泉徴収票!BU68*1/2+10000, IF(源泉徴収票!BU68<=80000, 源泉徴収票!BU68*1/4+20000, 40000))) -> 0 | X68: =IF(源泉徴収票!BV68<=25000,源泉徴収票!BV68, IF(源泉徴収票!BV68<=50000,源泉徴収票!BV68*1/2+12500, IF(源泉徴収票!BV68<=100000,源泉徴収票!BV68*1/4+25000, 50000))) -> 0 | Y68: 0 | Z68: 0 | AA68: =IF(源泉徴収票!BW68<=20000, 源泉徴収票!BW68, IF(源泉徴収票!BW68<=40000, 源泉徴収票!BW68*1/2+10000, IF(源泉徴収票!BW68<=80000, 源泉徴収票!BW68*1/4+20000, 40000))) -> 0 | AB68: =IF(源泉徴収票!BX68<=20000, 源泉徴収票!BX68, IF(源泉徴収票!BX68<=40000, 源泉徴収票!BX68*1/2+10000, IF(源泉徴収票!BX68<=80000, 源泉徴収票!BX68*1/4+20000, 40000))) -> 0 | AC68: =IF(源泉徴収票!BY68<=25000,源泉徴収票!BY68, IF(源泉徴収票!BY68<=50000,源泉徴収票!BY68*1/2+12500, IF(源泉徴収票!BY68<=100000,源泉徴収票!BY68*1/4+25000, 50000))) -> 0 | AD68: 0 | AE68: 0 | AF68: =IF(源泉徴収票!BZ68<>"",MIN(源泉徴収票!BZ68,50000),0) -> 0 | AG68: =IF(源泉徴収票!CA68>=20000,15000,IF(源泉徴収票!CA68>=10000,源泉徴収票!CA68/2+5000,源泉徴収票!CA68)) -> 0 | AH68: =IF(源泉徴収票!CS68<>"","〇","×") -> × | AJ68: =源泉徴収票!O68+源泉徴収票!R68+源泉徴収票!U68 -> 0 | AK68: =源泉徴収票!Q68+源泉徴収票!T68+源泉徴収票!W68 -> 0 | AL68: =IF(源泉徴収票!I68="無",0,INT(A68*VLOOKUP(A68, 給与所得計算, 3, TRUE) + VLOOKUP(A68, 給与所得計算, 4, TRUE) )) -> 0 | AM68: 0 | AN68: 0 | AO68: =源泉徴収票!P68+源泉徴収票!S68+源泉徴収票!V68 -> 0 | AP68: =IF(源泉徴収票!I68="無",0,源泉徴収票!CB68) -> 0 | AQ68: =IF(源泉徴収票!I68="無",0,源泉徴収票!CD68) -> 0 | AR68: =IF(源泉徴収票!I68="無",0,MIN(120000,Z68+AA68+AE68)) -> 0 | AS68: =IF(源泉徴収票!I68="無",0,MIN(AF68+AG68,50000)) -> 0 | AT68: =IF(源泉徴収票!I68="無",0,IF(E68="○",INDEX(H30配偶者控除・特別控除マスタ,F68,G68),0)) -> 0 | AU68: =IF(源泉徴収票!I68="無",0,IF(C68="○",INDEX(H30配偶者控除・特別控除マスタ,F68,G68),0)+IF(D68="○",INDEX(H30老人控除対象配偶者上乗せ,1,G68),0)) -> 0 | AV68: =IF(源泉徴収票!I68="無",0,COUNTIF(M68:Q68,"一")*380000+COUNTIF(M68:Q68,"特")*630000+COUNTIF(M68:Q68,"老")*480000+COUNTIF(M68:Q68,"同")*580000) -> 0 | AW68: =IF(源泉徴収票!I68="無",0,(COUNTIF(源泉徴収票!BO68:BP68,"一般")+源泉徴収票!BQ68)*270000+(COUNTIF(源泉徴収票!BO68:BP68,"特別")+源泉徴収票!BR68)*400000+(COUNTIF(源泉徴収票!BP68,"同居特別")+源泉徴収票!BS68)*750000) -> 0 | AX68: =IF(源泉徴収票!I68="無",0,IF(源泉徴収票!BT68<>"",IF(OR(源泉徴収票!BT68="特別の寡婦",源泉徴収票!BT68="ひとり親"),350000,270000),0)) -> 0 | AY68: =IF(源泉徴収票!I68="無",0,480000) -> 480000 | AZ68: =IF(源泉徴収票!I68="無",0,SUM(AO68:AY68)) -> 480000 | BA68: =IF(源泉徴収票!I68="無",AN68,FLOOR(MAX(AN68-AZ68,0),1000)) -> 0 | BB68: =IF(源泉徴収票!I68="無",AK68,BA68*VLOOKUP(BA68,所得税額計算,3,TRUE)+VLOOKUP(BA68,所得税額計算,4,TRUE)) -> 0 | BC68: =IF(源泉徴収票!I68="無",0,源泉徴収票!CZ68) -> 0 | BD68: 0 | BE68: =IF(源泉徴収票!I68="無",BD68,FLOOR(BD68*102.1%,100)) -> 0 | BF68: 0
A69: 0 | B69: =IF(AND(源泉徴収票!I69="無",源泉徴収票!AE69<>""),"○","×") -> × | C69: =IF(AND(源泉徴収票!CO69<>"",源泉徴収票!CO69<=480000,AN69<=10000000),"○","×") -> × | D69: =IF(AND(C69="○",源泉徴収票!CN69<>"",会社情報!$C$7-YEAR(MAX(源泉徴収票!CN69-1,0))>=70),"○","×") -> × | E69: =IF(AND(源泉徴収票!CO69<>"",源泉徴収票!CO69>480000,源泉徴収票!CO69<=1330000,AN69<=10000000),"○","×") -> × | F69: =MATCH(源泉徴収票!CO69,H30配偶者控除・特別控除マスタ_配偶者所得,1) -> 1 | G69: =MATCH('源泉徴収票計算過程(非)'!AN69,H30配偶者控除・特別控除マスタ_所得者合計所得,1) -> 1 | H69: =IF(源泉徴収票!AN69="",-1,会社情報!$C$7-YEAR(源泉徴収票!AN69-1)) -> -1 | I69: =IF(源泉徴収票!AT69="",-1,会社情報!$C$7-YEAR(源泉徴収票!AT69-1)) -> -1 | J69: =IF(源泉徴収票!AZ69="",-1,会社情報!$C$7-YEAR(源泉徴収票!AZ69-1)) -> -1 | K69: =IF(源泉徴収票!BF69="",-1,会社情報!$C$7-YEAR(源泉徴収票!BF69-1)) -> -1 | L69: =IF(源泉徴収票!BL69="",-1,会社情報!$C$7-YEAR(源泉徴収票!BL69-1)) -> -1 | M69: =IF(H69>=16,IF(AND(H69>=19,H69<23),"特",IF(H69>=70,IF(源泉徴収票!AO69="同居老親等","同","老"),"一")),IF(H69>=0,"未","×")) -> × | N69: =IF(I69>=16,IF(AND(I69>=19,I69<23),"特",IF(I69>=70,IF(源泉徴収票!AU69="同居老親等","同","老"),"一")),IF(I69>=0,"未","×")) -> × | O69: =IF(J69>=16,IF(AND(J69>=19,J69<23),"特",IF(J69>=70,IF(源泉徴収票!BA69="同居老親等","同","老"),"一")),IF(J69>=0,"未","×")) -> × | P69: =IF(K69>=16,IF(AND(K69>=19,K69<23),"特",IF(K69>=70,IF(源泉徴収票!BG69="同居老親等","同","老"),"一")),IF(K69>=0,"未","×")) -> × | Q69: =IF(L69>=16,IF(AND(L69>=19,L69<23),"特",IF(L69>=70,IF(源泉徴収票!BM69="同居老親等","同","老"),"一")),IF(L69>=0,"未","×")) -> × | W69: =IF(源泉徴収票!BU69<=20000, 源泉徴収票!BU69, IF(源泉徴収票!BU69<=40000, 源泉徴収票!BU69*1/2+10000, IF(源泉徴収票!BU69<=80000, 源泉徴収票!BU69*1/4+20000, 40000))) -> 0 | X69: =IF(源泉徴収票!BV69<=25000,源泉徴収票!BV69, IF(源泉徴収票!BV69<=50000,源泉徴収票!BV69*1/2+12500, IF(源泉徴収票!BV69<=100000,源泉徴収票!BV69*1/4+25000, 50000))) -> 0 | Y69: 0 | Z69: 0 | AA69: =IF(源泉徴収票!BW69<=20000, 源泉徴収票!BW69, IF(源泉徴収票!BW69<=40000, 源泉徴収票!BW69*1/2+10000, IF(源泉徴収票!BW69<=80000, 源泉徴収票!BW69*1/4+20000, 40000))) -> 0 | AB69: =IF(源泉徴収票!BX69<=20000, 源泉徴収票!BX69, IF(源泉徴収票!BX69<=40000, 源泉徴収票!BX69*1/2+10000, IF(源泉徴収票!BX69<=80000, 源泉徴収票!BX69*1/4+20000, 40000))) -> 0 | AC69: =IF(源泉徴収票!BY69<=25000,源泉徴収票!BY69, IF(源泉徴収票!BY69<=50000,源泉徴収票!BY69*1/2+12500, IF(源泉徴収票!BY69<=100000,源泉徴収票!BY69*1/4+25000, 50000))) -> 0 | AD69: 0 | AE69: 0 | AF69: =IF(源泉徴収票!BZ69<>"",MIN(源泉徴収票!BZ69,50000),0) -> 0 | AG69: =IF(源泉徴収票!CA69>=20000,15000,IF(源泉徴収票!CA69>=10000,源泉徴収票!CA69/2+5000,源泉徴収票!CA69)) -> 0 | AH69: =IF(源泉徴収票!CS69<>"","〇","×") -> × | AJ69: =源泉徴収票!O69+源泉徴収票!R69+源泉徴収票!U69 -> 0 | AK69: =源泉徴収票!Q69+源泉徴収票!T69+源泉徴収票!W69 -> 0 | AL69: =IF(源泉徴収票!I69="無",0,INT(A69*VLOOKUP(A69, 給与所得計算, 3, TRUE) + VLOOKUP(A69, 給与所得計算, 4, TRUE) )) -> 0 | AM69: 0 | AN69: 0 | AO69: =源泉徴収票!P69+源泉徴収票!S69+源泉徴収票!V69 -> 0 | AP69: =IF(源泉徴収票!I69="無",0,源泉徴収票!CB69) -> 0 | AQ69: =IF(源泉徴収票!I69="無",0,源泉徴収票!CD69) -> 0 | AR69: =IF(源泉徴収票!I69="無",0,MIN(120000,Z69+AA69+AE69)) -> 0 | AS69: =IF(源泉徴収票!I69="無",0,MIN(AF69+AG69,50000)) -> 0 | AT69: =IF(源泉徴収票!I69="無",0,IF(E69="○",INDEX(H30配偶者控除・特別控除マスタ,F69,G69),0)) -> 0 | AU69: =IF(源泉徴収票!I69="無",0,IF(C69="○",INDEX(H30配偶者控除・特別控除マスタ,F69,G69),0)+IF(D69="○",INDEX(H30老人控除対象配偶者上乗せ,1,G69),0)) -> 0 | AV69: =IF(源泉徴収票!I69="無",0,COUNTIF(M69:Q69,"一")*380000+COUNTIF(M69:Q69,"特")*630000+COUNTIF(M69:Q69,"老")*480000+COUNTIF(M69:Q69,"同")*580000) -> 0 | AW69: =IF(源泉徴収票!I69="無",0,(COUNTIF(源泉徴収票!BO69:BP69,"一般")+源泉徴収票!BQ69)*270000+(COUNTIF(源泉徴収票!BO69:BP69,"特別")+源泉徴収票!BR69)*400000+(COUNTIF(源泉徴収票!BP69,"同居特別")+源泉徴収票!BS69)*750000) -> 0 | AX69: =IF(源泉徴収票!I69="無",0,IF(源泉徴収票!BT69<>"",IF(OR(源泉徴収票!BT69="特別の寡婦",源泉徴収票!BT69="ひとり親"),350000,270000),0)) -> 0 | AY69: =IF(源泉徴収票!I69="無",0,480000) -> 480000 | AZ69: =IF(源泉徴収票!I69="無",0,SUM(AO69:AY69)) -> 480000 | BA69: =IF(源泉徴収票!I69="無",AN69,FLOOR(MAX(AN69-AZ69,0),1000)) -> 0 | BB69: =IF(源泉徴収票!I69="無",AK69,BA69*VLOOKUP(BA69,所得税額計算,3,TRUE)+VLOOKUP(BA69,所得税額計算,4,TRUE)) -> 0 | BC69: =IF(源泉徴収票!I69="無",0,源泉徴収票!CZ69) -> 0 | BD69: 0 | BE69: =IF(源泉徴収票!I69="無",BD69,FLOOR(BD69*102.1%,100)) -> 0 | BF69: 0
A70: 0 | B70: =IF(AND(源泉徴収票!I70="無",源泉徴収票!AE70<>""),"○","×") -> × | C70: =IF(AND(源泉徴収票!CO70<>"",源泉徴収票!CO70<=480000,AN70<=10000000),"○","×") -> × | D70: =IF(AND(C70="○",源泉徴収票!CN70<>"",会社情報!$C$7-YEAR(MAX(源泉徴収票!CN70-1,0))>=70),"○","×") -> × | E70: =IF(AND(源泉徴収票!CO70<>"",源泉徴収票!CO70>480000,源泉徴収票!CO70<=1330000,AN70<=10000000),"○","×") -> × | F70: =MATCH(源泉徴収票!CO70,H30配偶者控除・特別控除マスタ_配偶者所得,1) -> 1 | G70: =MATCH('源泉徴収票計算過程(非)'!AN70,H30配偶者控除・特別控除マスタ_所得者合計所得,1) -> 1 | H70: =IF(源泉徴収票!AN70="",-1,会社情報!$C$7-YEAR(源泉徴収票!AN70-1)) -> -1 | I70: =IF(源泉徴収票!AT70="",-1,会社情報!$C$7-YEAR(源泉徴収票!AT70-1)) -> -1 | J70: =IF(源泉徴収票!AZ70="",-1,会社情報!$C$7-YEAR(源泉徴収票!AZ70-1)) -> -1 | K70: =IF(源泉徴収票!BF70="",-1,会社情報!$C$7-YEAR(源泉徴収票!BF70-1)) -> -1 | L70: =IF(源泉徴収票!BL70="",-1,会社情報!$C$7-YEAR(源泉徴収票!BL70-1)) -> -1 | M70: =IF(H70>=16,IF(AND(H70>=19,H70<23),"特",IF(H70>=70,IF(源泉徴収票!AO70="同居老親等","同","老"),"一")),IF(H70>=0,"未","×")) -> × | N70: =IF(I70>=16,IF(AND(I70>=19,I70<23),"特",IF(I70>=70,IF(源泉徴収票!AU70="同居老親等","同","老"),"一")),IF(I70>=0,"未","×")) -> × | O70: =IF(J70>=16,IF(AND(J70>=19,J70<23),"特",IF(J70>=70,IF(源泉徴収票!BA70="同居老親等","同","老"),"一")),IF(J70>=0,"未","×")) -> × | P70: =IF(K70>=16,IF(AND(K70>=19,K70<23),"特",IF(K70>=70,IF(源泉徴収票!BG70="同居老親等","同","老"),"一")),IF(K70>=0,"未","×")) -> × | Q70: =IF(L70>=16,IF(AND(L70>=19,L70<23),"特",IF(L70>=70,IF(源泉徴収票!BM70="同居老親等","同","老"),"一")),IF(L70>=0,"未","×")) -> × | W70: =IF(源泉徴収票!BU70<=20000, 源泉徴収票!BU70, IF(源泉徴収票!BU70<=40000, 源泉徴収票!BU70*1/2+10000, IF(源泉徴収票!BU70<=80000, 源泉徴収票!BU70*1/4+20000, 40000))) -> 0 | X70: =IF(源泉徴収票!BV70<=25000,源泉徴収票!BV70, IF(源泉徴収票!BV70<=50000,源泉徴収票!BV70*1/2+12500, IF(源泉徴収票!BV70<=100000,源泉徴収票!BV70*1/4+25000, 50000))) -> 0 | Y70: 0 | Z70: 0 | AA70: =IF(源泉徴収票!BW70<=20000, 源泉徴収票!BW70, IF(源泉徴収票!BW70<=40000, 源泉徴収票!BW70*1/2+10000, IF(源泉徴収票!BW70<=80000, 源泉徴収票!BW70*1/4+20000, 40000))) -> 0 | AB70: =IF(源泉徴収票!BX70<=20000, 源泉徴収票!BX70, IF(源泉徴収票!BX70<=40000, 源泉徴収票!BX70*1/2+10000, IF(源泉徴収票!BX70<=80000, 源泉徴収票!BX70*1/4+20000, 40000))) -> 0 | AC70: =IF(源泉徴収票!BY70<=25000,源泉徴収票!BY70, IF(源泉徴収票!BY70<=50000,源泉徴収票!BY70*1/2+12500, IF(源泉徴収票!BY70<=100000,源泉徴収票!BY70*1/4+25000, 50000))) -> 0 | AD70: 0 | AE70: 0 | AF70: =IF(源泉徴収票!BZ70<>"",MIN(源泉徴収票!BZ70,50000),0) -> 0 | AG70: =IF(源泉徴収票!CA70>=20000,15000,IF(源泉徴収票!CA70>=10000,源泉徴収票!CA70/2+5000,源泉徴収票!CA70)) -> 0 | AH70: =IF(源泉徴収票!CS70<>"","〇","×") -> × | AJ70: =源泉徴収票!O70+源泉徴収票!R70+源泉徴収票!U70 -> 0 | AK70: =源泉徴収票!Q70+源泉徴収票!T70+源泉徴収票!W70 -> 0 | AL70: =IF(源泉徴収票!I70="無",0,INT(A70*VLOOKUP(A70, 給与所得計算, 3, TRUE) + VLOOKUP(A70, 給与所得計算, 4, TRUE) )) -> 0 | AM70: 0 | AN70: 0 | AO70: =源泉徴収票!P70+源泉徴収票!S70+源泉徴収票!V70 -> 0 | AP70: =IF(源泉徴収票!I70="無",0,源泉徴収票!CB70) -> 0 | AQ70: =IF(源泉徴収票!I70="無",0,源泉徴収票!CD70) -> 0 | AR70: =IF(源泉徴収票!I70="無",0,MIN(120000,Z70+AA70+AE70)) -> 0 | AS70: =IF(源泉徴収票!I70="無",0,MIN(AF70+AG70,50000)) -> 0 | AT70: =IF(源泉徴収票!I70="無",0,IF(E70="○",INDEX(H30配偶者控除・特別控除マスタ,F70,G70),0)) -> 0 | AU70: =IF(源泉徴収票!I70="無",0,IF(C70="○",INDEX(H30配偶者控除・特別控除マスタ,F70,G70),0)+IF(D70="○",INDEX(H30老人控除対象配偶者上乗せ,1,G70),0)) -> 0 | AV70: =IF(源泉徴収票!I70="無",0,COUNTIF(M70:Q70,"一")*380000+COUNTIF(M70:Q70,"特")*630000+COUNTIF(M70:Q70,"老")*480000+COUNTIF(M70:Q70,"同")*580000) -> 0 | AW70: =IF(源泉徴収票!I70="無",0,(COUNTIF(源泉徴収票!BO70:BP70,"一般")+源泉徴収票!BQ70)*270000+(COUNTIF(源泉徴収票!BO70:BP70,"特別")+源泉徴収票!BR70)*400000+(COUNTIF(源泉徴収票!BP70,"同居特別")+源泉徴収票!BS70)*750000) -> 0 | AX70: =IF(源泉徴収票!I70="無",0,IF(源泉徴収票!BT70<>"",IF(OR(源泉徴収票!BT70="特別の寡婦",源泉徴収票!BT70="ひとり親"),350000,270000),0)) -> 0 | AY70: =IF(源泉徴収票!I70="無",0,480000) -> 480000 | AZ70: =IF(源泉徴収票!I70="無",0,SUM(AO70:AY70)) -> 480000 | BA70: =IF(源泉徴収票!I70="無",AN70,FLOOR(MAX(AN70-AZ70,0),1000)) -> 0 | BB70: =IF(源泉徴収票!I70="無",AK70,BA70*VLOOKUP(BA70,所得税額計算,3,TRUE)+VLOOKUP(BA70,所得税額計算,4,TRUE)) -> 0 | BC70: =IF(源泉徴収票!I70="無",0,源泉徴収票!CZ70) -> 0 | BD70: 0 | BE70: =IF(源泉徴収票!I70="無",BD70,FLOOR(BD70*102.1%,100)) -> 0 | BF70: 0
A71: 0 | B71: =IF(AND(源泉徴収票!I71="無",源泉徴収票!AE71<>""),"○","×") -> × | C71: =IF(AND(源泉徴収票!CO71<>"",源泉徴収票!CO71<=480000,AN71<=10000000),"○","×") -> × | D71: =IF(AND(C71="○",源泉徴収票!CN71<>"",会社情報!$C$7-YEAR(MAX(源泉徴収票!CN71-1,0))>=70),"○","×") -> × | E71: =IF(AND(源泉徴収票!CO71<>"",源泉徴収票!CO71>480000,源泉徴収票!CO71<=1330000,AN71<=10000000),"○","×") -> × | F71: =MATCH(源泉徴収票!CO71,H30配偶者控除・特別控除マスタ_配偶者所得,1) -> 1 | G71: =MATCH('源泉徴収票計算過程(非)'!AN71,H30配偶者控除・特別控除マスタ_所得者合計所得,1) -> 1 | H71: =IF(源泉徴収票!AN71="",-1,会社情報!$C$7-YEAR(源泉徴収票!AN71-1)) -> -1 | I71: =IF(源泉徴収票!AT71="",-1,会社情報!$C$7-YEAR(源泉徴収票!AT71-1)) -> -1 | J71: =IF(源泉徴収票!AZ71="",-1,会社情報!$C$7-YEAR(源泉徴収票!AZ71-1)) -> -1 | K71: =IF(源泉徴収票!BF71="",-1,会社情報!$C$7-YEAR(源泉徴収票!BF71-1)) -> -1 | L71: =IF(源泉徴収票!BL71="",-1,会社情報!$C$7-YEAR(源泉徴収票!BL71-1)) -> -1 | M71: =IF(H71>=16,IF(AND(H71>=19,H71<23),"特",IF(H71>=70,IF(源泉徴収票!AO71="同居老親等","同","老"),"一")),IF(H71>=0,"未","×")) -> × | N71: =IF(I71>=16,IF(AND(I71>=19,I71<23),"特",IF(I71>=70,IF(源泉徴収票!AU71="同居老親等","同","老"),"一")),IF(I71>=0,"未","×")) -> × | O71: =IF(J71>=16,IF(AND(J71>=19,J71<23),"特",IF(J71>=70,IF(源泉徴収票!BA71="同居老親等","同","老"),"一")),IF(J71>=0,"未","×")) -> × | P71: =IF(K71>=16,IF(AND(K71>=19,K71<23),"特",IF(K71>=70,IF(源泉徴収票!BG71="同居老親等","同","老"),"一")),IF(K71>=0,"未","×")) -> × | Q71: =IF(L71>=16,IF(AND(L71>=19,L71<23),"特",IF(L71>=70,IF(源泉徴収票!BM71="同居老親等","同","老"),"一")),IF(L71>=0,"未","×")) -> × | W71: =IF(源泉徴収票!BU71<=20000, 源泉徴収票!BU71, IF(源泉徴収票!BU71<=40000, 源泉徴収票!BU71*1/2+10000, IF(源泉徴収票!BU71<=80000, 源泉徴収票!BU71*1/4+20000, 40000))) -> 0 | X71: =IF(源泉徴収票!BV71<=25000,源泉徴収票!BV71, IF(源泉徴収票!BV71<=50000,源泉徴収票!BV71*1/2+12500, IF(源泉徴収票!BV71<=100000,源泉徴収票!BV71*1/4+25000, 50000))) -> 0 | Y71: 0 | Z71: 0 | AA71: =IF(源泉徴収票!BW71<=20000, 源泉徴収票!BW71, IF(源泉徴収票!BW71<=40000, 源泉徴収票!BW71*1/2+10000, IF(源泉徴収票!BW71<=80000, 源泉徴収票!BW71*1/4+20000, 40000))) -> 0 | AB71: =IF(源泉徴収票!BX71<=20000, 源泉徴収票!BX71, IF(源泉徴収票!BX71<=40000, 源泉徴収票!BX71*1/2+10000, IF(源泉徴収票!BX71<=80000, 源泉徴収票!BX71*1/4+20000, 40000))) -> 0 | AC71: =IF(源泉徴収票!BY71<=25000,源泉徴収票!BY71, IF(源泉徴収票!BY71<=50000,源泉徴収票!BY71*1/2+12500, IF(源泉徴収票!BY71<=100000,源泉徴収票!BY71*1/4+25000, 50000))) -> 0 | AD71: 0 | AE71: 0 | AF71: =IF(源泉徴収票!BZ71<>"",MIN(源泉徴収票!BZ71,50000),0) -> 0 | AG71: =IF(源泉徴収票!CA71>=20000,15000,IF(源泉徴収票!CA71>=10000,源泉徴収票!CA71/2+5000,源泉徴収票!CA71)) -> 0 | AH71: =IF(源泉徴収票!CS71<>"","〇","×") -> × | AJ71: =源泉徴収票!O71+源泉徴収票!R71+源泉徴収票!U71 -> 0 | AK71: =源泉徴収票!Q71+源泉徴収票!T71+源泉徴収票!W71 -> 0 | AL71: =IF(源泉徴収票!I71="無",0,INT(A71*VLOOKUP(A71, 給与所得計算, 3, TRUE) + VLOOKUP(A71, 給与所得計算, 4, TRUE) )) -> 0 | AM71: 0 | AN71: 0 | AO71: =源泉徴収票!P71+源泉徴収票!S71+源泉徴収票!V71 -> 0 | AP71: =IF(源泉徴収票!I71="無",0,源泉徴収票!CB71) -> 0 | AQ71: =IF(源泉徴収票!I71="無",0,源泉徴収票!CD71) -> 0 | AR71: =IF(源泉徴収票!I71="無",0,MIN(120000,Z71+AA71+AE71)) -> 0 | AS71: =IF(源泉徴収票!I71="無",0,MIN(AF71+AG71,50000)) -> 0 | AT71: =IF(源泉徴収票!I71="無",0,IF(E71="○",INDEX(H30配偶者控除・特別控除マスタ,F71,G71),0)) -> 0 | AU71: =IF(源泉徴収票!I71="無",0,IF(C71="○",INDEX(H30配偶者控除・特別控除マスタ,F71,G71),0)+IF(D71="○",INDEX(H30老人控除対象配偶者上乗せ,1,G71),0)) -> 0 | AV71: =IF(源泉徴収票!I71="無",0,COUNTIF(M71:Q71,"一")*380000+COUNTIF(M71:Q71,"特")*630000+COUNTIF(M71:Q71,"老")*480000+COUNTIF(M71:Q71,"同")*580000) -> 0 | AW71: =IF(源泉徴収票!I71="無",0,(COUNTIF(源泉徴収票!BO71:BP71,"一般")+源泉徴収票!BQ71)*270000+(COUNTIF(源泉徴収票!BO71:BP71,"特別")+源泉徴収票!BR71)*400000+(COUNTIF(源泉徴収票!BP71,"同居特別")+源泉徴収票!BS71)*750000) -> 0 | AX71: =IF(源泉徴収票!I71="無",0,IF(源泉徴収票!BT71<>"",IF(OR(源泉徴収票!BT71="特別の寡婦",源泉徴収票!BT71="ひとり親"),350000,270000),0)) -> 0 | AY71: =IF(源泉徴収票!I71="無",0,480000) -> 480000 | AZ71: =IF(源泉徴収票!I71="無",0,SUM(AO71:AY71)) -> 480000 | BA71: =IF(源泉徴収票!I71="無",AN71,FLOOR(MAX(AN71-AZ71,0),1000)) -> 0 | BB71: =IF(源泉徴収票!I71="無",AK71,BA71*VLOOKUP(BA71,所得税額計算,3,TRUE)+VLOOKUP(BA71,所得税額計算,4,TRUE)) -> 0 | BC71: =IF(源泉徴収票!I71="無",0,源泉徴収票!CZ71) -> 0 | BD71: 0 | BE71: =IF(源泉徴収票!I71="無",BD71,FLOOR(BD71*102.1%,100)) -> 0 | BF71: 0
